Workbook

Sheet 資料
A1: 近畿地域農業ナビ
C4: 府県 | O4: 市区町村 | AC4: =IF(COUNTIF(OFFSET(リスト!$A$79,1,MATCH(O5,リスト!$A$79:$OC$79,0)-1,COUNTA(OFFSET(リスト!$A$79,1,MATCH(O5,リスト!$A$79:$OC$79,0)-1,38))),AE5),"旧市区町村","旧市区町村を選択してください") -> 旧市区町村 | AW4: =IF(COUNTIF(OFFSET(リスト!$A$118,1,MATCH(AE5,リスト!$A$118:$OC$118,0)-1,COUNTA(OFFSET(リスト!$A$118,1,MATCH(AE5,リスト!$A$118:$OC$118,0)-1,128))),AY5),"農業集落","農業集落を選択してください") -> 農業集落 | DJ4: =VLOOKUP(DJ5,key!$A$1:$B$5000,2,FALSE) -> 3000000000
C5: 和歌山県 | DJ5: =IF(AND(O5=" ",AE5=" ",AY5=" "),C5,IF(AND(AE5=" ",AY5=" "),C5&O5,IF(AY5=" ",C5&O5&AE5,C5&O5&AE5&AY5))) -> 和歌山県
C7: 地域の概要 | AK7: 人、％ | AQ7: ％ | BG7: ha、％ | BY7: ha | CE7: ha
C8: 世帯数 | J8: 事業所数 | Q8: 総人口 | AL8: 高齢化率 | AR8: 総土地 面積 | BH8: 農業地域 類型区分 | BN8: 中山間集落協定 | BZ8: 0.3ha区画 以上の田 | CF8: 集落営 農活動 | DJ8: 府県との比較
Q9: 令和２年 | X9: 30年後予測 | AE9: 増減率 | AX9: 森林地域 | BD9: 割合 | BN9: 協定数 | BT9: 協定面積 | DJ9: 都府県との比較
C10: =IF(ISNA($DJ$4),"",IF(VLOOKUP($DJ$4,'２データ'!$A$4:$KH$5000,'２データ'!JR$2,FALSE)=0,"-",VLOOKUP($DJ$4,'２データ'!$A$4:$KH$5000,'２データ'!JR$2,FALSE))) -> 393,489 | J10: =IF(ISNA($DJ$4),"",IF(VLOOKUP($DJ$4,'２データ'!$A$4:$KH$5000,'２データ'!JS$2,FALSE)=0,"-",VLOOKUP($DJ$4,'２データ'!$A$4:$KH$5000,'２データ'!JS$2,FALSE))) -> 46,480 | Q10: =IF(ISNA($DJ$4),"",IF(VLOOKUP($DJ$4,'２データ'!$A$4:$KH$5000,'２データ'!JT$2,FALSE)=0,"-",VLOOKUP($DJ$4,'２データ'!$A$4:$KH$5000,'２データ'!JT$2,FALSE))) -> 922,584 | X10: =IF(ISNA($DJ$4),"",IF(VLOOKUP($DJ$4,'２データ'!$A$4:$KH$5000,'２データ'!JU$2,FALSE)=0,"-",VLOOKUP($DJ$4,'２データ'!$A$4:$KH$5000,'２データ'!JU$2,FALSE))) -> 631,619 | AE10: =IF(ISNA($DJ$4),"",IF(Q10="-","nc",IF(AND(VLOOKUP($DJ$4,'２データ'!$A$4:$KH$5000,'２データ'!JV$2,FALSE)<0.5,VLOOKUP($DJ$4,'２データ'!$A$4:$KH$5000,'２データ'!JV$2,FALSE)>-0.5),0,VLOOKUP($DJ$4,'２データ'!$A$4:$KH$5000,'２データ'!JV$2,FALSE)))) -> △ 32 | AL10: =IF(ISNA($DJ$4),"",IF(Q10="-","nc",IF(VLOOKUP($DJ$4,'２データ'!$A$4:$KH$5000,'２データ'!JW$2,FALSE)=0,"-",VLOOKUP($DJ$4,'２データ'!$A$4:$KH$5000,'２データ'!JW$2,FALSE)))) -> 33 | AR10: =IF(ISNA($DJ$4),"",IF(VLOOKUP($DJ$4,'２データ'!$A$4:$KH$5000,'２データ'!JX$2,FALSE)=0,"-",VLOOKUP($DJ$4,'２データ'!$A$4:$KH$5000,'２データ'!JX$2,FALSE))) -> 472,422 | AX10: =IF(ISNA($DJ$4),"",IF(VLOOKUP($DJ$4,'２データ'!$A$4:$KH$5000,'２データ'!JY$2,FALSE)=0,"-",VLOOKUP($DJ$4,'２データ'!$A$4:$KH$5000,'２データ'!JY$2,FALSE))) -> 361,642 | BD10: =IF(ISNA($DJ$4),"",IF(AR10="-","nc",IF(AX10="-","-",AX10/AR10*100))) -> 77 | BH10: =IF(ISNA($DJ$4),"",IF(VLOOKUP($DJ$4,'２データ'!$A$4:$KH$5000,'２データ'!JZ$2,FALSE)="1","都市的",IF(VLOOKUP($DJ$4,'２データ'!$A$4:$KH$5000,'２データ'!JZ$2,FALSE)="2","平地農業",IF(VLOOKUP($DJ$4,'２データ'!$A$4:$KH$5000,'２データ'!JZ$2,FALSE)="3","中間農業",IF(VLOOKUP($DJ$4,'２データ'!$A$4:$KH$5000,'２データ'!JZ$2,FALSE)="4","山間農業",VLOOKUP($DJ$4,'２データ'!$A$4:$KH$5000,'２データ'!JZ$2,FALSE)))))) -> … | BN10: =IF(ISNA($DJ$4),"",IF(VLOOKUP($DJ$4,'２データ'!$A$4:$KH$5000,'２データ'!KA$2,FALSE)=0,"-",VLOOKUP($DJ$4,'２データ'!$A$4:$KH$5000,'２データ'!KA$2,FALSE))) -> 587 | BT10: =IF(ISNA($DJ$4),"",IF(VLOOKUP($DJ$4,'２データ'!$A$4:$KH$5000,'２データ'!KB$2,FALSE)=0,"-",VLOOKUP($DJ$4,'２データ'!$A$4:$KH$5000,'２データ'!KB$2,FALSE))) -> 10,131 | BZ10: =IF(ISNA($DJ$4),"",IF(VLOOKUP($DJ$4,'２データ'!$A$4:$KH$5000,'２データ'!KC$2,FALSE)=0,"-",VLOOKUP($DJ$4,'２データ'!$A$4:$KH$5000,'２データ'!KC$2,FALSE))) -> 397 | CF10: =IF(ISNA($DJ$4),"",IF(VLOOKUP($DJ$4,'２データ'!$A$4:$KH$5000,'２データ'!KD$2,FALSE)>0,"有","無")) -> 有 | DJ10: 全国との比較
C11: 資料：農林水産省統計部「地域の農業を見て・知って・活かすＤＢ」 | DJ11: 前回との比較
BW12: 府県との比較
B14: １ 農業経営体数
C16: (1) 組織形態別経営体数 | BQ16: (2) 雇用した経営体数
C17: 区 分 | O17: 計 | U17: 法人化している | AS17: 地方 公共 団体等 | AY17: 法人化していない | BK17: 認定農業 者がいる 経営体 | BQ17: 常雇い | CB17: 臨時雇い
U18: 農事組合法人 | AA18: 会社 | AG18: 農協等 の団体 | AM18: その他 の法人 | AY18: 団体 経営体 | BE18: 個人 経営体 | BQ18: 経営体 | BW18: 人数 （人） | CB18: 経営体 | CG18: 人数 （人）
C20: 経営 体数 | H20: 平成27年 | O20: =IF(ISNA($DJ$4),"",VLOOKUP($DJ$4,'27データ'!$A$4:$KH$5000,'27データ'!M$2,FALSE)) -> 21,496 | U20: =IF(ISNA($DJ$4),"",VLOOKUP($DJ$4,'27データ'!$A$4:$KH$5000,'27データ'!N$2,FALSE)) -> 21 | AA20: =IF(ISNA($DJ$4),"",VLOOKUP($DJ$4,'27データ'!$A$4:$KH$5000,'27データ'!O$2,FALSE)) -> 73 | AG20: =IF(ISNA($DJ$4),"",VLOOKUP($DJ$4,'27データ'!$A$4:$KH$5000,'27データ'!P$2,FALSE)) -> 41 | AM20: =IF(ISNA($DJ$4),"",VLOOKUP($DJ$4,'27データ'!$A$4:$KH$5000,'27データ'!Q$2,FALSE)) -> 9 | AS20: =IF(ISNA($DJ$4),"",VLOOKUP($DJ$4,'27データ'!$A$4:$KH$5000,'27データ'!R$2,FALSE)) -> - | AY20: =IF(ISNA($DJ$4),"",VLOOKUP($DJ$4,'27データ'!$A$4:$KH$5000,'27データ'!S$2,FALSE)) -> 26 | BE20: =IF(ISNA($DJ$4),"",VLOOKUP($DJ$4,'27データ'!$A$4:$KH$5000,'27データ'!T$2,FALSE)) -> 21,326 | BK20: =IF(ISNA($DJ$4),"",VLOOKUP($DJ$4,'27データ'!$A$4:$KH$5000,'27データ'!U$2,FALSE)) -> 2,819 | BQ20: =IF(ISNA($DJ$4),"",VLOOKUP($DJ$4,'27データ'!$A$4:$KH$5000,'27データ'!V$2,FALSE)) -> 716 | BW20: =IF(ISNA($DJ$4),"",VLOOKUP($DJ$4,'27データ'!$A$4:$KH$5000,'27データ'!W$2,FALSE)) -> 1,887 | CB20: =IF(ISNA($DJ$4),"",VLOOKUP($DJ$4,'27データ'!$A$4:$KH$5000,'27データ'!X$2,FALSE)) -> 7,881 | CG20: =IF(ISNA($DJ$4),"",VLOOKUP($DJ$4,'27データ'!$A$4:$KH$5000,'27データ'!Y$2,FALSE)) -> 32,356
H21: 令和２年 | O21: =IF(ISNA($DJ$4),"",VLOOKUP($DJ$4,'２データ'!$A$4:$KH$5000,'２データ'!M$2,FALSE)) -> 18,141 | U21: =IF(ISNA($DJ$4),"",VLOOKUP($DJ$4,'２データ'!$A$4:$KH$5000,'２データ'!N$2,FALSE)) -> 20 | AA21: =IF(ISNA($DJ$4),"",VLOOKUP($DJ$4,'２データ'!$A$4:$KH$5000,'２データ'!O$2,FALSE)) -> 101 | AG21: =IF(ISNA($DJ$4),"",VLOOKUP($DJ$4,'２データ'!$A$4:$KH$5000,'２データ'!P$2,FALSE)) -> 23 | AM21: =IF(ISNA($DJ$4),"",VLOOKUP($DJ$4,'２データ'!$A$4:$KH$5000,'２データ'!Q$2,FALSE)) -> 10 | AS21: =IF(ISNA($DJ$4),"",VLOOKUP($DJ$4,'２データ'!$A$4:$KH$5000,'２データ'!R$2,FALSE)) -> - | AY21: =IF(ISNA($DJ$4),"",VLOOKUP($DJ$4,'２データ'!$A$4:$KH$5000,'２データ'!S$2,FALSE)) -> 11 | BE21: =IF(ISNA($DJ$4),"",VLOOKUP($DJ$4,'２データ'!$A$4:$KH$5000,'２データ'!T$2,FALSE)) -> 17,976 | BK21: =IF(ISNA($DJ$4),"",VLOOKUP($DJ$4,'２データ'!$A$4:$KH$5000,'２データ'!U$2,FALSE)) -> 2,027 | BQ21: =IF(ISNA($DJ$4),"",VLOOKUP($DJ$4,'２データ'!$A$4:$KH$5000,'２データ'!V$2,FALSE)) -> 450 | BW21: =IF(ISNA($DJ$4),"",VLOOKUP($DJ$4,'２データ'!$A$4:$KH$5000,'２データ'!W$2,FALSE)) -> 1,247 | CB21: =IF(ISNA($DJ$4),"",VLOOKUP($DJ$4,'２データ'!$A$4:$KH$5000,'２データ'!X$2,FALSE)) -> 4,584 | CG21: =IF(ISNA($DJ$4),"",VLOOKUP($DJ$4,'２データ'!$A$4:$KH$5000,'２データ'!Y$2,FALSE)) -> 21,370
C22: 資料：農林水産省統計部『農林業センサス』（以下、同じ。） | BQ22: 注：臨時雇いは、手伝いを含む。
B24: ２ 経営耕地面積
C26: (1) 経営耕地面積規模別の経営体数、経営耕地面積 | BQ26: (2) 田畑別経営体数等
C27: 区 分 | O27: 計 | U27: 0.5ha 未満 | AA27: 0.5～１ | AG27: １～３ | AM27: ３～５ | AS27: ５～10 | AY27: 10ha 以上 | BQ27: 田畑別 | CF27: 借入 耕地
BE28: 10～20 | BK28: 20ha以上 | BQ28: 田 | BV28: 畑 | CA28: 樹園地
C29: 経営 体数 | H29: 平成27年 | O29: =IF(ISNA($DJ$4),"",VLOOKUP($DJ$4,'27データ'!$A$4:$KH$5000,'27データ'!Z$2,FALSE)) -> 21,496 | U29: =IF(ISNA($DJ$4),"",VLOOKUP($DJ$4,'27データ'!$A$4:$KH$5000,'27データ'!AA$2,FALSE)) -> 6,089 | AA29: =IF(ISNA($DJ$4),"",VLOOKUP($DJ$4,'27データ'!$A$4:$KH$5000,'27データ'!AB$2,FALSE)) -> 7,353 | AG29: =IF(ISNA($DJ$4),"",VLOOKUP($DJ$4,'27データ'!$A$4:$KH$5000,'27データ'!AC$2,FALSE)) -> 7,235 | AM29: =IF(ISNA($DJ$4),"",VLOOKUP($DJ$4,'27データ'!$A$4:$KH$5000,'27データ'!AD$2,FALSE)) -> 720 | AS29: =IF(ISNA($DJ$4),"",VLOOKUP($DJ$4,'27データ'!$A$4:$KH$5000,'27データ'!AE$2,FALSE)) -> 93 | AY29: =IF(ISNA($DJ$4),"",VLOOKUP($DJ$4,'27データ'!$A$4:$KH$5000,'27データ'!AF$2,FALSE)) -> 6 | BE29: =IF(ISNA($DJ$4),"",VLOOKUP($DJ$4,'27データ'!$A$4:$KH$5000,'27データ'!AG$2,FALSE)) -> 4 | BK29: =IF(ISNA($DJ$4),"",VLOOKUP($DJ$4,'27データ'!$A$4:$KH$5000,'27データ'!AH$2,FALSE)) -> 2 | BQ29: =IF(ISNA($DJ$4),"",VLOOKUP($DJ$4,'27データ'!$A$4:$KH$5000,'27データ'!AR$2,FALSE)) -> 11,240 | BV29: =IF(ISNA($DJ$4),"",VLOOKUP($DJ$4,'27データ'!$A$4:$KH$5000,'27データ'!AT$2,FALSE)) -> 5,211 | CA29: =IF(ISNA($DJ$4),"",VLOOKUP($DJ$4,'27データ'!$A$4:$KH$5000,'27データ'!AV$2,FALSE)) -> 15,671 | CF29: =IF(ISNA($DJ$4),"",VLOOKUP($DJ$4,'27データ'!$A$4:$KH$5000,'27データ'!AX$2,FALSE)) -> 6,445
H30: 令和２年 | O30: =IF(ISNA($DJ$4),"",VLOOKUP($DJ$4,'２データ'!$A$4:$KH$5000,'２データ'!Z$2,FALSE)) -> 18,141 | U30: =IF(ISNA($DJ$4),"",VLOOKUP($DJ$4,'２データ'!$A$4:$KH$5000,'２データ'!AA$2,FALSE)) -> 5,078 | AA30: =IF(ISNA($DJ$4),"",VLOOKUP($DJ$4,'２データ'!$A$4:$KH$5000,'２データ'!AB$2,FALSE)) -> 6,053 | AG30: =IF(ISNA($DJ$4),"",VLOOKUP($DJ$4,'２データ'!$A$4:$KH$5000,'２データ'!AC$2,FALSE)) -> 6,164 | AM30: =IF(ISNA($DJ$4),"",VLOOKUP($DJ$4,'２データ'!$A$4:$KH$5000,'２データ'!AD$2,FALSE)) -> 711 | AS30: =IF(ISNA($DJ$4),"",VLOOKUP($DJ$4,'２データ'!$A$4:$KH$5000,'２データ'!AE$2,FALSE)) -> 119 | AY30: =IF(ISNA($DJ$4),"",VLOOKUP($DJ$4,'２データ'!$A$4:$KH$5000,'２データ'!AF$2,FALSE)) -> 16 | BE30: =IF(ISNA($DJ$4),"",VLOOKUP($DJ$4,'２データ'!$A$4:$KH$5000,'２データ'!AG$2,FALSE)) -> 14 | BK30: =IF(ISNA($DJ$4),"",VLOOKUP($DJ$4,'２データ'!$A$4:$KH$5000,'２データ'!AH$2,FALSE)) -> 2 | BQ30: =IF(ISNA($DJ$4),"",VLOOKUP($DJ$4,'２データ'!$A$4:$KH$5000,'２データ'!AR$2,FALSE)) -> 8,062 | BV30: =IF(ISNA($DJ$4),"",VLOOKUP($DJ$4,'２データ'!$A$4:$KH$5000,'２データ'!AT$2,FALSE)) -> 4,811 | CA30: =IF(ISNA($DJ$4),"",VLOOKUP($DJ$4,'２データ'!$A$4:$KH$5000,'２データ'!AV$2,FALSE)) -> 13,001 | CF30: =IF(ISNA($DJ$4),"",VLOOKUP($DJ$4,'２データ'!$A$4:$KH$5000,'２データ'!AX$2,FALSE)) -> 5,116
C31: 面積 (ha) | H31: 平成27年 | O31: =IF(ISNA($DJ$4),"",IF(VLOOKUP($DJ$4,'27データ'!$A$4:$KH$5000,'27データ'!AI$2,FALSE)="@","@",IF(VLOOKUP($DJ$4,'27データ'!$A$4:$KH$5000,'27データ'!AI$2,FALSE)="x","x",IF(VLOOKUP($DJ$4,'27データ'!$A$4:$KH$5000,'27データ'!AI$2,FALSE)="-","-",VLOOKUP($DJ$4,'27データ'!$A$4:$KH$5000,'27データ'!AI$2,FALSE)/100)))) -> 21,841 | U31: =IF(ISNA($DJ$4),"",IF(VLOOKUP($DJ$4,'27データ'!$A$4:$KH$5000,'27データ'!AJ$2,FALSE)="@","@",IF(VLOOKUP($DJ$4,'27データ'!$A$4:$KH$5000,'27データ'!AJ$2,FALSE)="x","x",IF(VLOOKUP($DJ$4,'27データ'!$A$4:$KH$5000,'27データ'!AJ$2,FALSE)="-","-",VLOOKUP($DJ$4,'27データ'!$A$4:$KH$5000,'27データ'!AJ$2,FALSE)/100)))) -> 1,960 | AA31: =IF(ISNA($DJ$4),"",IF(VLOOKUP($DJ$4,'27データ'!$A$4:$KH$5000,'27データ'!AK$2,FALSE)="@","@",IF(VLOOKUP($DJ$4,'27データ'!$A$4:$KH$5000,'27データ'!AK$2,FALSE)="x","x",IF(VLOOKUP($DJ$4,'27データ'!$A$4:$KH$5000,'27データ'!AK$2,FALSE)="-","-",VLOOKUP($DJ$4,'27データ'!$A$4:$KH$5000,'27データ'!AK$2,FALSE)/100)))) -> 5,044 | AG31: =IF(ISNA($DJ$4),"",IF(VLOOKUP($DJ$4,'27データ'!$A$4:$KH$5000,'27データ'!AL$2,FALSE)="@","@",IF(VLOOKUP($DJ$4,'27データ'!$A$4:$KH$5000,'27データ'!AL$2,FALSE)="x","x",IF(VLOOKUP($DJ$4,'27データ'!$A$4:$KH$5000,'27データ'!AL$2,FALSE)="-","-",VLOOKUP($DJ$4,'27データ'!$A$4:$KH$5000,'27データ'!AL$2,FALSE)/100)))) -> 11,620 | AM31: =IF(ISNA($DJ$4),"",IF(VLOOKUP($DJ$4,'27データ'!$A$4:$KH$5000,'27データ'!AM$2,FALSE)="@","@",IF(VLOOKUP($DJ$4,'27データ'!$A$4:$KH$5000,'27データ'!AM$2,FALSE)="x","x",IF(VLOOKUP($DJ$4,'27データ'!$A$4:$KH$5000,'27データ'!AM$2,FALSE)="-","-",VLOOKUP($DJ$4,'27データ'!$A$4:$KH$5000,'27データ'!AM$2,FALSE)/100)))) -> 2,544 | AS31: =IF(ISNA($DJ$4),"",IF(VLOOKUP($DJ$4,'27データ'!$A$4:$KH$5000,'27データ'!AN$2,FALSE)="@","@",IF(VLOOKUP($DJ$4,'27データ'!$A$4:$KH$5000,'27データ'!AN$2,FALSE)="x","x",IF(VLOOKUP($DJ$4,'27データ'!$A$4:$KH$5000,'27データ'!AN$2,FALSE)="-","-",VLOOKUP($DJ$4,'27データ'!$A$4:$KH$5000,'27データ'!AN$2,FALSE)/100)))) -> 559 | AY31: =IF(ISNA($DJ$4),"",IF(VLOOKUP($DJ$4,'27データ'!$A$4:$KH$5000,'27データ'!AO$2,FALSE)="@","@",IF(VLOOKUP($DJ$4,'27データ'!$A$4:$KH$5000,'27データ'!AO$2,FALSE)="x","x",IF(VLOOKUP($DJ$4,'27データ'!$A$4:$KH$5000,'27データ'!AO$2,FALSE)="-","-",VLOOKUP($DJ$4,'27データ'!$A$4:$KH$5000,'27データ'!AO$2,FALSE)/100)))) -> 115 | BE31: =IF(ISNA($DJ$4),"",IF(VLOOKUP($DJ$4,'27データ'!$A$4:$KH$5000,'27データ'!AP$2,FALSE)="@","@",IF(VLOOKUP($DJ$4,'27データ'!$A$4:$KH$5000,'27データ'!AP$2,FALSE)="x","x",IF(VLOOKUP($DJ$4,'27データ'!$A$4:$KH$5000,'27データ'!AP$2,FALSE)="-","-",VLOOKUP($DJ$4,'27データ'!$A$4:$KH$5000,'27データ'!AP$2,FALSE)/100)))) -> 55 | BK31: =IF(ISNA($DJ$4),"",IF(VLOOKUP($DJ$4,'27データ'!$A$4:$KH$5000,'27データ'!AQ$2,FALSE)="@","@",IF(VLOOKUP($DJ$4,'27データ'!$A$4:$KH$5000,'27データ'!AQ$2,FALSE)="x","x",IF(VLOOKUP($DJ$4,'27データ'!$A$4:$KH$5000,'27データ'!AQ$2,FALSE)="-","-",VLOOKUP($DJ$4,'27データ'!$A$4:$KH$5000,'27データ'!AQ$2,FALSE)/100)))) -> 60 | BQ31: =IF(ISNA($DJ$4),"",IF(VLOOKUP($DJ$4,'27データ'!$A$4:$KH$5000,'27データ'!AS$2,FALSE)="@","@",IF(VLOOKUP($DJ$4,'27データ'!$A$4:$KH$5000,'27データ'!AS$2,FALSE)="x","x",IF(VLOOKUP($DJ$4,'27データ'!$A$4:$KH$5000,'27データ'!AS$2,FALSE)="-","-",VLOOKUP($DJ$4,'27データ'!$A$4:$KH$5000,'27データ'!AS$2,FALSE)/100)))) -> 5,811 | BV31: =IF(ISNA($DJ$4),"",IF(VLOOKUP($DJ$4,'27データ'!$A$4:$KH$5000,'27データ'!AU$2,FALSE)="@","@",IF(VLOOKUP($DJ$4,'27データ'!$A$4:$KH$5000,'27データ'!AU$2,FALSE)="x","x",IF(VLOOKUP($DJ$4,'27データ'!$A$4:$KH$5000,'27データ'!AU$2,FALSE)="-","-",VLOOKUP($DJ$4,'27データ'!$A$4:$KH$5000,'27データ'!AU$2,FALSE)/100)))) -> 1,219 | CA31: =IF(ISNA($DJ$4),"",IF(VLOOKUP($DJ$4,'27データ'!$A$4:$KH$5000,'27データ'!AW$2,FALSE)="@","@",IF(VLOOKUP($DJ$4,'27データ'!$A$4:$KH$5000,'27データ'!AW$2,FALSE)="x","x",IF(VLOOKUP($DJ$4,'27データ'!$A$4:$KH$5000,'27データ'!AW$2,FALSE)="-","-",VLOOKUP($DJ$4,'27データ'!$A$4:$KH$5000,'27データ'!AW$2,FALSE)/100)))) -> 14,811 | CF31: =IF(ISNA($DJ$4),"",IF(VLOOKUP($DJ$4,'27データ'!$A$4:$KH$5000,'27データ'!AY$2,FALSE)="@","@",IF(VLOOKUP($DJ$4,'27データ'!$A$4:$KH$5000,'27データ'!AY$2,FALSE)="x","x",IF(VLOOKUP($DJ$4,'27データ'!$A$4:$KH$5000,'27データ'!AY$2,FALSE)="-","-",VLOOKUP($DJ$4,'27データ'!$A$4:$KH$5000,'27データ'!AY$2,FALSE)/100)))) -> 2,965
H32: 令和２年 | O32: =IF(ISNA($DJ$4),"",IF(VLOOKUP($DJ$4,'２データ'!$A$4:$KH$5000,'２データ'!AI$2,FALSE)="@","@",IF(VLOOKUP($DJ$4,'２データ'!$A$4:$KH$5000,'２データ'!AI$2,FALSE)="x","x",IF(VLOOKUP($DJ$4,'２データ'!$A$4:$KH$5000,'２データ'!AI$2,FALSE)="-","-",VLOOKUP($DJ$4,'２データ'!$A$4:$KH$5000,'２データ'!AI$2,FALSE)/100)))) -> 19,089 | U32: =IF(ISNA($DJ$4),"",IF(VLOOKUP($DJ$4,'２データ'!$A$4:$KH$5000,'２データ'!AJ$2,FALSE)="@","@",IF(VLOOKUP($DJ$4,'２データ'!$A$4:$KH$5000,'２データ'!AJ$2,FALSE)="x","x",IF(VLOOKUP($DJ$4,'２データ'!$A$4:$KH$5000,'２データ'!AJ$2,FALSE)="-","-",VLOOKUP($DJ$4,'２データ'!$A$4:$KH$5000,'２データ'!AJ$2,FALSE)/100)))) -> 1,589 | AA32: =IF(ISNA($DJ$4),"",IF(VLOOKUP($DJ$4,'２データ'!$A$4:$KH$5000,'２データ'!AK$2,FALSE)="@","@",IF(VLOOKUP($DJ$4,'２データ'!$A$4:$KH$5000,'２データ'!AK$2,FALSE)="x","x",IF(VLOOKUP($DJ$4,'２データ'!$A$4:$KH$5000,'２データ'!AK$2,FALSE)="-","-",VLOOKUP($DJ$4,'２データ'!$A$4:$KH$5000,'２データ'!AK$2,FALSE)/100)))) -> 4,124 | AG32: =IF(ISNA($DJ$4),"",IF(VLOOKUP($DJ$4,'２データ'!$A$4:$KH$5000,'２データ'!AL$2,FALSE)="@","@",IF(VLOOKUP($DJ$4,'２データ'!$A$4:$KH$5000,'２データ'!AL$2,FALSE)="x","x",IF(VLOOKUP($DJ$4,'２データ'!$A$4:$KH$5000,'２データ'!AL$2,FALSE)="-","-",VLOOKUP($DJ$4,'２データ'!$A$4:$KH$5000,'２データ'!AL$2,FALSE)/100)))) -> 9,938 | AM32: =IF(ISNA($DJ$4),"",IF(VLOOKUP($DJ$4,'２データ'!$A$4:$KH$5000,'２データ'!AM$2,FALSE)="@","@",IF(VLOOKUP($DJ$4,'２データ'!$A$4:$KH$5000,'２データ'!AM$2,FALSE)="x","x",IF(VLOOKUP($DJ$4,'２データ'!$A$4:$KH$5000,'２データ'!AM$2,FALSE)="-","-",VLOOKUP($DJ$4,'２データ'!$A$4:$KH$5000,'２データ'!AM$2,FALSE)/100)))) -> 2,508 | AS32: =IF(ISNA($DJ$4),"",IF(VLOOKUP($DJ$4,'２データ'!$A$4:$KH$5000,'２データ'!AN$2,FALSE)="@","@",IF(VLOOKUP($DJ$4,'２データ'!$A$4:$KH$5000,'２データ'!AN$2,FALSE)="x","x",IF(VLOOKUP($DJ$4,'２データ'!$A$4:$KH$5000,'２データ'!AN$2,FALSE)="-","-",VLOOKUP($DJ$4,'２データ'!$A$4:$KH$5000,'２データ'!AN$2,FALSE)/100)))) -> 717 | AY32: =IF(ISNA($DJ$4),"",IF(VLOOKUP($DJ$4,'２データ'!$A$4:$KH$5000,'２データ'!AO$2,FALSE)="@","@",IF(VLOOKUP($DJ$4,'２データ'!$A$4:$KH$5000,'２データ'!AO$2,FALSE)="x","x",IF(VLOOKUP($DJ$4,'２データ'!$A$4:$KH$5000,'２データ'!AO$2,FALSE)="-","-",VLOOKUP($DJ$4,'２データ'!$A$4:$KH$5000,'２データ'!AO$2,FALSE)/100)))) -> 213 | BE32: =IF(ISNA($DJ$4),"",IF(VLOOKUP($DJ$4,'２データ'!$A$4:$KH$5000,'２データ'!AP$2,FALSE)="@","@",IF(VLOOKUP($DJ$4,'２データ'!$A$4:$KH$5000,'２データ'!AP$2,FALSE)="x","x",IF(VLOOKUP($DJ$4,'２データ'!$A$4:$KH$5000,'２データ'!AP$2,FALSE)="-","-",VLOOKUP($DJ$4,'２データ'!$A$4:$KH$5000,'２データ'!AP$2,FALSE)/100)))) -> 153 | BK32: =IF(ISNA($DJ$4),"",IF(VLOOKUP($DJ$4,'２データ'!$A$4:$KH$5000,'２データ'!AQ$2,FALSE)="@","@",IF(VLOOKUP($DJ$4,'２データ'!$A$4:$KH$5000,'２データ'!AQ$2,FALSE)="x","x",IF(VLOOKUP($DJ$4,'２データ'!$A$4:$KH$5000,'２データ'!AQ$2,FALSE)="-","-",VLOOKUP($DJ$4,'２データ'!$A$4:$KH$5000,'２データ'!AQ$2,FALSE)/100)))) -> 60 | BQ32: =IF(ISNA($DJ$4),"",IF(VLOOKUP($DJ$4,'２データ'!$A$4:$KH$5000,'２データ'!AS$2,FALSE)="@","@",IF(VLOOKUP($DJ$4,'２データ'!$A$4:$KH$5000,'２データ'!AS$2,FALSE)="x","x",IF(VLOOKUP($DJ$4,'２データ'!$A$4:$KH$5000,'２データ'!AS$2,FALSE)="-","-",VLOOKUP($DJ$4,'２データ'!$A$4:$KH$5000,'２データ'!AS$2,FALSE)/100)))) -> 4,439 | BV32: =IF(ISNA($DJ$4),"",IF(VLOOKUP($DJ$4,'２データ'!$A$4:$KH$5000,'２データ'!AU$2,FALSE)="@","@",IF(VLOOKUP($DJ$4,'２データ'!$A$4:$KH$5000,'２データ'!AU$2,FALSE)="x","x",IF(VLOOKUP($DJ$4,'２データ'!$A$4:$KH$5000,'２データ'!AU$2,FALSE)="-","-",VLOOKUP($DJ$4,'２データ'!$A$4:$KH$5000,'２データ'!AU$2,FALSE)/100)))) -> 1,541 | CA32: =IF(ISNA($DJ$4),"",IF(VLOOKUP($DJ$4,'２データ'!$A$4:$KH$5000,'２データ'!AW$2,FALSE)="@","@",IF(VLOOKUP($DJ$4,'２データ'!$A$4:$KH$5000,'２データ'!AW$2,FALSE)="x","x",IF(VLOOKUP($DJ$4,'２データ'!$A$4:$KH$5000,'２データ'!AW$2,FALSE)="-","-",VLOOKUP($DJ$4,'２データ'!$A$4:$KH$5000,'２データ'!AW$2,FALSE)/100)))) -> 13,110 | CF32: =IF(ISNA($DJ$4),"",IF(VLOOKUP($DJ$4,'２データ'!$A$4:$KH$5000,'２データ'!AY$2,FALSE)="@","@",IF(VLOOKUP($DJ$4,'２データ'!$A$4:$KH$5000,'２データ'!AY$2,FALSE)="x","x",IF(VLOOKUP($DJ$4,'２データ'!$A$4:$KH$5000,'２データ'!AY$2,FALSE)="-","-",VLOOKUP($DJ$4,'２データ'!$A$4:$KH$5000,'２データ'!AY$2,FALSE)/100)))) -> 2,831 | DJ32: =IF($BW$12="全国との比較","1",IF($BW$12="都府県との比較","2",'２データ'!$A$6)) -> 3000000000
C33: 面積 構成比 (％) | H33: 平成27年 | O33: =IF(ISNA($DJ$4),"",IF(O31="@","nc",IF(O31="x","x",IF($O31="-","nc",O31/$O31*100)))) -> 100 | U33: =IF(ISNA($DJ$4),"",IF(U31="@","nc",IF(U31="x","x",IF($O31="-","nc",IF(U31="-","-",U31/$O31*100))))) -> 9 | AA33: =IF(ISNA($DJ$4),"",IF(AA31="@","nc",IF(AA31="x","x",IF($O31="-","nc",IF(AA31="-","-",AA31/$O31*100))))) -> 23 | AG33: =IF(ISNA($DJ$4),"",IF(AG31="@","nc",IF(AG31="x","x",IF($O31="-","nc",IF(AG31="-","-",AG31/$O31*100))))) -> 53 | AM33: =IF(ISNA($DJ$4),"",IF(AM31="@","nc",IF(AM31="x","x",IF($O31="-","nc",IF(AM31="-","-",AM31/$O31*100))))) -> 12 | AS33: =IF(ISNA($DJ$4),"",IF(AS31="@","nc",IF(AS31="x","x",IF($O31="-","nc",IF(AS31="-","-",AS31/$O31*100))))) -> 3 | AY33: =IF(ISNA($DJ$4),"",IF(AY31="@","nc",IF(AY31="x","x",IF($O31="-","nc",IF(AY31="-","-",AY31/$O31*100))))) -> 1 | BE33: =IF(ISNA($DJ$4),"",IF(BE31="@","nc",IF(BE31="x","x",IF($O31="-","nc",IF(BE31="-","-",BE31/$O31*100))))) -> 0 | BK33: =IF(ISNA($DJ$4),"",IF(BK31="@","nc",IF(BK31="x","x",IF($O31="-","nc",IF(BK31="-","-",BK31/$O31*100))))) -> 0 | BQ33: =IF(ISNA($DJ$4),"",IF(BQ31="@","nc",IF(BQ31="x","x",IF($O31="-","nc",IF(BQ31="-","-",BQ31/$O31*100))))) -> 27 | BV33: =IF(ISNA($DJ$4),"",IF(BV31="@","nc",IF(BV31="x","x",IF($O31="-","nc",IF(BV31="-","-",BV31/$O31*100))))) -> 6 | CA33: =IF(ISNA($DJ$4),"",IF(CA31="@","nc",IF(CA31="x","x",IF($O31="-","nc",IF(CA31="-","-",CA31/$O31*100))))) -> 68 | CF33: =IF(ISNA($DJ$4),"",IF(CF31="@","nc",IF(CF31="x","x",IF($O31="-","nc",IF(CF31="-","-",CF31/$O31*100))))) -> 14
H34: 令和２年 | O34: =IF(ISNA($DJ$4),"",IF(O32="x","x",IF($O32="-","nc",O32/$O32*100))) -> 100 | U34: =IF(ISNA($DJ$4),"",IF(U32="x","x",IF($O32="-","nc",IF(U32="-","-",U32/$O32*100)))) -> 8 | AA34: =IF(ISNA($DJ$4),"",IF(AA32="x","x",IF($O32="-","nc",IF(AA32="-","-",AA32/$O32*100)))) -> 22 | AG34: =IF(ISNA($DJ$4),"",IF(AG32="x","x",IF($O32="-","nc",IF(AG32="-","-",AG32/$O32*100)))) -> 52 | AM34: =IF(ISNA($DJ$4),"",IF(AM32="x","x",IF($O32="-","nc",IF(AM32="-","-",AM32/$O32*100)))) -> 13 | AS34: =IF(ISNA($DJ$4),"",IF(AS32="x","x",IF($O32="-","nc",IF(AS32="-","-",AS32/$O32*100)))) -> 4 | AY34: =IF(ISNA($DJ$4),"",IF(AY32="x","x",IF($O32="-","nc",IF(AY32="-","-",AY32/$O32*100)))) -> 1 | BE34: =IF(ISNA($DJ$4),"",IF(BE32="x","x",IF($O32="-","nc",IF(BE32="-","-",BE32/$O32*100)))) -> 1 | BK34: =IF(ISNA($DJ$4),"",IF(BK32="x","x",IF($O32="-","nc",IF(BK32="-","-",BK32/$O32*100)))) -> 0 | BQ34: =IF(ISNA($DJ$4),"",IF(BQ32="x","x",IF($O32="-","nc",IF(BQ32="-","-",BQ32/$O32*100)))) -> 23 | BV34: =IF(ISNA($DJ$4),"",IF(BV32="x","x",IF($O32="-","nc",IF(BV32="-","-",BV32/$O32*100)))) -> 8 | CA34: =IF(ISNA($DJ$4),"",IF(CA32="x","x",IF($O32="-","nc",IF(CA32="-","-",CA32/$O32*100)))) -> 69 | CF34: =IF(ISNA($DJ$4),"",IF(CF32="x","x",IF($O32="-","nc",IF(CF32="-","-",CF32/$O32*100)))) -> 15
H35: =IF($BW$12="都府県との比較","都府県平均",IF($BW$12="全国との比較","全国平均","府県平均")) -> 府県平均 | O35: =IF(ISNA($DJ$4),"",IF(VLOOKUP($DJ$32,'２データ'!$A$4:$KH$5000,'２データ'!AI$2,FALSE)="x","x",IF(VLOOKUP($DJ$32,'２データ'!$A$4:$KH$5000,'２データ'!AI$2,FALSE)="-","nc",VLOOKUP($DJ$32,'２データ'!$A$4:$KH$5000,'２データ'!AI$2,FALSE)/VLOOKUP($DJ$32,'２データ'!$A$4:$KH$5000,'２データ'!AI$2,FALSE)*100))) -> 100 | U35: =IF(ISNA($DJ$4),"",IF(VLOOKUP($DJ$32,'２データ'!$A$4:$KH$5000,'２データ'!AI$2,FALSE)="x","x",IF(VLOOKUP($DJ$32,'２データ'!$A$4:$KH$5000,'２データ'!AI$2,FALSE)="-","nc",IF(VLOOKUP($DJ$32,'２データ'!$A$4:$KH$5000,'２データ'!AJ$2,FALSE)="-","-",VLOOKUP($DJ$32,'２データ'!$A$4:$KH$5000,'２データ'!AJ$2,FALSE)/VLOOKUP($DJ$32,'２データ'!$A$4:$KH$5000,'２データ'!AI$2,FALSE)*100)))) -> 8 | AA35: =IF(ISNA($DJ$4),"",IF(VLOOKUP($DJ$32,'２データ'!$A$4:$KH$5000,'２データ'!AI$2,FALSE)="x","x",IF(VLOOKUP($DJ$32,'２データ'!$A$4:$KH$5000,'２データ'!AI$2,FALSE)="-","nc",IF(VLOOKUP($DJ$32,'２データ'!$A$4:$KH$5000,'２データ'!AK$2,FALSE)="-","-",VLOOKUP($DJ$32,'２データ'!$A$4:$KH$5000,'２データ'!AK$2,FALSE)/VLOOKUP($DJ$32,'２データ'!$A$4:$KH$5000,'２データ'!AI$2,FALSE)*100)))) -> 22 | AG35: =IF(ISNA($DJ$4),"",IF(VLOOKUP($DJ$32,'２データ'!$A$4:$KH$5000,'２データ'!AI$2,FALSE)="x","x",IF(VLOOKUP($DJ$32,'２データ'!$A$4:$KH$5000,'２データ'!AI$2,FALSE)="-","nc",IF(VLOOKUP($DJ$32,'２データ'!$A$4:$KH$5000,'２データ'!AL$2,FALSE)="-","-",VLOOKUP($DJ$32,'２データ'!$A$4:$KH$5000,'２データ'!AL$2,FALSE)/VLOOKUP($DJ$32,'２データ'!$A$4:$KH$5000,'２データ'!AI$2,FALSE)*100)))) -> 52 | AM35: =IF(ISNA($DJ$4),"",IF(VLOOKUP($DJ$32,'２データ'!$A$4:$KH$5000,'２データ'!AI$2,FALSE)="x","x",IF(VLOOKUP($DJ$32,'２データ'!$A$4:$KH$5000,'２データ'!AI$2,FALSE)="-","nc",IF(VLOOKUP($DJ$32,'２データ'!$A$4:$KH$5000,'２データ'!AM$2,FALSE)="-","-",VLOOKUP($DJ$32,'２データ'!$A$4:$KH$5000,'２データ'!AM$2,FALSE)/VLOOKUP($DJ$32,'２データ'!$A$4:$KH$5000,'２データ'!AI$2,FALSE)*100)))) -> 13 | AS35: =IF(ISNA($DJ$4),"",IF(VLOOKUP($DJ$32,'２データ'!$A$4:$KH$5000,'２データ'!AI$2,FALSE)="x","x",IF(VLOOKUP($DJ$32,'２データ'!$A$4:$KH$5000,'２データ'!AI$2,FALSE)="-","nc",IF(VLOOKUP($DJ$32,'２データ'!$A$4:$KH$5000,'２データ'!AN$2,FALSE)="-","-",VLOOKUP($DJ$32,'２データ'!$A$4:$KH$5000,'２データ'!AN$2,FALSE)/VLOOKUP($DJ$32,'２データ'!$A$4:$KH$5000,'２データ'!AI$2,FALSE)*100)))) -> 4 | AY35: =IF(ISNA($DJ$4),"",IF(VLOOKUP($DJ$32,'２データ'!$A$4:$KH$5000,'２データ'!AI$2,FALSE)="x","x",IF(VLOOKUP($DJ$32,'２データ'!$A$4:$KH$5000,'２データ'!AI$2,FALSE)="-","nc",IF(VLOOKUP($DJ$32,'２データ'!$A$4:$KH$5000,'２データ'!AO$2,FALSE)="-","-",VLOOKUP($DJ$32,'２データ'!$A$4:$KH$5000,'２データ'!AO$2,FALSE)/VLOOKUP($DJ$32,'２データ'!$A$4:$KH$5000,'２データ'!AI$2,FALSE)*100)))) -> 1 | BE35: =IF(ISNA($DJ$4),"",IF(VLOOKUP($DJ$32,'２データ'!$A$4:$KH$5000,'２データ'!AI$2,FALSE)="x","x",IF(VLOOKUP($DJ$32,'２データ'!$A$4:$KH$5000,'２データ'!AI$2,FALSE)="-","nc",IF(VLOOKUP($DJ$32,'２データ'!$A$4:$KH$5000,'２データ'!AP$2,FALSE)="-","-",VLOOKUP($DJ$32,'２データ'!$A$4:$KH$5000,'２データ'!AP$2,FALSE)/VLOOKUP($DJ$32,'２データ'!$A$4:$KH$5000,'２データ'!AI$2,FALSE)*100)))) -> 1 | BK35: =IF(ISNA($DJ$4),"",IF(VLOOKUP($DJ$32,'２データ'!$A$4:$KH$5000,'２データ'!AI$2,FALSE)="x","x",IF(VLOOKUP($DJ$32,'２データ'!$A$4:$KH$5000,'２データ'!AI$2,FALSE)="-","nc",IF(VLOOKUP($DJ$32,'２データ'!$A$4:$KH$5000,'２データ'!AQ$2,FALSE)="-","-",VLOOKUP($DJ$32,'２データ'!$A$4:$KH$5000,'２データ'!AQ$2,FALSE)/VLOOKUP($DJ$32,'２データ'!$A$4:$KH$5000,'２データ'!AI$2,FALSE)*100)))) -> 0 | BQ35: =IF(ISNA($DJ$4),"",IF(VLOOKUP($DJ$32,'２データ'!$A$4:$KH$5000,'２データ'!AI$2,FALSE)="x","x",IF(VLOOKUP($DJ$32,'２データ'!$A$4:$KH$5000,'２データ'!AI$2,FALSE)="-","nc",IF(VLOOKUP($DJ$32,'２データ'!$A$4:$KH$5000,'２データ'!AS$2,FALSE)="-","-",VLOOKUP($DJ$32,'２データ'!$A$4:$KH$5000,'２データ'!AS$2,FALSE)/VLOOKUP($DJ$32,'２データ'!$A$4:$KH$5000,'２データ'!AI$2,FALSE)*100)))) -> 23 | BV35: =IF(ISNA($DJ$4),"",IF(VLOOKUP($DJ$32,'２データ'!$A$4:$KH$5000,'２データ'!AI$2,FALSE)="x","x",IF(VLOOKUP($DJ$32,'２データ'!$A$4:$KH$5000,'２データ'!AI$2,FALSE)="-","nc",IF(VLOOKUP($DJ$32,'２データ'!$A$4:$KH$5000,'２データ'!AU$2,FALSE)="-","-",VLOOKUP($DJ$32,'２データ'!$A$4:$KH$5000,'２データ'!AU$2,FALSE)/VLOOKUP($DJ$32,'２データ'!$A$4:$KH$5000,'２データ'!AI$2,FALSE)*100)))) -> 8 | CA35: =IF(ISNA($DJ$4),"",IF(VLOOKUP($DJ$32,'２データ'!$A$4:$KH$5000,'２データ'!AI$2,FALSE)="x","x",IF(VLOOKUP($DJ$32,'２データ'!$A$4:$KH$5000,'２データ'!AI$2,FALSE)="-","nc",IF(VLOOKUP($DJ$32,'２データ'!$A$4:$KH$5000,'２データ'!AW$2,FALSE)="-","-",VLOOKUP($DJ$32,'２データ'!$A$4:$KH$5000,'２データ'!AW$2,FALSE)/VLOOKUP($DJ$32,'２データ'!$A$4:$KH$5000,'２データ'!AI$2,FALSE)*100)))) -> 69 | CF35: =IF(ISNA($DJ$4),"",IF(VLOOKUP($DJ$32,'２データ'!$A$4:$KH$5000,'２データ'!AI$2,FALSE)="x","x",IF(VLOOKUP($DJ$32,'２データ'!$A$4:$KH$5000,'２データ'!AI$2,FALSE)="-","nc",IF(VLOOKUP($DJ$32,'２データ'!$A$4:$KH$5000,'２データ'!AY$2,FALSE)="-","-",VLOOKUP($DJ$32,'２データ'!$A$4:$KH$5000,'２データ'!AY$2,FALSE)/VLOOKUP($DJ$32,'２データ'!$A$4:$KH$5000,'２データ'!AI$2,FALSE)*100)))) -> 15
C36: 注：表示単位未満を四捨五入しているため、合計値と内訳の計が一致しない場合がある（以下、同じ。）。
DJ37: 区分 | DK37: 0.5ha未満 | DL37: 0.5～１ | DM37: １～３ | DN37: ３～５ | DO37: ５～10 | DP37: 10ha以上
DJ38: =IF($BW$12="前回との比較","令和２年",$H$35) -> 府県平均 | DK38: =IF($BW$12="前回との比較",U34,U35) -> 8 | DL38: =IF($BW$12="前回との比較",AA34,AA35) -> 22 | DM38: =IF($BW$12="前回との比較",AG34,AG35) -> 52 | DN38: =IF($BW$12="前回との比較",AM34,AM35) -> 13 | DO38: =IF($BW$12="前回との比較",AS34,AS35) -> 4 | DP38: =IF($BW$12="前回との比較",AY34,AY35) -> 1 | DR38: =IF(ISNA($DJ$4),"",IF(SUM(DK38:DP38)=100,"","表示できません")) -> 
DJ39: =IF($BW$12="前回との比較","平成27年","選択地域") -> 選択地域 | DK39: =IF($BW$12="前回との比較",U33,U34) -> 8 | DL39: =IF($BW$12="前回との比較",AA33,AA34) -> 22 | DM39: =IF($BW$12="前回との比較",AG33,AG34) -> 52 | DN39: =IF($BW$12="前回との比較",AM33,AM34) -> 13 | DO39: =IF($BW$12="前回との比較",AS33,AS34) -> 4 | DP39: =IF($BW$12="前回との比較",AY33,AY34) -> 1 | DR39: =IF(ISNA($DJ$4),"",IF(SUM(DK39:DP39)=100,"","表示できません")) -> 
DJ41: 区分 | DK41: 所有耕地 | DL41: 借入耕地
DJ42: =$DJ$39 -> 選択地域 | DK42: =IF(ISNA($DJ$4),"",IF(DL42="@","nc",IF(DL42="x","x",IF(DL42="nc","nc",IF(DL42="-",100,100-DL42))))) -> 85 | DL42: =IF($BW$12="前回との比較",CF33,CF34) -> 15 | DM42: 100 | DO42: =IF(ISNA($DJ$4),"",IF(SUM(DK42:DL42)=100,"","表示できません")) -> 
DJ43: 区分 | DK43: 借入耕地 | DL43: 所有耕地
DJ44: =$DJ$38 -> 府県平均 | DK44: =IF($BW$12="前回との比較",CF34,CF35) -> 15 | DL44: =IF(ISNA($DJ$4),"",IF(DK44="x","x",IF(DK44="nc","nc",IF(DK44="-",100,100-DK44)))) -> 85 | DM44: 100 | DO44: =IF(ISNA($DJ$4),"",IF(SUM(DK44:DL44)=100,"","表示できません")) -> 
B50: ３ 販売目的の作付(栽培)面積、飼養頭(羽)数
C52: (1) 類別の作付(栽培)経営体数、面積 | BM52: (2) 家畜の飼養経営体数等
C53: 区 分 | O53: 水稲 | T53: 麦類 | Y53: 豆類 | AD53: 工芸 農作物 | AI53: 野菜類 | AS53: 花き類・花木 | BC53: 果樹類 | BM53: 乳用牛 | BR53: 肉用牛 | BW53: 豚 | CB53: 採卵鶏 | CG53: ブロイラー
AI54: 露地 | AN54: 施設 | AS54: 露地 | AX54: 施設 | BC54: 露地 | BH54: 施設
C55: 経営 体数 | H55: 平成27年 | O55: =IF(ISNA($DJ$4),"",VLOOKUP($DJ$4,'27データ'!$A$4:$KH$5000,'27データ'!AZ$2,FALSE)) -> 7,132 | T55: =IF(ISNA($DJ$4),"",VLOOKUP($DJ$4,'27データ'!$A$4:$KH$5000,'27データ'!BA$2,FALSE)) -> 14 | Y55: =IF(ISNA($DJ$4),"",VLOOKUP($DJ$4,'27データ'!$A$4:$KH$5000,'27データ'!BB$2,FALSE)) -> 373 | AD55: =IF(ISNA($DJ$4),"",VLOOKUP($DJ$4,'27データ'!$A$4:$KH$5000,'27データ'!BC$2,FALSE)) -> 566 | AI55: =IF(ISNA($DJ$4),"",VLOOKUP($DJ$4,'27データ'!$A$4:$KH$5000,'27データ'!BD$2,FALSE)) -> 3,753 | AN55: =IF(ISNA($DJ$4),"",VLOOKUP($DJ$4,'27データ'!$A$4:$KH$5000,'27データ'!BE$2,FALSE)) -> 1,489 | AS55: =IF(ISNA($DJ$4),"",VLOOKUP($DJ$4,'27データ'!$A$4:$KH$5000,'27データ'!BF$2,FALSE)) -> 786 | AX55: =IF(ISNA($DJ$4),"",VLOOKUP($DJ$4,'27データ'!$A$4:$KH$5000,'27データ'!BG$2,FALSE)) -> 739 | BC55: =IF(ISNA($DJ$4),"",VLOOKUP($DJ$4,'27データ'!$A$4:$KH$5000,'27データ'!BH$2,FALSE)) -> 14,775 | BH55: =IF(ISNA($DJ$4),"",VLOOKUP($DJ$4,'27データ'!$A$4:$KH$5000,'27データ'!BI$2,FALSE)) -> 283 | BM55: =IF(ISNA($DJ$4),"",VLOOKUP($DJ$4,'27データ'!$A$4:$KH$5000,'27データ'!BT$2,FALSE)) -> 15 | BR55: =IF(ISNA($DJ$4),"",VLOOKUP($DJ$4,'27データ'!$A$4:$KH$5000,'27データ'!BV$2,FALSE)) -> 45 | BW55: =IF(ISNA($DJ$4),"",VLOOKUP($DJ$4,'27データ'!$A$4:$KH$5000,'27データ'!BX$2,FALSE)) -> 14 | CB55: =IF(ISNA($DJ$4),"",VLOOKUP($DJ$4,'27データ'!$A$4:$KH$5000,'27データ'!BZ$2,FALSE)) -> 44 | CG55: =IF(ISNA($DJ$4),"",VLOOKUP($DJ$4,'27データ'!$A$4:$KH$5000,'27データ'!CB$2,FALSE)) -> 14
H56: 令和２年 | O56: =IF(ISNA($DJ$4),"",VLOOKUP($DJ$4,'２データ'!$A$4:$KH$5000,'２データ'!AZ$2,FALSE)) -> 6,076 | T56: =IF(ISNA($DJ$4),"",VLOOKUP($DJ$4,'２データ'!$A$4:$KH$5000,'２データ'!BA$2,FALSE)) -> 13 | Y56: =IF(ISNA($DJ$4),"",VLOOKUP($DJ$4,'２データ'!$A$4:$KH$5000,'２データ'!BB$2,FALSE)) -> 320 | AD56: =IF(ISNA($DJ$4),"",VLOOKUP($DJ$4,'２データ'!$A$4:$KH$5000,'２データ'!BC$2,FALSE)) -> 484 | AI56: =IF(ISNA($DJ$4),"",VLOOKUP($DJ$4,'２データ'!$A$4:$KH$5000,'２データ'!BD$2,FALSE)) -> 2,944 | AN56: =IF(ISNA($DJ$4),"",VLOOKUP($DJ$4,'２データ'!$A$4:$KH$5000,'２データ'!BE$2,FALSE)) -> 1,298 | AS56: =IF(ISNA($DJ$4),"",VLOOKUP($DJ$4,'２データ'!$A$4:$KH$5000,'２データ'!BF$2,FALSE)) -> 636 | AX56: =IF(ISNA($DJ$4),"",VLOOKUP($DJ$4,'２データ'!$A$4:$KH$5000,'２データ'!BG$2,FALSE)) -> 542 | BC56: =IF(ISNA($DJ$4),"",VLOOKUP($DJ$4,'２データ'!$A$4:$KH$5000,'２データ'!BH$2,FALSE)) -> 12,447 | BH56: =IF(ISNA($DJ$4),"",VLOOKUP($DJ$4,'２データ'!$A$4:$KH$5000,'２データ'!BI$2,FALSE)) -> 270 | BM56: =IF(ISNA($DJ$4),"",VLOOKUP($DJ$4,'２データ'!$A$4:$KH$5000,'２データ'!BT$2,FALSE)) -> 11 | BR56: =IF(ISNA($DJ$4),"",VLOOKUP($DJ$4,'２データ'!$A$4:$KH$5000,'２データ'!BV$2,FALSE)) -> 41 | BW56: =IF(ISNA($DJ$4),"",VLOOKUP($DJ$4,'２データ'!$A$4:$KH$5000,'２データ'!BX$2,FALSE)) -> 7 | CB56: =IF(ISNA($DJ$4),"",VLOOKUP($DJ$4,'２データ'!$A$4:$KH$5000,'２データ'!BZ$2,FALSE)) -> 31 | CG56: =IF(ISNA($DJ$4),"",VLOOKUP($DJ$4,'２データ'!$A$4:$KH$5000,'２データ'!CB$2,FALSE)) -> 11
C57: 面積 (ha) | H57: 平成27年 | O57: =IF(ISNA($DJ$4),"",IF(VLOOKUP($DJ$4,'27データ'!$A$4:$KH$5000,'27データ'!BJ$2,FALSE)="@","@",IF(VLOOKUP($DJ$4,'27データ'!$A$4:$KH$5000,'27データ'!BJ$2,FALSE)="x","x",IF(VLOOKUP($DJ$4,'27データ'!$A$4:$KH$5000,'27データ'!BJ$2,FALSE)="-","-",VLOOKUP($DJ$4,'27データ'!$A$4:$KH$5000,'27データ'!BJ$2,FALSE)/100)))) -> 3,706 | T57: =IF(ISNA($DJ$4),"",IF(VLOOKUP($DJ$4,'27データ'!$A$4:$KH$5000,'27データ'!BK$2,FALSE)="@","@",IF(VLOOKUP($DJ$4,'27データ'!$A$4:$KH$5000,'27データ'!BK$2,FALSE)="x","x",IF(VLOOKUP($DJ$4,'27データ'!$A$4:$KH$5000,'27データ'!BK$2,FALSE)="-","-",VLOOKUP($DJ$4,'27データ'!$A$4:$KH$5000,'27データ'!BK$2,FALSE)/100)))) -> 3 | Y57: =IF(ISNA($DJ$4),"",IF(VLOOKUP($DJ$4,'27データ'!$A$4:$KH$5000,'27データ'!BL$2,FALSE)="@","@",IF(VLOOKUP($DJ$4,'27データ'!$A$4:$KH$5000,'27データ'!BL$2,FALSE)="x","x",IF(VLOOKUP($DJ$4,'27データ'!$A$4:$KH$5000,'27データ'!BL$2,FALSE)="-","-",VLOOKUP($DJ$4,'27データ'!$A$4:$KH$5000,'27データ'!BL$2,FALSE)/100)))) -> 27 | AD57: =IF(ISNA($DJ$4),"",IF(VLOOKUP($DJ$4,'27データ'!$A$4:$KH$5000,'27データ'!BM$2,FALSE)="@","@",IF(VLOOKUP($DJ$4,'27データ'!$A$4:$KH$5000,'27データ'!BM$2,FALSE)="x","x",IF(VLOOKUP($DJ$4,'27データ'!$A$4:$KH$5000,'27データ'!BM$2,FALSE)="-","-",VLOOKUP($DJ$4,'27データ'!$A$4:$KH$5000,'27データ'!BM$2,FALSE)/100)))) -> 132 | AI57: =IF(ISNA($DJ$4),"",IF(VLOOKUP($DJ$4,'27データ'!$A$4:$KH$5000,'27データ'!BN$2,FALSE)="@","@",IF(VLOOKUP($DJ$4,'27データ'!$A$4:$KH$5000,'27データ'!BN$2,FALSE)="x","x",IF(VLOOKUP($DJ$4,'27データ'!$A$4:$KH$5000,'27データ'!BN$2,FALSE)="-","-",VLOOKUP($DJ$4,'27データ'!$A$4:$KH$5000,'27データ'!BN$2,FALSE)/100)))) -> 1,003 | AN57: =IF(ISNA($DJ$4),"",IF(VLOOKUP($DJ$4,'27データ'!$A$4:$KH$5000,'27データ'!BO$2,FALSE)="@","@",IF(VLOOKUP($DJ$4,'27データ'!$A$4:$KH$5000,'27データ'!BO$2,FALSE)="x","x",IF(VLOOKUP($DJ$4,'27データ'!$A$4:$KH$5000,'27データ'!BO$2,FALSE)="-","-",VLOOKUP($DJ$4,'27データ'!$A$4:$KH$5000,'27データ'!BO$2,FALSE)/100)))) -> 285 | AS57: =IF(ISNA($DJ$4),"",IF(VLOOKUP($DJ$4,'27データ'!$A$4:$KH$5000,'27データ'!BP$2,FALSE)="@","@",IF(VLOOKUP($DJ$4,'27データ'!$A$4:$KH$5000,'27データ'!BP$2,FALSE)="x","x",IF(VLOOKUP($DJ$4,'27データ'!$A$4:$KH$5000,'27データ'!BP$2,FALSE)="-","-",VLOOKUP($DJ$4,'27データ'!$A$4:$KH$5000,'27データ'!BP$2,FALSE)/100)))) -> 318 | AX57: =IF(ISNA($DJ$4),"",IF(VLOOKUP($DJ$4,'27データ'!$A$4:$KH$5000,'27データ'!BQ$2,FALSE)="@","@",IF(VLOOKUP($DJ$4,'27データ'!$A$4:$KH$5000,'27データ'!BQ$2,FALSE)="x","x",IF(VLOOKUP($DJ$4,'27データ'!$A$4:$KH$5000,'27データ'!BQ$2,FALSE)="-","-",VLOOKUP($DJ$4,'27データ'!$A$4:$KH$5000,'27データ'!BQ$2,FALSE)/100)))) -> 186 | BC57: =IF(ISNA($DJ$4),"",IF(VLOOKUP($DJ$4,'27データ'!$A$4:$KH$5000,'27データ'!BR$2,FALSE)="@","@",IF(VLOOKUP($DJ$4,'27データ'!$A$4:$KH$5000,'27データ'!BR$2,FALSE)="x","x",IF(VLOOKUP($DJ$4,'27データ'!$A$4:$KH$5000,'27データ'!BR$2,FALSE)="-","-",VLOOKUP($DJ$4,'27データ'!$A$4:$KH$5000,'27データ'!BR$2,FALSE)/100)))) -> 14,277 | BH57: =IF(ISNA($DJ$4),"",IF(VLOOKUP($DJ$4,'27データ'!$A$4:$KH$5000,'27データ'!BS$2,FALSE)="@","@",IF(VLOOKUP($DJ$4,'27データ'!$A$4:$KH$5000,'27データ'!BS$2,FALSE)="x","x",IF(VLOOKUP($DJ$4,'27データ'!$A$4:$KH$5000,'27データ'!BS$2,FALSE)="-","-",VLOOKUP($DJ$4,'27データ'!$A$4:$KH$5000,'27データ'!BS$2,FALSE)/100)))) -> 46 | BM57: =IF(ISNA($DJ$4),"",VLOOKUP($DJ$4,'27データ'!$A$4:$KH$5000,'27データ'!BU$2,FALSE)) -> 777 | BR57: =IF(ISNA($DJ$4),"",VLOOKUP($DJ$4,'27データ'!$A$4:$KH$5000,'27データ'!BW$2,FALSE)) -> 1,654 | BW57: =IF(ISNA($DJ$4),"",VLOOKUP($DJ$4,'27データ'!$A$4:$KH$5000,'27データ'!BY$2,FALSE)) -> 2,285 | CB57: =IF(ISNA($DJ$4),"",IF(VLOOKUP($DJ$4,'27データ'!$A$4:$KH$5000,'27データ'!CA$2,FALSE)="@","@",IF(VLOOKUP($DJ$4,'27データ'!$A$4:$KH$5000,'27データ'!CA$2,FALSE)="x","x",IF(VLOOKUP($DJ$4,'27データ'!$A$4:$KH$5000,'27データ'!CA$2,FALSE)="-","-",VLOOKUP($DJ$4,'27データ'!$A$4:$KH$5000,'27データ'!CA$2,FALSE)/1000)))) -> 381 | CG57: =IF(ISNA($DJ$4),"",IF(VLOOKUP($DJ$4,'27データ'!$A$4:$KH$5000,'27データ'!CC$2,FALSE)="@","@",IF(VLOOKUP($DJ$4,'27データ'!$A$4:$KH$5000,'27データ'!CC$2,FALSE)="x","x",IF(VLOOKUP($DJ$4,'27データ'!$A$4:$KH$5000,'27データ'!CC$2,FALSE)="-","-",VLOOKUP($DJ$4,'27データ'!$A$4:$KH$5000,'27データ'!CC$2,FALSE)/1000)))) -> 2,129
H58: 令和２年 | O58: =IF(ISNA($DJ$4),"",IF(VLOOKUP($DJ$4,'２データ'!$A$4:$KH$5000,'２データ'!BJ$2,FALSE)="@","@",IF(VLOOKUP($DJ$4,'２データ'!$A$4:$KH$5000,'２データ'!BJ$2,FALSE)="x","x",IF(VLOOKUP($DJ$4,'２データ'!$A$4:$KH$5000,'２データ'!BJ$2,FALSE)="-","-",VLOOKUP($DJ$4,'２データ'!$A$4:$KH$5000,'２データ'!BJ$2,FALSE)/100)))) -> 3,397 | T58: =IF(ISNA($DJ$4),"",IF(VLOOKUP($DJ$4,'２データ'!$A$4:$KH$5000,'２データ'!BK$2,FALSE)="@","@",IF(VLOOKUP($DJ$4,'２データ'!$A$4:$KH$5000,'２データ'!BK$2,FALSE)="x","x",IF(VLOOKUP($DJ$4,'２データ'!$A$4:$KH$5000,'２データ'!BK$2,FALSE)="-","-",VLOOKUP($DJ$4,'２データ'!$A$4:$KH$5000,'２データ'!BK$2,FALSE)/100)))) -> 2 | Y58: =IF(ISNA($DJ$4),"",IF(VLOOKUP($DJ$4,'２データ'!$A$4:$KH$5000,'２データ'!BL$2,FALSE)="@","@",IF(VLOOKUP($DJ$4,'２データ'!$A$4:$KH$5000,'２データ'!BL$2,FALSE)="x","x",IF(VLOOKUP($DJ$4,'２データ'!$A$4:$KH$5000,'２データ'!BL$2,FALSE)="-","-",VLOOKUP($DJ$4,'２データ'!$A$4:$KH$5000,'２データ'!BL$2,FALSE)/100)))) -> 32 | AD58: =IF(ISNA($DJ$4),"",IF(VLOOKUP($DJ$4,'２データ'!$A$4:$KH$5000,'２データ'!BM$2,FALSE)="@","@",IF(VLOOKUP($DJ$4,'２データ'!$A$4:$KH$5000,'２データ'!BM$2,FALSE)="x","x",IF(VLOOKUP($DJ$4,'２データ'!$A$4:$KH$5000,'２データ'!BM$2,FALSE)="-","-",VLOOKUP($DJ$4,'２データ'!$A$4:$KH$5000,'２データ'!BM$2,FALSE)/100)))) -> 121 | AI58: =IF(ISNA($DJ$4),"",IF(VLOOKUP($DJ$4,'２データ'!$A$4:$KH$5000,'２データ'!BN$2,FALSE)="@","@",IF(VLOOKUP($DJ$4,'２データ'!$A$4:$KH$5000,'２データ'!BN$2,FALSE)="x","x",IF(VLOOKUP($DJ$4,'２データ'!$A$4:$KH$5000,'２データ'!BN$2,FALSE)="-","-",VLOOKUP($DJ$4,'２データ'!$A$4:$KH$5000,'２データ'!BN$2,FALSE)/100)))) -> 929 | AN58: =IF(ISNA($DJ$4),"",IF(VLOOKUP($DJ$4,'２データ'!$A$4:$KH$5000,'２データ'!BO$2,FALSE)="@","@",IF(VLOOKUP($DJ$4,'２データ'!$A$4:$KH$5000,'２データ'!BO$2,FALSE)="x","x",IF(VLOOKUP($DJ$4,'２データ'!$A$4:$KH$5000,'２データ'!BO$2,FALSE)="-","-",VLOOKUP($DJ$4,'２データ'!$A$4:$KH$5000,'２データ'!BO$2,FALSE)/100)))) -> 269 | AS58: =IF(ISNA($DJ$4),"",IF(VLOOKUP($DJ$4,'２データ'!$A$4:$KH$5000,'２データ'!BP$2,FALSE)="@","@",IF(VLOOKUP($DJ$4,'２データ'!$A$4:$KH$5000,'２データ'!BP$2,FALSE)="x","x",IF(VLOOKUP($DJ$4,'２データ'!$A$4:$KH$5000,'２データ'!BP$2,FALSE)="-","-",VLOOKUP($DJ$4,'２データ'!$A$4:$KH$5000,'２データ'!BP$2,FALSE)/100)))) -> 293 | AX58: =IF(ISNA($DJ$4),"",IF(VLOOKUP($DJ$4,'２データ'!$A$4:$KH$5000,'２データ'!BQ$2,FALSE)="@","@",IF(VLOOKUP($DJ$4,'２データ'!$A$4:$KH$5000,'２データ'!BQ$2,FALSE)="x","x",IF(VLOOKUP($DJ$4,'２データ'!$A$4:$KH$5000,'２データ'!BQ$2,FALSE)="-","-",VLOOKUP($DJ$4,'２データ'!$A$4:$KH$5000,'２データ'!BQ$2,FALSE)/100)))) -> 157 | BC58: =IF(ISNA($DJ$4),"",IF(VLOOKUP($DJ$4,'２データ'!$A$4:$KH$5000,'２データ'!BR$2,FALSE)="@","@",IF(VLOOKUP($DJ$4,'２データ'!$A$4:$KH$5000,'２データ'!BR$2,FALSE)="x","x",IF(VLOOKUP($DJ$4,'２データ'!$A$4:$KH$5000,'２データ'!BR$2,FALSE)="-","-",VLOOKUP($DJ$4,'２データ'!$A$4:$KH$5000,'２データ'!BR$2,FALSE)/100)))) -> 12,688 | BH58: =IF(ISNA($DJ$4),"",IF(VLOOKUP($DJ$4,'２データ'!$A$4:$KH$5000,'２データ'!BS$2,FALSE)="@","@",IF(VLOOKUP($DJ$4,'２データ'!$A$4:$KH$5000,'２データ'!BS$2,FALSE)="x","x",IF(VLOOKUP($DJ$4,'２データ'!$A$4:$KH$5000,'２データ'!BS$2,FALSE)="-","-",VLOOKUP($DJ$4,'２データ'!$A$4:$KH$5000,'２データ'!BS$2,FALSE)/100)))) -> 56 | BM58: =IF(ISNA($DJ$4),"",VLOOKUP($DJ$4,'２データ'!$A$4:$KH$5000,'２データ'!BU$2,FALSE)) -> 601 | BR58: =IF(ISNA($DJ$4),"",VLOOKUP($DJ$4,'２データ'!$A$4:$KH$5000,'２データ'!BW$2,FALSE)) -> 1,598 | BW58: =IF(ISNA($DJ$4),"",VLOOKUP($DJ$4,'２データ'!$A$4:$KH$5000,'２データ'!BY$2,FALSE)) -> 1,413 | CB58: =IF(ISNA($DJ$4),"",IF(VLOOKUP($DJ$4,'２データ'!$A$4:$KH$5000,'２データ'!CA$2,FALSE)="@","@",IF(VLOOKUP($DJ$4,'２データ'!$A$4:$KH$5000,'２データ'!CA$2,FALSE)="x","x",IF(VLOOKUP($DJ$4,'２データ'!$A$4:$KH$5000,'２データ'!CA$2,FALSE)="-","-",VLOOKUP($DJ$4,'２データ'!$A$4:$KH$5000,'２データ'!CA$2,FALSE)/1000)))) -> 360 | CG58: =IF(ISNA($DJ$4),"",IF(VLOOKUP($DJ$4,'２データ'!$A$4:$KH$5000,'２データ'!CC$2,FALSE)="@","@",IF(VLOOKUP($DJ$4,'２データ'!$A$4:$KH$5000,'２データ'!CC$2,FALSE)="x","x",IF(VLOOKUP($DJ$4,'２データ'!$A$4:$KH$5000,'２データ'!CC$2,FALSE)="-","-",VLOOKUP($DJ$4,'２データ'!$A$4:$KH$5000,'２データ'!CC$2,FALSE)/1000)))) -> 592 | DJ58: 野菜
BM59: 注：単位は頭（採卵鶏、ブロイラーは千羽） | DJ59: 果樹
C60: 野菜
C61: 区 分 | O61: =IF($C$60="野菜",資料!DJ62,資料!DJ64) -> だいこん | T61: =IF($C$60="野菜",資料!DK62,資料!DK64) -> にんじん | Y61: =IF($C$60="野菜",資料!DL62,資料!DL64) -> はくさい | AD61: =IF($C$60="野菜",資料!DM62,資料!DM64) -> キャベツ | AI61: =IF($C$60="野菜",資料!DN62,資料!DN64) -> ほうれんそう | AN61: =IF($C$60="野菜",資料!DO62,資料!DO64) -> レタス | AS61: =IF($C$60="野菜",資料!DP62,資料!DP64) -> ねぎ | AX61: =IF($C$60="野菜",資料!DQ62,資料!DQ64) -> たまねぎ | BC61: =IF($C$60="野菜",資料!DR62,資料!DR64) -> ブロッコリー | BH61: =IF($C$60="野菜",資料!DS62,資料!DS64) -> きゅうり | BM61: =IF($C$60="野菜",資料!DT62,資料!DT64) -> なす | BR61: =IF($C$60="野菜",資料!DU62,資料!DU64) -> トマト | BW61: =IF($C$60="野菜",資料!DV62,資料!DV64) -> うち施設 | CB61: =IF($C$60="野菜",資料!DW62,資料!DW64) -> いちご | CG61: =IF($C$60="野菜",資料!DX62,資料!DX64) -> すいか
DJ62: だいこん | DK62: にんじん | DL62: はくさい | DM62: キャベツ | DN62: ほうれんそう | DO62: レタス | DP62: ねぎ | DQ62: たまねぎ | DR62: ブロッコリー | DS62: きゅうり | DT62: なす | DU62: トマト | DV62: うち施設 | DW62: いちご | DX62: すいか
C63: 経営 体数 | H63: 平成27年 | O63: =IF(ISNA($DJ$4),"",VLOOKUP($DJ$4,'27データ'!$A$4:$KH$5000,IF($C$60="野菜",'27データ'!CD$2,'27データ'!DH$2),FALSE)) -> 945 | T63: =IF(ISNA($DJ$4),"",VLOOKUP($DJ$4,'27データ'!$A$4:$KH$5000,IF($C$60="野菜",'27データ'!CF$2,'27データ'!DJ$2),FALSE)) -> 323 | Y63: =IF(ISNA($DJ$4),"",VLOOKUP($DJ$4,'27データ'!$A$4:$KH$5000,IF($C$60="野菜",'27データ'!CH$2,'27データ'!DL$2),FALSE)) -> 949 | AD63: =IF(ISNA($DJ$4),"",VLOOKUP($DJ$4,'27データ'!$A$4:$KH$5000,IF($C$60="野菜",'27データ'!CJ$2,'27データ'!DN$2),FALSE)) -> 977 | AI63: =IF(ISNA($DJ$4),"",VLOOKUP($DJ$4,'27データ'!$A$4:$KH$5000,IF($C$60="野菜",'27データ'!CL$2,'27データ'!DP$2),FALSE)) -> 674 | AN63: =IF(ISNA($DJ$4),"",VLOOKUP($DJ$4,'27データ'!$A$4:$KH$5000,IF($C$60="野菜",'27データ'!CN$2,'27データ'!DR$2),FALSE)) -> 254 | AS63: =IF(ISNA($DJ$4),"",VLOOKUP($DJ$4,'27データ'!$A$4:$KH$5000,IF($C$60="野菜",'27データ'!CP$2,'27データ'!DT$2),FALSE)) -> 451 | AX63: =IF(ISNA($DJ$4),"",VLOOKUP($DJ$4,'27データ'!$A$4:$KH$5000,IF($C$60="野菜",'27データ'!CR$2,'27データ'!DV$2),FALSE)) -> 765 | BC63: =IF(ISNA($DJ$4),"",VLOOKUP($DJ$4,'27データ'!$A$4:$KH$5000,IF($C$60="野菜",'27データ'!CT$2,'27データ'!DX$2),FALSE)) -> 832 | BH63: =IF(ISNA($DJ$4),"",VLOOKUP($DJ$4,'27データ'!$A$4:$KH$5000,IF($C$60="野菜",'27データ'!CV$2,'27データ'!DZ$2),FALSE)) -> 600 | BM63: =IF(ISNA($DJ$4),"",VLOOKUP($DJ$4,'27データ'!$A$4:$KH$5000,IF($C$60="野菜",'27データ'!CX$2,'27データ'!EB$2),FALSE)) -> 618 | BR63: =IF(ISNA($DJ$4),"",VLOOKUP($DJ$4,'27データ'!$A$4:$KH$5000,IF($C$60="野菜",'27データ'!CZ$2,'27データ'!ED$2),FALSE)) -> 706 | BW63: =IF(ISNA($DJ$4),"",VLOOKUP($DJ$4,'27データ'!$A$4:$KH$5000,IF($C$60="野菜",'27データ'!DB$2,'27データ'!EF$2),FALSE)) -> 442 | CB63: =IF(ISNA($DJ$4),"",VLOOKUP($DJ$4,'27データ'!$A$4:$KH$5000,IF($C$60="野菜",'27データ'!DD$2,'27データ'!EH$2),FALSE)) -> 259 | CG63: =IF(ISNA($DJ$4),"",VLOOKUP($DJ$4,'27データ'!$A$4:$KH$5000,IF($C$60="野菜",'27データ'!DF$2,'27データ'!EJ$2),FALSE)) -> 394
H64: 令和２年 | O64: =IF(ISNA($DJ$4),"",VLOOKUP($DJ$4,'２データ'!$A$4:$KH$5000,IF($C$60="野菜",'２データ'!CD$2,'２データ'!DH$2),FALSE)) -> 488 | T64: =IF(ISNA($DJ$4),"",VLOOKUP($DJ$4,'２データ'!$A$4:$KH$5000,IF($C$60="野菜",'２データ'!CF$2,'２データ'!DJ$2),FALSE)) -> 182 | Y64: =IF(ISNA($DJ$4),"",VLOOKUP($DJ$4,'２データ'!$A$4:$KH$5000,IF($C$60="野菜",'２データ'!CH$2,'２データ'!DL$2),FALSE)) -> 624 | AD64: =IF(ISNA($DJ$4),"",VLOOKUP($DJ$4,'２データ'!$A$4:$KH$5000,IF($C$60="野菜",'２データ'!CJ$2,'２データ'!DN$2),FALSE)) -> 680 | AI64: =IF(ISNA($DJ$4),"",VLOOKUP($DJ$4,'２データ'!$A$4:$KH$5000,IF($C$60="野菜",'２データ'!CL$2,'２データ'!DP$2),FALSE)) -> 434 | AN64: =IF(ISNA($DJ$4),"",VLOOKUP($DJ$4,'２データ'!$A$4:$KH$5000,IF($C$60="野菜",'２データ'!CN$2,'２データ'!DR$2),FALSE)) -> 196 | AS64: =IF(ISNA($DJ$4),"",VLOOKUP($DJ$4,'２データ'!$A$4:$KH$5000,IF($C$60="野菜",'２データ'!CP$2,'２データ'!DT$2),FALSE)) -> 271 | AX64: =IF(ISNA($DJ$4),"",VLOOKUP($DJ$4,'２データ'!$A$4:$KH$5000,IF($C$60="野菜",'２データ'!CR$2,'２データ'!DV$2),FALSE)) -> 465 | BC64: =IF(ISNA($DJ$4),"",VLOOKUP($DJ$4,'２データ'!$A$4:$KH$5000,IF($C$60="野菜",'２データ'!CT$2,'２データ'!DX$2),FALSE)) -> 707 | BH64: =IF(ISNA($DJ$4),"",VLOOKUP($DJ$4,'２データ'!$A$4:$KH$5000,IF($C$60="野菜",'２データ'!CV$2,'２データ'!DZ$2),FALSE)) -> 400 | BM64: =IF(ISNA($DJ$4),"",VLOOKUP($DJ$4,'２データ'!$A$4:$KH$5000,IF($C$60="野菜",'２データ'!CX$2,'２データ'!EB$2),FALSE)) -> 374 | BR64: =IF(ISNA($DJ$4),"",VLOOKUP($DJ$4,'２データ'!$A$4:$KH$5000,IF($C$60="野菜",'２データ'!CZ$2,'２データ'!ED$2),FALSE)) -> 537 | BW64: =IF(ISNA($DJ$4),"",VLOOKUP($DJ$4,'２データ'!$A$4:$KH$5000,IF($C$60="野菜",'２データ'!DB$2,'２データ'!EF$2),FALSE)) -> 381 | CB64: =IF(ISNA($DJ$4),"",VLOOKUP($DJ$4,'２データ'!$A$4:$KH$5000,IF($C$60="野菜",'２データ'!DD$2,'２データ'!EH$2),FALSE)) -> 196 | CG64: =IF(ISNA($DJ$4),"",VLOOKUP($DJ$4,'２データ'!$A$4:$KH$5000,IF($C$60="野菜",'２データ'!DF$2,'２データ'!EJ$2),FALSE)) -> 253 | DJ64: 温州みかん | DK64: うち施設 | DL64: その他のかんきつ | DM64: うち施設 | DN64: りんご | DO64: ぶどう | DP64: うち施設 | DQ64: 日本なし | DR64: もも | DS64: びわ | DT64: かき | DU64: くり | DV64: うめ | DW64: すもも | DX64: キウイフルーツ
C65: 面積 (ha) | H65: 平成27年 | O65: =IF(ISNA($DJ$4),"",IF(VLOOKUP($DJ$4,'27データ'!$A$4:$KH$5000,'27データ'!DI$2,FALSE)="@","@",IF(VLOOKUP($DJ$4,'27データ'!$A$4:$KH$5000,IF($C$60="野菜",'27データ'!CE$2,'27データ'!DI$2),FALSE)="x","x",IF(VLOOKUP($DJ$4,'27データ'!$A$4:$KH$5000,IF($C$60="野菜",'27データ'!CE$2,'27データ'!DI$2),FALSE)="-","-",VLOOKUP($DJ$4,'27データ'!$A$4:$KH$5000,IF($C$60="野菜",'27データ'!CE$2,'27データ'!DI$2),FALSE)/100)))) -> 92 | T65: =IF(ISNA($DJ$4),"",IF(VLOOKUP($DJ$4,'27データ'!$A$4:$KH$5000,'27データ'!DK$2,FALSE)="@","@",IF(VLOOKUP($DJ$4,'27データ'!$A$4:$KH$5000,IF($C$60="野菜",'27データ'!CG$2,'27データ'!DK$2),FALSE)="x","x",IF(VLOOKUP($DJ$4,'27データ'!$A$4:$KH$5000,IF($C$60="野菜",'27データ'!CG$2,'27データ'!DK$2),FALSE)="-","-",VLOOKUP($DJ$4,'27データ'!$A$4:$KH$5000,IF($C$60="野菜",'27データ'!CG$2,'27データ'!DK$2),FALSE)/100)))) -> 40 | Y65: =IF(ISNA($DJ$4),"",IF(VLOOKUP($DJ$4,'27データ'!$A$4:$KH$5000,'27データ'!DM$2,FALSE)="@","@",IF(VLOOKUP($DJ$4,'27データ'!$A$4:$KH$5000,IF($C$60="野菜",'27データ'!CI$2,'27データ'!DM$2),FALSE)="x","x",IF(VLOOKUP($DJ$4,'27データ'!$A$4:$KH$5000,IF($C$60="野菜",'27データ'!CI$2,'27データ'!DM$2),FALSE)="-","-",VLOOKUP($DJ$4,'27データ'!$A$4:$KH$5000,IF($C$60="野菜",'27データ'!CI$2,'27データ'!DM$2),FALSE)/100)))) -> 105 | AD65: =IF(ISNA($DJ$4),"",IF(VLOOKUP($DJ$4,'27データ'!$A$4:$KH$5000,'27データ'!DO$2,FALSE)="@","@",IF(VLOOKUP($DJ$4,'27データ'!$A$4:$KH$5000,IF($C$60="野菜",'27データ'!CK$2,'27データ'!DO$2),FALSE)="x","x",IF(VLOOKUP($DJ$4,'27データ'!$A$4:$KH$5000,IF($C$60="野菜",'27データ'!CK$2,'27データ'!DO$2),FALSE)="-","-",VLOOKUP($DJ$4,'27データ'!$A$4:$KH$5000,IF($C$60="野菜",'27データ'!CK$2,'27データ'!DO$2),FALSE)/100)))) -> 143 | AI65: =IF(ISNA($DJ$4),"",IF(VLOOKUP($DJ$4,'27データ'!$A$4:$KH$5000,'27データ'!DQ$2,FALSE)="@","@",IF(VLOOKUP($DJ$4,'27データ'!$A$4:$KH$5000,IF($C$60="野菜",'27データ'!CM$2,'27データ'!DQ$2),FALSE)="x","x",IF(VLOOKUP($DJ$4,'27データ'!$A$4:$KH$5000,IF($C$60="野菜",'27データ'!CM$2,'27データ'!DQ$2),FALSE)="-","-",VLOOKUP($DJ$4,'27データ'!$A$4:$KH$5000,IF($C$60="野菜",'27データ'!CM$2,'27データ'!DQ$2),FALSE)/100)))) -> 70 | AN65: =IF(ISNA($DJ$4),"",IF(VLOOKUP($DJ$4,'27データ'!$A$4:$KH$5000,'27データ'!DS$2,FALSE)="@","@",IF(VLOOKUP($DJ$4,'27データ'!$A$4:$KH$5000,IF($C$60="野菜",'27データ'!CO$2,'27データ'!DS$2),FALSE)="x","x",IF(VLOOKUP($DJ$4,'27データ'!$A$4:$KH$5000,IF($C$60="野菜",'27データ'!CO$2,'27データ'!DS$2),FALSE)="-","-",VLOOKUP($DJ$4,'27データ'!$A$4:$KH$5000,IF($C$60="野菜",'27データ'!CO$2,'27データ'!DS$2),FALSE)/100)))) -> 29 | AS65: =IF(ISNA($DJ$4),"",IF(VLOOKUP($DJ$4,'27データ'!$A$4:$KH$5000,'27データ'!DU$2,FALSE)="@","@",IF(VLOOKUP($DJ$4,'27データ'!$A$4:$KH$5000,IF($C$60="野菜",'27データ'!CQ$2,'27データ'!DU$2),FALSE)="x","x",IF(VLOOKUP($DJ$4,'27データ'!$A$4:$KH$5000,IF($C$60="野菜",'27データ'!CQ$2,'27データ'!DU$2),FALSE)="-","-",VLOOKUP($DJ$4,'27データ'!$A$4:$KH$5000,IF($C$60="野菜",'27データ'!CQ$2,'27データ'!DU$2),FALSE)/100)))) -> 37 | AX65: =IF(ISNA($DJ$4),"",IF(VLOOKUP($DJ$4,'27データ'!$A$4:$KH$5000,'27データ'!DW$2,FALSE)="@","@",IF(VLOOKUP($DJ$4,'27データ'!$A$4:$KH$5000,IF($C$60="野菜",'27データ'!CS$2,'27データ'!DW$2),FALSE)="x","x",IF(VLOOKUP($DJ$4,'27データ'!$A$4:$KH$5000,IF($C$60="野菜",'27データ'!CS$2,'27データ'!DW$2),FALSE)="-","-",VLOOKUP($DJ$4,'27データ'!$A$4:$KH$5000,IF($C$60="野菜",'27データ'!CS$2,'27データ'!DW$2),FALSE)/100)))) -> 75 | BC65: =IF(ISNA($DJ$4),"",IF(VLOOKUP($DJ$4,'27データ'!$A$4:$KH$5000,'27データ'!DY$2,FALSE)="@","@",IF(VLOOKUP($DJ$4,'27データ'!$A$4:$KH$5000,IF($C$60="野菜",'27データ'!CU$2,'27データ'!DY$2),FALSE)="x","x",IF(VLOOKUP($DJ$4,'27データ'!$A$4:$KH$5000,IF($C$60="野菜",'27データ'!CU$2,'27データ'!DY$2),FALSE)="-","-",VLOOKUP($DJ$4,'27データ'!$A$4:$KH$5000,IF($C$60="野菜",'27データ'!CU$2,'27データ'!DY$2),FALSE)/100)))) -> 92 | BH65: =IF(ISNA($DJ$4),"",IF(VLOOKUP($DJ$4,'27データ'!$A$4:$KH$5000,'27データ'!EA$2,FALSE)="@","@",IF(VLOOKUP($DJ$4,'27データ'!$A$4:$KH$5000,IF($C$60="野菜",'27データ'!CW$2,'27データ'!EA$2),FALSE)="x","x",IF(VLOOKUP($DJ$4,'27データ'!$A$4:$KH$5000,IF($C$60="野菜",'27データ'!CW$2,'27データ'!EA$2),FALSE)="-","-",VLOOKUP($DJ$4,'27データ'!$A$4:$KH$5000,IF($C$60="野菜",'27データ'!CW$2,'27データ'!EA$2),FALSE)/100)))) -> 42 | BM65: =IF(ISNA($DJ$4),"",IF(VLOOKUP($DJ$4,'27データ'!$A$4:$KH$5000,'27データ'!EC$2,FALSE)="@","@",IF(VLOOKUP($DJ$4,'27データ'!$A$4:$KH$5000,IF($C$60="野菜",'27データ'!CY$2,'27データ'!EC$2),FALSE)="x","x",IF(VLOOKUP($DJ$4,'27データ'!$A$4:$KH$5000,IF($C$60="野菜",'27データ'!CY$2,'27データ'!EC$2),FALSE)="-","-",VLOOKUP($DJ$4,'27データ'!$A$4:$KH$5000,IF($C$60="野菜",'27データ'!CY$2,'27データ'!EC$2),FALSE)/100)))) -> 28 | BR65: =IF(ISNA($DJ$4),"",IF(VLOOKUP($DJ$4,'27データ'!$A$4:$KH$5000,'27データ'!EE$2,FALSE)="@","@",IF(VLOOKUP($DJ$4,'27データ'!$A$4:$KH$5000,IF($C$60="野菜",'27データ'!DA$2,'27データ'!EE$2),FALSE)="x","x",IF(VLOOKUP($DJ$4,'27データ'!$A$4:$KH$5000,IF($C$60="野菜",'27データ'!DA$2,'27データ'!EE$2),FALSE)="-","-",VLOOKUP($DJ$4,'27データ'!$A$4:$KH$5000,IF($C$60="野菜",'27データ'!DA$2,'27データ'!EE$2),FALSE)/100)))) -> 73 | BW65: =IF(ISNA($DJ$4),"",IF(VLOOKUP($DJ$4,'27データ'!$A$4:$KH$5000,'27データ'!EG$2,FALSE)="@","@",IF(VLOOKUP($DJ$4,'27データ'!$A$4:$KH$5000,IF($C$60="野菜",'27データ'!DC$2,'27データ'!EG$2),FALSE)="x","x",IF(VLOOKUP($DJ$4,'27データ'!$A$4:$KH$5000,IF($C$60="野菜",'27データ'!DC$2,'27データ'!EG$2),FALSE)="-","-",VLOOKUP($DJ$4,'27データ'!$A$4:$KH$5000,IF($C$60="野菜",'27データ'!DC$2,'27データ'!EG$2),FALSE)/100)))) -> 59 | CB65: =IF(ISNA($DJ$4),"",IF(VLOOKUP($DJ$4,'27データ'!$A$4:$KH$5000,'27データ'!EI$2,FALSE)="@","@",IF(VLOOKUP($DJ$4,'27データ'!$A$4:$KH$5000,IF($C$60="野菜",'27データ'!DE$2,'27データ'!EI$2),FALSE)="x","x",IF(VLOOKUP($DJ$4,'27データ'!$A$4:$KH$5000,IF($C$60="野菜",'27データ'!DE$2,'27データ'!EI$2),FALSE)="-","-",VLOOKUP($DJ$4,'27データ'!$A$4:$KH$5000,IF($C$60="野菜",'27データ'!DE$2,'27データ'!EI$2),FALSE)/100)))) -> 31 | CG65: =IF(ISNA($DJ$4),"",IF(VLOOKUP($DJ$4,'27データ'!$A$4:$KH$5000,'27データ'!EK$2,FALSE)="@","@",IF(VLOOKUP($DJ$4,'27データ'!$A$4:$KH$5000,IF($C$60="野菜",'27データ'!DG$2,'27データ'!EK$2),FALSE)="x","x",IF(VLOOKUP($DJ$4,'27データ'!$A$4:$KH$5000,IF($C$60="野菜",'27データ'!DG$2,'27データ'!EK$2),FALSE)="-","-",VLOOKUP($DJ$4,'27データ'!$A$4:$KH$5000,IF($C$60="野菜",'27データ'!DG$2,'27データ'!EK$2),FALSE)/100)))) -> 56
H66: 令和２年 | O66: =IF(ISNA($DJ$4),"",IF(VLOOKUP($DJ$4,'２データ'!$A$4:$KH$5000,IF($C$60="野菜",'２データ'!CE$2,'２データ'!DI$2),FALSE)="x","x",IF(VLOOKUP($DJ$4,'２データ'!$A$4:$KH$5000,IF($C$60="野菜",'２データ'!CE$2,'２データ'!DI$2),FALSE)="-","-",VLOOKUP($DJ$4,'２データ'!$A$4:$KH$5000,IF($C$60="野菜",'２データ'!CE$2,'２データ'!DI$2),FALSE)/100))) -> 73 | T66: =IF(ISNA($DJ$4),"",IF(VLOOKUP($DJ$4,'２データ'!$A$4:$KH$5000,IF($C$60="野菜",'２データ'!CG$2,'２データ'!DK$2),FALSE)="x","x",IF(VLOOKUP($DJ$4,'２データ'!$A$4:$KH$5000,IF($C$60="野菜",'２データ'!CG$2,'２データ'!DK$2),FALSE)="-","-",VLOOKUP($DJ$4,'２データ'!$A$4:$KH$5000,IF($C$60="野菜",'２データ'!CG$2,'２データ'!DK$2),FALSE)/100))) -> 37 | Y66: =IF(ISNA($DJ$4),"",IF(VLOOKUP($DJ$4,'２データ'!$A$4:$KH$5000,IF($C$60="野菜",'２データ'!CI$2,'２データ'!DM$2),FALSE)="x","x",IF(VLOOKUP($DJ$4,'２データ'!$A$4:$KH$5000,IF($C$60="野菜",'２データ'!CI$2,'２データ'!DM$2),FALSE)="-","-",VLOOKUP($DJ$4,'２データ'!$A$4:$KH$5000,IF($C$60="野菜",'２データ'!CI$2,'２データ'!DM$2),FALSE)/100))) -> 88 | AD66: =IF(ISNA($DJ$4),"",IF(VLOOKUP($DJ$4,'２データ'!$A$4:$KH$5000,IF($C$60="野菜",'２データ'!CK$2,'２データ'!DO$2),FALSE)="x","x",IF(VLOOKUP($DJ$4,'２データ'!$A$4:$KH$5000,IF($C$60="野菜",'２データ'!CK$2,'２データ'!DO$2),FALSE)="-","-",VLOOKUP($DJ$4,'２データ'!$A$4:$KH$5000,IF($C$60="野菜",'２データ'!CK$2,'２データ'!DO$2),FALSE)/100))) -> 115 | AI66: =IF(ISNA($DJ$4),"",IF(VLOOKUP($DJ$4,'２データ'!$A$4:$KH$5000,IF($C$60="野菜",'２データ'!CM$2,'２データ'!DQ$2),FALSE)="x","x",IF(VLOOKUP($DJ$4,'２データ'!$A$4:$KH$5000,IF($C$60="野菜",'２データ'!CM$2,'２データ'!DQ$2),FALSE)="-","-",VLOOKUP($DJ$4,'２データ'!$A$4:$KH$5000,IF($C$60="野菜",'２データ'!CM$2,'２データ'!DQ$2),FALSE)/100))) -> 54 | AN66: =IF(ISNA($DJ$4),"",IF(VLOOKUP($DJ$4,'２データ'!$A$4:$KH$5000,IF($C$60="野菜",'２データ'!CO$2,'２データ'!DS$2),FALSE)="x","x",IF(VLOOKUP($DJ$4,'２データ'!$A$4:$KH$5000,IF($C$60="野菜",'２データ'!CO$2,'２データ'!DS$2),FALSE)="-","-",VLOOKUP($DJ$4,'２データ'!$A$4:$KH$5000,IF($C$60="野菜",'２データ'!CO$2,'２データ'!DS$2),FALSE)/100))) -> 32 | AS66: =IF(ISNA($DJ$4),"",IF(VLOOKUP($DJ$4,'２データ'!$A$4:$KH$5000,IF($C$60="野菜",'２データ'!CQ$2,'２データ'!DU$2),FALSE)="x","x",IF(VLOOKUP($DJ$4,'２データ'!$A$4:$KH$5000,IF($C$60="野菜",'２データ'!CQ$2,'２データ'!DU$2),FALSE)="-","-",VLOOKUP($DJ$4,'２データ'!$A$4:$KH$5000,IF($C$60="野菜",'２データ'!CQ$2,'２データ'!DU$2),FALSE)/100))) -> 35 | AX66: =IF(ISNA($DJ$4),"",IF(VLOOKUP($DJ$4,'２データ'!$A$4:$KH$5000,IF($C$60="野菜",'２データ'!CS$2,'２データ'!DW$2),FALSE)="x","x",IF(VLOOKUP($DJ$4,'２データ'!$A$4:$KH$5000,IF($C$60="野菜",'２データ'!CS$2,'２データ'!DW$2),FALSE)="-","-",VLOOKUP($DJ$4,'２データ'!$A$4:$KH$5000,IF($C$60="野菜",'２データ'!CS$2,'２データ'!DW$2),FALSE)/100))) -> 75 | BC66: =IF(ISNA($DJ$4),"",IF(VLOOKUP($DJ$4,'２データ'!$A$4:$KH$5000,IF($C$60="野菜",'２データ'!CU$2,'２データ'!DY$2),FALSE)="x","x",IF(VLOOKUP($DJ$4,'２データ'!$A$4:$KH$5000,IF($C$60="野菜",'２データ'!CU$2,'２データ'!DY$2),FALSE)="-","-",VLOOKUP($DJ$4,'２データ'!$A$4:$KH$5000,IF($C$60="野菜",'２データ'!CU$2,'２データ'!DY$2),FALSE)/100))) -> 94 | BH66: =IF(ISNA($DJ$4),"",IF(VLOOKUP($DJ$4,'２データ'!$A$4:$KH$5000,IF($C$60="野菜",'２データ'!CW$2,'２データ'!EA$2),FALSE)="x","x",IF(VLOOKUP($DJ$4,'２データ'!$A$4:$KH$5000,IF($C$60="野菜",'２データ'!CW$2,'２データ'!EA$2),FALSE)="-","-",VLOOKUP($DJ$4,'２データ'!$A$4:$KH$5000,IF($C$60="野菜",'２データ'!CW$2,'２データ'!EA$2),FALSE)/100))) -> 33 | BM66: =IF(ISNA($DJ$4),"",IF(VLOOKUP($DJ$4,'２データ'!$A$4:$KH$5000,IF($C$60="野菜",'２データ'!CY$2,'２データ'!EC$2),FALSE)="x","x",IF(VLOOKUP($DJ$4,'２データ'!$A$4:$KH$5000,IF($C$60="野菜",'２データ'!CY$2,'２データ'!EC$2),FALSE)="-","-",VLOOKUP($DJ$4,'２データ'!$A$4:$KH$5000,IF($C$60="野菜",'２データ'!CY$2,'２データ'!EC$2),FALSE)/100))) -> 22 | BR66: =IF(ISNA($DJ$4),"",IF(VLOOKUP($DJ$4,'２データ'!$A$4:$KH$5000,IF($C$60="野菜",'２データ'!DA$2,'２データ'!EE$2),FALSE)="x","x",IF(VLOOKUP($DJ$4,'２データ'!$A$4:$KH$5000,IF($C$60="野菜",'２データ'!DA$2,'２データ'!EE$2),FALSE)="-","-",VLOOKUP($DJ$4,'２データ'!$A$4:$KH$5000,IF($C$60="野菜",'２データ'!DA$2,'２データ'!EE$2),FALSE)/100))) -> 62 | BW66: =IF(ISNA($DJ$4),"",IF(VLOOKUP($DJ$4,'２データ'!$A$4:$KH$5000,IF($C$60="野菜",'２データ'!DC$2,'２データ'!EG$2),FALSE)="x","x",IF(VLOOKUP($DJ$4,'２データ'!$A$4:$KH$5000,IF($C$60="野菜",'２データ'!DC$2,'２データ'!EG$2),FALSE)="-","-",VLOOKUP($DJ$4,'２データ'!$A$4:$KH$5000,IF($C$60="野菜",'２データ'!DC$2,'２データ'!EG$2),FALSE)/100))) -> 52 | CB66: =IF(ISNA($DJ$4),"",IF(VLOOKUP($DJ$4,'２データ'!$A$4:$KH$5000,IF($C$60="野菜",'２データ'!DE$2,'２データ'!EI$2),FALSE)="x","x",IF(VLOOKUP($DJ$4,'２データ'!$A$4:$KH$5000,IF($C$60="野菜",'２データ'!DE$2,'２データ'!EI$2),FALSE)="-","-",VLOOKUP($DJ$4,'２データ'!$A$4:$KH$5000,IF($C$60="野菜",'２データ'!DE$2,'２データ'!EI$2),FALSE)/100))) -> 31 | CG66: =IF(ISNA($DJ$4),"",IF(VLOOKUP($DJ$4,'２データ'!$A$4:$KH$5000,IF($C$60="野菜",'２データ'!DG$2,'２データ'!EK$2),FALSE)="x","x",IF(VLOOKUP($DJ$4,'２データ'!$A$4:$KH$5000,IF($C$60="野菜",'２データ'!DG$2,'２データ'!EK$2),FALSE)="-","-",VLOOKUP($DJ$4,'２データ'!$A$4:$KH$5000,IF($C$60="野菜",'２データ'!DG$2,'２データ'!EK$2),FALSE)/100))) -> 54
B70: ４ 経営部門 | AU70: ５ 農産物の出荷先
C72: 農産物販売金額１位の部門別経営体数 | AV72: 農産物の出荷先別経営体数
C73: 区 分 | O73: 計 | T73: 稲作 | Y73: 野菜類 | AD73: 果樹類 | AI73: その他 (耕種) | AN73: 畜産 | AV73: 区 分 | BH73: 延べ経 営体数 | BM73: 農協 | BR73: 卸売 市場 | BW73: 小売 業者 | CB73: 消費者に直接販売 | CG73: その他
C75: 経営 体数 | H75: 平成27年 | O75: =IF(ISNA($DJ$4),"",VLOOKUP($DJ$4,'27データ'!$A$4:$KH$5000,'27データ'!EL$2,FALSE)) -> 20,278 | T75: =IF(ISNA($DJ$4),"",VLOOKUP($DJ$4,'27データ'!$A$4:$KH$5000,'27データ'!EM$2,FALSE)) -> 4,167 | Y75: =IF(ISNA($DJ$4),"",VLOOKUP($DJ$4,'27データ'!$A$4:$KH$5000,'27データ'!EN$2,FALSE)) -> 2,009 | AD75: =IF(ISNA($DJ$4),"",VLOOKUP($DJ$4,'27データ'!$A$4:$KH$5000,'27データ'!EO$2,FALSE)) -> 12,842 | AI75: =IF(ISNA($DJ$4),"",VLOOKUP($DJ$4,'27データ'!$A$4:$KH$5000,'27データ'!EP$2,FALSE)) -> 1,168 | AN75: =IF(ISNA($DJ$4),"",VLOOKUP($DJ$4,'27データ'!$A$4:$KH$5000,'27データ'!EQ$2,FALSE)) -> 92 | AV75: 経営 体数 | BA75: 平成27年 | BH75: =IF(ISNA($DJ$4),"",VLOOKUP($DJ$4,'27データ'!$A$4:$KH$5000,'27データ'!ER$2,FALSE)) -> 28,726 | BM75: =IF(ISNA($DJ$4),"",VLOOKUP($DJ$4,'27データ'!$A$4:$KH$5000,'27データ'!ES$2,FALSE)) -> 13,390 | BR75: =IF(ISNA($DJ$4),"",VLOOKUP($DJ$4,'27データ'!$A$4:$KH$5000,'27データ'!ET$2,FALSE)) -> 3,792 | BW75: =IF(ISNA($DJ$4),"",VLOOKUP($DJ$4,'27データ'!$A$4:$KH$5000,'27データ'!EU$2,FALSE)) -> 2,084 | CB75: =IF(ISNA($DJ$4),"",VLOOKUP($DJ$4,'27データ'!$A$4:$KH$5000,'27データ'!EV$2,FALSE)) -> 4,114 | CG75: =IF(ISNA($DJ$4),"",VLOOKUP($DJ$4,'27データ'!$A$4:$KH$5000,'27データ'!EW$2,FALSE)) -> 5,346
H76: 令和２年 | O76: =IF(ISNA($DJ$4),"",VLOOKUP($DJ$4,'２データ'!$A$4:$KH$5000,'２データ'!EL$2,FALSE)) -> 17,183 | T76: =IF(ISNA($DJ$4),"",VLOOKUP($DJ$4,'２データ'!$A$4:$KH$5000,'２データ'!EM$2,FALSE)) -> 3,253 | Y76: =IF(ISNA($DJ$4),"",VLOOKUP($DJ$4,'２データ'!$A$4:$KH$5000,'２データ'!EN$2,FALSE)) -> 1,754 | AD76: =IF(ISNA($DJ$4),"",VLOOKUP($DJ$4,'２データ'!$A$4:$KH$5000,'２データ'!EO$2,FALSE)) -> 11,244 | AI76: =IF(ISNA($DJ$4),"",VLOOKUP($DJ$4,'２データ'!$A$4:$KH$5000,'２データ'!EP$2,FALSE)) -> 852 | AN76: =IF(ISNA($DJ$4),"",VLOOKUP($DJ$4,'２データ'!$A$4:$KH$5000,'２データ'!EQ$2,FALSE)) -> 80 | BA76: 令和２年 | BH76: =IF(ISNA($DJ$4),"",VLOOKUP($DJ$4,'２データ'!$A$4:$KH$5000,'２データ'!ER$2,FALSE)) -> 26,160 | BM76: =IF(ISNA($DJ$4),"",VLOOKUP($DJ$4,'２データ'!$A$4:$KH$5000,'２データ'!ES$2,FALSE)) -> 11,601 | BR76: =IF(ISNA($DJ$4),"",VLOOKUP($DJ$4,'２データ'!$A$4:$KH$5000,'２データ'!ET$2,FALSE)) -> 3,289 | BW76: =IF(ISNA($DJ$4),"",VLOOKUP($DJ$4,'２データ'!$A$4:$KH$5000,'２データ'!EU$2,FALSE)) -> 2,205 | CB76: =IF(ISNA($DJ$4),"",VLOOKUP($DJ$4,'２データ'!$A$4:$KH$5000,'２データ'!EV$2,FALSE)) -> 3,787 | CG76: =IF(ISNA($DJ$4),"",VLOOKUP($DJ$4,'２データ'!$A$4:$KH$5000,'２データ'!EW$2,FALSE)) -> 5,278
C77: 構成比 (％) | H77: 平成27年 | O77: =IF(ISNA($DJ$4),"",IF(O75="@","nc",IF(O75="x","x",IF($O75="-","nc",O75/$O75*100)))) -> 100 | T77: =IF(ISNA($DJ$4),"",IF(T75="@","nc",IF(T75="x","x",IF($O75="-","nc",IF(T75="-","-",T75/$O75*100))))) -> 21 | Y77: =IF(ISNA($DJ$4),"",IF(Y75="@","nc",IF(Y75="x","x",IF($O75="-","nc",IF(Y75="-","-",Y75/$O75*100))))) -> 10 | AD77: =IF(ISNA($DJ$4),"",IF(AD75="@","nc",IF(AD75="x","x",IF($O75="-","nc",IF(AD75="-","-",AD75/$O75*100))))) -> 63 | AI77: =IF(ISNA($DJ$4),"",IF(AI75="@","nc",IF(AI75="x","x",IF($O75="-","nc",IF(AI75="-","-",AI75/$O75*100))))) -> 6 | AN77: =IF(ISNA($DJ$4),"",IF(AN75="@","nc",IF(AN75="x","x",IF($O75="-","nc",IF(AN75="-","-",AN75/$O75*100))))) -> 0 | AV77: 構成比 (％) | BA77: 平成27年 | BH77: =IF(ISNA($DJ$4),"",IF(BH75="@","nc",IF(BH75="x","x",IF($BH75="-","nc",BH75/$BH75*100)))) -> 100 | BM77: =IF(ISNA($DJ$4),"",IF(BM75="@","nc",IF(BM75="x","x",IF($BH75="-","nc",IF(BM75="-","-",BM75/$BH75*100))))) -> 47 | BR77: =IF(ISNA($DJ$4),"",IF(BR75="@","nc",IF(BR75="x","x",IF($BH75="-","nc",IF(BR75="-","-",BR75/$BH75*100))))) -> 13 | BW77: =IF(ISNA($DJ$4),"",IF(BW75="@","nc",IF(BW75="x","x",IF($BH75="-","nc",IF(BW75="-","-",BW75/$BH75*100))))) -> 7 | CB77: =IF(ISNA($DJ$4),"",IF(CB75="@","nc",IF(CB75="x","x",IF($BH75="-","nc",IF(CB75="-","-",CB75/$BH75*100))))) -> 14 | CG77: =IF(ISNA($DJ$4),"",IF(CG75="@","nc",IF(CG75="x","x",IF($BH75="-","nc",IF(CG75="-","-",CG75/$BH75*100))))) -> 19
H78: 令和２年 | O78: =IF(ISNA($DJ$4),"",IF(O76="x","x",IF($O76="-","nc",O76/$O76*100))) -> 100 | T78: =IF(ISNA($DJ$4),"",IF(T76="x","x",IF($O76="-","nc",IF(T76="-","-",T76/$O76*100)))) -> 19 | Y78: =IF(ISNA($DJ$4),"",IF(Y76="x","x",IF($O76="-","nc",IF(Y76="-","-",Y76/$O76*100)))) -> 10 | AD78: =IF(ISNA($DJ$4),"",IF(AD76="x","x",IF($O76="-","nc",IF(AD76="-","-",AD76/$O76*100)))) -> 65 | AI78: =IF(ISNA($DJ$4),"",IF(AI76="x","x",IF($O76="-","nc",IF(AI76="-","-",AI76/$O76*100)))) -> 5 | AN78: =IF(ISNA($DJ$4),"",IF(AN76="x","x",IF($O76="-","nc",IF(AN76="-","-",AN76/$O76*100)))) -> 0 | BA78: 令和２年 | BH78: =IF(ISNA($DJ$4),"",IF(BH76="x","x",IF($BH76="-","nc",BH76/$BH76*100))) -> 100 | BM78: =IF(ISNA($DJ$4),"",IF(BM76="x","x",IF($BH76="-","nc",IF(BM76="-","-",BM76/$BH76*100)))) -> 44 | BR78: =IF(ISNA($DJ$4),"",IF(BR76="x","x",IF($BH76="-","nc",IF(BR76="-","-",BR76/$BH76*100)))) -> 13 | BW78: =IF(ISNA($DJ$4),"",IF(BW76="x","x",IF($BH76="-","nc",IF(BW76="-","-",BW76/$BH76*100)))) -> 8 | CB78: =IF(ISNA($DJ$4),"",IF(CB76="x","x",IF($BH76="-","nc",IF(CB76="-","-",CB76/$BH76*100)))) -> 14 | CG78: =IF(ISNA($DJ$4),"",IF(CG76="x","x",IF($BH76="-","nc",IF(CG76="-","-",CG76/$BH76*100)))) -> 20
H79: =IF($BW$12="都府県との比較","都府県平均",IF($BW$12="全国との比較","全国平均","府県平均")) -> 府県平均 | O79: =IF(ISNA($DJ$4),"",IF(VLOOKUP($DJ$32,'２データ'!$A$4:$KH$5000,'２データ'!EL$2,FALSE)="x","x",IF(VLOOKUP($DJ$32,'２データ'!$A$4:$KH$5000,'２データ'!EL$2,FALSE)="-","nc",VLOOKUP($DJ$32,'２データ'!$A$4:$KH$5000,'２データ'!EL$2,FALSE)/VLOOKUP($DJ$32,'２データ'!$A$4:$KH$5000,'２データ'!EL$2,FALSE)*100))) -> 100 | T79: =IF(ISNA($DJ$4),"",IF(VLOOKUP($DJ$32,'２データ'!$A$4:$KH$5000,'２データ'!EM$2,FALSE)="x","x",IF(VLOOKUP($DJ$32,'２データ'!$A$4:$KH$5000,'２データ'!EL$2,FALSE)="-","nc",IF(VLOOKUP($DJ$32,'２データ'!$A$4:$KH$5000,'２データ'!EM$2,FALSE)="-","-",VLOOKUP($DJ$32,'２データ'!$A$4:$KH$5000,'２データ'!EM$2,FALSE)/VLOOKUP($DJ$32,'２データ'!$A$4:$KH$5000,'２データ'!EL$2,FALSE)*100)))) -> 19 | Y79: =IF(ISNA($DJ$4),"",IF(VLOOKUP($DJ$32,'２データ'!$A$4:$KH$5000,'２データ'!EN$2,FALSE)="x","x",IF(VLOOKUP($DJ$32,'２データ'!$A$4:$KH$5000,'２データ'!EL$2,FALSE)="-","nc",IF(VLOOKUP($DJ$32,'２データ'!$A$4:$KH$5000,'２データ'!EN$2,FALSE)="-","-",VLOOKUP($DJ$32,'２データ'!$A$4:$KH$5000,'２データ'!EN$2,FALSE)/VLOOKUP($DJ$32,'２データ'!$A$4:$KH$5000,'２データ'!EL$2,FALSE)*100)))) -> 10 | AD79: =IF(ISNA($DJ$4),"",IF(VLOOKUP($DJ$32,'２データ'!$A$4:$KH$5000,'２データ'!EO$2,FALSE)="x","x",IF(VLOOKUP($DJ$32,'２データ'!$A$4:$KH$5000,'２データ'!EL$2,FALSE)="-","nc",IF(VLOOKUP($DJ$32,'２データ'!$A$4:$KH$5000,'２データ'!EO$2,FALSE)="-","-",VLOOKUP($DJ$32,'２データ'!$A$4:$KH$5000,'２データ'!EO$2,FALSE)/VLOOKUP($DJ$32,'２データ'!$A$4:$KH$5000,'２データ'!EL$2,FALSE)*100)))) -> 65 | AI79: =IF(ISNA($DJ$4),"",IF(VLOOKUP($DJ$32,'２データ'!$A$4:$KH$5000,'２データ'!EP$2,FALSE)="x","x",IF(VLOOKUP($DJ$32,'２データ'!$A$4:$KH$5000,'２データ'!EL$2,FALSE)="-","nc",IF(VLOOKUP($DJ$32,'２データ'!$A$4:$KH$5000,'２データ'!EP$2,FALSE)="-","-",VLOOKUP($DJ$32,'２データ'!$A$4:$KH$5000,'２データ'!EP$2,FALSE)/VLOOKUP($DJ$32,'２データ'!$A$4:$KH$5000,'２データ'!EL$2,FALSE)*100)))) -> 5 | AN79: =IF(ISNA($DJ$4),"",IF(VLOOKUP($DJ$32,'２データ'!$A$4:$KH$5000,'２データ'!EQ$2,FALSE)="x","x",IF(VLOOKUP($DJ$32,'２データ'!$A$4:$KH$5000,'２データ'!EL$2,FALSE)="-","nc",IF(VLOOKUP($DJ$32,'２データ'!$A$4:$KH$5000,'２データ'!EQ$2,FALSE)="-","-",VLOOKUP($DJ$32,'２データ'!$A$4:$KH$5000,'２データ'!EQ$2,FALSE)/VLOOKUP($DJ$32,'２データ'!$A$4:$KH$5000,'２データ'!EL$2,FALSE)*100)))) -> 0 | BA79: =IF($BW$12="都府県との比較","都府県平均",IF($BW$12="全国との比較","全国平均","府県平均")) -> 府県平均 | BH79: =IF(ISNA($DJ$4),"",IF(VLOOKUP($DJ$32,'２データ'!$A$4:$KH$5000,'２データ'!ER$2,FALSE)="x","x",IF(VLOOKUP($DJ$32,'２データ'!$A$4:$KH$5000,'２データ'!ER$2,FALSE)="-","nc",VLOOKUP($DJ$32,'２データ'!$A$4:$KH$5000,'２データ'!ER$2,FALSE)/VLOOKUP($DJ$32,'２データ'!$A$4:$KH$5000,'２データ'!ER$2,FALSE)*100))) -> 100 | BM79: =IF(ISNA($DJ$4),"",IF(VLOOKUP($DJ$32,'２データ'!$A$4:$KH$5000,'２データ'!ES$2,FALSE)="x","x",IF(VLOOKUP($DJ$32,'２データ'!$A$4:$KH$5000,'２データ'!ER$2,FALSE)="-","nc",IF(VLOOKUP($DJ$32,'２データ'!$A$4:$KH$5000,'２データ'!ES$2,FALSE)="-","-",VLOOKUP($DJ$32,'２データ'!$A$4:$KH$5000,'２データ'!ES$2,FALSE)/VLOOKUP($DJ$32,'２データ'!$A$4:$KH$5000,'２データ'!ER$2,FALSE)*100)))) -> 44 | BR79: =IF(ISNA($DJ$4),"",IF(VLOOKUP($DJ$32,'２データ'!$A$4:$KH$5000,'２データ'!ET$2,FALSE)="x","x",IF(VLOOKUP($DJ$32,'２データ'!$A$4:$KH$5000,'２データ'!ER$2,FALSE)="-","nc",IF(VLOOKUP($DJ$32,'２データ'!$A$4:$KH$5000,'２データ'!ET$2,FALSE)="-","-",VLOOKUP($DJ$32,'２データ'!$A$4:$KH$5000,'２データ'!ET$2,FALSE)/VLOOKUP($DJ$32,'２データ'!$A$4:$KH$5000,'２データ'!ER$2,FALSE)*100)))) -> 13 | BW79: =IF(ISNA($DJ$4),"",IF(VLOOKUP($DJ$32,'２データ'!$A$4:$KH$5000,'２データ'!EU$2,FALSE)="x","x",IF(VLOOKUP($DJ$32,'２データ'!$A$4:$KH$5000,'２データ'!ER$2,FALSE)="-","nc",IF(VLOOKUP($DJ$32,'２データ'!$A$4:$KH$5000,'２データ'!EU$2,FALSE)="-","-",VLOOKUP($DJ$32,'２データ'!$A$4:$KH$5000,'２データ'!EU$2,FALSE)/VLOOKUP($DJ$32,'２データ'!$A$4:$KH$5000,'２データ'!ER$2,FALSE)*100)))) -> 8 | CB79: =IF(ISNA($DJ$4),"",IF(VLOOKUP($DJ$32,'２データ'!$A$4:$KH$5000,'２データ'!EV$2,FALSE)="x","x",IF(VLOOKUP($DJ$32,'２データ'!$A$4:$KH$5000,'２データ'!ER$2,FALSE)="-","nc",IF(VLOOKUP($DJ$32,'２データ'!$A$4:$KH$5000,'２データ'!EV$2,FALSE)="-","-",VLOOKUP($DJ$32,'２データ'!$A$4:$KH$5000,'２データ'!EV$2,FALSE)/VLOOKUP($DJ$32,'２データ'!$A$4:$KH$5000,'２データ'!ER$2,FALSE)*100)))) -> 14 | CG79: =IF(ISNA($DJ$4),"",IF(VLOOKUP($DJ$32,'２データ'!$A$4:$KH$5000,'２データ'!EW$2,FALSE)="x","x",IF(VLOOKUP($DJ$32,'２データ'!$A$4:$KH$5000,'２データ'!ER$2,FALSE)="-","nc",IF(VLOOKUP($DJ$32,'２データ'!$A$4:$KH$5000,'２データ'!EW$2,FALSE)="-","-",VLOOKUP($DJ$32,'２データ'!$A$4:$KH$5000,'２データ'!EW$2,FALSE)/VLOOKUP($DJ$32,'２データ'!$A$4:$KH$5000,'２データ'!ER$2,FALSE)*100)))) -> 20
C80: 注：販売のある農業経営体。 | AV80: 注：複数回答。
DJ85: 区分 | DK85: 稲作 | DL85: 野菜類 | DM85: 果樹類 | DN85: その他（耕種） | DO85: 畜産 | DP85: 計
DJ86: =$DJ$38 -> 府県平均 | DK86: =IF($BW$12="前回との比較",T78,T79) -> 19 | DL86: =IF($BW$12="前回との比較",Y78,Y79) -> 10 | DM86: =IF($BW$12="前回との比較",AD78,AD79) -> 65 | DN86: =IF($BW$12="前回との比較",AI78,AI79) -> 5 | DO86: =IF($BW$12="前回との比較",AN78,AN79) -> 0 | DP86: =IF($BW$12="前回との比較",O78,O79) -> 100 | DR86: =IF(ISNA($DJ$4),"",IF(SUM(DK86:DO86)=100,"","表示できません")) -> 
DJ87: =$DJ$39 -> 選択地域 | DK87: =IF($BW$12="前回との比較",T77,T78) -> 19 | DL87: =IF($BW$12="前回との比較",Y77,Y78) -> 10 | DM87: =IF($BW$12="前回との比較",AD77,AD78) -> 65 | DN87: =IF($BW$12="前回との比較",AI77,AI78) -> 5 | DO87: =IF($BW$12="前回との比較",AN77,AN78) -> 0 | DP87: =IF($BW$12="前回との比較",O77,O78) -> 100 | DR87: =IF(ISNA($DJ$4),"",IF(SUM(DK87:DO87)=100,"","表示できません")) -> 
DJ90: 区分 | DK90: 農協 | DL90: 卸売市場 | DM90: 小売業者 | DN90: 消費者に直接販売 | DO90: その他 | DP90: 計
DJ91: =$DJ$38 -> 府県平均 | DK91: =IF($BW$12="前回との比較",BM78,BM79) -> 44 | DL91: =IF($BW$12="前回との比較",BR78,BR79) -> 13 | DM91: =IF($BW$12="前回との比較",BW78,BW79) -> 8 | DN91: =IF($BW$12="前回との比較",CB78,CB79) -> 14 | DO91: =IF($BW$12="前回との比較",CG78,CG79) -> 20 | DP91: =IF($BW$12="前回との比較",BH78,BH79) -> 100 | DR91: =IF(ISNA($DJ$4),"",IF(SUM(DK91:DO91)=100,"","表示できません")) -> 
DJ92: =$DJ$39 -> 選択地域 | DK92: =IF($BW$12="前回との比較",BM77,BM78) -> 44 | DL92: =IF($BW$12="前回との比較",BR77,BR78) -> 13 | DM92: =IF($BW$12="前回との比較",BW77,BW78) -> 8 | DN92: =IF($BW$12="前回との比較",CB77,CB78) -> 14 | DO92: =IF($BW$12="前回との比較",CG77,CG78) -> 20 | DP92: =IF($BW$12="前回との比較",BH77,BH78) -> 100 | DR92: =IF(ISNA($DJ$4),"",IF(SUM(DK92:DO92)=100,"","表示できません")) -> 
B93: ６ 農産物の販売金額
C95: 農産物販売金額規模別の経営体数、販売金額
C96: 区 分 | O96: 計 | U96: 100万円 未満 | AA96: 100 ～300 | AG96: 300 ～1,000 | AM96: 1,000 ～3,000 | AS96: 3,000 ～１億 | AY96: １億円 以上
C98: 経営 体数 | H98: 平成27年 | O98: =IF(ISNA($DJ$4),"",VLOOKUP($DJ$4,'27データ'!$A$4:$KH$5000,'27データ'!EX$2,FALSE)) -> 21,496 | U98: =IF(ISNA($DJ$4),"",VLOOKUP($DJ$4,'27データ'!$A$4:$KH$5000,'27データ'!EY$2,FALSE)) -> 9,868 | AA98: =IF(ISNA($DJ$4),"",VLOOKUP($DJ$4,'27データ'!$A$4:$KH$5000,'27データ'!EZ$2,FALSE)) -> 5,094 | AG98: =IF(ISNA($DJ$4),"",VLOOKUP($DJ$4,'27データ'!$A$4:$KH$5000,'27データ'!FA$2,FALSE)) -> 4,983 | AM98: =IF(ISNA($DJ$4),"",VLOOKUP($DJ$4,'27データ'!$A$4:$KH$5000,'27データ'!FB$2,FALSE)) -> 1,432 | AS98: =IF(ISNA($DJ$4),"",VLOOKUP($DJ$4,'27データ'!$A$4:$KH$5000,'27データ'!FC$2,FALSE)) -> 99 | AY98: =IF(ISNA($DJ$4),"",VLOOKUP($DJ$4,'27データ'!$A$4:$KH$5000,'27データ'!FD$2,FALSE)) -> 20
H99: 令和２年 | O99: =IF(ISNA($DJ$4),"",VLOOKUP($DJ$4,'２データ'!$A$4:$KH$5000,'２データ'!EX$2,FALSE)) -> 18,141 | U99: =IF(ISNA($DJ$4),"",VLOOKUP($DJ$4,'２データ'!$A$4:$KH$5000,'２データ'!EY$2,FALSE)) -> 7,437 | AA99: =IF(ISNA($DJ$4),"",VLOOKUP($DJ$4,'２データ'!$A$4:$KH$5000,'２データ'!EZ$2,FALSE)) -> 4,136 | AG99: =IF(ISNA($DJ$4),"",VLOOKUP($DJ$4,'２データ'!$A$4:$KH$5000,'２データ'!FA$2,FALSE)) -> 4,637 | AM99: =IF(ISNA($DJ$4),"",VLOOKUP($DJ$4,'２データ'!$A$4:$KH$5000,'２データ'!FB$2,FALSE)) -> 1,737 | AS99: =IF(ISNA($DJ$4),"",VLOOKUP($DJ$4,'２データ'!$A$4:$KH$5000,'２データ'!FC$2,FALSE)) -> 171 | AY99: =IF(ISNA($DJ$4),"",VLOOKUP($DJ$4,'２データ'!$A$4:$KH$5000,'２データ'!FD$2,FALSE)) -> 23
C100: 金額 (千万円) | H100: 平成27年 | O100: =IF(ISNA($DJ$4),"",IF(VLOOKUP($DJ$4,'27データ'!$A$4:$KH$5000,'27データ'!FE$2,FALSE)="@","@",IF(VLOOKUP($DJ$4,'27データ'!$A$4:$KH$5000,'27データ'!FE$2,FALSE)="x","x",IF(VLOOKUP($DJ$4,'27データ'!$A$4:$KH$5000,'27データ'!FE$2,FALSE)="-","-",VLOOKUP($DJ$4,'27データ'!$A$4:$KH$5000,'27データ'!FE$2,FALSE)/1000)))) -> 7,440 | U100: =IF(ISNA($DJ$4),"",IF(VLOOKUP($DJ$4,'27データ'!$A$4:$KH$5000,'27データ'!FF$2,FALSE)="@","@",IF(VLOOKUP($DJ$4,'27データ'!$A$4:$KH$5000,'27データ'!FF$2,FALSE)="x","x",IF(VLOOKUP($DJ$4,'27データ'!$A$4:$KH$5000,'27データ'!FF$2,FALSE)="-","-",VLOOKUP($DJ$4,'27データ'!$A$4:$KH$5000,'27データ'!FF$2,FALSE)/1000)))) -> 365 | AA100: =IF(ISNA($DJ$4),"",IF(VLOOKUP($DJ$4,'27データ'!$A$4:$KH$5000,'27データ'!FG$2,FALSE)="@","@",IF(VLOOKUP($DJ$4,'27データ'!$A$4:$KH$5000,'27データ'!FG$2,FALSE)="x","x",IF(VLOOKUP($DJ$4,'27データ'!$A$4:$KH$5000,'27データ'!FG$2,FALSE)="-","-",VLOOKUP($DJ$4,'27データ'!$A$4:$KH$5000,'27データ'!FG$2,FALSE)/1000)))) -> 979 | AG100: =IF(ISNA($DJ$4),"",IF(VLOOKUP($DJ$4,'27データ'!$A$4:$KH$5000,'27データ'!FH$2,FALSE)="@","@",IF(VLOOKUP($DJ$4,'27データ'!$A$4:$KH$5000,'27データ'!FH$2,FALSE)="x","x",IF(VLOOKUP($DJ$4,'27データ'!$A$4:$KH$5000,'27データ'!FH$2,FALSE)="-","-",VLOOKUP($DJ$4,'27データ'!$A$4:$KH$5000,'27データ'!FH$2,FALSE)/1000)))) -> 2,868 | AM100: =IF(ISNA($DJ$4),"",IF(VLOOKUP($DJ$4,'27データ'!$A$4:$KH$5000,'27データ'!FI$2,FALSE)="@","@",IF(VLOOKUP($DJ$4,'27データ'!$A$4:$KH$5000,'27データ'!FI$2,FALSE)="x","x",IF(VLOOKUP($DJ$4,'27データ'!$A$4:$KH$5000,'27データ'!FI$2,FALSE)="-","-",VLOOKUP($DJ$4,'27データ'!$A$4:$KH$5000,'27データ'!FI$2,FALSE)/1000)))) -> 2,192 | AS100: =IF(ISNA($DJ$4),"",IF(VLOOKUP($DJ$4,'27データ'!$A$4:$KH$5000,'27データ'!FJ$2,FALSE)="@","@",IF(VLOOKUP($DJ$4,'27データ'!$A$4:$KH$5000,'27データ'!FJ$2,FALSE)="x","x",IF(VLOOKUP($DJ$4,'27データ'!$A$4:$KH$5000,'27データ'!FJ$2,FALSE)="-","-",VLOOKUP($DJ$4,'27データ'!$A$4:$KH$5000,'27データ'!FJ$2,FALSE)/1000)))) -> 477 | AY100: =IF(ISNA($DJ$4),"",IF(VLOOKUP($DJ$4,'27データ'!$A$4:$KH$5000,'27データ'!FK$2,FALSE)="@","@",IF(VLOOKUP($DJ$4,'27データ'!$A$4:$KH$5000,'27データ'!FK$2,FALSE)="x","x",IF(VLOOKUP($DJ$4,'27データ'!$A$4:$KH$5000,'27データ'!FK$2,FALSE)="-","-",VLOOKUP($DJ$4,'27データ'!$A$4:$KH$5000,'27データ'!FK$2,FALSE)/1000)))) -> 560 | DJ100: 区分 | DK100: １億円以上 | DL100: 3,000～１億円 | DM100: 1,000～3,000 | DN100: 300～1,000 | DO100: 100～300 | DP100: 100万円未満
H101: 令和２年 | O101: =IF(ISNA($DJ$4),"",IF(VLOOKUP($DJ$4,'２データ'!$A$4:$KH$5000,'２データ'!FE$2,FALSE)="@","@",IF(VLOOKUP($DJ$4,'２データ'!$A$4:$KH$5000,'２データ'!FE$2,FALSE)="x","x",IF(VLOOKUP($DJ$4,'２データ'!$A$4:$KH$5000,'２データ'!FE$2,FALSE)="-","-",VLOOKUP($DJ$4,'２データ'!$A$4:$KH$5000,'２データ'!FE$2,FALSE)/1000)))) -> 8,935 | U101: =IF(ISNA($DJ$4),"",IF(VLOOKUP($DJ$4,'２データ'!$A$4:$KH$5000,'２データ'!FF$2,FALSE)="@","@",IF(VLOOKUP($DJ$4,'２データ'!$A$4:$KH$5000,'２データ'!FF$2,FALSE)="x","x",IF(VLOOKUP($DJ$4,'２データ'!$A$4:$KH$5000,'２データ'!FF$2,FALSE)="-","-",VLOOKUP($DJ$4,'２データ'!$A$4:$KH$5000,'２データ'!FF$2,FALSE)/1000)))) -> 294 | AA101: =IF(ISNA($DJ$4),"",IF(VLOOKUP($DJ$4,'２データ'!$A$4:$KH$5000,'２データ'!FG$2,FALSE)="@","@",IF(VLOOKUP($DJ$4,'２データ'!$A$4:$KH$5000,'２データ'!FG$2,FALSE)="x","x",IF(VLOOKUP($DJ$4,'２データ'!$A$4:$KH$5000,'２データ'!FG$2,FALSE)="-","-",VLOOKUP($DJ$4,'２データ'!$A$4:$KH$5000,'２データ'!FG$2,FALSE)/1000)))) -> 827 | AG101: =IF(ISNA($DJ$4),"",IF(VLOOKUP($DJ$4,'２データ'!$A$4:$KH$5000,'２データ'!FH$2,FALSE)="@","@",IF(VLOOKUP($DJ$4,'２データ'!$A$4:$KH$5000,'２データ'!FH$2,FALSE)="x","x",IF(VLOOKUP($DJ$4,'２データ'!$A$4:$KH$5000,'２データ'!FH$2,FALSE)="-","-",VLOOKUP($DJ$4,'２データ'!$A$4:$KH$5000,'２データ'!FH$2,FALSE)/1000)))) -> 2,720 | AM101: =IF(ISNA($DJ$4),"",IF(VLOOKUP($DJ$4,'２データ'!$A$4:$KH$5000,'２データ'!FI$2,FALSE)="@","@",IF(VLOOKUP($DJ$4,'２データ'!$A$4:$KH$5000,'２データ'!FI$2,FALSE)="x","x",IF(VLOOKUP($DJ$4,'２データ'!$A$4:$KH$5000,'２データ'!FI$2,FALSE)="-","-",VLOOKUP($DJ$4,'２データ'!$A$4:$KH$5000,'２データ'!FI$2,FALSE)/1000)))) -> 3,474 | AS101: =IF(ISNA($DJ$4),"",IF(VLOOKUP($DJ$4,'２データ'!$A$4:$KH$5000,'２データ'!FJ$2,FALSE)="@","@",IF(VLOOKUP($DJ$4,'２データ'!$A$4:$KH$5000,'２データ'!FJ$2,FALSE)="x","x",IF(VLOOKUP($DJ$4,'２データ'!$A$4:$KH$5000,'２データ'!FJ$2,FALSE)="-","-",VLOOKUP($DJ$4,'２データ'!$A$4:$KH$5000,'２データ'!FJ$2,FALSE)/1000)))) -> 821 | AY101: =IF(ISNA($DJ$4),"",IF(VLOOKUP($DJ$4,'２データ'!$A$4:$KH$5000,'２データ'!FK$2,FALSE)="@","@",IF(VLOOKUP($DJ$4,'２データ'!$A$4:$KH$5000,'２データ'!FK$2,FALSE)="x","x",IF(VLOOKUP($DJ$4,'２データ'!$A$4:$KH$5000,'２データ'!FK$2,FALSE)="-","-",VLOOKUP($DJ$4,'２データ'!$A$4:$KH$5000,'２データ'!FK$2,FALSE)/1000)))) -> 800 | DJ101: =$DJ$39 -> 選択地域 | DK101: =IF($BW$12="前回との比較",AY102,AY103) -> 9 | DL101: =IF($BW$12="前回との比較",AS102,AS103) -> 9 | DM101: =IF($BW$12="前回との比較",AM102,AM103) -> 39 | DN101: =IF($BW$12="前回との比較",AG102,AG103) -> 30 | DO101: =IF($BW$12="前回との比較",AA102,AA103) -> 9 | DP101: =IF($BW$12="前回との比較",U102,U103) -> 3 | DQ101: 100 | DS101: =IF(ISNA($DJ$4),"",IF(SUM(DK101:DP101)=100,"","表示できません")) -> 
C102: 金額 構成比 (％) | H102: 平成27年 | O102: =IF(ISNA($DJ$4),"",IF(O100="@","nc",IF(O100="x","x",IF($O100="-","nc",O100/$O100*100)))) -> 100 | U102: =IF(ISNA($DJ$4),"",IF(U100="@","nc",IF(U100="x","x",IF($O100="-","nc",IF(U100="-","-",U100/$O100*100))))) -> 5 | AA102: =IF(ISNA($DJ$4),"",IF(AA100="@","nc",IF(AA100="x","x",IF($O100="-","nc",IF(AA100="-","-",AA100/$O100*100))))) -> 13 | AG102: =IF(ISNA($DJ$4),"",IF(AG100="@","nc",IF(AG100="x","x",IF($O100="-","nc",IF(AG100="-","-",AG100/$O100*100))))) -> 39 | AM102: =IF(ISNA($DJ$4),"",IF(AM100="@","nc",IF(AM100="x","x",IF($O100="-","nc",IF(AM100="-","-",AM100/$O100*100))))) -> 29 | AS102: =IF(ISNA($DJ$4),"",IF(AS100="@","nc",IF(AS100="x","x",IF($O100="-","nc",IF(AS100="-","-",AS100/$O100*100))))) -> 6 | AY102: =IF(ISNA($DJ$4),"",IF(AY100="@","nc",IF(AY100="x","x",IF($O100="-","nc",IF(AY100="-","-",AY100/$O100*100))))) -> 8 | DJ102: 区分 | DK102: 100万円未満 | DL102: 100～300 | DM102: 300～1,000 | DN102: 1,000～3,000 | DO102: 3,000～１億円 | DP102: １億円以上
H103: 令和２年 | O103: =IF(ISNA($DJ$4),"",IF(O101="x","x",IF($O101="-","nc",O101/$O101*100))) -> 100 | U103: =IF(ISNA($DJ$4),"",IF(U101="x","x",IF($O101="-","nc",IF(U101="-","-",U101/$O101*100)))) -> 3 | AA103: =IF(ISNA($DJ$4),"",IF(AA101="x","x",IF($O101="-","nc",IF(AA101="-","-",AA101/$O101*100)))) -> 9 | AG103: =IF(ISNA($DJ$4),"",IF(AG101="x","x",IF($O101="-","nc",IF(AG101="-","-",AG101/$O101*100)))) -> 30 | AM103: =IF(ISNA($DJ$4),"",IF(AM101="x","x",IF($O101="-","nc",IF(AM101="-","-",AM101/$O101*100)))) -> 39 | AS103: =IF(ISNA($DJ$4),"",IF(AS101="x","x",IF($O101="-","nc",IF(AS101="-","-",AS101/$O101*100)))) -> 9 | AY103: =IF(ISNA($DJ$4),"",IF(AY101="x","x",IF($O101="-","nc",IF(AY101="-","-",AY101/$O101*100)))) -> 9 | DJ103: =$DJ$38 -> 府県平均 | DK103: =IF($BW$12="前回との比較",U103,U104) -> 3 | DL103: =IF($BW$12="前回との比較",AA103,AA104) -> 9 | DM103: =IF($BW$12="前回との比較",AG103,AG104) -> 30 | DN103: =IF($BW$12="前回との比較",AM103,AM104) -> 39 | DO103: =IF($BW$12="前回との比較",AS103,AS104) -> 9 | DP103: =IF($BW$12="前回との比較",AY103,AY104) -> 9 | DQ103: 100 | DS103: =IF(ISNA($DJ$4),"",IF(SUM(DK103:DP103)=100,"","表示できません")) -> 
H104: =IF($BW$12="都府県との比較","都府県平均",IF($BW$12="全国との比較","全国平均","府県平均")) -> 府県平均 | O104: =IF(ISNA($DJ$4),"",IF(VLOOKUP($DJ$32,'２データ'!$A$4:$KH$5000,'２データ'!FE$2,FALSE)="x","x",IF(VLOOKUP($DJ$32,'２データ'!$A$4:$KH$5000,'２データ'!FE$2,FALSE)="-","nc",VLOOKUP($DJ$32,'２データ'!$A$4:$KH$5000,'２データ'!FE$2,FALSE)/VLOOKUP($DJ$32,'２データ'!$A$4:$KH$5000,'２データ'!FE$2,FALSE)*100))) -> 100 | U104: =IF(ISNA($DJ$4),"",IF(VLOOKUP($DJ$32,'２データ'!$A$4:$KH$5000,'２データ'!FF$2,FALSE)="x","x",IF(VLOOKUP($DJ$32,'２データ'!$A$4:$KH$5000,'２データ'!FE$2,FALSE)="-","nc",IF(VLOOKUP($DJ$32,'２データ'!$A$4:$KH$5000,'２データ'!FF$2,FALSE)="-","-",VLOOKUP($DJ$32,'２データ'!$A$4:$KH$5000,'２データ'!FF$2,FALSE)/VLOOKUP($DJ$32,'２データ'!$A$4:$KH$5000,'２データ'!FE$2,FALSE)*100)))) -> 3 | AA104: =IF(ISNA($DJ$4),"",IF(VLOOKUP($DJ$32,'２データ'!$A$4:$KH$5000,162,FALSE)="x","x",IF(VLOOKUP($DJ$32,'２データ'!$A$4:$KH$5000,'２データ'!FE$2,FALSE)="-","nc",IF(VLOOKUP($DJ$32,'２データ'!$A$4:$KH$5000,'２データ'!FG$2,FALSE)="-","-",VLOOKUP($DJ$32,'２データ'!$A$4:$KH$5000,'２データ'!FG$2,FALSE)/VLOOKUP($DJ$32,'２データ'!$A$4:$KH$5000,'２データ'!FE$2,FALSE)*100)))) -> 9 | AG104: =IF(ISNA($DJ$4),"",IF(VLOOKUP($DJ$32,'２データ'!$A$4:$KH$5000,'２データ'!FH$2,FALSE)="x","x",IF(VLOOKUP($DJ$32,'２データ'!$A$4:$KH$5000,'２データ'!FE$2,FALSE)="-","nc",IF(VLOOKUP($DJ$32,'２データ'!$A$4:$KH$5000,'２データ'!FH$2,FALSE)="-","-",VLOOKUP($DJ$32,'２データ'!$A$4:$KH$5000,'２データ'!FH$2,FALSE)/VLOOKUP($DJ$32,'２データ'!$A$4:$KH$5000,'２データ'!FE$2,FALSE)*100)))) -> 30 | AM104: =IF(ISNA($DJ$4),"",IF(VLOOKUP($DJ$32,'２データ'!$A$4:$KH$5000,'２データ'!FI$2,FALSE)="x","x",IF(VLOOKUP($DJ$32,'２データ'!$A$4:$KH$5000,'２データ'!FE$2,FALSE)="-","nc",IF(VLOOKUP($DJ$32,'２データ'!$A$4:$KH$5000,'２データ'!FI$2,FALSE)="-","-",VLOOKUP($DJ$32,'２データ'!$A$4:$KH$5000,'２データ'!FI$2,FALSE)/VLOOKUP($DJ$32,'２データ'!$A$4:$KH$5000,'２データ'!FE$2,FALSE)*100)))) -> 39 | AS104: =IF(ISNA($DJ$4),"",IF(VLOOKUP($DJ$32,'２データ'!$A$4:$KH$5000,'２データ'!FJ$2,FALSE)="x","x",IF(VLOOKUP($DJ$32,'２データ'!$A$4:$KH$5000,'２データ'!FE$2,FALSE)="-","nc",IF(VLOOKUP($DJ$32,'２データ'!$A$4:$KH$5000,'２データ'!FJ$2,FALSE)="-","-",VLOOKUP($DJ$32,'２データ'!$A$4:$KH$5000,'２データ'!FJ$2,FALSE)/VLOOKUP($DJ$32,'２データ'!$A$4:$KH$5000,'２データ'!FE$2,FALSE)*100)))) -> 9 | AY104: =IF(ISNA($DJ$4),"",IF(VLOOKUP($DJ$32,'２データ'!$A$4:$KH$5000,'２データ'!FK$2,FALSE)="x","x",IF(VLOOKUP($DJ$32,'２データ'!$A$4:$KH$5000,'２データ'!FE$2,FALSE)="-","nc",IF(VLOOKUP($DJ$32,'２データ'!$A$4:$KH$5000,'２データ'!FK$2,FALSE)="-","-",VLOOKUP($DJ$32,'２データ'!$A$4:$KH$5000,'２データ'!FK$2,FALSE)/VLOOKUP($DJ$32,'２データ'!$A$4:$KH$5000,'２データ'!FE$2,FALSE)*100)))) -> 9
C105: 注：金額は、「金額階層区分の中位数×経営体数」で算出した推定値。
B108: ７ 農作業受託
C110: 農作業を受託した経営体の事業部門別経営体数
C111: 区 分 | O111: 経営 体数 | U111: 農作業を受託した経営体 | BE111: 料金収入 100万円 以上 | DJ111: 区分 | DK111: 受託した割合
U112: 実経営 体数 | DJ112: =$DJ$39 -> 選択地域 | DK112: =IF($BW$12="前回との比較",U116,U117) -> 3 | DM112: =IF(OR(DK112="x",DK112="nc"),"表示できません","") -> 
AA113: 水稲作 | AG113: 麦作 | AM113: 大豆作 | AS113: 野菜作 | AY113: 果樹作 | DJ113: =$DJ$38 -> 府県平均 | DK113: =IF($BW$12="前回との比較",U117,U118) -> 3 | DM113: =IF(OR(DK113="x",DK113="nc"),"表示できません","") -> 
C114: 経営 体数 | H114: 平成27年 | O114: =IF(ISNA($DJ$4),"",VLOOKUP($DJ$4,'27データ'!$A$4:$KH$5000,'27データ'!FL$2,FALSE)) -> 21,496 | U114: =IF(ISNA($DJ$4),"",VLOOKUP($DJ$4,'27データ'!$A$4:$KH$5000,'27データ'!FM$2,FALSE)) -> 581 | AA114: =IF(ISNA($DJ$4),"",VLOOKUP($DJ$4,'27データ'!$A$4:$KH$5000,'27データ'!FN$2,FALSE)) -> 393 | AG114: =IF(ISNA($DJ$4),"",VLOOKUP($DJ$4,'27データ'!$A$4:$KH$5000,'27データ'!FO$2,FALSE)) -> - | AM114: =IF(ISNA($DJ$4),"",VLOOKUP($DJ$4,'27データ'!$A$4:$KH$5000,'27データ'!FP$2,FALSE)) -> 2 | AS114: =IF(ISNA($DJ$4),"",VLOOKUP($DJ$4,'27データ'!$A$4:$KH$5000,'27データ'!FQ$2,FALSE)) -> 25 | AY114: =IF(ISNA($DJ$4),"",VLOOKUP($DJ$4,'27データ'!$A$4:$KH$5000,'27データ'!FR$2,FALSE)) -> 174 | BE114: =IF(ISNA($DJ$4),"",VLOOKUP($DJ$4,'27データ'!$A$4:$KH$5000,'27データ'!FS$2,FALSE)) -> 99 | DK114: 5
H115: 令和２年 | O115: =IF(ISNA($DJ$4),"",VLOOKUP($DJ$4,'２データ'!$A$4:$KH$5000,'２データ'!FL$2,FALSE)) -> 18,141 | U115: =IF(ISNA($DJ$4),"",VLOOKUP($DJ$4,'２データ'!$A$4:$KH$5000,'２データ'!FM$2,FALSE)) -> 468 | AA115: =IF(ISNA($DJ$4),"",VLOOKUP($DJ$4,'２データ'!$A$4:$KH$5000,'２データ'!FN$2,FALSE)) -> 295 | AG115: =IF(ISNA($DJ$4),"",VLOOKUP($DJ$4,'２データ'!$A$4:$KH$5000,'２データ'!FO$2,FALSE)) -> - | AM115: =IF(ISNA($DJ$4),"",VLOOKUP($DJ$4,'２データ'!$A$4:$KH$5000,'２データ'!FP$2,FALSE)) -> 2 | AS115: =IF(ISNA($DJ$4),"",VLOOKUP($DJ$4,'２データ'!$A$4:$KH$5000,'２データ'!FQ$2,FALSE)) -> 26 | AY115: =IF(ISNA($DJ$4),"",VLOOKUP($DJ$4,'２データ'!$A$4:$KH$5000,'２データ'!FR$2,FALSE)) -> 162 | BE115: =IF(ISNA($DJ$4),"",VLOOKUP($DJ$4,'２データ'!$A$4:$KH$5000,'２データ'!FS$2,FALSE)) -> 77
C116: 構成比 (％) | H116: 平成27年 | O116: =IF(ISNA($DJ$4),"",IF(O114="@","nc",IF(O114="x","x",IF($O114="-","nc",O114/$O114*100)))) -> 100 | U116: =IF(ISNA($DJ$4),"",IF(U114="@","nc",IF(U114="x","x",IF($O114="-","nc",IF(U114="-","-",U114/$O114*100))))) -> 3 | AA116: =IF(ISNA($DJ$4),"",IF(AA114="@","nc",IF(AA114="x","x",IF($O114="-","nc",IF(AA114="-","-",AA114/$O114*100))))) -> 2 | AG116: =IF(ISNA($DJ$4),"",IF(AG114="@","nc",IF(AG114="x","x",IF($O114="-","nc",IF(AG114="-","-",AG114/$O114*100))))) -> - | AM116: =IF(ISNA($DJ$4),"",IF(AM114="@","nc",IF(AM114="x","x",IF($O114="-","nc",IF(AM114="-","-",AM114/$O114*100))))) -> 0 | AS116: =IF(ISNA($DJ$4),"",IF(AS114="@","nc",IF(AS114="x","x",IF($O114="-","nc",IF(AS114="-","-",AS114/$O114*100))))) -> 0 | AY116: =IF(ISNA($DJ$4),"",IF(AY114="@","nc",IF(AY114="x","x",IF($O114="-","nc",IF(AY114="-","-",AY114/$O114*100))))) -> 1 | BE116: =IF(ISNA($DJ$4),"",IF(BE114="@","nc",IF(BE114="x","x",IF($U114="-","nc",IF(BE114="-","-",BE114/$U114*100))))) -> 17
H117: 令和２年 | O117: =IF(ISNA($DJ$4),"",IF(O115="x","x",IF($O115="-","nc",O115/$O115*100))) -> 100 | U117: =IF(ISNA($DJ$4),"",IF(U115="x","x",IF($O115="-","nc",IF(U115="-","-",U115/$O115*100)))) -> 3 | AA117: =IF(ISNA($DJ$4),"",IF(AA115="x","x",IF($O115="-","nc",IF(AA115="-","-",AA115/$O115*100)))) -> 2 | AG117: =IF(ISNA($DJ$4),"",IF(AG115="x","x",IF($O115="-","nc",IF(AG115="-","-",AG115/$O115*100)))) -> - | AM117: =IF(ISNA($DJ$4),"",IF(AM115="x","x",IF($O115="-","nc",IF(AM115="-","-",AM115/$O115*100)))) -> 0 | AS117: =IF(ISNA($DJ$4),"",IF(AS115="x","x",IF($O115="-","nc",IF(AS115="-","-",AS115/$O115*100)))) -> 0 | AY117: =IF(ISNA($DJ$4),"",IF(AY115="x","x",IF($O115="-","nc",IF(AY115="-","-",AY115/$O115*100)))) -> 1 | BE117: =IF(ISNA($DJ$4),"",IF(BE115="@","nc",IF(BE115="x","x",IF($U115="-","nc",IF(BE115="-","-",BE115/$U115*100))))) -> 16
H118: =IF($BW$12="都府県との比較","都府県平均",IF($BW$12="全国との比較","全国平均","府県平均")) -> 府県平均 | O118: =IF(ISNA($DJ$4),"",IF(VLOOKUP($DJ$32,'２データ'!$A$4:$KH$5000,'２データ'!FL$2,FALSE)="x","x",IF(VLOOKUP($DJ$32,'２データ'!$A$4:$KH$5000,'２データ'!FL$2,FALSE)="-","nc",VLOOKUP($DJ$32,'２データ'!$A$4:$KH$5000,'２データ'!FL$2,FALSE)/VLOOKUP($DJ$32,'２データ'!$A$4:$KH$5000,'２データ'!FL$2,FALSE)*100))) -> 100 | U118: =IF(ISNA($DJ$4),"",IF(VLOOKUP($DJ$32,'２データ'!$A$4:$KH$5000,'２データ'!FM$2,FALSE)="x","x",IF(VLOOKUP($DJ$32,'２データ'!$A$4:$KH$5000,'２データ'!FL$2,FALSE)="-","nc",IF(VLOOKUP($DJ$32,'２データ'!$A$4:$KH$5000,'２データ'!FM$2,FALSE)="-","-",VLOOKUP($DJ$32,'２データ'!$A$4:$KH$5000,'２データ'!FM$2,FALSE)/VLOOKUP($DJ$32,'２データ'!$A$4:$KH$5000,'２データ'!FL$2,FALSE)*100)))) -> 3 | AA118: =IF(ISNA($DJ$4),"",IF(VLOOKUP($DJ$32,'２データ'!$A$4:$KH$5000,'２データ'!FN$2,FALSE)="x","x",IF(VLOOKUP($DJ$32,'２データ'!$A$4:$KH$5000,'２データ'!FL$2,FALSE)="-","nc",IF(VLOOKUP($DJ$32,'２データ'!$A$4:$KH$5000,'２データ'!FN$2,FALSE)="-","-",VLOOKUP($DJ$32,'２データ'!$A$4:$KH$5000,'２データ'!FN$2,FALSE)/VLOOKUP($DJ$32,'２データ'!$A$4:$KH$5000,'２データ'!FL$2,FALSE)*100)))) -> 2 | AG118: =IF(ISNA($DJ$4),"",IF(VLOOKUP($DJ$32,'２データ'!$A$4:$KH$5000,'２データ'!FO$2,FALSE)="x","x",IF(VLOOKUP($DJ$32,'２データ'!$A$4:$KH$5000,'２データ'!FL$2,FALSE)="-","nc",IF(VLOOKUP($DJ$32,'２データ'!$A$4:$KH$5000,'２データ'!FO$2,FALSE)="-","-",VLOOKUP($DJ$32,'２データ'!$A$4:$KH$5000,'２データ'!FO$2,FALSE)/VLOOKUP($DJ$32,'２データ'!$A$4:$KH$5000,'２データ'!FL$2,FALSE)*100)))) -> - | AM118: =IF(ISNA($DJ$4),"",IF(VLOOKUP($DJ$32,'２データ'!$A$4:$KH$5000,'２データ'!FP$2,FALSE)="x","x",IF(VLOOKUP($DJ$32,'２データ'!$A$4:$KH$5000,'２データ'!FL$2,FALSE)="-","nc",IF(VLOOKUP($DJ$32,'２データ'!$A$4:$KH$5000,'２データ'!FP$2,FALSE)="-","-",VLOOKUP($DJ$32,'２データ'!$A$4:$KH$5000,'２データ'!FP$2,FALSE)/VLOOKUP($DJ$32,'２データ'!$A$4:$KH$5000,'２データ'!FL$2,FALSE)*100)))) -> 0 | AS118: =IF(ISNA($DJ$4),"",IF(VLOOKUP($DJ$32,'２データ'!$A$4:$KH$5000,'２データ'!FQ$2,FALSE)="x","x",IF(VLOOKUP($DJ$32,'２データ'!$A$4:$KH$5000,'２データ'!FL$2,FALSE)="-","nc",IF(VLOOKUP($DJ$32,'２データ'!$A$4:$KH$5000,'２データ'!FQ$2,FALSE)="-","-",VLOOKUP($DJ$32,'２データ'!$A$4:$KH$5000,'２データ'!FQ$2,FALSE)/VLOOKUP($DJ$32,'２データ'!$A$4:$KH$5000,'２データ'!FL$2,FALSE)*100)))) -> 0 | AY118: =IF(ISNA($DJ$4),"",IF(VLOOKUP($DJ$32,'２データ'!$A$4:$KH$5000,'２データ'!FR$2,FALSE)="x","x",IF(VLOOKUP($DJ$32,'２データ'!$A$4:$KH$5000,'２データ'!FL$2,FALSE)="-","nc",IF(VLOOKUP($DJ$32,'２データ'!$A$4:$KH$5000,'２データ'!FR$2,FALSE)="-","-",VLOOKUP($DJ$32,'２データ'!$A$4:$KH$5000,'２データ'!FR$2,FALSE)/VLOOKUP($DJ$32,'２データ'!$A$4:$KH$5000,'２データ'!FL$2,FALSE)*100)))) -> 1 | BE118: =IF(ISNA($DJ$4),"",IF(VLOOKUP($DJ$32,'２データ'!$A$4:$KH$5000,'２データ'!FS$2,FALSE)="x","x",IF(VLOOKUP($DJ$32,'２データ'!$A$4:$KH$5000,'２データ'!FM$2,FALSE)="-","nc",IF(VLOOKUP($DJ$32,'２データ'!$A$4:$KH$5000,'２データ'!FS$2,FALSE)="-","-",VLOOKUP($DJ$32,'２データ'!$A$4:$KH$5000,'２データ'!FS$2,FALSE)/VLOOKUP($DJ$32,'２データ'!$A$4:$KH$5000,'２データ'!FM$2,FALSE)*100)))) -> 16
C119: 注：受託収入100万円以上の構成比は、受託した経営体数に占める割合。
B123: ８ 農業生産関連事業
C125: 農業生産関連事業を行っている経営体の事業種類別経営体数
C126: 区 分 | O126: 経営 体数 | U126: 農業生産関連事業を行っている経営体 | BE126: 事業収入 100万円 以上
U127: 実経営 体数
AA128: 小売業 | AG128: 農産物 の加工 | AM128: 観光 農園 | AS128: 貸･体験農園等 | AY128: 再生可能エネルギー発電 | DJ128: 区分 | DK128: 事業を行っている割合
DJ129: =$DJ$39 -> 選択地域 | DK129: =IF($BW$12="前回との比較",U132,U133) -> 11 | DM129: =IF(OR(DK129="x",DK129="nc"),"表示できません","") -> 
C130: 経営 体数 | H130: 平成27年 | O130: =IF(ISNA($DJ$4),"",VLOOKUP($DJ$4,'27データ'!$A$4:$KH$5000,'27データ'!FT$2,FALSE)) -> 21,496 | U130: =IF(ISNA($DJ$4),"",VLOOKUP($DJ$4,'27データ'!$A$4:$KH$5000,'27データ'!FU$2,FALSE)) -> 1,878 | AA130: =IF(ISNA($DJ$4),"",VLOOKUP($DJ$4,'27データ'!$A$4:$KH$5000,'27データ'!FV$2,FALSE)) -> … | AG130: =IF(ISNA($DJ$4),"",VLOOKUP($DJ$4,'27データ'!$A$4:$KH$5000,'27データ'!FW$2,FALSE)) -> 1,763 | AM130: =IF(ISNA($DJ$4),"",VLOOKUP($DJ$4,'27データ'!$A$4:$KH$5000,'27データ'!FX$2,FALSE)) -> 79 | AS130: =IF(ISNA($DJ$4),"",VLOOKUP($DJ$4,'27データ'!$A$4:$KH$5000,'27データ'!FY$2,FALSE)) -> 39 | AY130: =IF(ISNA($DJ$4),"",VLOOKUP($DJ$4,'27データ'!$A$4:$KH$5000,'27データ'!FZ$2,FALSE)) -> … | BE130: =IF(ISNA($DJ$4),"",VLOOKUP($DJ$4,'27データ'!$A$4:$KH$5000,'27データ'!GB$2,FALSE)) -> 1,494 | DJ130: =$DJ$38 -> 府県平均 | DK130: =IF($BW$12="前回との比較",U133,U134) -> 11 | DM130: =IF(OR(DK130="x",DK130="nc"),"表示できません","") -> 
H131: 令和２年 | O131: =IF(ISNA($DJ$4),"",VLOOKUP($DJ$4,'２データ'!$A$4:$KH$5000,'２データ'!FT$2,FALSE)) -> 18,141 | U131: =IF(ISNA($DJ$4),"",VLOOKUP($DJ$4,'２データ'!$A$4:$KH$5000,'２データ'!FU$2,FALSE)) -> 2,043 | AA131: =IF(ISNA($DJ$4),"",VLOOKUP($DJ$4,'２データ'!$A$4:$KH$5000,'２データ'!FV$2,FALSE)) -> 705 | AG131: =IF(ISNA($DJ$4),"",VLOOKUP($DJ$4,'２データ'!$A$4:$KH$5000,'２データ'!FW$2,FALSE)) -> 1,371 | AM131: =IF(ISNA($DJ$4),"",VLOOKUP($DJ$4,'２データ'!$A$4:$KH$5000,'２データ'!FX$2,FALSE)) -> 63 | AS131: =IF(ISNA($DJ$4),"",VLOOKUP($DJ$4,'２データ'!$A$4:$KH$5000,'２データ'!FY$2,FALSE)) -> 16 | AY131: =IF(ISNA($DJ$4),"",VLOOKUP($DJ$4,'２データ'!$A$4:$KH$5000,'２データ'!FZ$2,FALSE)) -> 39 | BE131: =IF(ISNA($DJ$4),"",VLOOKUP($DJ$4,'２データ'!$A$4:$KH$5000,'２データ'!GB$2,FALSE)) -> 1,452 | DK131: 5
C132: 構成比 (％) | H132: 平成27年 | O132: =IF(ISNA($DJ$4),"",IF($O130="@","nc",IF($O130="x","x",IF($O130="-","nc",O130/$O130*100)))) -> 100 | U132: =IF(ISNA($DJ$4),"",IF(U130="@","nc",IF(U130="x","x",IF($O130="-","nc",IF(U130="-","-",U130/$O130*100))))) -> 9 | AA132: =IF(ISNA($DJ$4),"","nc") -> nc | AG132: =IF(ISNA($DJ$4),"",IF(AG130="@","nc",IF(AG130="x","x",IF($O130="-","nc",IF(AG130="-","-",AG130/$O130*100))))) -> 8 | AM132: =IF(ISNA($DJ$4),"",IF(AM130="@","nc",IF(AM130="x","x",IF($O130="-","nc",IF(AM130="-","-",AM130/$O130*100))))) -> 0 | AS132: =IF(ISNA($DJ$4),"",IF(AS130="@","nc",IF(AS130="x","x",IF($O130="-","nc",IF(AS130="-","-",AS130/$O130*100))))) -> 0 | AY132: =IF(ISNA($DJ$4),"","nc") -> nc | BE132: =IF(ISNA($DJ$4),"",IF(BE130="x","x",IF(VLOOKUP($DJ$4,'27データ'!$A$4:$KH$5000,'27データ'!GA$2,FALSE)="-","nc",IF(BE130="-","-",BE130/VLOOKUP($DJ$4,'27データ'!$A$4:$KH$5000,'27データ'!GA$2,FALSE)*100)))) -> 80
H133: 令和２年 | O133: =IF(ISNA($DJ$4),"",IF($O131="x","x",IF($O131="-","nc",O131/$O131*100))) -> 100 | U133: =IF(ISNA($DJ$4),"",IF(U131="x","x",IF($O131="-","nc",IF(U131="-","-",U131/$O131*100)))) -> 11 | AA133: =IF(ISNA($DJ$4),"",IF(AA131="x","x",IF($O131="-","nc",IF(AA131="-","-",AA131/$O131*100)))) -> 4 | AG133: =IF(ISNA($DJ$4),"",IF(AG131="x","x",IF($O131="-","nc",IF(AG131="-","-",AG131/$O131*100)))) -> 8 | AM133: =IF(ISNA($DJ$4),"",IF(AM131="x","x",IF($O131="-","nc",IF(AM131="-","-",AM131/$O131*100)))) -> 0 | AS133: =IF(ISNA($DJ$4),"",IF(AS131="x","x",IF($O131="-","nc",IF(AS131="-","-",AS131/$O131*100)))) -> 0 | AY133: =IF(ISNA($DJ$4),"",IF(AY131="x","x",IF($O131="-","nc",IF(AY131="-","-",AY131/$O131*100)))) -> 0 | BE133: =IF(ISNA($DJ$4),"",IF(BE131="x","x",IF(VLOOKUP($DJ$4,'２データ'!$A$4:$KH$5000,'２データ'!GA$2,FALSE)="-","nc",IF(BE131="-","-",BE131/VLOOKUP($DJ$4,'２データ'!$A$4:$KH$5000,'２データ'!GA$2,FALSE)*100)))) -> 71
H134: =IF($BW$12="都府県との比較","都府県平均",IF($BW$12="全国との比較","全国平均","府県平均")) -> 府県平均 | O134: =IF(ISNA($DJ$4),"",IF(VLOOKUP($DJ$32,'２データ'!$A$4:$KH$5000,'２データ'!FT$2,FALSE)="x","x",IF(VLOOKUP($DJ$32,'２データ'!$A$4:$KH$5000,'２データ'!FT$2,FALSE)="-","nc",VLOOKUP($DJ$32,'２データ'!$A$4:$KH$5000,'２データ'!FT$2,FALSE)/VLOOKUP($DJ$32,'２データ'!$A$4:$KH$5000,'２データ'!FT$2,FALSE)*100))) -> 100 | U134: =IF(ISNA($DJ$4),"",IF(VLOOKUP($DJ$32,'２データ'!$A$4:$KH$5000,'２データ'!FU$2,FALSE)="x","x",IF(VLOOKUP($DJ$32,'２データ'!$A$4:$KH$5000,'２データ'!FT$2,FALSE)="-","nc",IF(VLOOKUP($DJ$32,'２データ'!$A$4:$KH$5000,'２データ'!FU$2,FALSE)="-","-",VLOOKUP($DJ$32,'２データ'!$A$4:$KH$5000,'２データ'!FU$2,FALSE)/VLOOKUP($DJ$32,'２データ'!$A$4:$KH$5000,'２データ'!FT$2,FALSE)*100)))) -> 11 | AA134: =IF(ISNA($DJ$4),"",IF(VLOOKUP($DJ$32,'２データ'!$A$4:$KH$5000,'２データ'!FV$2,FALSE)="x","x",IF(VLOOKUP($DJ$32,'２データ'!$A$4:$KH$5000,'２データ'!FT$2,FALSE)="-","nc",IF(VLOOKUP($DJ$32,'２データ'!$A$4:$KH$5000,'２データ'!FV$2,FALSE)="-","-",VLOOKUP($DJ$32,'２データ'!$A$4:$KH$5000,'２データ'!FV$2,FALSE)/VLOOKUP($DJ$32,'２データ'!$A$4:$KH$5000,'２データ'!FT$2,FALSE)*100)))) -> 4 | AG134: =IF(ISNA($DJ$4),"",IF(VLOOKUP($DJ$32,'２データ'!$A$4:$KH$5000,'２データ'!FW$2,FALSE)="x","x",IF(VLOOKUP($DJ$32,'２データ'!$A$4:$KH$5000,'２データ'!FT$2,FALSE)="-","nc",IF(VLOOKUP($DJ$32,'２データ'!$A$4:$KH$5000,'２データ'!FW$2,FALSE)="-","-",VLOOKUP($DJ$32,'２データ'!$A$4:$KH$5000,'２データ'!FW$2,FALSE)/VLOOKUP($DJ$32,'２データ'!$A$4:$KH$5000,'２データ'!FT$2,FALSE)*100)))) -> 8 | AM134: =IF(ISNA($DJ$4),"",IF(VLOOKUP($DJ$32,'２データ'!$A$4:$KH$5000,'２データ'!FX$2,FALSE)="x","x",IF(VLOOKUP($DJ$32,'２データ'!$A$4:$KH$5000,'２データ'!FT$2,FALSE)="-","nc",IF(VLOOKUP($DJ$32,'２データ'!$A$4:$KH$5000,'２データ'!FX$2,FALSE)="-","-",VLOOKUP($DJ$32,'２データ'!$A$4:$KH$5000,'２データ'!FX$2,FALSE)/VLOOKUP($DJ$32,'２データ'!$A$4:$KH$5000,'２データ'!FT$2,FALSE)*100)))) -> 0 | AS134: =IF(ISNA($DJ$4),"",IF(VLOOKUP($DJ$32,'２データ'!$A$4:$KH$5000,'２データ'!FY$2,FALSE)="x","x",IF(VLOOKUP($DJ$32,'２データ'!$A$4:$KH$5000,'２データ'!FT$2,FALSE)="-","nc",IF(VLOOKUP($DJ$32,'２データ'!$A$4:$KH$5000,'２データ'!FY$2,FALSE)="-","-",VLOOKUP($DJ$32,'２データ'!$A$4:$KH$5000,'２データ'!FY$2,FALSE)/VLOOKUP($DJ$32,'２データ'!$A$4:$KH$5000,'２データ'!FT$2,FALSE)*100)))) -> 0 | AY134: =IF(ISNA($DJ$4),"",IF(VLOOKUP($DJ$32,'２データ'!$A$4:$KH$5000,'２データ'!FZ$2,FALSE)="x","x",IF(VLOOKUP($DJ$32,'２データ'!$A$4:$KH$5000,'２データ'!FT$2,FALSE)="-","nc",IF(VLOOKUP($DJ$32,'２データ'!$A$4:$KH$5000,'２データ'!FZ$2,FALSE)="-","-",VLOOKUP($DJ$32,'２データ'!$A$4:$KH$5000,'２データ'!FZ$2,FALSE)/VLOOKUP($DJ$32,'２データ'!$A$4:$KH$5000,'２データ'!FT$2,FALSE)*100)))) -> 0 | BE134: =IF(ISNA($DJ$4),"",IF(VLOOKUP($DJ$32,'２データ'!$A$4:$KH$5000,'２データ'!GB$2,FALSE)="x","x",IF(VLOOKUP($DJ$32,'２データ'!$A$4:$KH$5000,'２データ'!GA$2,FALSE)="-","nc",IF(VLOOKUP($DJ$32,'２データ'!$A$4:$KH$5000,'２データ'!GB$2,FALSE)="-","-",VLOOKUP($DJ$32,'２データ'!$A$4:$KH$5000,'２データ'!GB$2,FALSE)/VLOOKUP($DJ$32,'２データ'!$A$4:$KH$5000,'２データ'!GA$2,FALSE)*100)))) -> 71
B139: ９ 有機農業（令和２年） | AA139: 10 後継者（令和２年）
C141: 取り組んでいる経営体数等 | AB141: ５年以内の後継者確保状況別経営体数等
C142: 区 分 | O142: 計 | T142: 有機農業に取り組んでいる | AB142: 区 分 | AN142: 計 | AS142: ５年以内に引き継がない | AX142: 引き継ぐ後継者
AX143: いる | BC143: いない
C145: 経営体数 | O145: =IF(ISNA($DJ$4),"",VLOOKUP($DJ$4,'２データ'!$A$4:$KH$5000,'２データ'!GC$2,FALSE)) -> 17,352 | T145: =IF(ISNA($DJ$4),"",VLOOKUP($DJ$4,'２データ'!$A$4:$KH$5000,'２データ'!GD$2,FALSE)) -> 950 | AB145: 経営体数 | AN145: =IF(ISNA($DJ$4),"",VLOOKUP($DJ$4,'２データ'!$A$4:$KH$5000,'２データ'!GG$2,FALSE)) -> 18,141 | AS145: =IF(ISNA($DJ$4),"",VLOOKUP($DJ$4,'２データ'!$A$4:$KH$5000,'２データ'!GH$2,FALSE)) -> 836 | AX145: =IF(ISNA($DJ$4),"",VLOOKUP($DJ$4,'２データ'!$A$4:$KH$5000,'２データ'!GI$2,FALSE)) -> 4,026 | BC145: =IF(ISNA($DJ$4),"",VLOOKUP($DJ$4,'２データ'!$A$4:$KH$5000,'２データ'!GJ$2,FALSE)) -> 13,279
C146: 面積（ha） | O146: =IF(ISNA($DJ$4),"",IF(VLOOKUP($DJ$4,'２データ'!$A$4:$KH$5000,'２データ'!GE$2,FALSE)="@","@",IF(VLOOKUP($DJ$4,'２データ'!$A$4:$KH$5000,'２データ'!GE$2,FALSE)="x","x",IF(VLOOKUP($DJ$4,'２データ'!$A$4:$KH$5000,'２データ'!GE$2,FALSE)="-","-",VLOOKUP($DJ$4,'２データ'!$A$4:$KH$5000,'２データ'!GE$2,FALSE)/100)))) -> 18,029 | T146: =IF(ISNA($DJ$4),"",IF(VLOOKUP($DJ$4,'２データ'!$A$4:$KH$5000,'２データ'!GF$2,FALSE)="@","@",IF(VLOOKUP($DJ$4,'２データ'!$A$4:$KH$5000,'２データ'!GF$2,FALSE)="x","x",IF(VLOOKUP($DJ$4,'２データ'!$A$4:$KH$5000,'２データ'!GF$2,FALSE)="-","-",VLOOKUP($DJ$4,'２データ'!$A$4:$KH$5000,'２データ'!GF$2,FALSE)/100)))) -> 800 | AB146: 面積（ha） | AN146: =IF(ISNA($DJ$4),"",IF(VLOOKUP($DJ$4,'２データ'!$A$4:$KH$5000,'２データ'!GK$2,FALSE)="@","@",IF(VLOOKUP($DJ$4,'２データ'!$A$4:$KH$5000,'２データ'!GK$2,FALSE)="x","x",IF(VLOOKUP($DJ$4,'２データ'!$A$4:$KH$5000,'２データ'!GK$2,FALSE)="-","-",VLOOKUP($DJ$4,'２データ'!$A$4:$KH$5000,'２データ'!GK$2,FALSE)/100)))) -> 19,089 | AS146: =IF(ISNA($DJ$4),"",IF(VLOOKUP($DJ$4,'２データ'!$A$4:$KH$5000,'２データ'!GL$2,FALSE)="@","@",IF(VLOOKUP($DJ$4,'２データ'!$A$4:$KH$5000,'２データ'!GL$2,FALSE)="x","x",IF(VLOOKUP($DJ$4,'２データ'!$A$4:$KH$5000,'２データ'!GL$2,FALSE)="-","-",VLOOKUP($DJ$4,'２データ'!$A$4:$KH$5000,'２データ'!GL$2,FALSE)/100)))) -> 1,121 | AX146: =IF(ISNA($DJ$4),"",IF(VLOOKUP($DJ$4,'２データ'!$A$4:$KH$5000,'２データ'!GM$2,FALSE)="@","@",IF(VLOOKUP($DJ$4,'２データ'!$A$4:$KH$5000,'２データ'!GM$2,FALSE)="x","x",IF(VLOOKUP($DJ$4,'２データ'!$A$4:$KH$5000,'２データ'!GM$2,FALSE)="-","-",VLOOKUP($DJ$4,'２データ'!$A$4:$KH$5000,'２データ'!GM$2,FALSE)/100)))) -> 4,974 | BC146: =IF(ISNA($DJ$4),"",IF(VLOOKUP($DJ$4,'２データ'!$A$4:$KH$5000,'２データ'!GN$2,FALSE)="@","@",IF(VLOOKUP($DJ$4,'２データ'!$A$4:$KH$5000,'２データ'!GN$2,FALSE)="x","x",IF(VLOOKUP($DJ$4,'２データ'!$A$4:$KH$5000,'２データ'!GN$2,FALSE)="-","-",VLOOKUP($DJ$4,'２データ'!$A$4:$KH$5000,'２データ'!GN$2,FALSE)/100)))) -> 12,995 | DJ146: 区分 | DK146: 後継者がいない面積割合
C147: 面積 構成比 (％) | H147: 令和２年 | O147: =IF(ISNA($DJ$4),"",IF($O146="x","x",IF($O146="-","nc",O146/$O146*100))) -> 100 | T147: =IF(ISNA($DJ$4),"",IF(OR($O146="x",T146="x"),"x",IF($O146="-","nc",IF(T146="-","-",T146/$O146*100)))) -> 4 | AB147: 面積 構成比 (％) | AG147: 令和２年 | AN147: =IF(ISNA($DJ$4),"",IF(AN146="x","x",IF($AN146="-","nc",AN146/$AN146*100))) -> 100 | AS147: =IF(ISNA($DJ$4),"",IF(AS146="x","x",IF($AN146="-","nc",IF(AS146="-","-",AS146/$AN146*100)))) -> 6 | AX147: =IF(ISNA($DJ$4),"",IF(AX146="x","x",IF($AN146="-","nc",IF(AX146="-","-",AX146/$AN146*100)))) -> 26 | BC147: =IF(ISNA($DJ$4),"",IF(BC146="x","x",IF($AN146="-","nc",IF(BC146="-","-",BC146/$AN146*100)))) -> 68 | DJ147: =$DJ$39 -> 選択地域 | DK147: =IF($BW$12="前回との比較","…",BC147) -> 68 | DM147: =IF(DK147="…","調査がありません",IF(OR(DK147="x",DK147="nc"),"表示できません","")) -> 
H148: =IF($BW$12="都府県との比較","都府県平均",IF($BW$12="全国との比較","全国平均","府県平均")) -> 府県平均 | O148: =IF(ISNA($DJ$4),"",IF(VLOOKUP($DJ$32,'２データ'!$A$4:$KH$5000,'２データ'!GE$2,FALSE)="x","x",IF(VLOOKUP($DJ$32,'２データ'!$A$4:$KH$5000,'２データ'!GE$2,FALSE)="-","nc",VLOOKUP($DJ$32,'２データ'!$A$4:$KH$5000,'２データ'!GE$2,FALSE)/VLOOKUP($DJ$32,'２データ'!$A$4:$KH$5000,'２データ'!GE$2,FALSE)*100))) -> 100 | T148: =IF(ISNA($DJ$4),"",IF(VLOOKUP($DJ$32,'２データ'!$A$4:$KH$5000,'２データ'!GE$2,FALSE)="x","x",IF(VLOOKUP($DJ$32,'２データ'!$A$4:$KH$5000,'２データ'!GE$2,FALSE)="-","nc",IF(VLOOKUP($DJ$32,'２データ'!$A$4:$KH$5000,'２データ'!GF$2,FALSE)="-","-",VLOOKUP($DJ$32,'２データ'!$A$4:$KH$5000,'２データ'!GF$2,FALSE)/VLOOKUP($DJ$32,'２データ'!$A$4:$KH$5000,'２データ'!GE$2,FALSE)*100)))) -> 4 | AG148: =IF($BW$12="都府県との比較","都府県平均",IF($BW$12="全国との比較","全国平均","府県平均")) -> 府県平均 | AN148: =IF(ISNA($DJ$4),"",IF(VLOOKUP($DJ$32,'２データ'!$A$4:$KH$5000,'２データ'!GK$2,FALSE)="x","x",IF(VLOOKUP($DJ$32,'２データ'!$A$4:$KH$5000,'２データ'!GK$2,FALSE)="-","nc",VLOOKUP($DJ$32,'２データ'!$A$4:$KH$5000,'２データ'!GK$2,FALSE)/VLOOKUP($DJ$32,'２データ'!$A$4:$KH$5000,'２データ'!GK$2,FALSE)*100))) -> 100 | AS148: =IF(ISNA($DJ$4),"",IF(VLOOKUP($DJ$32,'２データ'!$A$4:$KH$5000,'２データ'!GK$2,FALSE)="x","x",IF(VLOOKUP($DJ$32,'２データ'!$A$4:$KH$5000,'２データ'!GK$2,FALSE)="-","nc",IF(VLOOKUP($DJ$32,'２データ'!$A$4:$KH$5000,'２データ'!GL$2,FALSE)="-","-",VLOOKUP($DJ$32,'２データ'!$A$4:$KH$5000,'２データ'!GL$2,FALSE)/VLOOKUP($DJ$32,'２データ'!$A$4:$KH$5000,'２データ'!GK$2,FALSE)*100)))) -> 6 | AX148: =IF(ISNA($DJ$4),"",IF(VLOOKUP($DJ$32,'２データ'!$A$4:$KH$5000,'２データ'!GK$2,FALSE)="x","x",IF(VLOOKUP($DJ$32,'２データ'!$A$4:$KH$5000,'２データ'!GK$2,FALSE)="-","nc",IF(VLOOKUP($DJ$32,'２データ'!$A$4:$KH$5000,'２データ'!GM$2,FALSE)="-","-",VLOOKUP($DJ$32,'２データ'!$A$4:$KH$5000,'２データ'!GM$2,FALSE)/VLOOKUP($DJ$32,'２データ'!$A$4:$KH$5000,'２データ'!GK$2,FALSE)*100)))) -> 26 | BC148: =IF(ISNA($DJ$4),"",IF(VLOOKUP($DJ$32,'２データ'!$A$4:$KH$5000,'２データ'!GK$2,FALSE)="x","x",IF(VLOOKUP($DJ$32,'２データ'!$A$4:$KH$5000,'２データ'!GK$2,FALSE)="-","nc",IF(VLOOKUP($DJ$32,'２データ'!$A$4:$KH$5000,'２データ'!GN$2,FALSE)="-","-",VLOOKUP($DJ$32,'２データ'!$A$4:$KH$5000,'２データ'!GN$2,FALSE)/VLOOKUP($DJ$32,'２データ'!$A$4:$KH$5000,'２データ'!GK$2,FALSE)*100)))) -> 68 | DJ148: =$DJ$38 -> 府県平均 | DK148: =IF($BW$12="前回との比較",BC147,BC148) -> 68 | DM148: =IF(OR(DK148="x",DK148="nc"),"表示できません","") -> 
C149: 注： 販売目的で作物を作付(栽 培)している経営体。 | AB149: 注：面積は、組替集計による。 | DK149: 5
DK151: 計 | DL151: 経営者が男 | DM151: 男女 | DN151: 女性 | DO151: 経営者が女
DJ152: =$H$54 -> 0.0 | DK152: =IF(ISNA($DJ$4),"",VLOOKUP($DJ$51,'２データ'!$A$4:$HI$4627,'２データ'!HY$2,FALSE)) ->  | DL152: =IF(ISNA($DJ$4),"",VLOOKUP($DJ$51,'２データ'!$A$4:$HI$4627,'２データ'!HZ$2,FALSE)) ->  | DM152: =IF(ISNA($DJ$4),"",VLOOKUP($DJ$51,'２データ'!$A$4:$HI$4627,'２データ'!IA$2,FALSE)) ->  | DN152: =IF(ISNA($DJ$4),"",VLOOKUP($DJ$51,'２データ'!$A$4:$HI$4627,'２データ'!IB$2,FALSE)) ->  | DO152: =IF(ISNA($DJ$4),"",VLOOKUP($DJ$51,'２データ'!$A$4:$HI$4627,'２データ'!IC$2,FALSE)) -> 
DJ153: 構成比 | DK153: =IF(ISNA($DJ$4),"",IF(DK152="x","x",IF($DK152="-","nc",DK152/$DK152*100))) ->  | DL153: =IF(ISNA($DJ$4),"",IF(DL152="x","x",IF($DK152="-","nc",IF(DL152="-","-",DL152/$DK152*100)))) ->  | DM153: =IF(ISNA($DJ$4),"",IF(DM152="x","x",IF($DK152="-","nc",IF(DM152="-","-",DM152/$DK152*100)))) ->  | DN153: =IF(ISNA($DJ$4),"",IF(DN152="x","x",IF($DK152="-","nc",IF(DN152="-","-",DN152/$DK152*100)))) ->  | DO153: =IF(ISNA($DJ$4),"",IF(DO152="x","x",IF($DK152="-","nc",IF(DO152="-","-",DO152/$DK152*100)))) -> 
B155: 11 個人経営体数
C157: 主副業別経営体数
C158: 区 分 | O158: 経営 体数 | T158: 主業 経営体 | AD158: 準主業 経営体 | AN158: 副業的 経営体
Y159: 65歳未満専従者がいる | AI159: 65歳未満専従者がいる
C163: 経営 体数 | H163: 平成27年 | O163: =IF(ISNA($DJ$4),"",VLOOKUP($DJ$4,'27データ'!$A$4:$KH$5000,'27データ'!GO$2,FALSE)) -> 21,326 | T163: =IF(ISNA($DJ$4),"",VLOOKUP($DJ$4,'27データ'!$A$4:$KH$5000,'27データ'!GP$2,FALSE)) -> 6,807 | Y163: =IF(ISNA($DJ$4),"",VLOOKUP($DJ$4,'27データ'!$A$4:$KH$5000,'27データ'!GQ$2,FALSE)) -> 6,161 | AD163: =IF(ISNA($DJ$4),"",VLOOKUP($DJ$4,'27データ'!$A$4:$KH$5000,'27データ'!GR$2,FALSE)) -> 3,568 | AI163: =IF(ISNA($DJ$4),"",VLOOKUP($DJ$4,'27データ'!$A$4:$KH$5000,'27データ'!GS$2,FALSE)) -> 1,714 | AN163: =IF(ISNA($DJ$4),"",VLOOKUP($DJ$4,'27データ'!$A$4:$KH$5000,'27データ'!GT$2,FALSE)) -> 10,951 | DJ163: 区分 | DK163: 副業的農家 | DL163: 準主業農家 | DM163: 主業農家
H164: 令和２年 | O164: =IF(ISNA($DJ$4),"",VLOOKUP($DJ$4,'２データ'!$A$4:$KH$5000,'２データ'!GO$2,FALSE)) -> 17,976 | T164: =IF(ISNA($DJ$4),"",VLOOKUP($DJ$4,'２データ'!$A$4:$KH$5000,'２データ'!GP$2,FALSE)) -> 5,732 | Y164: =IF(ISNA($DJ$4),"",VLOOKUP($DJ$4,'２データ'!$A$4:$KH$5000,'２データ'!GQ$2,FALSE)) -> 5,176 | AD164: =IF(ISNA($DJ$4),"",VLOOKUP($DJ$4,'２データ'!$A$4:$KH$5000,'２データ'!GR$2,FALSE)) -> 2,104 | AI164: =IF(ISNA($DJ$4),"",VLOOKUP($DJ$4,'２データ'!$A$4:$KH$5000,'２データ'!GS$2,FALSE)) -> 898 | AN164: =IF(ISNA($DJ$4),"",VLOOKUP($DJ$4,'２データ'!$A$4:$KH$5000,'２データ'!GT$2,FALSE)) -> 10,140 | DJ164: =$DJ$39 -> 選択地域 | DK164: =IF($BW$12="前回との比較",AN165,AN166) -> 56 | DL164: =IF($BW$12="前回との比較",AD165,AD166) -> 12 | DM164: =IF($BW$12="前回との比較",T165,T166) -> 32 | DN164: 100 | DP164: =IF(ISNA($DJ$4),"",IF(SUM(DK164:DM164)=100,"","表示できません")) -> 
C165: 構成比 (％) | H165: 平成27年 | O165: =IF(ISNA($DJ$4),"",IF(O163="@","nc",IF($O163="x","x",IF($O163="-","nc",O163/$O163*100)))) -> 100 | T165: =IF(ISNA($DJ$4),"",IF(T163="@","nc",IF(T163="x","x",IF($O163="-","nc",IF(T163="-","-",T163/$O163*100))))) -> 32 | Y165: =IF(ISNA($DJ$4),"",IF(Y163="@","nc",IF(Y163="x","x",IF($O163="-","nc",IF(Y163="-","-",Y163/$O163*100))))) -> 29 | AD165: =IF(ISNA($DJ$4),"",IF(AD163="@","nc",IF(AD163="x","x",IF($O163="-","nc",IF(AD163="-","-",AD163/$O163*100))))) -> 17 | AI165: =IF(ISNA($DJ$4),"",IF(AI163="@","nc",IF(AI163="x","x",IF($O163="-","nc",IF(AI163="-","-",AI163/$O163*100))))) -> 8 | AN165: =IF(ISNA($DJ$4),"",IF(AN163="@","nc",IF(AN163="x","x",IF($O163="-","nc",IF(AN163="-","-",AN163/$O163*100))))) -> 51 | DJ165: 区分 | DK165: 主業農家 | DL165: 準主業農家 | DM165: 副業的農家
H166: 令和２年 | O166: =IF(ISNA($DJ$4),"",IF($O164="x","x",IF($O164="-","nc",O164/$O164*100))) -> 100 | T166: =IF(ISNA($DJ$4),"",IF(T164="x","x",IF($O164="-","nc",IF(T164="-","-",T164/$O164*100)))) -> 32 | Y166: =IF(ISNA($DJ$4),"",IF(Y164="x","x",IF($O164="-","nc",IF(Y164="-","-",Y164/$O164*100)))) -> 29 | AD166: =IF(ISNA($DJ$4),"",IF(AD164="x","x",IF($O164="-","nc",IF(AD164="-","-",AD164/$O164*100)))) -> 12 | AI166: =IF(ISNA($DJ$4),"",IF(AI164="x","x",IF($O164="-","nc",IF(AI164="-","-",AI164/$O164*100)))) -> 5 | AN166: =IF(ISNA($DJ$4),"",IF(AN164="x","x",IF($O164="-","nc",IF(AN164="-","-",AN164/$O164*100)))) -> 56 | DJ166: =$DJ$38 -> 府県平均 | DK166: =IF($BW$12="前回との比較",T166,T167) -> 32 | DL166: =IF($BW$12="前回との比較",AD166,AD167) -> 12 | DM166: =IF($BW$12="前回との比較",AN166,AN167) -> 56 | DN166: 100 | DP166: =IF(ISNA($DJ$4),"",IF(SUM(DK166:DM166)=100,"","表示できません")) -> 
H167: =IF($BW$12="都府県との比較","都府県平均",IF($BW$12="全国との比較","全国平均","府県平均")) -> 府県平均 | O167: =IF(ISNA($DJ$4),"",IF(VLOOKUP($DJ$32,'２データ'!$A$4:$KH$5000,'２データ'!GO$2,FALSE)="x","x",IF(VLOOKUP($DJ$32,'２データ'!$A$4:$KH$5000,'２データ'!GO$2,FALSE)="-","nc",VLOOKUP($DJ$32,'２データ'!$A$4:$KH$5000,'２データ'!GO$2,FALSE)/VLOOKUP($DJ$32,'２データ'!$A$4:$KH$5000,'２データ'!GO$2,FALSE)*100))) -> 100 | T167: =IF(ISNA($DJ$4),"",IF(VLOOKUP($DJ$32,'２データ'!$A$4:$KH$5000,'２データ'!GP$2,FALSE)="x","x",IF(VLOOKUP($DJ$32,'２データ'!$A$4:$KH$5000,'２データ'!GO$2,FALSE)="-","nc",IF(VLOOKUP($DJ$32,'２データ'!$A$4:$KH$5000,'２データ'!GP$2,FALSE)="-","-",VLOOKUP($DJ$32,'２データ'!$A$4:$KH$5000,'２データ'!GP$2,FALSE)/VLOOKUP($DJ$32,'２データ'!$A$4:$KH$5000,'２データ'!GO$2,FALSE)*100)))) -> 32 | Y167: =IF(ISNA($DJ$4),"",IF(VLOOKUP($DJ$32,'２データ'!$A$4:$KH$5000,'２データ'!GQ$2,FALSE)="x","x",IF(VLOOKUP($DJ$32,'２データ'!$A$4:$KH$5000,'２データ'!GO$2,FALSE)="-","nc",IF(VLOOKUP($DJ$32,'２データ'!$A$4:$KH$5000,'２データ'!GQ$2,FALSE)="-","-",VLOOKUP($DJ$32,'２データ'!$A$4:$KH$5000,'２データ'!GQ$2,FALSE)/VLOOKUP($DJ$32,'２データ'!$A$4:$KH$5000,'２データ'!GO$2,FALSE)*100)))) -> 29 | AD167: =IF(ISNA($DJ$4),"",IF(VLOOKUP($DJ$32,'２データ'!$A$4:$KH$5000,'２データ'!GR$2,FALSE)="x","x",IF(VLOOKUP($DJ$32,'２データ'!$A$4:$KH$5000,'２データ'!GO$2,FALSE)="-","nc",IF(VLOOKUP($DJ$32,'２データ'!$A$4:$KH$5000,'２データ'!GR$2,FALSE)="-","-",VLOOKUP($DJ$32,'２データ'!$A$4:$KH$5000,'２データ'!GR$2,FALSE)/VLOOKUP($DJ$32,'２データ'!$A$4:$KH$5000,'２データ'!GO$2,FALSE)*100)))) -> 12 | AI167: =IF(ISNA($DJ$4),"",IF(VLOOKUP($DJ$32,'２データ'!$A$4:$KH$5000,'２データ'!GS$2,FALSE)="x","x",IF(VLOOKUP($DJ$32,'２データ'!$A$4:$KH$5000,'２データ'!GO$2,FALSE)="-","nc",IF(VLOOKUP($DJ$32,'２データ'!$A$4:$KH$5000,'２データ'!GS$2,FALSE)="-","-",VLOOKUP($DJ$32,'２データ'!$A$4:$KH$5000,'２データ'!GS$2,FALSE)/VLOOKUP($DJ$32,'２データ'!$A$4:$KH$5000,'２データ'!GO$2,FALSE)*100)))) -> 5 | AN167: =IF(ISNA($DJ$4),"",IF(VLOOKUP($DJ$32,'２データ'!$A$4:$KH$5000,'２データ'!GT$2,FALSE)="x","x",IF(VLOOKUP($DJ$32,'２データ'!$A$4:$KH$5000,'２データ'!GO$2,FALSE)="-","nc",IF(VLOOKUP($DJ$32,'２データ'!$A$4:$KH$5000,'２データ'!GT$2,FALSE)="-","-",VLOOKUP($DJ$32,'２データ'!$A$4:$KH$5000,'２データ'!GT$2,FALSE)/VLOOKUP($DJ$32,'２データ'!$A$4:$KH$5000,'２データ'!GO$2,FALSE)*100)))) -> 56
C168: 注：平成27年の数値は、組替集計による。
B171: 12 個人経営体の労働力
C173: 基幹的農業従事者数
C174: 区 分 | O174: 計 | T174: 年齢別 | CG174: 平均 年齢
T175: 15～ 29歳 | Y175: 30～ 34 | AD175: 35～ 39 | AI175: 40～ 44 | AN175: 45～ 49 | AS175: 50～ 54 | AX175: 55～ 59 | BC175: 60～ 64 | BH175: 65～ 69 | BM175: 70～ 74 | BR175: 75～ 79 | BW175: 80 ～84 | CB175: 85歳 以上
C177: =IF(C173="農業就業人口","就業"&CHAR(10)&"人口","従事"&CHAR(10)&"者数") -> 従事 者数 | H177: 平成27年 | O177: =IF(ISNA($DJ$4),"",VLOOKUP($DJ$4,'27データ'!$A$4:$KH$5000,'27データ'!GU$2,FALSE)) -> 33,268 | T177: =IF(ISNA($DJ$4),"",VLOOKUP($DJ$4,'27データ'!$A$4:$KH$5000,'27データ'!GV$2,FALSE)) -> 470 | Y177: =IF(ISNA($DJ$4),"",VLOOKUP($DJ$4,'27データ'!$A$4:$KH$5000,'27データ'!GW$2,FALSE)) -> 502 | AD177: =IF(ISNA($DJ$4),"",VLOOKUP($DJ$4,'27データ'!$A$4:$KH$5000,'27データ'!GX$2,FALSE)) -> 742 | AI177: =IF(ISNA($DJ$4),"",VLOOKUP($DJ$4,'27データ'!$A$4:$KH$5000,'27データ'!GY$2,FALSE)) -> 1,026 | AN177: =IF(ISNA($DJ$4),"",VLOOKUP($DJ$4,'27データ'!$A$4:$KH$5000,'27データ'!GZ$2,FALSE)) -> 1,252 | AS177: =IF(ISNA($DJ$4),"",VLOOKUP($DJ$4,'27データ'!$A$4:$KH$5000,'27データ'!HA$2,FALSE)) -> 2,021 | AX177: =IF(ISNA($DJ$4),"",VLOOKUP($DJ$4,'27データ'!$A$4:$KH$5000,'27データ'!HB$2,FALSE)) -> 2,830 | BC177: =IF(ISNA($DJ$4),"",VLOOKUP($DJ$4,'27データ'!$A$4:$KH$5000,'27データ'!HC$2,FALSE)) -> 4,740 | BH177: =IF(ISNA($DJ$4),"",VLOOKUP($DJ$4,'27データ'!$A$4:$KH$5000,'27データ'!HD$2,FALSE)) -> 5,799 | BM177: =IF(ISNA($DJ$4),"",VLOOKUP($DJ$4,'27データ'!$A$4:$KH$5000,'27データ'!HE$2,FALSE)) -> 4,932 | BR177: =IF(ISNA($DJ$4),"",VLOOKUP($DJ$4,'27データ'!$A$4:$KH$5000,'27データ'!HF$2,FALSE)) -> 4,321 | BW177: =IF(ISNA($DJ$4),"",VLOOKUP($DJ$4,'27データ'!$A$4:$KH$5000,'27データ'!HG$2,FALSE)) -> 3,189 | CB177: =IF(ISNA($DJ$4),"",VLOOKUP($DJ$4,'27データ'!$A$4:$KH$5000,'27データ'!HH$2,FALSE)) -> 1,444 | CG177: =IF(ISNA($DJ$4),"",VLOOKUP($DJ$4,'27データ'!$A$4:$KH$5000,'27データ'!HI$2,FALSE)) -> 65.56
H178: 令和２年 | O178: =IF(ISNA($DJ$4),"",VLOOKUP($DJ$4,'２データ'!$A$4:$KH$5000,'２データ'!GU$2,FALSE)) -> 27,202 | T178: =IF(ISNA($DJ$4),"",VLOOKUP($DJ$4,'２データ'!$A$4:$KH$5000,'２データ'!GV$2,FALSE)) -> 274 | Y178: =IF(ISNA($DJ$4),"",VLOOKUP($DJ$4,'２データ'!$A$4:$KH$5000,'２データ'!GW$2,FALSE)) -> 405 | AD178: =IF(ISNA($DJ$4),"",VLOOKUP($DJ$4,'２データ'!$A$4:$KH$5000,'２データ'!GX$2,FALSE)) -> 628 | AI178: =IF(ISNA($DJ$4),"",VLOOKUP($DJ$4,'２データ'!$A$4:$KH$5000,'２データ'!GY$2,FALSE)) -> 875 | AN178: =IF(ISNA($DJ$4),"",VLOOKUP($DJ$4,'２データ'!$A$4:$KH$5000,'２データ'!GZ$2,FALSE)) -> 1,099 | AS178: =IF(ISNA($DJ$4),"",VLOOKUP($DJ$4,'２データ'!$A$4:$KH$5000,'２データ'!HA$2,FALSE)) -> 1,308 | AX178: =IF(ISNA($DJ$4),"",VLOOKUP($DJ$4,'２データ'!$A$4:$KH$5000,'２データ'!HB$2,FALSE)) -> 2,040 | BC178: =IF(ISNA($DJ$4),"",VLOOKUP($DJ$4,'２データ'!$A$4:$KH$5000,'２データ'!HC$2,FALSE)) -> 3,179 | BH178: =IF(ISNA($DJ$4),"",VLOOKUP($DJ$4,'２データ'!$A$4:$KH$5000,'２データ'!HD$2,FALSE)) -> 4,703 | BM178: =IF(ISNA($DJ$4),"",VLOOKUP($DJ$4,'２データ'!$A$4:$KH$5000,'２データ'!HE$2,FALSE)) -> 5,044 | BR178: =IF(ISNA($DJ$4),"",VLOOKUP($DJ$4,'２データ'!$A$4:$KH$5000,'２データ'!HF$2,FALSE)) -> 3,596 | BW178: =IF(ISNA($DJ$4),"",VLOOKUP($DJ$4,'２データ'!$A$4:$KH$5000,'２データ'!HG$2,FALSE)) -> 2,429 | CB178: =IF(ISNA($DJ$4),"",VLOOKUP($DJ$4,'２データ'!$A$4:$KH$5000,'２データ'!HH$2,FALSE)) -> 1,622 | CG178: =IF(ISNA($DJ$4),"",VLOOKUP($DJ$4,'２データ'!$A$4:$KH$5000,'２データ'!HI$2,FALSE)) -> 66.51
H179: うち女性 | O179: =IF(ISNA($DJ$4),"",VLOOKUP($DJ$4,'２データ'!$A$4:$KH$5000,'２データ'!HJ$2,FALSE)) -> 12,052 | T179: =IF(ISNA($DJ$4),"",VLOOKUP($DJ$4,'２データ'!$A$4:$KH$5000,'２データ'!HK$2,FALSE)) -> 39 | Y179: =IF(ISNA($DJ$4),"",VLOOKUP($DJ$4,'２データ'!$A$4:$KH$5000,'２データ'!HL$2,FALSE)) -> 84 | AD179: =IF(ISNA($DJ$4),"",VLOOKUP($DJ$4,'２データ'!$A$4:$KH$5000,'２データ'!HM$2,FALSE)) -> 168 | AI179: =IF(ISNA($DJ$4),"",VLOOKUP($DJ$4,'２データ'!$A$4:$KH$5000,'２データ'!HN$2,FALSE)) -> 297 | AN179: =IF(ISNA($DJ$4),"",VLOOKUP($DJ$4,'２データ'!$A$4:$KH$5000,'２データ'!HO$2,FALSE)) -> 436 | AS179: =IF(ISNA($DJ$4),"",VLOOKUP($DJ$4,'２データ'!$A$4:$KH$5000,'２データ'!HP$2,FALSE)) -> 621 | AX179: =IF(ISNA($DJ$4),"",VLOOKUP($DJ$4,'２データ'!$A$4:$KH$5000,'２データ'!HQ$2,FALSE)) -> 1,064 | BC179: =IF(ISNA($DJ$4),"",VLOOKUP($DJ$4,'２データ'!$A$4:$KH$5000,'２データ'!HR$2,FALSE)) -> 1,615 | BH179: =IF(ISNA($DJ$4),"",VLOOKUP($DJ$4,'２データ'!$A$4:$KH$5000,'２データ'!HS$2,FALSE)) -> 2,212 | BM179: =IF(ISNA($DJ$4),"",VLOOKUP($DJ$4,'２データ'!$A$4:$KH$5000,'２データ'!HT$2,FALSE)) -> 2,187 | BR179: =IF(ISNA($DJ$4),"",VLOOKUP($DJ$4,'２データ'!$A$4:$KH$5000,'２データ'!HU$2,FALSE)) -> 1,663 | BW179: =IF(ISNA($DJ$4),"",VLOOKUP($DJ$4,'２データ'!$A$4:$KH$5000,'２データ'!HV$2,FALSE)) -> 1,063 | CB179: =IF(ISNA($DJ$4),"",VLOOKUP($DJ$4,'２データ'!$A$4:$KH$5000,'２データ'!HW$2,FALSE)) -> 603 | CG179: =IF(ISNA($DJ$4),"",VLOOKUP($DJ$4,'２データ'!$A$4:$KH$5000,'２データ'!HX$2,FALSE)) -> 67.16
C180: 構成比 (％) | H180: 平成27年 | O180: =IF(ISNA($DJ$4),"",IF(O177="@","nc",IF(O177="x","x",IF($O177="-","nc",O177/$O177*100)))) -> 100 | T180: =IF(ISNA($DJ$4),"",IF(T177="@","nc",IF(T177="x","x",IF($O177="-","nc",IF(T177="-","-",T177/$O177*100))))) -> 1 | Y180: =IF(ISNA($DJ$4),"",IF(Y177="@","nc",IF(Y177="x","x",IF($O177="-","nc",IF(Y177="-","-",Y177/$O177*100))))) -> 2 | AD180: =IF(ISNA($DJ$4),"",IF(AD177="@","nc",IF(AD177="x","x",IF($O177="-","nc",IF(AD177="-","-",AD177/$O177*100))))) -> 2 | AI180: =IF(ISNA($DJ$4),"",IF(AI177="@","nc",IF(AI177="x","x",IF($O177="-","nc",IF(AI177="-","-",AI177/$O177*100))))) -> 3 | AN180: =IF(ISNA($DJ$4),"",IF(AN177="@","nc",IF(AN177="x","x",IF($O177="-","nc",IF(AN177="-","-",AN177/$O177*100))))) -> 4 | AS180: =IF(ISNA($DJ$4),"",IF(AS177="@","nc",IF(AS177="x","x",IF($O177="-","nc",IF(AS177="-","-",AS177/$O177*100))))) -> 6 | AX180: =IF(ISNA($DJ$4),"",IF(AX177="@","nc",IF(AX177="x","x",IF($O177="-","nc",IF(AX177="-","-",AX177/$O177*100))))) -> 9 | BC180: =IF(ISNA($DJ$4),"",IF(BC177="@","nc",IF(BC177="x","x",IF($O177="-","nc",IF(BC177="-","-",BC177/$O177*100))))) -> 14 | BH180: =IF(ISNA($DJ$4),"",IF(BH177="@","nc",IF(BH177="x","x",IF($O177="-","nc",IF(BH177="-","-",BH177/$O177*100))))) -> 17 | BM180: =IF(ISNA($DJ$4),"",IF(BM177="@","nc",IF(BM177="x","x",IF($O177="-","nc",IF(BM177="-","-",BM177/$O177*100))))) -> 15 | BR180: =IF(ISNA($DJ$4),"",IF(BR177="@","nc",IF(BR177="x","x",IF($O177="-","nc",IF(BR177="-","-",BR177/$O177*100))))) -> 13 | BW180: =IF(ISNA($DJ$4),"",IF(BW177="@","nc",IF(BW177="x","x",IF($O177="-","nc",IF(BW177="-","-",BW177/$O177*100))))) -> 10 | CB180: =IF(ISNA($DJ$4),"",IF(CB177="@","nc",IF(CB177="x","x",IF($O177="-","nc",IF(CB177="-","-",CB177/$O177*100))))) -> 4 | CG180: =IF(ISNA($DJ$4),"","-") -> -
H181: 令和２年 | O181: =IF(ISNA($DJ$4),"",IF(O178="x","x",IF($O178="-","nc",O178/$O178*100))) -> 100 | T181: =IF(ISNA($DJ$4),"",IF(T178="x","x",IF($O178="-","nc",IF(T178="-","-",T178/$O178*100)))) -> 1 | Y181: =IF(ISNA($DJ$4),"",IF(Y178="x","x",IF($O178="-","nc",IF(Y178="-","-",Y178/$O178*100)))) -> 1 | AD181: =IF(ISNA($DJ$4),"",IF(AD178="x","x",IF($O178="-","nc",IF(AD178="-","-",AD178/$O178*100)))) -> 2 | AI181: =IF(ISNA($DJ$4),"",IF(AI178="x","x",IF($O178="-","nc",IF(AI178="-","-",AI178/$O178*100)))) -> 3 | AN181: =IF(ISNA($DJ$4),"",IF(AN178="x","x",IF($O178="-","nc",IF(AN178="-","-",AN178/$O178*100)))) -> 4 | AS181: =IF(ISNA($DJ$4),"",IF(AS178="x","x",IF($O178="-","nc",IF(AS178="-","-",AS178/$O178*100)))) -> 5 | AX181: =IF(ISNA($DJ$4),"",IF(AX178="x","x",IF($O178="-","nc",IF(AX178="-","-",AX178/$O178*100)))) -> 7 | BC181: =IF(ISNA($DJ$4),"",IF(BC178="x","x",IF($O178="-","nc",IF(BC178="-","-",BC178/$O178*100)))) -> 12 | BH181: =IF(ISNA($DJ$4),"",IF(BH178="x","x",IF($O178="-","nc",IF(BH178="-","-",BH178/$O178*100)))) -> 17 | BM181: =IF(ISNA($DJ$4),"",IF(BM178="x","x",IF($O178="-","nc",IF(BM178="-","-",BM178/$O178*100)))) -> 19 | BR181: =IF(ISNA($DJ$4),"",IF(BR178="x","x",IF($O178="-","nc",IF(BR178="-","-",BR178/$O178*100)))) -> 13 | BW181: =IF(ISNA($DJ$4),"",IF(BW178="x","x",IF($O178="-","nc",IF(BW178="-","-",BW178/$O178*100)))) -> 9 | CB181: =IF(ISNA($DJ$4),"",IF(CB178="x","x",IF($O178="-","nc",IF(CB178="-","-",CB178/$O178*100)))) -> 6 | CG181: =IF(ISNA($DJ$4),"","-") -> - | DJ181: 区分 | DK181: 15～ 29歳 | DL181: 30～ 34 | DM181: 35～ 39 | DN181: 40～ 44 | DO181: 45～ 49 | DP181: 50～ 54 | DQ181: 55～ 59 | DR181: 60～ 64 | DS181: 65～ 69 | DT181: 70～ 74 | DU181: 75～ 79 | DV181: 80～ 84 | DW181: 85歳 以上
H182: =IF($BW$12="都府県との比較","都府県平均",IF($BW$12="全国との比較","全国平均","府県平均")) -> 府県平均 | O182: =IF(ISNA($DJ$4),"",IF(VLOOKUP($DJ$32,'２データ'!$A$4:$KH$5000,'２データ'!GU$2,FALSE)="x","x",IF(VLOOKUP($DJ$32,'２データ'!$A$4:$KH$5000,'２データ'!GU$2,FALSE)="-","nc",VLOOKUP($DJ$32,'２データ'!$A$4:$KH$5000,'２データ'!GU$2,FALSE)/VLOOKUP($DJ$32,'２データ'!$A$4:$KH$5000,'２データ'!GU$2,FALSE)*100))) -> 100 | T182: =IF(ISNA($DJ$4),"",IF(VLOOKUP($DJ$32,'２データ'!$A$4:$KH$5000,'２データ'!GV$2,FALSE)="x","x",IF(VLOOKUP($DJ$32,'２データ'!$A$4:$KH$5000,'２データ'!GU$2,FALSE)="-","nc",IF(VLOOKUP($DJ$32,'２データ'!$A$4:$KH$5000,'２データ'!GV$2,FALSE)="-","-",VLOOKUP($DJ$32,'２データ'!$A$4:$KH$5000,'２データ'!GV$2,FALSE)/VLOOKUP($DJ$32,'２データ'!$A$4:$KH$5000,'２データ'!GU$2,FALSE)*100)))) -> 1 | Y182: =IF(ISNA($DJ$4),"",IF(VLOOKUP($DJ$32,'２データ'!$A$4:$KH$5000,'２データ'!GW$2,FALSE)="x","x",IF(VLOOKUP($DJ$32,'２データ'!$A$4:$KH$5000,'２データ'!GU$2,FALSE)="-","nc",IF(VLOOKUP($DJ$32,'２データ'!$A$4:$KH$5000,'２データ'!GW$2,FALSE)="-","-",VLOOKUP($DJ$32,'２データ'!$A$4:$KH$5000,'２データ'!GW$2,FALSE)/VLOOKUP($DJ$32,'２データ'!$A$4:$KH$5000,'２データ'!GU$2,FALSE)*100)))) -> 1 | AD182: =IF(ISNA($DJ$4),"",IF(VLOOKUP($DJ$32,'２データ'!$A$4:$KH$5000,'２データ'!GX$2,FALSE)="x","x",IF(VLOOKUP($DJ$32,'２データ'!$A$4:$KH$5000,'２データ'!GU$2,FALSE)="-","nc",IF(VLOOKUP($DJ$32,'２データ'!$A$4:$KH$5000,'２データ'!GX$2,FALSE)="-","-",VLOOKUP($DJ$32,'２データ'!$A$4:$KH$5000,'２データ'!GX$2,FALSE)/VLOOKUP($DJ$32,'２データ'!$A$4:$KH$5000,'２データ'!GU$2,FALSE)*100)))) -> 2 | AI182: =IF(ISNA($DJ$4),"",IF(VLOOKUP($DJ$32,'２データ'!$A$4:$KH$5000,'２データ'!GY$2,FALSE)="x","x",IF(VLOOKUP($DJ$32,'２データ'!$A$4:$KH$5000,'２データ'!GU$2,FALSE)="-","nc",IF(VLOOKUP($DJ$32,'２データ'!$A$4:$KH$5000,'２データ'!GY$2,FALSE)="-","-",VLOOKUP($DJ$32,'２データ'!$A$4:$KH$5000,'２データ'!GY$2,FALSE)/VLOOKUP($DJ$32,'２データ'!$A$4:$KH$5000,'２データ'!GU$2,FALSE)*100)))) -> 3 | AN182: =IF(ISNA($DJ$4),"",IF(VLOOKUP($DJ$32,'２データ'!$A$4:$KH$5000,'２データ'!GZ$2,FALSE)="x","x",IF(VLOOKUP($DJ$32,'２データ'!$A$4:$KH$5000,'２データ'!GU$2,FALSE)="-","nc",IF(VLOOKUP($DJ$32,'２データ'!$A$4:$KH$5000,'２データ'!GZ$2,FALSE)="-","-",VLOOKUP($DJ$32,'２データ'!$A$4:$KH$5000,'２データ'!GZ$2,FALSE)/VLOOKUP($DJ$32,'２データ'!$A$4:$KH$5000,'２データ'!GU$2,FALSE)*100)))) -> 4 | AS182: =IF(ISNA($DJ$4),"",IF(VLOOKUP($DJ$32,'２データ'!$A$4:$KH$5000,'２データ'!HA$2,FALSE)="x","x",IF(VLOOKUP($DJ$32,'２データ'!$A$4:$KH$5000,'２データ'!GU$2,FALSE)="-","nc",IF(VLOOKUP($DJ$32,'２データ'!$A$4:$KH$5000,'２データ'!HA$2,FALSE)="-","-",VLOOKUP($DJ$32,'２データ'!$A$4:$KH$5000,'２データ'!HA$2,FALSE)/VLOOKUP($DJ$32,'２データ'!$A$4:$KH$5000,'２データ'!GU$2,FALSE)*100)))) -> 5 | AX182: =IF(ISNA($DJ$4),"",IF(VLOOKUP($DJ$32,'２データ'!$A$4:$KH$5000,'２データ'!HB$2,FALSE)="x","x",IF(VLOOKUP($DJ$32,'２データ'!$A$4:$KH$5000,'２データ'!GU$2,FALSE)="-","nc",IF(VLOOKUP($DJ$32,'２データ'!$A$4:$KH$5000,'２データ'!HB$2,FALSE)="-","-",VLOOKUP($DJ$32,'２データ'!$A$4:$KH$5000,'２データ'!HB$2,FALSE)/VLOOKUP($DJ$32,'２データ'!$A$4:$KH$5000,'２データ'!GU$2,FALSE)*100)))) -> 7 | BC182: =IF(ISNA($DJ$4),"",IF(VLOOKUP($DJ$32,'２データ'!$A$4:$KH$5000,'２データ'!HC$2,FALSE)="x","x",IF(VLOOKUP($DJ$32,'２データ'!$A$4:$KH$5000,'２データ'!GU$2,FALSE)="-","nc",IF(VLOOKUP($DJ$32,'２データ'!$A$4:$KH$5000,'２データ'!HC$2,FALSE)="-","-",VLOOKUP($DJ$32,'２データ'!$A$4:$KH$5000,'２データ'!HC$2,FALSE)/VLOOKUP($DJ$32,'２データ'!$A$4:$KH$5000,'２データ'!GU$2,FALSE)*100)))) -> 12 | BH182: =IF(ISNA($DJ$4),"",IF(VLOOKUP($DJ$32,'２データ'!$A$4:$KH$5000,'２データ'!HD$2,FALSE)="x","x",IF(VLOOKUP($DJ$32,'２データ'!$A$4:$KH$5000,'２データ'!GU$2,FALSE)="-","nc",IF(VLOOKUP($DJ$32,'２データ'!$A$4:$KH$5000,'２データ'!HD$2,FALSE)="-","-",VLOOKUP($DJ$32,'２データ'!$A$4:$KH$5000,'２データ'!HD$2,FALSE)/VLOOKUP($DJ$32,'２データ'!$A$4:$KH$5000,'２データ'!GU$2,FALSE)*100)))) -> 17 | BM182: =IF(ISNA($DJ$4),"",IF(VLOOKUP($DJ$32,'２データ'!$A$4:$KH$5000,'２データ'!HE$2,FALSE)="x","x",IF(VLOOKUP($DJ$32,'２データ'!$A$4:$KH$5000,'２データ'!GU$2,FALSE)="-","nc",IF(VLOOKUP($DJ$32,'２データ'!$A$4:$KH$5000,'２データ'!HE$2,FALSE)="-","-",VLOOKUP($DJ$32,'２データ'!$A$4:$KH$5000,'２データ'!HE$2,FALSE)/VLOOKUP($DJ$32,'２データ'!$A$4:$KH$5000,'２データ'!GU$2,FALSE)*100)))) -> 19 | BR182: =IF(ISNA($DJ$4),"",IF(VLOOKUP($DJ$32,'２データ'!$A$4:$KH$5000,'２データ'!HF$2,FALSE)="x","x",IF(VLOOKUP($DJ$32,'２データ'!$A$4:$KH$5000,'２データ'!GU$2,FALSE)="-","nc",IF(VLOOKUP($DJ$32,'２データ'!$A$4:$KH$5000,'２データ'!HF$2,FALSE)="-","-",VLOOKUP($DJ$32,'２データ'!$A$4:$KH$5000,'２データ'!HF$2,FALSE)/VLOOKUP($DJ$32,'２データ'!$A$4:$KH$5000,'２データ'!GU$2,FALSE)*100)))) -> 13 | BW182: =IF(ISNA($DJ$4),"",IF(VLOOKUP($DJ$32,'２データ'!$A$4:$KH$5000,'２データ'!HG$2,FALSE)="x","x",IF(VLOOKUP($DJ$32,'２データ'!$A$4:$KH$5000,'２データ'!GU$2,FALSE)="-","nc",IF(VLOOKUP($DJ$32,'２データ'!$A$4:$KH$5000,'２データ'!HG$2,FALSE)="-","-",VLOOKUP($DJ$32,'２データ'!$A$4:$KH$5000,'２データ'!HG$2,FALSE)/VLOOKUP($DJ$32,'２データ'!$A$4:$KH$5000,'２データ'!GU$2,FALSE)*100)))) -> 9 | CB182: =IF(ISNA($DJ$4),"",IF(VLOOKUP($DJ$32,'２データ'!$A$4:$KH$5000,'２データ'!HH$2,FALSE)="x","x",IF(VLOOKUP($DJ$32,'２データ'!$A$4:$KH$5000,'２データ'!GU$2,FALSE)="-","nc",IF(VLOOKUP($DJ$32,'２データ'!$A$4:$KH$5000,'２データ'!HH$2,FALSE)="-","-",VLOOKUP($DJ$32,'２データ'!$A$4:$KH$5000,'２データ'!HH$2,FALSE)/VLOOKUP($DJ$32,'２データ'!$A$4:$KH$5000,'２データ'!GU$2,FALSE)*100)))) -> 6 | CG182: - | DJ182: =IF($BW$12="前回との比較","平成27年",$H$35) -> 府県平均 | DK182: =IF($BW$12="前回との比較",T180,T182) -> 1 | DL182: =IF($BW$12="前回との比較",Y180,Y182) -> 1 | DM182: =IF($BW$12="前回との比較",AD180,AD182) -> 2 | DN182: =IF($BW$12="前回との比較",AI180,AI182) -> 3 | DO182: =IF($BW$12="前回との比較",AN180,AN182) -> 4 | DP182: =IF($BW$12="前回との比較",AS180,AS182) -> 5 | DQ182: =IF($BW$12="前回との比較",AX180,AX182) -> 7 | DR182: =IF($BW$12="前回との比較",BC180,BC182) -> 12 | DS182: =IF($BW$12="前回との比較",BH180,BH182) -> 17 | DT182: =IF($BW$12="前回との比較",BM180,BM182) -> 19 | DU182: =IF($BW$12="前回との比較",BR180,BR182) -> 13 | DV182: =IF($BW$12="前回との比較",BW180,BW182) -> 9 | DW182: =IF($BW$12="前回との比較",CB180,CB182) -> 6 | DX182: 5 | DZ182: =IF(OR(ISNA($DJ$4),SUM(DK182:DW182)=100),DJ182,"") -> 府県平均 | EA182: =IF(ISNA($DJ$4),"",IF(SUM(DK182:DW182)=100,"",DJ182&"（表示できません）")) -> 
C183: 注：平成27年の数値は、組替集計による。 | DJ183: =IF($BW$12="前回との比較","令和２年","選択地域") -> 選択地域 | DK183: =T181 -> 1 | DL183: =Y181 -> 1 | DM183: =AD181 -> 2 | DN183: =AI181 -> 3 | DO183: =AN181 -> 4 | DP183: =AS181 -> 5 | DQ183: =AX181 -> 7 | DR183: =BC181 -> 12 | DS183: =BH181 -> 17 | DT183: =BM181 -> 19 | DU183: =BR181 -> 13 | DV183: =BW181 -> 9 | DW183: =CB181 -> 6 | DX183: 5 | DZ183: =IF(OR(ISNA($DJ$4),SUM(DK183:DW183)=100),DJ183,"") -> 選択地域 | EA183: =IF(ISNA($DJ$4),"",IF(SUM(DK183:DW183)=100,"",DJ183&"（表示できません）")) -> 
DJ186: 区分 | DK186: 49歳以下
DJ187: =$DJ$39 -> 選択地域 | DK187: =IF(ISNA($DJ$4),"",IF($BW$12="前回との比較",IF(DK182="x","x",IF(DK182="nc","nc",IF(SUM(DK182:DO182)=0,"-",SUM(DK182:DO182)))),IF(DK183="x","x",IF(DK183="nc","nc",IF(SUM(DK183:DO183)=0,"-",SUM(DK183:DO183)))))) -> 12 | DM187: =IF(OR(DK187="x",DK187="nc"),"表示できません","") -> 
DJ188: =$DJ$38 -> 府県平均 | DK188: =IF(ISNA($DJ$4),"",IF($BW$12="前回との比較",IF(DK183="x","x",IF(DK183="nc","nc",IF(SUM(DK183:DO183)=0,"-",SUM(DK183:DO183)))),IF(DK182="x","x",IF(DK182="nc","nc",IF(SUM(DK182:DO182)=0,"-",SUM(DK182:DO182)))))) -> 12 | DM188: =IF(OR(DK188="x",DK188="nc"),"表示できません","") -> 
DK189: 5
DJ194: ="年齢別の"&C173&"割合" -> 年齢別の基幹的農業従事者数割合
B208: 13 個人経営体における経営方針の決定
C210: 経営方針の決定に関わっている状態別経営体数
C211: 区 分 | O211: 経営 体数 | T211: 男の 経営主 | AI211: 女の 経営主 ③ | AX211: 女の経営主又は女の経営参画者がいる ①+②+③
Y212: 男女の経営参画者がいる ① | AD212: 女の経営参画者だけ ② | AN212: 男女の経営参画者がいる | AS212: 女の経営参画者だけ
DJ215: 区分 | DK215: 女性が経営主又は女性の経営参画者がいる経営体数割合
C216: 経営 体数 | H216: 平成27年 | O216: =IF(ISNA($DJ$4),"",VLOOKUP($DJ$4,'27データ'!$A$4:$KH$5000,'27データ'!HY$2,FALSE)) -> 21,326 | T216: =IF(ISNA($DJ$4),"",VLOOKUP($DJ$4,'27データ'!$A$4:$KH$5000,'27データ'!HZ$2,FALSE)) -> 19,264 | Y216: =IF(ISNA($DJ$4),"",VLOOKUP($DJ$4,'27データ'!$A$4:$KH$5000,'27データ'!IA$2,FALSE)) -> 1,465 | AD216: =IF(ISNA($DJ$4),"",VLOOKUP($DJ$4,'27データ'!$A$4:$KH$5000,'27データ'!IB$2,FALSE)) -> 7,692 | AI216: =IF(ISNA($DJ$4),"",VLOOKUP($DJ$4,'27データ'!$A$4:$KH$5000,'27データ'!IC$2,FALSE)) -> 2,062 | AN216: =IF(ISNA($DJ$4),"",VLOOKUP($DJ$4,'27データ'!$A$4:$KH$5000,'27データ'!ID$2,FALSE)) -> 103 | AS216: =IF(ISNA($DJ$4),"",VLOOKUP($DJ$4,'27データ'!$A$4:$KH$5000,'27データ'!IE$2,FALSE)) -> 91 | AX216: =IF(ISNA($DJ$4),"",VLOOKUP($DJ$4,'27データ'!$A$4:$KH$5000,'27データ'!IF$2,FALSE)) -> 11,219 | DJ216: =$DJ$39 -> 選択地域 | DK216: =IF($BW$12="前回との比較",AX218,AX219) -> 43 | DM216: =IF(OR(DK216="x",DK216="nc"),"表示できません","") -> 
H217: 令和２年 | O217: =IF(ISNA($DJ$4),"",VLOOKUP($DJ$4,'２データ'!$A$4:$KH$5000,'２データ'!HY$2,FALSE)) -> 17,976 | T217: =IF(ISNA($DJ$4),"",VLOOKUP($DJ$4,'２データ'!$A$4:$KH$5000,'２データ'!HZ$2,FALSE)) -> 16,339 | Y217: =IF(ISNA($DJ$4),"",VLOOKUP($DJ$4,'２データ'!$A$4:$KH$5000,'２データ'!IA$2,FALSE)) -> 1,201 | AD217: =IF(ISNA($DJ$4),"",VLOOKUP($DJ$4,'２データ'!$A$4:$KH$5000,'２データ'!IB$2,FALSE)) -> 4,923 | AI217: =IF(ISNA($DJ$4),"",VLOOKUP($DJ$4,'２データ'!$A$4:$KH$5000,'２データ'!IC$2,FALSE)) -> 1,637 | AN217: =IF(ISNA($DJ$4),"",VLOOKUP($DJ$4,'２データ'!$A$4:$KH$5000,'２データ'!ID$2,FALSE)) -> 75 | AS217: =IF(ISNA($DJ$4),"",VLOOKUP($DJ$4,'２データ'!$A$4:$KH$5000,'２データ'!IE$2,FALSE)) -> 68 | AX217: =IF(ISNA($DJ$4),"",VLOOKUP($DJ$4,'２データ'!$A$4:$KH$5000,'２データ'!IF$2,FALSE)) -> 7,761 | DJ217: =$DJ$38 -> 府県平均 | DK217: =IF($BW$12="前回との比較",AX219,AX220) -> 43 | DM217: =IF(OR(DK217="x",DK217="nc"),"表示できません","") -> 
C218: 構成比 (％) | H218: 平成27年 | O218: =IF(ISNA($DJ$4),"",IF(O216="@","nc",IF($O216="x","x",IF($O216="-","nc",O216/$O216*100)))) -> 100 | T218: =IF(ISNA($DJ$4),"",IF(T216="@","nc",IF(T216="x","x",IF($O216="-","nc",IF(T216="-","-",T216/$O216*100))))) -> 90 | Y218: =IF(ISNA($DJ$4),"",IF(Y216="@","nc",IF(Y216="x","x",IF($O216="-","nc",IF(Y216="-","-",Y216/$O216*100))))) -> 7 | AD218: =IF(ISNA($DJ$4),"",IF(AD216="@","nc",IF(AD216="x","x",IF($O216="-","nc",IF(AD216="-","-",AD216/$O216*100))))) -> 36 | AI218: =IF(ISNA($DJ$4),"",IF(AI216="@","nc",IF(AI216="x","x",IF($O216="-","nc",IF(AI216="-","-",AI216/$O216*100))))) -> 10 | AN218: =IF(ISNA($DJ$4),"",IF(AN216="@","nc",IF(AN216="x","x",IF($O216="-","nc",IF(AN216="-","-",AN216/$O216*100))))) -> 0 | AS218: =IF(ISNA($DJ$4),"",IF(AS216="@","nc",IF(AS216="x","x",IF($O216="-","nc",IF(AS216="-","-",AS216/$O216*100))))) -> 0 | AX218: =IF(ISNA($DJ$4),"",IF(AX216="@","nc",IF(AX216="x","x",IF($O216="-","nc",IF(AX216="-","-",AX216/$O216*100))))) -> 53 | DK218: 5
H219: 令和２年 | O219: =IF(ISNA($DJ$4),"",IF($O217="x","x",IF($O217="-","nc",O217/$O217*100))) -> 100 | T219: =IF(ISNA($DJ$4),"",IF(T217="x","x",IF($O217="-","nc",IF(T217="-","-",T217/$O217*100)))) -> 91 | Y219: =IF(ISNA($DJ$4),"",IF(Y217="x","x",IF($O217="-","nc",IF(Y217="-","-",Y217/$O217*100)))) -> 7 | AD219: =IF(ISNA($DJ$4),"",IF(AD217="x","x",IF($O217="-","nc",IF(AD217="-","-",AD217/$O217*100)))) -> 27 | AI219: =IF(ISNA($DJ$4),"",IF(AI217="x","x",IF($O217="-","nc",IF(AI217="-","-",AI217/$O217*100)))) -> 9 | AN219: =IF(ISNA($DJ$4),"",IF(AN217="x","x",IF($O217="-","nc",IF(AN217="-","-",AN217/$O217*100)))) -> 0 | AS219: =IF(ISNA($DJ$4),"",IF(AS217="x","x",IF($O217="-","nc",IF(AS217="-","-",AS217/$O217*100)))) -> 0 | AX219: =IF(ISNA($DJ$4),"",IF(AX217="@","nc",IF(AX217="x","x",IF($O217="-","nc",IF(AX217="-","-",AX217/$O217*100))))) -> 43
H220: =IF($BW$12="都府県との比較","都府県平均",IF($BW$12="全国との比較","全国平均","府県平均")) -> 府県平均 | O220: =IF(ISNA($DJ$4),"",IF(VLOOKUP($DJ$32,'２データ'!$A$4:$KH$5000,'２データ'!HY$2,FALSE)="x","x",IF(VLOOKUP($DJ$32,'２データ'!$A$4:$KH$5000,'２データ'!HY$2,FALSE)="-","nc",VLOOKUP($DJ$32,'２データ'!$A$4:$KH$5000,'２データ'!HY$2,FALSE)/VLOOKUP($DJ$32,'２データ'!$A$4:$KH$5000,'２データ'!HY$2,FALSE)*100))) -> 100 | T220: =IF(ISNA($DJ$4),"",IF(VLOOKUP($DJ$32,'２データ'!$A$4:$KH$5000,'２データ'!HZ$2,FALSE)="x","x",IF(VLOOKUP($DJ$32,'２データ'!$A$4:$KH$5000,'２データ'!HY$2,FALSE)="-","nc",IF(VLOOKUP($DJ$32,'２データ'!$A$4:$KH$5000,'２データ'!HZ$2,FALSE)="-","-",VLOOKUP($DJ$32,'２データ'!$A$4:$KH$5000,'２データ'!HZ$2,FALSE)/VLOOKUP($DJ$32,'２データ'!$A$4:$KH$5000,'２データ'!HY$2,FALSE)*100)))) -> 91 | Y220: =IF(ISNA($DJ$4),"",IF(VLOOKUP($DJ$32,'２データ'!$A$4:$KH$5000,'２データ'!IA$2,FALSE)="x","x",IF(VLOOKUP($DJ$32,'２データ'!$A$4:$KH$5000,'２データ'!HY$2,FALSE)="-","nc",IF(VLOOKUP($DJ$32,'２データ'!$A$4:$KH$5000,'２データ'!IA$2,FALSE)="-","-",VLOOKUP($DJ$32,'２データ'!$A$4:$KH$5000,'２データ'!IA$2,FALSE)/VLOOKUP($DJ$32,'２データ'!$A$4:$KH$5000,'２データ'!HY$2,FALSE)*100)))) -> 7 | AD220: =IF(ISNA($DJ$4),"",IF(VLOOKUP($DJ$32,'２データ'!$A$4:$KH$5000,'２データ'!IB$2,FALSE)="x","x",IF(VLOOKUP($DJ$32,'２データ'!$A$4:$KH$5000,'２データ'!HY$2,FALSE)="-","nc",IF(VLOOKUP($DJ$32,'２データ'!$A$4:$KH$5000,'２データ'!IB$2,FALSE)="-","-",VLOOKUP($DJ$32,'２データ'!$A$4:$KH$5000,'２データ'!IB$2,FALSE)/VLOOKUP($DJ$32,'２データ'!$A$4:$KH$5000,'２データ'!HY$2,FALSE)*100)))) -> 27 | AI220: =IF(ISNA($DJ$4),"",IF(VLOOKUP($DJ$32,'２データ'!$A$4:$KH$5000,'２データ'!IC$2,FALSE)="x","x",IF(VLOOKUP($DJ$32,'２データ'!$A$4:$KH$5000,'２データ'!HY$2,FALSE)="-","nc",IF(VLOOKUP($DJ$32,'２データ'!$A$4:$KH$5000,'２データ'!IC$2,FALSE)="-","-",VLOOKUP($DJ$32,'２データ'!$A$4:$KH$5000,'２データ'!IC$2,FALSE)/VLOOKUP($DJ$32,'２データ'!$A$4:$KH$5000,'２データ'!HY$2,FALSE)*100)))) -> 9 | AN220: =IF(ISNA($DJ$4),"",IF(VLOOKUP($DJ$32,'２データ'!$A$4:$KH$5000,'２データ'!ID$2,FALSE)="x","x",IF(VLOOKUP($DJ$32,'２データ'!$A$4:$KH$5000,'２データ'!HY$2,FALSE)="-","nc",IF(VLOOKUP($DJ$32,'２データ'!$A$4:$KH$5000,'２データ'!ID$2,FALSE)="-","-",VLOOKUP($DJ$32,'２データ'!$A$4:$KH$5000,'２データ'!ID$2,FALSE)/VLOOKUP($DJ$32,'２データ'!$A$4:$KH$5000,'２データ'!HY$2,FALSE)*100)))) -> 0 | AS220: =IF(ISNA($DJ$4),"",IF(VLOOKUP($DJ$32,'２データ'!$A$4:$KH$5000,'２データ'!IE$2,FALSE)="x","x",IF(VLOOKUP($DJ$32,'２データ'!$A$4:$KH$5000,'２データ'!HY$2,FALSE)="-","nc",IF(VLOOKUP($DJ$32,'２データ'!$A$4:$KH$5000,'２データ'!IE$2,FALSE)="-","-",VLOOKUP($DJ$32,'２データ'!$A$4:$KH$5000,'２データ'!IE$2,FALSE)/VLOOKUP($DJ$32,'２データ'!$A$4:$KH$5000,'２データ'!HY$2,FALSE)*100)))) -> 0 | AX220: =IF(ISNA($DJ$4),"",IF(VLOOKUP($DJ$32,'２データ'!$A$4:$KH$5000,'２データ'!IF$2,FALSE)="x","x",IF(VLOOKUP($DJ$32,'２データ'!$A$4:$KH$5000,'２データ'!HY$2,FALSE)="-","nc",IF(VLOOKUP($DJ$32,'２データ'!$A$4:$KH$5000,'２データ'!IF$2,FALSE)="-","-",VLOOKUP($DJ$32,'２データ'!$A$4:$KH$5000,'２データ'!IF$2,FALSE)/VLOOKUP($DJ$32,'２データ'!$A$4:$KH$5000,'２データ'!HY$2,FALSE)*100)))) -> 43 | DK220: 計 | DL220: 経営者が男 | DM220: 男女 | DN220: 女性 | DO220: 経営者が女
C221: 注：平成27年の数値は、組替集計による。 | DJ221: =$H$54 -> 0.0 | DK221: =IF(ISNA($DJ$4),"",VLOOKUP($DJ$51,'２データ'!$A$4:$HI$4627,'２データ'!HY$2,FALSE)) ->  | DL221: =IF(ISNA($DJ$4),"",VLOOKUP($DJ$51,'２データ'!$A$4:$HI$4627,'２データ'!HZ$2,FALSE)) ->  | DM221: =IF(ISNA($DJ$4),"",VLOOKUP($DJ$51,'２データ'!$A$4:$HI$4627,'２データ'!IA$2,FALSE)) ->  | DN221: =IF(ISNA($DJ$4),"",VLOOKUP($DJ$51,'２データ'!$A$4:$HI$4627,'２データ'!IB$2,FALSE)) ->  | DO221: =IF(ISNA($DJ$4),"",VLOOKUP($DJ$51,'２データ'!$A$4:$HI$4627,'２データ'!IC$2,FALSE)) -> 
DJ222: 構成比 | DK222: =IF(ISNA($DJ$4),"",IF(DK221="x","x",IF($DK221="-","nc",DK221/$DK221*100))) ->  | DL222: =IF(ISNA($DJ$4),"",IF(DL221="x","x",IF($DK221="-","nc",IF(DL221="-","-",DL221/$DK221*100)))) ->  | DM222: =IF(ISNA($DJ$4),"",IF(DM221="x","x",IF($DK221="-","nc",IF(DM221="-","-",DM221/$DK221*100)))) ->  | DN222: =IF(ISNA($DJ$4),"",IF(DN221="x","x",IF($DK221="-","nc",IF(DN221="-","-",DN221/$DK221*100)))) ->  | DO222: =IF(ISNA($DJ$4),"",IF(DO221="x","x",IF($DK221="-","nc",IF(DO221="-","-",DO221/$DK221*100)))) -> 
B224: 14 農業集落内での活動状況
C226: (1) 実行組合の有無 | AH226: (2) 寄り合いの回数別農業集落数
C227: 区 分 | O227: 農業 集落数 | T227: 実行組合の有無 | AH227: 区 分 | AT227: 農業 集落数 | AY227: 寄り合いがある | CC227: 寄り合いが ない
T228: ある | Y228: ない | AY228: 計 | BD228: １ ～２回 | BI228: ３ ～５ | BN228: ６ ～11 | BS228: 12 ～23 | BX228: 24回 以上
C233: 農業 集落数 | H233: 平成27年 | O233: =IF(ISNA($DJ$4),"",IF(VLOOKUP($DJ$4,'27データ'!$A$4:$KH$5000,'27データ'!IG$2,FALSE)=0,"-",VLOOKUP($DJ$4,'27データ'!$A$4:$KH$5000,'27データ'!IG$2,FALSE))) -> 1,599 | T233: =IF(ISNA($DJ$4),"",IF(VLOOKUP($DJ$4,'27データ'!$A$4:$KH$5000,'27データ'!IH$2,FALSE)=0,"-",VLOOKUP($DJ$4,'27データ'!$A$4:$KH$5000,'27データ'!IH$2,FALSE))) -> 459 | Y233: =IF(ISNA($DJ$4),"",IF(VLOOKUP($DJ$4,'27データ'!$A$4:$KH$5000,'27データ'!II$2,FALSE)=0,"-",VLOOKUP($DJ$4,'27データ'!$A$4:$KH$5000,'27データ'!II$2,FALSE))) -> 1,140 | AH233: 農業 集落数 | AM233: 平成27年 | AT233: =IF(ISNA($DJ$4),"",IF(VLOOKUP($DJ$4,'27データ'!$A$4:$KH$5000,'27データ'!IG$2,FALSE)=0,"-",VLOOKUP($DJ$4,'27データ'!$A$4:$KH$5000,'27データ'!IG$2,FALSE))) -> 1,599 | AY233: =IF(ISNA($DJ$4),"",IF(VLOOKUP($DJ$4,'27データ'!$A$4:$KH$5000,'27データ'!IJ$2,FALSE)=0,"-",VLOOKUP($DJ$4,'27データ'!$A$4:$KH$5000,'27データ'!IJ$2,FALSE))) -> 1,500 | BD233: =IF(ISNA($DJ$4),"",IF(VLOOKUP($DJ$4,'27データ'!$A$4:$KH$5000,'27データ'!IK$2,FALSE)=0,"-",VLOOKUP($DJ$4,'27データ'!$A$4:$KH$5000,'27データ'!IK$2,FALSE))) -> 251 | BI233: =IF(ISNA($DJ$4),"",IF(VLOOKUP($DJ$4,'27データ'!$A$4:$KH$5000,'27データ'!IL$2,FALSE)=0,"-",VLOOKUP($DJ$4,'27データ'!$A$4:$KH$5000,'27データ'!IL$2,FALSE))) -> 455 | BN233: =IF(ISNA($DJ$4),"",IF(VLOOKUP($DJ$4,'27データ'!$A$4:$KH$5000,'27データ'!IM$2,FALSE)=0,"-",VLOOKUP($DJ$4,'27データ'!$A$4:$KH$5000,'27データ'!IM$2,FALSE))) -> 432 | BS233: =IF(ISNA($DJ$4),"",IF(VLOOKUP($DJ$4,'27データ'!$A$4:$KH$5000,'27データ'!IN$2,FALSE)=0,"-",VLOOKUP($DJ$4,'27データ'!$A$4:$KH$5000,'27データ'!IN$2,FALSE))) -> 317 | BX233: =IF(ISNA($DJ$4),"",IF(VLOOKUP($DJ$4,'27データ'!$A$4:$KH$5000,'27データ'!IO$2,FALSE)=0,"-",VLOOKUP($DJ$4,'27データ'!$A$4:$KH$5000,'27データ'!IO$2,FALSE))) -> 45 | CC233: =IF(ISNA($DJ$4),"",IF(VLOOKUP($DJ$4,'27データ'!$A$4:$KH$5000,'27データ'!IP$2,FALSE)=0,"-",VLOOKUP($DJ$4,'27データ'!$A$4:$KH$5000,'27データ'!IP$2,FALSE))) -> 99
H234: 令和２年 | O234: =IF(ISNA($DJ$4),"",IF(VLOOKUP($DJ$4,'２データ'!$A$4:$KH$5000,'２データ'!IG$2,FALSE)=0,"-",VLOOKUP($DJ$4,'２データ'!$A$4:$KH$5000,'２データ'!IG$2,FALSE))) -> 1,599 | T234: =IF(ISNA($DJ$4),"",IF(VLOOKUP($DJ$4,'２データ'!$A$4:$KH$5000,'２データ'!IH$2,FALSE)=0,"-",VLOOKUP($DJ$4,'２データ'!$A$4:$KH$5000,'２データ'!IH$2,FALSE))) -> 544 | Y234: =IF(ISNA($DJ$4),"",IF(VLOOKUP($DJ$4,'２データ'!$A$4:$KH$5000,'２データ'!II$2,FALSE)=0,"-",VLOOKUP($DJ$4,'２データ'!$A$4:$KH$5000,'２データ'!II$2,FALSE))) -> 1,055 | AM234: 令和２年 | AT234: =IF(ISNA($DJ$4),"",IF(VLOOKUP($DJ$4,'２データ'!$A$4:$KH$5000,'２データ'!IG$2,FALSE)=0,"-",VLOOKUP($DJ$4,'２データ'!$A$4:$KH$5000,'２データ'!IG$2,FALSE))) -> 1,599 | AY234: =IF(ISNA($DJ$4),"",IF(VLOOKUP($DJ$4,'２データ'!$A$4:$KH$5000,'２データ'!IJ$2,FALSE)=0,"-",VLOOKUP($DJ$4,'２データ'!$A$4:$KH$5000,'２データ'!IJ$2,FALSE))) -> 1,482 | BD234: =IF(ISNA($DJ$4),"",IF(VLOOKUP($DJ$4,'２データ'!$A$4:$KH$5000,'２データ'!IK$2,FALSE)=0,"-",VLOOKUP($DJ$4,'２データ'!$A$4:$KH$5000,'２データ'!IK$2,FALSE))) -> 301 | BI234: =IF(ISNA($DJ$4),"",IF(VLOOKUP($DJ$4,'２データ'!$A$4:$KH$5000,'２データ'!IL$2,FALSE)=0,"-",VLOOKUP($DJ$4,'２データ'!$A$4:$KH$5000,'２データ'!IL$2,FALSE))) -> 475 | BN234: =IF(ISNA($DJ$4),"",IF(VLOOKUP($DJ$4,'２データ'!$A$4:$KH$5000,'２データ'!IM$2,FALSE)=0,"-",VLOOKUP($DJ$4,'２データ'!$A$4:$KH$5000,'２データ'!IM$2,FALSE))) -> 370 | BS234: =IF(ISNA($DJ$4),"",IF(VLOOKUP($DJ$4,'２データ'!$A$4:$KH$5000,'２データ'!IN$2,FALSE)=0,"-",VLOOKUP($DJ$4,'２データ'!$A$4:$KH$5000,'２データ'!IN$2,FALSE))) -> 296 | BX234: =IF(ISNA($DJ$4),"",IF(VLOOKUP($DJ$4,'２データ'!$A$4:$KH$5000,'２データ'!IO$2,FALSE)=0,"-",VLOOKUP($DJ$4,'２データ'!$A$4:$KH$5000,'２データ'!IO$2,FALSE))) -> 40 | CC234: =IF(ISNA($DJ$4),"",IF(VLOOKUP($DJ$4,'２データ'!$A$4:$KH$5000,'２データ'!IP$2,FALSE)=0,"-",VLOOKUP($DJ$4,'２データ'!$A$4:$KH$5000,'２データ'!IP$2,FALSE))) -> 117
C235: 構成比 (％) | H235: 平成27年 | O235: =IF(ISNA($DJ$4),"",IF(OR($O233="@",$O233="…",$O233="-"),"nc",O233/$O233*100)) -> 100 | T235: =IF(ISNA($DJ$4),"",IF(T233="…","nc",IF(OR($O233="@",$O233="…",$O233="-"),"nc",IF(T233="-","-",T233/$O233*100)))) -> 29 | Y235: =IF(ISNA($DJ$4),"",IF(Y233="…","nc",IF(OR($O233="@",$O233="…",$O233="-"),"nc",IF(Y233="-","-",Y233/$O233*100)))) -> 71 | AH235: 構成比 (％) | AM235: 平成27年 | AT235: =IF(ISNA($DJ$4),"",IF(OR($AT233="@",$AT233="…",$AT233="-"),"nc",AT233/$AT233*100)) -> 100 | AY235: =IF(ISNA($DJ$4),"",IF(AY233="…","nc",IF(OR($AT233="@",$AT233="…",$AT233="-"),"nc",IF(AY233="-","-",AY233/$AT233*100)))) -> 94 | BD235: =IF(ISNA($DJ$4),"",IF(BD233="…","nc",IF(OR($AT233="@",$AT233="…",$AT233="-"),"nc",IF(BD233="-","-",BD233/$AT233*100)))) -> 16 | BI235: =IF(ISNA($DJ$4),"",IF(BI233="…","nc",IF(OR($AT233="@",$AT233="…",$AT233="-"),"nc",IF(BI233="-","-",BI233/$AT233*100)))) -> 28 | BN235: =IF(ISNA($DJ$4),"",IF(BN233="…","nc",IF(OR($AT233="@",$AT233="…",$AT233="-"),"nc",IF(BN233="-","-",BN233/$AT233*100)))) -> 27 | BS235: =IF(ISNA($DJ$4),"",IF(BS233="…","nc",IF(OR($AT233="@",$AT233="…",$AT233="-"),"nc",IF(BS233="-","-",BS233/$AT233*100)))) -> 20 | BX235: =IF(ISNA($DJ$4),"",IF(BX233="…","nc",IF(OR($AT233="@",$AT233="…",$AT233="-"),"nc",IF(BX233="-","-",BX233/$AT233*100)))) -> 3 | CC235: =IF(ISNA($DJ$4),"",IF(CC233="…","nc",IF(OR($AT233="@",$AT233="…",$AT233="-"),"nc",IF(CC233="-","-",CC233/$AT233*100)))) -> 6
H236: 令和２年 | O236: =IF(ISNA($DJ$4),"",IF(OR($O234="@",$O234="…",$O234="-"),"nc",O234/$O234*100)) -> 100 | T236: =IF(ISNA($DJ$4),"",IF(T234="…","nc",IF(OR($O234="@",$O234="…",$O234="-"),"nc",IF(T234="-","-",T234/$O234*100)))) -> 34 | Y236: =IF(ISNA($DJ$4),"",IF(Y234="…","nc",IF(OR($O234="@",$O234="…",$O234="-"),"nc",IF(Y234="-","-",Y234/$O234*100)))) -> 66 | AM236: 令和２年 | AT236: =IF(ISNA($DJ$4),"",IF(OR($AT234="@",$AT234="…",$AT234="-"),"nc",AT234/$AT234*100)) -> 100 | AY236: =IF(ISNA($DJ$4),"",IF(AY234="…","nc",IF(OR($AT234="@",$AT234="…",$AT234="-"),"nc",IF(AY234="-","-",AY234/$AT234*100)))) -> 93 | BD236: =IF(ISNA($DJ$4),"",IF(BD234="…","nc",IF(OR($AT234="@",$AT234="…",$AT234="-"),"nc",IF(BD234="-","-",BD234/$AT234*100)))) -> 19 | BI236: =IF(ISNA($DJ$4),"",IF(BI234="…","nc",IF(OR($AT234="@",$AT234="…",$AT234="-"),"nc",IF(BI234="-","-",BI234/$AT234*100)))) -> 30 | BN236: =IF(ISNA($DJ$4),"",IF(BN234="…","nc",IF(OR($AT234="@",$AT234="…",$AT234="-"),"nc",IF(BN234="-","-",BN234/$AT234*100)))) -> 23 | BS236: =IF(ISNA($DJ$4),"",IF(BS234="…","nc",IF(OR($AT234="@",$AT234="…",$AT234="-"),"nc",IF(BS234="-","-",BS234/$AT234*100)))) -> 19 | BX236: =IF(ISNA($DJ$4),"",IF(BX234="…","nc",IF(OR($AT234="@",$AT234="…",$AT234="-"),"nc",IF(BX234="-","-",BX234/$AT234*100)))) -> 3 | CC236: =IF(ISNA($DJ$4),"",IF(CC234="…","nc",IF(OR($AT234="@",$AT234="…",$AT234="-"),"nc",IF(CC234="-","-",CC234/$AT234*100)))) -> 7
H237: =IF($BW$12="都府県との比較","都府県平均",IF($BW$12="全国との比較","全国平均","府県平均")) -> 府県平均 | O237: =IF(ISNA($DJ$4),"",IF(OR(VLOOKUP($DJ$32,'２データ'!$A$4:$KH$5000,'２データ'!IG$2,FALSE)="…",VLOOKUP($DJ$32,'２データ'!$A$4:$KH$5000,'２データ'!IG$2,FALSE)="-"),"nc",VLOOKUP($DJ$32,'２データ'!$A$4:$KH$5000,'２データ'!IG$2,FALSE)/VLOOKUP($DJ$32,'２データ'!$A$4:$KH$5000,'２データ'!IG$2,FALSE)*100)) -> 100 | T237: =IF(ISNA($DJ$4),"",IF(VLOOKUP($DJ$32,'２データ'!$A$4:$KH$5000,'２データ'!IH$2,FALSE)="…","nc",IF(OR(VLOOKUP($DJ$32,'２データ'!$A$4:$KH$5000,'２データ'!IG$2,FALSE)="…",VLOOKUP($DJ$32,'２データ'!$A$4:$KH$5000,'２データ'!IG$2,FALSE)="-"),"nc",IF(VLOOKUP($DJ$32,'２データ'!$A$4:$KH$5000,'２データ'!IH$2,FALSE)="-","-",VLOOKUP($DJ$32,'２データ'!$A$4:$KH$5000,'２データ'!IH$2,FALSE)/VLOOKUP($DJ$32,'２データ'!$A$4:$KH$5000,'２データ'!IG$2,FALSE)*100)))) -> 34 | Y237: =IF(ISNA($DJ$4),"",IF(VLOOKUP($DJ$32,'２データ'!$A$4:$KH$5000,'２データ'!II$2,FALSE)="…","nc",IF(OR(VLOOKUP($DJ$32,'２データ'!$A$4:$KH$5000,'２データ'!IG$2,FALSE)="…",VLOOKUP($DJ$32,'２データ'!$A$4:$KH$5000,'２データ'!IG$2,FALSE)="-"),"nc",IF(VLOOKUP($DJ$32,'２データ'!$A$4:$KH$5000,'２データ'!II$2,FALSE)="-","-",VLOOKUP($DJ$32,'２データ'!$A$4:$KH$5000,'２データ'!II$2,FALSE)/VLOOKUP($DJ$32,'２データ'!$A$4:$KH$5000,'２データ'!IG$2,FALSE)*100)))) -> 66 | AM237: =IF($BW$12="都府県との比較","都府県平均",IF($BW$12="全国との比較","全国平均","府県平均")) -> 府県平均 | AT237: =IF(ISNA($DJ$4),"",IF(OR(VLOOKUP($DJ$32,'２データ'!$A$4:$KH$5000,'２データ'!IG$2,FALSE)="…",VLOOKUP($DJ$32,'２データ'!$A$4:$KH$5000,'２データ'!IG$2,FALSE)="-"),"nc",VLOOKUP($DJ$32,'２データ'!$A$4:$KH$5000,'２データ'!IG$2,FALSE)/VLOOKUP($DJ$32,'２データ'!$A$4:$KH$5000,'２データ'!IG$2,FALSE)*100)) -> 100 | AY237: =IF(ISNA($DJ$4),"",IF(VLOOKUP($DJ$32,'２データ'!$A$4:$KH$5000,'２データ'!IJ$2,FALSE)="…","nc",IF(OR(VLOOKUP($DJ$32,'２データ'!$A$4:$KH$5000,'２データ'!IG$2,FALSE)="…",VLOOKUP($DJ$32,'２データ'!$A$4:$KH$5000,'２データ'!IG$2,FALSE)="-"),"nc",IF(VLOOKUP($DJ$32,'２データ'!$A$4:$KH$5000,'２データ'!IJ$2,FALSE)="-","-",VLOOKUP($DJ$32,'２データ'!$A$4:$KH$5000,'２データ'!IJ$2,FALSE)/VLOOKUP($DJ$32,'２データ'!$A$4:$KH$5000,'２データ'!IG$2,FALSE)*100)))) -> 93 | BD237: =IF(ISNA($DJ$4),"",IF(VLOOKUP($DJ$32,'２データ'!$A$4:$KH$5000,'２データ'!IK$2,FALSE)="…","nc",IF(OR(VLOOKUP($DJ$32,'２データ'!$A$4:$KH$5000,'２データ'!IG$2,FALSE)="…",VLOOKUP($DJ$32,'２データ'!$A$4:$KH$5000,'２データ'!IG$2,FALSE)="-"),"nc",IF(VLOOKUP($DJ$32,'２データ'!$A$4:$KH$5000,'２データ'!IK$2,FALSE)="-","-",VLOOKUP($DJ$32,'２データ'!$A$4:$KH$5000,'２データ'!IK$2,FALSE)/VLOOKUP($DJ$32,'２データ'!$A$4:$KH$5000,'２データ'!IG$2,FALSE)*100)))) -> 19 | BI237: =IF(ISNA($DJ$4),"",IF(VLOOKUP($DJ$32,'２データ'!$A$4:$KH$5000,'２データ'!IL$2,FALSE)="…","nc",IF(OR(VLOOKUP($DJ$32,'２データ'!$A$4:$KH$5000,'２データ'!IG$2,FALSE)="…",VLOOKUP($DJ$32,'２データ'!$A$4:$KH$5000,'２データ'!IG$2,FALSE)="-"),"nc",IF(VLOOKUP($DJ$32,'２データ'!$A$4:$KH$5000,'２データ'!IL$2,FALSE)="-","-",VLOOKUP($DJ$32,'２データ'!$A$4:$KH$5000,'２データ'!IL$2,FALSE)/VLOOKUP($DJ$32,'２データ'!$A$4:$KH$5000,'２データ'!IG$2,FALSE)*100)))) -> 30 | BN237: =IF(ISNA($DJ$4),"",IF(VLOOKUP($DJ$32,'２データ'!$A$4:$KH$5000,'２データ'!IM$2,FALSE)="…","nc",IF(OR(VLOOKUP($DJ$32,'２データ'!$A$4:$KH$5000,'２データ'!IG$2,FALSE)="…",VLOOKUP($DJ$32,'２データ'!$A$4:$KH$5000,'２データ'!IG$2,FALSE)="-"),"nc",IF(VLOOKUP($DJ$32,'２データ'!$A$4:$KH$5000,'２データ'!IM$2,FALSE)="-","-",VLOOKUP($DJ$32,'２データ'!$A$4:$KH$5000,'２データ'!IM$2,FALSE)/VLOOKUP($DJ$32,'２データ'!$A$4:$KH$5000,'２データ'!IG$2,FALSE)*100)))) -> 23 | BS237: =IF(ISNA($DJ$4),"",IF(VLOOKUP($DJ$32,'２データ'!$A$4:$KH$5000,'２データ'!IN$2,FALSE)="…","nc",IF(OR(VLOOKUP($DJ$32,'２データ'!$A$4:$KH$5000,'２データ'!IG$2,FALSE)="…",VLOOKUP($DJ$32,'２データ'!$A$4:$KH$5000,'２データ'!IG$2,FALSE)="-"),"nc",IF(VLOOKUP($DJ$32,'２データ'!$A$4:$KH$5000,'２データ'!IN$2,FALSE)="-","-",VLOOKUP($DJ$32,'２データ'!$A$4:$KH$5000,'２データ'!IN$2,FALSE)/VLOOKUP($DJ$32,'２データ'!$A$4:$KH$5000,'２データ'!IG$2,FALSE)*100)))) -> 19 | BX237: =IF(ISNA($DJ$4),"",IF(VLOOKUP($DJ$32,'２データ'!$A$4:$KH$5000,'２データ'!IO$2,FALSE)="…","nc",IF(OR(VLOOKUP($DJ$32,'２データ'!$A$4:$KH$5000,'２データ'!IG$2,FALSE)="…",VLOOKUP($DJ$32,'２データ'!$A$4:$KH$5000,'２データ'!IG$2,FALSE)="-"),"nc",IF(VLOOKUP($DJ$32,'２データ'!$A$4:$KH$5000,'２データ'!IO$2,FALSE)="-","-",VLOOKUP($DJ$32,'２データ'!$A$4:$KH$5000,'２データ'!IO$2,FALSE)/VLOOKUP($DJ$32,'２データ'!$A$4:$KH$5000,'２データ'!IG$2,FALSE)*100)))) -> 3 | CC237: =IF(ISNA($DJ$4),"",IF(VLOOKUP($DJ$32,'２データ'!$A$4:$KH$5000,'２データ'!IP$2,FALSE)="…","nc",IF(OR(VLOOKUP($DJ$32,'２データ'!$A$4:$KH$5000,'２データ'!IG$2,FALSE)="…",VLOOKUP($DJ$32,'２データ'!$A$4:$KH$5000,'２データ'!IG$2,FALSE)="-"),"nc",IF(VLOOKUP($DJ$32,'２データ'!$A$4:$KH$5000,'２データ'!IP$2,FALSE)="-","-",VLOOKUP($DJ$32,'２データ'!$A$4:$KH$5000,'２データ'!IP$2,FALSE)/VLOOKUP($DJ$32,'２データ'!$A$4:$KH$5000,'２データ'!IG$2,FALSE)*100)))) -> 7
AH238: 注：平成27年の寄り合いの回数別農業集落数は、組替集計による。
C239: (3) 寄り合いの議題別農業集落数
C240: 区 分 | O240: 農業 集落数 | T240: 寄り合いの議題（複数回答）
T241: 農業生産にかかる事項 | AA241: 農道･農業用用排水路･ため池の管理 | AH241: 集落共有財産･共用施設の管理 | AO241: 環境美化･自然環境の保全 | AV241: 農業集落行事(祭り･イベントなど)の実施 | BC241: 農業集落内の福祉･厚生 | BJ241: 定住を推進する取組 | BQ241: グリーン・ツーリズムの取組 | BX241: ６次産業化への取組 | CE241: 再生可能エネルギーへの取組
C246: 農業 集落数 | H246: 平成27年 | O246: =IF(ISNA($DJ$4),"",IF(VLOOKUP($DJ$4,'27データ'!$A$4:$KH$5000,'27データ'!IG$2,FALSE)=0,"-",VLOOKUP($DJ$4,'27データ'!$A$4:$KH$5000,'27データ'!IG$2,FALSE))) -> 1,599 | T246: =IF(ISNA($DJ$4),"",IF(VLOOKUP($DJ$4,'27データ'!$A$4:$KH$5000,'27データ'!IQ$2,FALSE)=0,"-",VLOOKUP($DJ$4,'27データ'!$A$4:$KH$5000,'27データ'!IQ$2,FALSE))) -> 598 | AA246: =IF(ISNA($DJ$4),"",IF(VLOOKUP($DJ$4,'27データ'!$A$4:$KH$5000,'27データ'!IR$2,FALSE)=0,"-",VLOOKUP($DJ$4,'27データ'!$A$4:$KH$5000,'27データ'!IR$2,FALSE))) -> 1,232 | AH246: =IF(ISNA($DJ$4),"",IF(VLOOKUP($DJ$4,'27データ'!$A$4:$KH$5000,'27データ'!IS$2,FALSE)=0,"-",VLOOKUP($DJ$4,'27データ'!$A$4:$KH$5000,'27データ'!IS$2,FALSE))) -> 865 | AO246: =IF(ISNA($DJ$4),"",IF(VLOOKUP($DJ$4,'27データ'!$A$4:$KH$5000,'27データ'!IT$2,FALSE)=0,"-",VLOOKUP($DJ$4,'27データ'!$A$4:$KH$5000,'27データ'!IT$2,FALSE))) -> 1,367 | AV246: =IF(ISNA($DJ$4),"",IF(VLOOKUP($DJ$4,'27データ'!$A$4:$KH$5000,'27データ'!IU$2,FALSE)=0,"-",VLOOKUP($DJ$4,'27データ'!$A$4:$KH$5000,'27データ'!IU$2,FALSE))) -> 1,346 | BC246: =IF(ISNA($DJ$4),"",IF(VLOOKUP($DJ$4,'27データ'!$A$4:$KH$5000,'27データ'!IV$2,FALSE)=0,"-",VLOOKUP($DJ$4,'27データ'!$A$4:$KH$5000,'27データ'!IV$2,FALSE))) -> 947 | BJ246: =IF(ISNA($DJ$4),"","…") -> … | BQ246: =IF(ISNA($DJ$4),"","…") -> … | BX246: =IF(ISNA($DJ$4),"","…") -> … | CE246: =IF(ISNA($DJ$4),"",IF(VLOOKUP($DJ$4,'27データ'!$A$4:$KH$5000,'27データ'!IZ$2,FALSE)=0,"-",VLOOKUP($DJ$4,'27データ'!$A$4:$KH$5000,'27データ'!IZ$2,FALSE))) -> 55
H247: 令和２年 | O247: =IF(ISNA($DJ$4),"",IF(VLOOKUP($DJ$4,'２データ'!$A$4:$KH$5000,'２データ'!IG$2,FALSE)=0,"-",VLOOKUP($DJ$4,'２データ'!$A$4:$KH$5000,'２データ'!IG$2,FALSE))) -> 1,599 | T247: =IF(ISNA($DJ$4),"",IF(VLOOKUP($DJ$4,'２データ'!$A$4:$KH$5000,'２データ'!IQ$2,FALSE)=0,"-",VLOOKUP($DJ$4,'２データ'!$A$4:$KH$5000,'２データ'!IQ$2,FALSE))) -> 556 | AA247: =IF(ISNA($DJ$4),"",IF(VLOOKUP($DJ$4,'２データ'!$A$4:$KH$5000,'２データ'!IR$2,FALSE)=0,"-",VLOOKUP($DJ$4,'２データ'!$A$4:$KH$5000,'２データ'!IR$2,FALSE))) -> 1,104 | AH247: =IF(ISNA($DJ$4),"",IF(VLOOKUP($DJ$4,'２データ'!$A$4:$KH$5000,'２データ'!IS$2,FALSE)=0,"-",VLOOKUP($DJ$4,'２データ'!$A$4:$KH$5000,'２データ'!IS$2,FALSE))) -> 893 | AO247: =IF(ISNA($DJ$4),"",IF(VLOOKUP($DJ$4,'２データ'!$A$4:$KH$5000,'２データ'!IT$2,FALSE)=0,"-",VLOOKUP($DJ$4,'２データ'!$A$4:$KH$5000,'２データ'!IT$2,FALSE))) -> 1,301 | AV247: =IF(ISNA($DJ$4),"",IF(VLOOKUP($DJ$4,'２データ'!$A$4:$KH$5000,'２データ'!IU$2,FALSE)=0,"-",VLOOKUP($DJ$4,'２データ'!$A$4:$KH$5000,'２データ'!IU$2,FALSE))) -> 1,296 | BC247: =IF(ISNA($DJ$4),"",IF(VLOOKUP($DJ$4,'２データ'!$A$4:$KH$5000,'２データ'!IV$2,FALSE)=0,"-",VLOOKUP($DJ$4,'２データ'!$A$4:$KH$5000,'２データ'!IV$2,FALSE))) -> 830 | BJ247: =IF(ISNA($DJ$4),"",IF(VLOOKUP($DJ$4,'２データ'!$A$4:$KH$5000,'２データ'!IW$2,FALSE)=0,"-",VLOOKUP($DJ$4,'２データ'!$A$4:$KH$5000,'２データ'!IW$2,FALSE))) -> 54 | BQ247: =IF(ISNA($DJ$4),"",IF(VLOOKUP($DJ$4,'２データ'!$A$4:$KH$5000,'２データ'!IX$2,FALSE)=0,"-",VLOOKUP($DJ$4,'２データ'!$A$4:$KH$5000,'２データ'!IX$2,FALSE))) -> 35 | BX247: =IF(ISNA($DJ$4),"",IF(VLOOKUP($DJ$4,'２データ'!$A$4:$KH$5000,'２データ'!IY$2,FALSE)=0,"-",VLOOKUP($DJ$4,'２データ'!$A$4:$KH$5000,'２データ'!IY$2,FALSE))) -> 13 | CE247: =IF(ISNA($DJ$4),"",IF(VLOOKUP($DJ$4,'２データ'!$A$4:$KH$5000,'２データ'!IZ$2,FALSE)=0,"-",VLOOKUP($DJ$4,'２データ'!$A$4:$KH$5000,'２データ'!IZ$2,FALSE))) -> 58
C248: 構成比 (％) | H248: 平成27年 | O248: =IF(ISNA($DJ$4),"",IF(OR($O246="@",$O246="…",$O246="-"),"nc",O246/$O246*100)) -> 100 | T248: =IF(ISNA($DJ$4),"",IF(OR($O246="@",$O246="…",$O246="-"),"nc",IF(T246="-","-",IF(T246="…","nc",T246/$O246*100)))) -> 37 | Y248: =IF(ISNA($DJ$4),"",IF(OR($O246="@",$O246="…",$O246="-"),"nc",IF(Y246="-","-",IF(Y246="…","nc",Y246/$O246*100)))) -> 0 | AA248: 77 | AF248: 0 | AH248: 54 | AM248: 0 | AO248: 85 | AT248: 0 | AV248: 84 | BA248: 0 | BC248: 59 | BH248: 0 | BJ248: nc | BO248: 0 | BQ248: nc | BV248: 0 | BX248: nc | CC248: 0 | CE248: 3 | CJ248: 0
H249: 令和２年 | O249: =IF(ISNA($DJ$4),"",IF(OR($O247="@",$O247="…",$O247="-"),"nc",O247/$O247*100)) -> 100 | T249: 35 | Y249: 0 | AA249: 69 | AF249: 0 | AH249: 56 | AM249: 0 | AO249: 81 | AT249: 0 | AV249: 81 | BA249: 0 | BC249: 52 | BH249: 0 | BJ249: 3 | BO249: 0 | BQ249: 2 | BV249: 0 | BX249: 1 | CC249: 0 | CE249: 4 | CJ249: 0
H250: =IF($BW$12="都府県との比較","都府県平均",IF($BW$12="全国との比較","全国平均","府県平均")) -> 府県平均 | O250: =IF(ISNA($DJ$4),"",IF(OR(VLOOKUP($DJ$32,'２データ'!$A$4:$KH$5000,'２データ'!IG$2,FALSE)="…",VLOOKUP($DJ$32,'２データ'!$A$4:$KH$5000,'２データ'!IG$2,FALSE)="-"),"nc",VLOOKUP($DJ$32,'２データ'!$A$4:$KH$5000,'２データ'!IG$2,FALSE)/VLOOKUP($DJ$32,'２データ'!$A$4:$KH$5000,'２データ'!IG$2,FALSE)*100)) -> 100 | T250: =IF(ISNA($DJ$4),"",IF(VLOOKUP($DJ$32,'２データ'!$A$4:$KH$5000,'２データ'!IQ$2,FALSE)="…","nc",IF(OR(VLOOKUP($DJ$32,'２データ'!$A$4:$KH$5000,'２データ'!IG$2,FALSE)="…",VLOOKUP($DJ$32,'２データ'!$A$4:$KH$5000,'２データ'!IG$2,FALSE)="-"),"nc",IF(VLOOKUP($DJ$32,'２データ'!$A$4:$KH$5000,'２データ'!IQ$2,FALSE)="-","-",VLOOKUP($DJ$32,'２データ'!$A$4:$KH$5000,'２データ'!IQ$2,FALSE)/VLOOKUP($DJ$32,'２データ'!$A$4:$KH$5000,'２データ'!IG$2,FALSE)*100)))) -> 35 | AA250: =IF(ISNA($DJ$4),"",IF(VLOOKUP($DJ$32,'２データ'!$A$4:$KH$5000,'２データ'!IR$2,FALSE)="…","nc",IF(OR(VLOOKUP($DJ$32,'２データ'!$A$4:$KH$5000,'２データ'!IG$2,FALSE)="…",VLOOKUP($DJ$32,'２データ'!$A$4:$KH$5000,'２データ'!IG$2,FALSE)="-"),"nc",IF(VLOOKUP($DJ$32,'２データ'!$A$4:$KH$5000,'２データ'!IR$2,FALSE)="-","-",VLOOKUP($DJ$32,'２データ'!$A$4:$KH$5000,'２データ'!IR$2,FALSE)/VLOOKUP($DJ$32,'２データ'!$A$4:$KH$5000,'２データ'!IG$2,FALSE)*100)))) -> 69 | AH250: =IF(ISNA($DJ$4),"",IF(VLOOKUP($DJ$32,'２データ'!$A$4:$KH$5000,'２データ'!IS$2,FALSE)="…","nc",IF(OR(VLOOKUP($DJ$32,'２データ'!$A$4:$KH$5000,'２データ'!IG$2,FALSE)="…",VLOOKUP($DJ$32,'２データ'!$A$4:$KH$5000,'２データ'!IG$2,FALSE)="-"),"nc",IF(VLOOKUP($DJ$32,'２データ'!$A$4:$KH$5000,'２データ'!IS$2,FALSE)="-","-",VLOOKUP($DJ$32,'２データ'!$A$4:$KH$5000,'２データ'!IS$2,FALSE)/VLOOKUP($DJ$32,'２データ'!$A$4:$KH$5000,'２データ'!IG$2,FALSE)*100)))) -> 56 | AO250: =IF(ISNA($DJ$4),"",IF(VLOOKUP($DJ$32,'２データ'!$A$4:$KH$5000,'２データ'!IT$2,FALSE)="…","nc",IF(OR(VLOOKUP($DJ$32,'２データ'!$A$4:$KH$5000,'２データ'!IG$2,FALSE)="…",VLOOKUP($DJ$32,'２データ'!$A$4:$KH$5000,'２データ'!IG$2,FALSE)="-"),"nc",IF(VLOOKUP($DJ$32,'２データ'!$A$4:$KH$5000,'２データ'!IT$2,FALSE)="-","-",VLOOKUP($DJ$32,'２データ'!$A$4:$KH$5000,'２データ'!IT$2,FALSE)/VLOOKUP($DJ$32,'２データ'!$A$4:$KH$5000,'２データ'!IG$2,FALSE)*100)))) -> 81 | AV250: =IF(ISNA($DJ$4),"",IF(VLOOKUP($DJ$32,'２データ'!$A$4:$KH$5000,'２データ'!IU$2,FALSE)="…","nc",IF(OR(VLOOKUP($DJ$32,'２データ'!$A$4:$KH$5000,'２データ'!IG$2,FALSE)="…",VLOOKUP($DJ$32,'２データ'!$A$4:$KH$5000,'２データ'!IG$2,FALSE)="-"),"nc",IF(VLOOKUP($DJ$32,'２データ'!$A$4:$KH$5000,'２データ'!IU$2,FALSE)="-","-",VLOOKUP($DJ$32,'２データ'!$A$4:$KH$5000,'２データ'!IU$2,FALSE)/VLOOKUP($DJ$32,'２データ'!$A$4:$KH$5000,'２データ'!IG$2,FALSE)*100)))) -> 81 | BC250: =IF(ISNA($DJ$4),"",IF(VLOOKUP($DJ$32,'２データ'!$A$4:$KH$5000,'２データ'!IV$2,FALSE)="…","nc",IF(OR(VLOOKUP($DJ$32,'２データ'!$A$4:$KH$5000,'２データ'!IG$2,FALSE)="…",VLOOKUP($DJ$32,'２データ'!$A$4:$KH$5000,'２データ'!IG$2,FALSE)="-"),"nc",IF(VLOOKUP($DJ$32,'２データ'!$A$4:$KH$5000,'２データ'!IV$2,FALSE)="-","-",VLOOKUP($DJ$32,'２データ'!$A$4:$KH$5000,'２データ'!IV$2,FALSE)/VLOOKUP($DJ$32,'２データ'!$A$4:$KH$5000,'２データ'!IG$2,FALSE)*100)))) -> 52 | BJ250: =IF(ISNA($DJ$4),"",IF(VLOOKUP($DJ$32,'２データ'!$A$4:$KH$5000,'２データ'!IW$2,FALSE)="…","nc",IF(OR(VLOOKUP($DJ$32,'２データ'!$A$4:$KH$5000,'２データ'!IG$2,FALSE)="…",VLOOKUP($DJ$32,'２データ'!$A$4:$KH$5000,'２データ'!IG$2,FALSE)="-"),"nc",IF(VLOOKUP($DJ$32,'２データ'!$A$4:$KH$5000,'２データ'!IW$2,FALSE)="-","-",VLOOKUP($DJ$32,'２データ'!$A$4:$KH$5000,'２データ'!IW$2,FALSE)/VLOOKUP($DJ$32,'２データ'!$A$4:$KH$5000,'２データ'!IG$2,FALSE)*100)))) -> 3 | BQ250: =IF(ISNA($DJ$4),"",IF(VLOOKUP($DJ$32,'２データ'!$A$4:$KH$5000,'２データ'!IX$2,FALSE)="…","nc",IF(OR(VLOOKUP($DJ$32,'２データ'!$A$4:$KH$5000,'２データ'!IG$2,FALSE)="…",VLOOKUP($DJ$32,'２データ'!$A$4:$KH$5000,'２データ'!IG$2,FALSE)="-"),"nc",IF(VLOOKUP($DJ$32,'２データ'!$A$4:$KH$5000,'２データ'!IX$2,FALSE)="-","-",VLOOKUP($DJ$32,'２データ'!$A$4:$KH$5000,'２データ'!IX$2,FALSE)/VLOOKUP($DJ$32,'２データ'!$A$4:$KH$5000,'２データ'!IG$2,FALSE)*100)))) -> 2 | BX250: =IF(ISNA($DJ$4),"",IF(VLOOKUP($DJ$32,'２データ'!$A$4:$KH$5000,'２データ'!IY$2,FALSE)="…","nc",IF(OR(VLOOKUP($DJ$32,'２データ'!$A$4:$KH$5000,'２データ'!IG$2,FALSE)="…",VLOOKUP($DJ$32,'２データ'!$A$4:$KH$5000,'２データ'!IG$2,FALSE)="-"),"nc",IF(VLOOKUP($DJ$32,'２データ'!$A$4:$KH$5000,'２データ'!IY$2,FALSE)="-","-",VLOOKUP($DJ$32,'２データ'!$A$4:$KH$5000,'２データ'!IY$2,FALSE)/VLOOKUP($DJ$32,'２データ'!$A$4:$KH$5000,'２データ'!IG$2,FALSE)*100)))) -> 1 | CE250: =IF(ISNA($DJ$4),"",IF(VLOOKUP($DJ$32,'２データ'!$A$4:$KH$5000,'２データ'!IZ$2,FALSE)="…","nc",IF(OR(VLOOKUP($DJ$32,'２データ'!$A$4:$KH$5000,'２データ'!IG$2,FALSE)="…",VLOOKUP($DJ$32,'２データ'!$A$4:$KH$5000,'２データ'!IG$2,FALSE)="-"),"nc",IF(VLOOKUP($DJ$32,'２データ'!$A$4:$KH$5000,'２データ'!IZ$2,FALSE)="-","-",VLOOKUP($DJ$32,'２データ'!$A$4:$KH$5000,'２データ'!IZ$2,FALSE)/VLOOKUP($DJ$32,'２データ'!$A$4:$KH$5000,'２データ'!IG$2,FALSE)*100)))) -> 4
C252: (4) 寄り合いの議題となった取組の活動状況（令和２年）
C253: 区 分 | O253: 農業 集落数 | T253: 活動を行っている農業集落数
T254: 環境美化･自然環境の保全 | AA254: 農業集落行事(祭り･イベントなど)の実施 | AH254: 農業集落内の福祉･厚生 | AO254: 定住を推進する取組 | AV254: グリーン・ツーリズムの取組 | BC254: ６次産業化への取組 | BJ254: 再生可能エネルギーへの取組
C259: 農業集落数 | O259: =IF(ISNA($DJ$4),"",IF(VLOOKUP($DJ$4,'２データ'!$A$4:$KH$5000,'２データ'!IG$2,FALSE)=0,"-",VLOOKUP($DJ$4,'２データ'!$A$4:$KH$5000,'２データ'!IG$2,FALSE))) -> 1,599 | T259: =IF(ISNA($DJ$4),"",IF(VLOOKUP($DJ$4,'２データ'!$A$4:$KH$5000,'２データ'!JA$2,FALSE)=0,"-",VLOOKUP($DJ$4,'２データ'!$A$4:$KH$5000,'２データ'!JA$2,FALSE))) -> 1,222 | AA259: =IF(ISNA($DJ$4),"",IF(VLOOKUP($DJ$4,'２データ'!$A$4:$KH$5000,'２データ'!JB$2,FALSE)=0,"-",VLOOKUP($DJ$4,'２データ'!$A$4:$KH$5000,'２データ'!JB$2,FALSE))) -> 1,207 | AH259: =IF(ISNA($DJ$4),"",IF(VLOOKUP($DJ$4,'２データ'!$A$4:$KH$5000,'２データ'!JC$2,FALSE)=0,"-",VLOOKUP($DJ$4,'２データ'!$A$4:$KH$5000,'２データ'!JC$2,FALSE))) -> 732 | AO259: =IF(ISNA($DJ$4),"",IF(VLOOKUP($DJ$4,'２データ'!$A$4:$KH$5000,'２データ'!JD$2,FALSE)=0,"-",VLOOKUP($DJ$4,'２データ'!$A$4:$KH$5000,'２データ'!JD$2,FALSE))) -> 40 | AV259: =IF(ISNA($DJ$4),"",IF(VLOOKUP($DJ$4,'２データ'!$A$4:$KH$5000,'２データ'!JE$2,FALSE)=0,"-",VLOOKUP($DJ$4,'２データ'!$A$4:$KH$5000,'２データ'!JE$2,FALSE))) -> 28 | BC259: =IF(ISNA($DJ$4),"",IF(VLOOKUP($DJ$4,'２データ'!$A$4:$KH$5000,'２データ'!JF$2,FALSE)=0,"-",VLOOKUP($DJ$4,'２データ'!$A$4:$KH$5000,'２データ'!JF$2,FALSE))) -> 13 | BJ259: =IF(ISNA($DJ$4),"",IF(VLOOKUP($DJ$4,'２データ'!$A$4:$KH$5000,'２データ'!JG$2,FALSE)=0,"-",VLOOKUP($DJ$4,'２データ'!$A$4:$KH$5000,'２データ'!JG$2,FALSE))) -> 42
C260: 構成比 (％) | H260: 令和２年 | O260: =IF(ISNA($DJ$4),"",IF(OR(O$446="@",$O259="…",$O259="-"),"nc",O259/$O259*100)) -> 100 | T260: =IF(ISNA($DJ$4),"",IF(T259="…","nc",IF(OR($O259="@",$O259="…",$O259="-"),"nc",IF(T259="-","-",T259/$O259*100)))) -> 76 | AA260: =IF(ISNA($DJ$4),"",IF(AA259="…","nc",IF(OR($O259="@",$O259="…",$O259="-"),"nc",IF(AA259="-","-",AA259/$O259*100)))) -> 75 | AH260: =IF(ISNA($DJ$4),"",IF(AH259="…","nc",IF(OR($O259="@",$O259="…",$O259="-"),"nc",IF(AH259="-","-",AH259/$O259*100)))) -> 46 | AO260: =IF(ISNA($DJ$4),"",IF(AO259="…","nc",IF(OR($O259="@",$O259="…",$O259="-"),"nc",IF(AO259="-","-",AO259/$O259*100)))) -> 3 | AV260: =IF(ISNA($DJ$4),"",IF(AV259="…","nc",IF(OR($O259="@",$O259="…",$O259="-"),"nc",IF(AV259="-","-",AV259/$O259*100)))) -> 2 | BC260: =IF(ISNA($DJ$4),"",IF(BC259="…","nc",IF(OR($O259="@",$O259="…",$O259="-"),"nc",IF(BC259="-","-",BC259/$O259*100)))) -> 1 | BJ260: =IF(ISNA($DJ$4),"",IF(BJ259="…","nc",IF(OR($O259="@",$O259="…",$O259="-"),"nc",IF(BJ259="-","-",BJ259/$O259*100)))) -> 3
H261: =IF($BW$12="都府県との比較","都府県平均",IF($BW$12="全国との比較","全国平均","府県平均")) -> 府県平均 | O261: =IF(ISNA($DJ$4),"",IF(OR(VLOOKUP($DJ$32,'２データ'!$A$4:$KH$5000,'２データ'!IG$2,FALSE)="…",VLOOKUP($DJ$32,'２データ'!$A$4:$KH$5000,'２データ'!IG$2,FALSE)=0),"nc",VLOOKUP($DJ$32,'２データ'!$A$4:$KH$5000,'２データ'!IG$2,FALSE)/VLOOKUP($DJ$32,'２データ'!$A$4:$KH$5000,'２データ'!IG$2,FALSE)*100)) -> 100 | T261: =IF(ISNA($DJ$4),"",IF(VLOOKUP($DJ$32,'２データ'!$A$4:$KH$5000,'２データ'!JA$2,FALSE)="…","nc",IF(OR(VLOOKUP($DJ$32,'２データ'!$A$4:$KH$5000,'２データ'!IG$2,FALSE)="…",VLOOKUP($DJ$32,'２データ'!$A$4:$KH$5000,'２データ'!IG$2,FALSE)=0),"nc",IF(VLOOKUP($DJ$32,'２データ'!$A$4:$KH$5000,'２データ'!JA$2,FALSE)=0,"-",VLOOKUP($DJ$32,'２データ'!$A$4:$KH$5000,'２データ'!JA$2,FALSE)/VLOOKUP($DJ$32,'２データ'!$A$4:$KH$5000,'２データ'!IG$2,FALSE)*100)))) -> 76 | AA261: =IF(ISNA($DJ$4),"",IF(VLOOKUP($DJ$32,'２データ'!$A$4:$KH$5000,'２データ'!JB$2,FALSE)="…","nc",IF(OR(VLOOKUP($DJ$32,'２データ'!$A$4:$KH$5000,'２データ'!IG$2,FALSE)="…",VLOOKUP($DJ$32,'２データ'!$A$4:$KH$5000,'２データ'!IG$2,FALSE)=0),"nc",IF(VLOOKUP($DJ$32,'２データ'!$A$4:$KH$5000,'２データ'!JB$2,FALSE)=0,"-",VLOOKUP($DJ$32,'２データ'!$A$4:$KH$5000,'２データ'!JB$2,FALSE)/VLOOKUP($DJ$32,'２データ'!$A$4:$KH$5000,'２データ'!IG$2,FALSE)*100)))) -> 75 | AH261: =IF(ISNA($DJ$4),"",IF(VLOOKUP($DJ$32,'２データ'!$A$4:$KH$5000,'２データ'!JC$2,FALSE)="…","nc",IF(OR(VLOOKUP($DJ$32,'２データ'!$A$4:$KH$5000,'２データ'!IG$2,FALSE)="…",VLOOKUP($DJ$32,'２データ'!$A$4:$KH$5000,'２データ'!IG$2,FALSE)=0),"nc",IF(VLOOKUP($DJ$32,'２データ'!$A$4:$KH$5000,'２データ'!JC$2,FALSE)=0,"-",VLOOKUP($DJ$32,'２データ'!$A$4:$KH$5000,'２データ'!JC$2,FALSE)/VLOOKUP($DJ$32,'２データ'!$A$4:$KH$5000,'２データ'!IG$2,FALSE)*100)))) -> 46 | AO261: =IF(ISNA($DJ$4),"",IF(VLOOKUP($DJ$32,'２データ'!$A$4:$KH$5000,'２データ'!JD$2,FALSE)="…","nc",IF(OR(VLOOKUP($DJ$32,'２データ'!$A$4:$KH$5000,'２データ'!IG$2,FALSE)="…",VLOOKUP($DJ$32,'２データ'!$A$4:$KH$5000,'２データ'!IG$2,FALSE)=0),"nc",IF(VLOOKUP($DJ$32,'２データ'!$A$4:$KH$5000,'２データ'!JD$2,FALSE)=0,"-",VLOOKUP($DJ$32,'２データ'!$A$4:$KH$5000,'２データ'!JD$2,FALSE)/VLOOKUP($DJ$32,'２データ'!$A$4:$KH$5000,'２データ'!IG$2,FALSE)*100)))) -> 3 | AV261: =IF(ISNA($DJ$4),"",IF(VLOOKUP($DJ$32,'２データ'!$A$4:$KH$5000,'２データ'!JE$2,FALSE)="…","nc",IF(OR(VLOOKUP($DJ$32,'２データ'!$A$4:$KH$5000,'２データ'!IG$2,FALSE)="…",VLOOKUP($DJ$32,'２データ'!$A$4:$KH$5000,'２データ'!IG$2,FALSE)=0),"nc",IF(VLOOKUP($DJ$32,'２データ'!$A$4:$KH$5000,'２データ'!JE$2,FALSE)=0,"-",VLOOKUP($DJ$32,'２データ'!$A$4:$KH$5000,'２データ'!JE$2,FALSE)/VLOOKUP($DJ$32,'２データ'!$A$4:$KH$5000,'２データ'!IG$2,FALSE)*100)))) -> 2 | BC261: =IF(ISNA($DJ$4),"",IF(VLOOKUP($DJ$32,'２データ'!$A$4:$KH$5000,'２データ'!JF$2,FALSE)="…","nc",IF(OR(VLOOKUP($DJ$32,'２データ'!$A$4:$KH$5000,'２データ'!IG$2,FALSE)="…",VLOOKUP($DJ$32,'２データ'!$A$4:$KH$5000,'２データ'!IG$2,FALSE)=0),"nc",IF(VLOOKUP($DJ$32,'２データ'!$A$4:$KH$5000,'２データ'!JF$2,FALSE)=0,"-",VLOOKUP($DJ$32,'２データ'!$A$4:$KH$5000,'２データ'!JF$2,FALSE)/VLOOKUP($DJ$32,'２データ'!$A$4:$KH$5000,'２データ'!IG$2,FALSE)*100)))) -> 1 | BJ261: =IF(ISNA($DJ$4),"",IF(VLOOKUP($DJ$32,'２データ'!$A$4:$KH$5000,'２データ'!JG$2,FALSE)="…","nc",IF(OR(VLOOKUP($DJ$32,'２データ'!$A$4:$KH$5000,'２データ'!IG$2,FALSE)="…",VLOOKUP($DJ$32,'２データ'!$A$4:$KH$5000,'２データ'!IG$2,FALSE)=0),"nc",IF(VLOOKUP($DJ$32,'２データ'!$A$4:$KH$5000,'２データ'!JG$2,FALSE)=0,"-",VLOOKUP($DJ$32,'２データ'!$A$4:$KH$5000,'２データ'!JG$2,FALSE)/VLOOKUP($DJ$32,'２データ'!$A$4:$KH$5000,'２データ'!IG$2,FALSE)*100)))) -> 3
C263: (5) 地域資源の保全
C264: 区 分 | O264: 農業 集落数 | T264: 地域資源のある農業集落数
T265: 農地 | AD265: 農業用用排水路 | AN265: 河川･水路 | AX265: 森林 | BH265: ため池･湖沼
Y266: 保全している | AI266: 保全している | AS266: 保全している | BC266: 保全している | BM266: 保全している
C268: 農業 集落数 | H268: 平成27年 | O268: =IF(ISNA($DJ$4),"",IF(VLOOKUP($DJ$4,'27データ'!$A$4:$KH$5000,'27データ'!IG$2,FALSE)=0,"-",VLOOKUP($DJ$4,'27データ'!$A$4:$KH$5000,'27データ'!IG$2,FALSE))) -> 1,599 | T268: =IF(ISNA($DJ$4),"",IF(VLOOKUP($DJ$4,'27データ'!$A$4:$KH$5000,'27データ'!JH$2,FALSE)=0,"-",VLOOKUP($DJ$4,'27データ'!$A$4:$KH$5000,'27データ'!JH$2,FALSE))) -> 1,472 | Y268: =IF(ISNA($DJ$4),"",IF(VLOOKUP($DJ$4,'27データ'!$A$4:$KH$5000,'27データ'!JI$2,FALSE)=0,"-",VLOOKUP($DJ$4,'27データ'!$A$4:$KH$5000,'27データ'!JI$2,FALSE))) -> 775 | AD268: =IF(ISNA($DJ$4),"",IF(VLOOKUP($DJ$4,'27データ'!$A$4:$KH$5000,'27データ'!JJ$2,FALSE)=0,"-",VLOOKUP($DJ$4,'27データ'!$A$4:$KH$5000,'27データ'!JJ$2,FALSE))) -> 1,463 | AI268: =IF(ISNA($DJ$4),"",IF(VLOOKUP($DJ$4,'27データ'!$A$4:$KH$5000,'27データ'!JK$2,FALSE)=0,"-",VLOOKUP($DJ$4,'27データ'!$A$4:$KH$5000,'27データ'!JK$2,FALSE))) -> 1,097 | AN268: =IF(ISNA($DJ$4),"",IF(VLOOKUP($DJ$4,'27データ'!$A$4:$KH$5000,'27データ'!JL$2,FALSE)=0,"-",VLOOKUP($DJ$4,'27データ'!$A$4:$KH$5000,'27データ'!JL$2,FALSE))) -> 1,519 | AS268: =IF(ISNA($DJ$4),"",IF(VLOOKUP($DJ$4,'27データ'!$A$4:$KH$5000,'27データ'!JM$2,FALSE)=0,"-",VLOOKUP($DJ$4,'27データ'!$A$4:$KH$5000,'27データ'!JM$2,FALSE))) -> 686 | AX268: =IF(ISNA($DJ$4),"",IF(VLOOKUP($DJ$4,'27データ'!$A$4:$KH$5000,'27データ'!JN$2,FALSE)=0,"-",VLOOKUP($DJ$4,'27データ'!$A$4:$KH$5000,'27データ'!JN$2,FALSE))) -> 1,368 | BC268: =IF(ISNA($DJ$4),"",IF(VLOOKUP($DJ$4,'27データ'!$A$4:$KH$5000,'27データ'!JO$2,FALSE)=0,"-",VLOOKUP($DJ$4,'27データ'!$A$4:$KH$5000,'27データ'!JO$2,FALSE))) -> 232 | BH268: =IF(ISNA($DJ$4),"",IF(VLOOKUP($DJ$4,'27データ'!$A$4:$KH$5000,'27データ'!JP$2,FALSE)=0,"-",VLOOKUP($DJ$4,'27データ'!$A$4:$KH$5000,'27データ'!JP$2,FALSE))) -> 721 | BM268: =IF(ISNA($DJ$4),"",IF(VLOOKUP($DJ$4,'27データ'!$A$4:$KH$5000,'27データ'!JQ$2,FALSE)=0,"-",VLOOKUP($DJ$4,'27データ'!$A$4:$KH$5000,'27データ'!JQ$2,FALSE))) -> 480
H269: 令和２年 | O269: =IF(ISNA($DJ$4),"",IF(VLOOKUP($DJ$4,'２データ'!$A$4:$KH$5000,'２データ'!IG$2,FALSE)=0,"-",VLOOKUP($DJ$4,'２データ'!$A$4:$KH$5000,'２データ'!IG$2,FALSE))) -> 1,599 | T269: =IF(ISNA($DJ$4),"",IF(VLOOKUP($DJ$4,'２データ'!$A$4:$KH$5000,'２データ'!JH$2,FALSE)=0,"-",VLOOKUP($DJ$4,'２データ'!$A$4:$KH$5000,'２データ'!JH$2,FALSE))) -> 1,554 | Y269: =IF(ISNA($DJ$4),"",IF(VLOOKUP($DJ$4,'２データ'!$A$4:$KH$5000,'２データ'!JI$2,FALSE)=0,"-",VLOOKUP($DJ$4,'２データ'!$A$4:$KH$5000,'２データ'!JI$2,FALSE))) -> 831 | AD269: =IF(ISNA($DJ$4),"",IF(VLOOKUP($DJ$4,'２データ'!$A$4:$KH$5000,'２データ'!JJ$2,FALSE)=0,"-",VLOOKUP($DJ$4,'２データ'!$A$4:$KH$5000,'２データ'!JJ$2,FALSE))) -> 1,500 | AI269: =IF(ISNA($DJ$4),"",IF(VLOOKUP($DJ$4,'２データ'!$A$4:$KH$5000,'２データ'!JK$2,FALSE)=0,"-",VLOOKUP($DJ$4,'２データ'!$A$4:$KH$5000,'２データ'!JK$2,FALSE))) -> 1,113 | AN269: =IF(ISNA($DJ$4),"",IF(VLOOKUP($DJ$4,'２データ'!$A$4:$KH$5000,'２データ'!JL$2,FALSE)=0,"-",VLOOKUP($DJ$4,'２データ'!$A$4:$KH$5000,'２データ'!JL$2,FALSE))) -> 1,527 | AS269: =IF(ISNA($DJ$4),"",IF(VLOOKUP($DJ$4,'２データ'!$A$4:$KH$5000,'２データ'!JM$2,FALSE)=0,"-",VLOOKUP($DJ$4,'２データ'!$A$4:$KH$5000,'２データ'!JM$2,FALSE))) -> 812 | AX269: =IF(ISNA($DJ$4),"",IF(VLOOKUP($DJ$4,'２データ'!$A$4:$KH$5000,'２データ'!JN$2,FALSE)=0,"-",VLOOKUP($DJ$4,'２データ'!$A$4:$KH$5000,'２データ'!JN$2,FALSE))) -> 1,373 | BC269: =IF(ISNA($DJ$4),"",IF(VLOOKUP($DJ$4,'２データ'!$A$4:$KH$5000,'２データ'!JO$2,FALSE)=0,"-",VLOOKUP($DJ$4,'２データ'!$A$4:$KH$5000,'２データ'!JO$2,FALSE))) -> 316 | BH269: =IF(ISNA($DJ$4),"",IF(VLOOKUP($DJ$4,'２データ'!$A$4:$KH$5000,'２データ'!JP$2,FALSE)=0,"-",VLOOKUP($DJ$4,'２データ'!$A$4:$KH$5000,'２データ'!JP$2,FALSE))) -> 753 | BM269: =IF(ISNA($DJ$4),"",IF(VLOOKUP($DJ$4,'２データ'!$A$4:$KH$5000,'２データ'!JQ$2,FALSE)=0,"-",VLOOKUP($DJ$4,'２データ'!$A$4:$KH$5000,'２データ'!JQ$2,FALSE))) -> 515
C270: 構成比 (％) | H270: 平成27年 | O270: =IF(ISNA($DJ$4),"",IF(OR($O268="@",$O268="…",$O268="-"),"nc",O268/$O268*100)) -> 100 | T270: =IF(ISNA($DJ$4),"",IF(T268="…","nc",IF(OR($O268="@",$O268="…",$O268="-"),"nc",IF(T268="-","-",T268/$O268*100)))) -> 92 | Y270: =IF(ISNA($DJ$4),"",IF(Y268="…","nc",IF(OR($O268="@",$O268="…",$O268="-"),"nc",IF(Y268="-","-",Y268/$O268*100)))) -> 48 | AD270: =IF(ISNA($DJ$4),"",IF(AD268="…","nc",IF(OR($O268="@",$O268="…",$O268="-"),"nc",IF(AD268="-","-",AD268/$O268*100)))) -> 91 | AI270: =IF(ISNA($DJ$4),"",IF(AI268="…","nc",IF(OR($O268="@",$O268="…",$O268="-"),"nc",IF(AI268="-","-",AI268/$O268*100)))) -> 69 | AN270: =IF(ISNA($DJ$4),"",IF(AN268="…","nc",IF(OR($O268="@",$O268="…",$O268="-"),"nc",IF(AN268="-","-",AN268/$O268*100)))) -> 95 | AS270: =IF(ISNA($DJ$4),"",IF(AS268="…","nc",IF(OR($O268="@",$O268="…",$O268="-"),"nc",IF(AS268="-","-",AS268/$O268*100)))) -> 43 | AX270: =IF(ISNA($DJ$4),"",IF(AX268="…","nc",IF(OR($O268="@",$O268="…",$O268="-"),"nc",IF(AX268="-","-",AX268/$O268*100)))) -> 86 | BC270: =IF(ISNA($DJ$4),"",IF(BC268="…","nc",IF(OR($O268="@",$O268="…",$O268="-"),"nc",IF(BC268="-","-",BC268/$O268*100)))) -> 15 | BH270: =IF(ISNA($DJ$4),"",IF(BH268="…","nc",IF(OR($O268="@",$O268="…",$O268="-"),"nc",IF(BH268="-","-",BH268/$O268*100)))) -> 45 | BM270: =IF(ISNA($DJ$4),"",IF(BM268="…","nc",IF(OR($O268="@",$O268="…",$O268="-"),"nc",IF(BM268="-","-",BM268/$O268*100)))) -> 30
H271: 令和２年 | O271: =IF(ISNA($DJ$4),"",IF(OR($O269="@",$O269="…",$O269="-"),"nc",O269/$O269*100)) -> 100 | T271: =IF(ISNA($DJ$4),"",IF(T269="…","nc",IF(OR($O269="@",$O269="…",$O269="-"),"nc",IF(T269="-","-",T269/$O269*100)))) -> 97 | Y271: =IF(ISNA($DJ$4),"",IF(Y269="…","nc",IF(OR($O269="@",$O269="…",$O269="-"),"nc",IF(Y269="-","-",Y269/$O269*100)))) -> 52 | AD271: =IF(ISNA($DJ$4),"",IF(AD269="…","nc",IF(OR($O269="@",$O269="…",$O269="-"),"nc",IF(AD269="-","-",AD269/$O269*100)))) -> 94 | AI271: =IF(ISNA($DJ$4),"",IF(AI269="…","nc",IF(OR($O269="@",$O269="…",$O269="-"),"nc",IF(AI269="-","-",AI269/$O269*100)))) -> 70 | AN271: =IF(ISNA($DJ$4),"",IF(AN269="…","nc",IF(OR($O269="@",$O269="…",$O269="-"),"nc",IF(AN269="-","-",AN269/$O269*100)))) -> 95 | AS271: =IF(ISNA($DJ$4),"",IF(AS269="…","nc",IF(OR($O269="@",$O269="…",$O269="-"),"nc",IF(AS269="-","-",AS269/$O269*100)))) -> 51 | AX271: =IF(ISNA($DJ$4),"",IF(AX269="…","nc",IF(OR($O269="@",$O269="…",$O269="-"),"nc",IF(AX269="-","-",AX269/$O269*100)))) -> 86 | BC271: =IF(ISNA($DJ$4),"",IF(BC269="…","nc",IF(OR($O269="@",$O269="…",$O269="-"),"nc",IF(BC269="-","-",BC269/$O269*100)))) -> 20 | BH271: =IF(ISNA($DJ$4),"",IF(BH269="…","nc",IF(OR($O269="@",$O269="…",$O269="-"),"nc",IF(BH269="-","-",BH269/$O269*100)))) -> 47 | BM271: =IF(ISNA($DJ$4),"",IF(BM269="…","nc",IF(OR($O269="@",$O269="…",$O269="-"),"nc",IF(BM269="-","-",BM269/$O269*100)))) -> 32
H272: =IF($BW$12="都府県との比較","都府県平均",IF($BW$12="全国との比較","全国平均","府県平均")) -> 府県平均 | O272: =IF(ISNA($DJ$4),"",IF(OR(VLOOKUP($DJ$32,'２データ'!$A$4:$KH$5000,'２データ'!IG$2,FALSE)="…",VLOOKUP($DJ$32,'２データ'!$A$4:$KH$5000,'２データ'!IG$2,FALSE)="-"),"nc",VLOOKUP($DJ$32,'２データ'!$A$4:$KH$5000,'２データ'!IG$2,FALSE)/VLOOKUP($DJ$32,'２データ'!$A$4:$KH$5000,'２データ'!IG$2,FALSE)*100)) -> 100 | T272: =IF(ISNA($DJ$4),"",IF(VLOOKUP($DJ$32,'２データ'!$A$4:$KH$5000,'２データ'!JH$2,FALSE)="…","nc",IF(OR(VLOOKUP($DJ$32,'２データ'!$A$4:$KH$5000,'２データ'!IG$2,FALSE)="…",VLOOKUP($DJ$32,'２データ'!$A$4:$KH$5000,'２データ'!IG$2,FALSE)="-"),"nc",IF(VLOOKUP($DJ$32,'２データ'!$A$4:$KH$5000,'２データ'!JH$2,FALSE)="-","-",VLOOKUP($DJ$32,'２データ'!$A$4:$KH$5000,'２データ'!JH$2,FALSE)/VLOOKUP($DJ$32,'２データ'!$A$4:$KH$5000,'２データ'!IG$2,FALSE)*100)))) -> 97 | Y272: =IF(ISNA($DJ$4),"",IF(VLOOKUP($DJ$32,'２データ'!$A$4:$KH$5000,'２データ'!JI$2,FALSE)="…","nc",IF(OR(VLOOKUP($DJ$32,'２データ'!$A$4:$KH$5000,'２データ'!IG$2,FALSE)="…",VLOOKUP($DJ$32,'２データ'!$A$4:$KH$5000,'２データ'!IG$2,FALSE)="-"),"nc",IF(VLOOKUP($DJ$32,'２データ'!$A$4:$KH$5000,'２データ'!JI$2,FALSE)="-","-",VLOOKUP($DJ$32,'２データ'!$A$4:$KH$5000,'２データ'!JI$2,FALSE)/VLOOKUP($DJ$32,'２データ'!$A$4:$KH$5000,'２データ'!IG$2,FALSE)*100)))) -> 52 | AD272: =IF(ISNA($DJ$4),"",IF(VLOOKUP($DJ$32,'２データ'!$A$4:$KH$5000,'２データ'!JJ$2,FALSE)="…","nc",IF(OR(VLOOKUP($DJ$32,'２データ'!$A$4:$KH$5000,'２データ'!IG$2,FALSE)="…",VLOOKUP($DJ$32,'２データ'!$A$4:$KH$5000,'２データ'!IG$2,FALSE)="-"),"nc",IF(VLOOKUP($DJ$32,'２データ'!$A$4:$KH$5000,'２データ'!JJ$2,FALSE)="-","-",VLOOKUP($DJ$32,'２データ'!$A$4:$KH$5000,'２データ'!JJ$2,FALSE)/VLOOKUP($DJ$32,'２データ'!$A$4:$KH$5000,'２データ'!IG$2,FALSE)*100)))) -> 94 | AI272: =IF(ISNA($DJ$4),"",IF(VLOOKUP($DJ$32,'２データ'!$A$4:$KH$5000,'２データ'!JK$2,FALSE)="…","nc",IF(OR(VLOOKUP($DJ$32,'２データ'!$A$4:$KH$5000,'２データ'!IG$2,FALSE)="…",VLOOKUP($DJ$32,'２データ'!$A$4:$KH$5000,'２データ'!IG$2,FALSE)="-"),"nc",IF(VLOOKUP($DJ$32,'２データ'!$A$4:$KH$5000,'２データ'!JK$2,FALSE)="-","-",VLOOKUP($DJ$32,'２データ'!$A$4:$KH$5000,'２データ'!JK$2,FALSE)/VLOOKUP($DJ$32,'２データ'!$A$4:$KH$5000,'２データ'!IG$2,FALSE)*100)))) -> 70 | AN272: =IF(ISNA($DJ$4),"",IF(VLOOKUP($DJ$32,'２データ'!$A$4:$KH$5000,'２データ'!JL$2,FALSE)="…","nc",IF(OR(VLOOKUP($DJ$32,'２データ'!$A$4:$KH$5000,'２データ'!IG$2,FALSE)="…",VLOOKUP($DJ$32,'２データ'!$A$4:$KH$5000,'２データ'!IG$2,FALSE)="-"),"nc",IF(VLOOKUP($DJ$32,'２データ'!$A$4:$KH$5000,'２データ'!JL$2,FALSE)="-","-",VLOOKUP($DJ$32,'２データ'!$A$4:$KH$5000,'２データ'!JL$2,FALSE)/VLOOKUP($DJ$32,'２データ'!$A$4:$KH$5000,'２データ'!IG$2,FALSE)*100)))) -> 95 | AS272: =IF(ISNA($DJ$4),"",IF(VLOOKUP($DJ$32,'２データ'!$A$4:$KH$5000,'２データ'!JM$2,FALSE)="…","nc",IF(OR(VLOOKUP($DJ$32,'２データ'!$A$4:$KH$5000,'２データ'!IG$2,FALSE)="…",VLOOKUP($DJ$32,'２データ'!$A$4:$KH$5000,'２データ'!IG$2,FALSE)="-"),"nc",IF(VLOOKUP($DJ$32,'２データ'!$A$4:$KH$5000,'２データ'!JM$2,FALSE)="-","-",VLOOKUP($DJ$32,'２データ'!$A$4:$KH$5000,'２データ'!JM$2,FALSE)/VLOOKUP($DJ$32,'２データ'!$A$4:$KH$5000,'２データ'!IG$2,FALSE)*100)))) -> 51 | AX272: =IF(ISNA($DJ$4),"",IF(VLOOKUP($DJ$32,'２データ'!$A$4:$KH$5000,'２データ'!JN$2,FALSE)="…","nc",IF(OR(VLOOKUP($DJ$32,'２データ'!$A$4:$KH$5000,'２データ'!IG$2,FALSE)="…",VLOOKUP($DJ$32,'２データ'!$A$4:$KH$5000,'２データ'!IG$2,FALSE)="-"),"nc",IF(VLOOKUP($DJ$32,'２データ'!$A$4:$KH$5000,'２データ'!JN$2,FALSE)="-","-",VLOOKUP($DJ$32,'２データ'!$A$4:$KH$5000,'２データ'!JN$2,FALSE)/VLOOKUP($DJ$32,'２データ'!$A$4:$KH$5000,'２データ'!IG$2,FALSE)*100)))) -> 86 | BC272: =IF(ISNA($DJ$4),"",IF(VLOOKUP($DJ$32,'２データ'!$A$4:$KH$5000,'２データ'!JO$2,FALSE)="…","nc",IF(OR(VLOOKUP($DJ$32,'２データ'!$A$4:$KH$5000,'２データ'!IG$2,FALSE)="…",VLOOKUP($DJ$32,'２データ'!$A$4:$KH$5000,'２データ'!IG$2,FALSE)="-"),"nc",IF(VLOOKUP($DJ$32,'２データ'!$A$4:$KH$5000,'２データ'!JO$2,FALSE)="-","-",VLOOKUP($DJ$32,'２データ'!$A$4:$KH$5000,'２データ'!JO$2,FALSE)/VLOOKUP($DJ$32,'２データ'!$A$4:$KH$5000,'２データ'!IG$2,FALSE)*100)))) -> 20 | BH272: =IF(ISNA($DJ$4),"",IF(VLOOKUP($DJ$32,'２データ'!$A$4:$KH$5000,'２データ'!JP$2,FALSE)="…","nc",IF(OR(VLOOKUP($DJ$32,'２データ'!$A$4:$KH$5000,'２データ'!IG$2,FALSE)="…",VLOOKUP($DJ$32,'２データ'!$A$4:$KH$5000,'２データ'!IG$2,FALSE)="-"),"nc",IF(VLOOKUP($DJ$32,'２データ'!$A$4:$KH$5000,'２データ'!JP$2,FALSE)="-","-",VLOOKUP($DJ$32,'２データ'!$A$4:$KH$5000,'２データ'!JP$2,FALSE)/VLOOKUP($DJ$32,'２データ'!$A$4:$KH$5000,'２データ'!IG$2,FALSE)*100)))) -> 47 | BM272: =IF(ISNA($DJ$4),"",IF(VLOOKUP($DJ$32,'２データ'!$A$4:$KH$5000,'２データ'!JQ$2,FALSE)="…","nc",IF(OR(VLOOKUP($DJ$32,'２データ'!$A$4:$KH$5000,'２データ'!IG$2,FALSE)="…",VLOOKUP($DJ$32,'２データ'!$A$4:$KH$5000,'２データ'!IG$2,FALSE)="-"),"nc",IF(VLOOKUP($DJ$32,'２データ'!$A$4:$KH$5000,'２データ'!JQ$2,FALSE)="-","-",VLOOKUP($DJ$32,'２データ'!$A$4:$KH$5000,'２データ'!JQ$2,FALSE)/VLOOKUP($DJ$32,'２データ'!$A$4:$KH$5000,'２データ'!IG$2,FALSE)*100)))) -> 32

Sheet ２データ (hidden)
M1: １ 農業経営体数 | Z1: ２ 経営耕地面積（経営体数） | AI1: ２ 経営耕地面積（経営耕地面積） | AZ1: ３ 販売目的の作付(栽培)面積、飼養頭(羽)数（経営体数） | BJ1: ３ 販売目的の作付(栽培)面積、飼養頭（羽）数 | EL1: ４ 経営部門（農産物販売金額１位部門別経営体数） | ER1: ５ 農産物の出荷先 | EX1: ６ 農産物の販売金額（規模別経営体数） | FE1: ６ 農産物の販売金額（規模別金額） | FL1: ７ 農作業受託 | FT1: ８ 農業生産関連事業 | GC1: ９ 有機農業（令和２年） | GG1: 10 ５年以内の後継者確保状況別経営体数等（令和２年） | GK1: 10 ５年以内の後継者確保状況別経営体数等（経営耕地面積） | GO1: 11 個人経営体数 | GU1: 12 個人経営体の労働力 | HY1: 13 個人経営体における経営方針の決定 | IG1: 14 農業集落内での活動状況 | IH1: (1) 実行組合の有無 | IJ1: (2) 寄り合いの回数別農業集落数 | IQ1: (3) 寄り合いの議題別農業集落数 | JA1: (4) 寄り合いの議題となった取組の活動状況（令和２年） | JR1: 地域の概要（2020年基準）
A2: 1 | B2: 2 | C2: 3 | D2: 4 | E2: 5 | F2: 6 | G2: 7 | H2: 8 | I2: 9 | J2: 10 | K2: 11 | L2: 12 | M2: 13 | N2: 14 | O2: 15 | P2: 16 | Q2: 17 | R2: 18 | S2: 19 | T2: 20 | U2: 21 | V2: 22 | W2: 23 | X2: 24 | Y2: 25 | Z2: 26 | AA2: 27 | AB2: 28 | AC2: 29 | AD2: 30 | AE2: 31 | AF2: 32 | AG2: 33 | AH2: 34 | AI2: 35 | AJ2: 36 | AK2: 37 | AL2: 38 | AM2: 39 | AN2: 40 | AO2: 41 | AP2: 42 | AQ2: 43 | AR2: 44 | AS2: 45 | AT2: 46 | AU2: 47 | AV2: 48 | AW2: 49 | AX2: 50 | AY2: 51 | AZ2: 52 | BA2: 53 | BB2: 54 | BC2: 55 | BD2: 56 | BE2: 57 | BF2: 58 | BG2: 59 | BH2: 60 | BI2: 61 | BJ2: 62 | BK2: 63 | BL2: 64 | BM2: 65 | BN2: 66 | BO2: 67 | BP2: 68 | BQ2: 69 | BR2: 70 | BS2: 71 | BT2: 72 | BU2: 73 | BV2: 74 | BW2: 75 | BX2: 76 | BY2: 77 | BZ2: 78 | CA2: 79 | CB2: 80 | CC2: 81 | CD2: 82 | CE2: 83 | CF2: 84 | CG2: 85 | CH2: 86 | CI2: 87 | CJ2: 88 | CK2: 89 | CL2: 90 | CM2: 91 | CN2: 92 | CO2: 93 | CP2: 94 | CQ2: 95 | CR2: 96 | CS2: 97 | CT2: 98 | CU2: 99 | CV2: 100 | CW2: 101 | CX2: 102 | CY2: 103 | CZ2: 104 | DA2: 105 | DB2: 106 | DC2: 107 | DD2: 108 | DE2: 109 | DF2: 110 | DG2: 111 | DH2: 112 | DI2: 113 | DJ2: 114 | DK2: 115 | DL2: 116 | DM2: 117 | DN2: 118 | DO2: 119 | DP2: 120 | DQ2: 121 | DR2: 122 | DS2: 123 | DT2: 124 | DU2: 125 | DV2: 126 | DW2: 127 | DX2: 128 | DY2: 129 | DZ2: 130 | EA2: 131 | EB2: 132 | EC2: 133 | ED2: 134 | EE2: 135 | EF2: 136 | EG2: 137 | EH2: 138 | EI2: 139 | EJ2: 140 | EK2: 141 | EL2: 142 | EM2: 143 | EN2: 144 | EO2: 145 | EP2: 146 | EQ2: 147 | ER2: 148 | ES2: 149 | ET2: 150 | EU2: 151 | EV2: 152 | EW2: 153 | EX2: 154 | EY2: 155 | EZ2: 156 | FA2: 157 | FB2: 158 | FC2: 159 | FD2: 160 | FE2: 161 | FF2: 162 | FG2: 163 | FH2: 164 | FI2: 165 | FJ2: 166 | FK2: 167 | FL2: 168 | FM2: 169 | FN2: 170 | FO2: 171 | FP2: 172 | FQ2: 173 | FR2: 174 | FS2: 175 | FT2: 176 | FU2: 177 | FV2: 178 | FW2: 179 | FX2: 180 | FY2: 181 | FZ2: 182 | GA2: 183 | GB2: 184 | GC2: 185 | GD2: 186 | GE2: 187 | GF2: 188 | GG2: 189 | GH2: 190 | GI2: 191 | GJ2: 192 | GK2: 193 | GL2: 194 | GM2: 195 | GN2: 196 | GO2: 197 | GP2: 198 | GQ2: 199 | GR2: 200 | GS2: 201 | GT2: 202 | GU2: 203 | GV2: 204 | GW2: 205 | GX2: 206 | GY2: 207 | GZ2: 208 | HA2: 209 | HB2: 210 | HC2: 211 | HD2: 212 | HE2: 213 | HF2: 214 | HG2: 215 | HH2: 216 | HI2: 217 | HJ2: 218 | HK2: 219 | HL2: 220 | HM2: 221 | HN2: 222 | HO2: 223 | HP2: 224 | HQ2: 225 | HR2: 226 | HS2: 227 | HT2: 228 | HU2: 229 | HV2: 230 | HW2: 231 | HX2: 232 | HY2: 233 | HZ2: 234 | IA2: 235 | IB2: 236 | IC2: 237 | ID2: 238 | IE2: 239 | IF2: 240 | IG2: 241 | IH2: 242 | II2: 243 | IJ2: 244 | IK2: 245 | IL2: 246 | IM2: 247 | IN2: 248 | IO2: 249 | IP2: 250 | IQ2: 251 | IR2: 252 | IS2: 253 | IT2: 254 | IU2: 255 | IV2: 256 | IW2: 257 | IX2: 258 | IY2: 259 | IZ2: 260 | JA2: 261 | JB2: 262 | JC2: 263 | JD2: 264 | JE2: 265 | JF2: 266 | JG2: 267 | JH2: 268 | JI2: 269 | JJ2: 270 | JK2: 271 | JL2: 272 | JM2: 273 | JN2: 274 | JO2: 275 | JP2: 276 | JQ2: 277 | JR2: 278 | JS2: 279 | JT2: 280 | JU2: 281 | JV2: 282 | JW2: 283 | JX2: 284 | JY2: 285 | JZ2: 286 | KA2: 287 | KB2: 288 | KC2: 289 | KD2: 290
M3: 経営体数 | N3: 農事組合法人 | O3: 会社 | P3: 農協等の団体 | Q3: その他の法人 | R3: 地方公共団体等 | S3: 非法人_団体 | T3: 非法人_個人 | U3: 認定農業者がいる | V3: 常雇い_経営体数 | W3: 常雇い_人数 | X3: 臨時雇い_経営体数 | Y3: 臨時雇い_人数 | Z3: 経営体数計 | AA3: 0.5ha未満 | AB3: 0.5～１ | AC3: １～３ | AD3: ３～５ | AE3: ５～10 | AF3: 10ha以上 | AG3: 10～20 | AH3: 20ha以上 | AI3: 経営耕地面積計 | AJ3: 0.5ha未満 | AK3: 0.5～１ | AL3: １～３ | AM3: ３～５ | AN3: ５～10 | AO3: 10ha以上 | AP3: 10～20 | AQ3: 20ha以上 | AR3: 田のある経営体数 | AS3: 田_面積 | AT3: 畑のある経営体数 | AU3: 畑_面積 | AV3: 樹園地のある経営体数 | AW3: 樹園地_面積 | AX3: 借入耕地のある経営体数 | AY3: 借入_面積 | AZ3: 水稲_経営体数 | BA3: 麦類_経営体数 | BB3: 豆類_経営体数 | BC3: 工芸農作物_経営体数 | BD3: 露地野菜_経営体数 | BE3: 施設野菜_経営体数 | BF3: 露地花き・花木_経営体数 | BG3: 施設花き・花木_経営体数 | BH3: 露地果樹_経営体数 | BI3: 施設果樹_経営体数 | BJ3: 水稲_面積 | BK3: 麦類_面積 | BL3: 豆類_面積 | BM3: 工芸農作物_面積 | BN3: 露地野菜_面積 | BO3: 施設野菜_面積 | BP3: 露地花き・花木_面積 | BQ3: 施設花き・花木_面積 | BR3: 露地果樹_面積 | BS3: 施設果樹_面積 | BT3: 乳用牛_経営体数 | BU3: 乳用牛_頭数 | BV3: 肉用牛_経営体数 | BW3: 肉用牛_頭数 | BX3: 豚_経営体数 | BY3: 豚_頭数 | BZ3: 採卵鶏_経営体数 | CA3: 採卵鶏_羽数 | CB3: ブロイラー_経営体数 | CC3: ブロイラー_羽数 | CD3: だいこん_経営体 | CE3: だいこん_面積 | CF3: にんじん_経営体 | CG3: にんじん_面積 | CH3: はくさい_経営体 | CI3: はくさい_面積 | CJ3: キャベツ_経営体 | CK3: キャベツ_面積 | CL3: ほうれんそう_経営体 | CM3: ほうれんそう_面積 | CN3: レタス_経営体 | CO3: レタス_面積 | CP3: ねぎ_経営体 | CQ3: ねぎ_面積 | CR3: たまねぎ_経営体 | CS3: たまねぎ_面積 | CT3: ブロッコリー_経営体 | CU3: ブロッコリー_面積 | CV3: きゅうり_経営体 | CW3: きゅうり_面積 | CX3: なす_経営体 | CY3: なす_面積 | CZ3: トマト_経営体 | DA3: トマト_面積 | DB3: 施設_トマト_経営体 | DC3: 施設_トマト_面積 | DD3: いちご_経営体 | DE3: いちご_面積 | DF3: すいか_経営体 | DG3: すいか_面積 | DH3: 温州みかん_経営体 | DI3: 温州みかん_面積 | DJ3: 施設_温州みかん_経営体 | DK3: 施設_温州みかん_面積 | DL3: その他のかんきつ_経営体 | DM3: その他のかんきつ_面積 | DN3: 施設_その他のかんきつ_経営体 | DO3: 施設_その他のかんきつ_面積 | DP3: りんご_経営体 | DQ3: りんご_面積 | DR3: ぶどう_経営体 | DS3: ぶどう_面積 | DT3: 施設_ぶどう_経営体 | DU3: 施設_ぶどう_面積 | DV3: 日本なし_経営体 | DW3: 日本なし_面積 | DX3: もも_経営体 | DY3: もも_面積 | DZ3: びわ_経営体 | EA3: びわ_面積 | EB3: かき_経営体 | EC3: かき_面積 | ED3: くり_経営体 | EE3: くり_面積 | EF3: うめ_経営体 | EG3: うめ_面積 | EH3: すもも_経営体 | EI3: すもも_面積 | EJ3: キウイフルーツ_経営体 | EK3: キウイフルーツ_面積 | EL3: 販売のある経営体数 | EM3: 稲作 | EN3: 野菜類 | EO3: 果樹類 | EP3: その他（耕種） | EQ3: 畜産 | ER3: 延べ経営体数 | ES3: 農協 | ET3: 卸売市場 | EU3: 小売業者 | EV3: 消費者に直接販売 | EW3: その他 | EX3: 経営体数計 | EY3: 100万円未満 | EZ3: 100～300 | FA3: 300～1,000 | FB3: 1,000～3,000 | FC3: 3,000～１億円 | FD3: １億円以上 | FE3: 販売金額計 | FF3: 100万円未満 | FG3: 100～300 | FH3: 300～1,000 | FI3: 1,000～3,000 | FJ3: 3,000～１億円 | FK3: １億円以上 | FL3: 経営体数計 | FM3: 受託あり実経営体数 | FN3: 水稲作 | FO3: 麦作 | FP3: 大豆作 | FQ3: 野菜作 | FR3: 果樹作 | FS3: 受託収入100万円以上 | FT3: 経営体数計 | FU3: 農業生産関連事業を行っている実経営体数（直販除く） | FV3: 小売業 | FW3: 農産物の加工 | FX3: 観光農園 | FY3: 貸・体験農園 | FZ3: 再生可能エネルギー発電 | GA3: 農業生産関連事業を行っている実経営体数（直販除く） | GB3: 売上100万円以上 | GC3: 作付（栽培）実経営体数 | GD3: 有機に取り組んでいる経営体数 | GE3: 作付（栽培）面積（延べ） | GF3: 有機に取り組んでいる面積 | GG3: 経営体数計 | GH3: ５年以内に引き継がない | GI3: ５年以内の後継者がいる | GJ3: ５年以内の後継者がいない | GK3: 経営耕地面積計 | GL3: ５年以内に引き継がない_面積 | GM3: ５年以内の後継者がいる_面積 | GN3: ５年以内の後継者がいない_面積 | GO3: 個人経営体数計 | GP3: 主業 | GQ3: 主業_65歳未満の専従者がいる | GR3: 準主業 | GS3: 準主業_65歳未満の専従者がいる | GT3: 副業的 | GU3: 基幹的農業従事者数計 | GV3: 15～29歳_基幹的農業従事者 | GW3: 30～34_基幹的農業従事者 | GX3: 35～39_基幹的農業従事者 | GY3: 40～44_基幹的農業従事者 | GZ3: 45～49_基幹的農業従事者 | HA3: 50～54_基幹的農業従事者 | HB3: 55～59_基幹的農業従事者 | HC3: 60～64_基幹的農業従事者 | HD3: 65～69_基幹的農業従事者 | HE3: 70～74_基幹的農業従事者 | HF3: 75～79_基幹的農業従事者 | HG3: 80～84_基幹的農業従事者 | HH3: 85歳以上_基幹的農業従事者 | HI3: 平均年齢_基幹的農業従事者 | HJ3: 基幹的農業従事者数計_女 | HK3: 15～29歳_基幹的農業従事者_女 | HL3: 30～34_基幹的農業従事者_女 | HM3: 35～39_基幹的農業従事者_女 | HN3: 40～44_基幹的農業従事者_女 | HO3: 45～49_基幹的農業従事者_女 | HP3: 50～54_基幹的農業従事者_女 | HQ3: 55～59_基幹的農業従事者_女 | HR3: 60～64_基幹的農業従事者_女 | HS3: 65～69_基幹的農業従事者_女 | HT3: 70～74_基幹的農業従事者_女 | HU3: 75～79_基幹的農業従事者_女 | HV3: 80～84_基幹的農業従事者_女 | HW3: 85歳以上_基幹的農業従事者_女 | HX3: 平均年齢_基幹的農業従事者_女 | HY3: 個人経営体数計 | HZ3: 男の経営主 | IA3: 男の経営主_男女の経営参画者がいる ① | IB3: 男の経営主_女の経営参画者だけ ② | IC3: 女の経営主 ③ | ID3: 女の経営主_男女の経営参画者がいる | IE3: 女の経営主_女の経営参画者だけ | IF3: 女の経営主又は女の経営参画者がいる ①＋②＋③ | IG3: 農業集落数 | IH3: 実行組合がある | II3: 実行組合がない | IJ3: 寄り合いがある（実数） | IK3: １～２回 | IL3: ３～５ | IM3: ６～11 | IN3: 12～23 | IO3: 24回以上 | IP3: 寄り合いがない | IQ3: 寄り合いの議題_農業生産にかかる事項 | IR3: 寄り合いの議題_農道・農業用用排水路・ため池の管理 | IS3: 寄り合いの議題_集落共有財産・共用施設の管理 | IT3: 寄り合いの議題_環境美化・自然環境の保全 | IU3: 寄り合いの議題_農業集落行事（祭り・イベントなど）の実施 | IV3: 寄り合いの議題_農業集落内の福祉・厚生 | IW3: 寄り合いの議題_定住を推進する取組 | IX3: 寄り合いの議題_グリーン・ツーリズムの取組 | IY3: 寄り合いの議題_６次産業化への取組 | IZ3: 寄り合いの議題_再生可能エネルギーへの取組 | JA3: 環境美化･自然環境の保全 | JB3: 農業集落行事(祭り･イベントなど)の実施 | JC3: 農業集落内の福祉･厚生 | JD3: 定住を推進する取組 | JE3: グリーン・ツーリズムの取組 | JF3: ６次産業化への取組 | JG3: 再生可能エネルギーへの取組 | JH3: 農地がある | JI3: 農地_保全している | JJ3: 農業用用排水路がある | JK3: 農業用用排水路_保全している | JL3: 河川・水路がある | JM3: 河川・水路_保全している | JN3: 森林がある | JO3: 森林_保全している | JP3: ため池・湖沼がある | JQ3: ため池・湖沼_保全している | JR3: 国勢調査_世帯数（令和２年） | JS3: 経済センサス_事業所数（令和３年） | JT3: 国勢調査_男女・年齢別人口_総数 （令和２年） | JU3: 将来推計人口_30年後 予測（2050年） | JV3: 増減率 | JW3: 高齢化率（令和２年） | JX3: 国土数値情報_法制上の地域指定等_総土地面積 | JY3: 国土数値情報_法制上の地域指定等_森林地域 | JZ3: 農業地域 類型区分_1（令和５年改訂） | KA3: 中山間地域等直接支払交付金_中山間集落協定_協定数 | KB3: 中山間地域等直接支払交付金_中山間集落協定_協定面積 | KC3: 農業基盤情報_0.3ha区画以上の田（令和２年度） | KD3: 集落営農 活動の有無（令和3年）
A4: 1 | H4: 全国 | Z4: 1075705 | AA4: 246317 | AB4: 319190 | AC4: 337989 | AD4: 68593 | AE4: 48454 | AF4: 55162 | AG4: 25777 | AH4: 29385 | AI4: 323288183 | AJ4: 8069645 | AK4: 22218998 | AL4: 55580752 | AM4: 25686510 | AN4: 32937135 | AO4: 178795143 | AP4: 35428166 | AQ4: 143366977 | AR4: 840381 | AS4: 178489951 | AT4: 560784 | AU4: 128882878 | AV4: 200229 | AW4: 15915354 | AX4: 379009 | AY4: 125712600 | EL4: 978210 | EM4: 542860 | EN4: 165154 | EO4: 128652 | EP4: 93033 | EQ4: 48511 | ER4: 1380762 | ES4: 704393 | ET4: 111845 | EU4: 96161 | EV4: 207600 | EW4: 260763 | EX4: 1075705 | EY4: 560449 | EZ4: 212830 | FA4: 175177 | FB4: 86145 | FC4: 33242 | FD4: 7862 | FE4: 783632650 | FF4: 20365450 | FG4: 42566000 | FH4: 102188200 | FI4: 172290000 | FJ4: 178888000 | FK4: 267335000 | FL4: 1075705 | FM4: 90686 | FN4: 80838 | FO4: 3367 | FP4: 3467 | FQ4: 1993 | FR4: 1986 | FS4: 21246 | FT4: 1075705 | FU4: 88700 | FV4: 56220 | FW4: 29950 | FX4: 5275 | FY4: 1533 | FZ4: 1588 | GA4: 88700 | GB4: 40077 | GC4: 967187 | GD4: 69309 | GE4: 256243440 | GF4: 11526868 | GG4: 1075705 | GH4: 49060 | GI4: 262278 | GJ4: 764367 | GK4: 323288183 | GL4: 28128952 | GM4: 108266880 | GN4: 186892351 | GO4: 1037342 | GP4: 230855 | GQ4: 201514 | GR4: 142538 | GS4: 56007 | GT4: 663949 | GU4: 1363038 | GV4: 16064 | GW4: 20252 | GX4: 30219 | GY4: 37702 | GZ4: 43231 | HA4: 50169 | HB4: 76733 | HC4: 140047 | HD4: 252668 | HE4: 264193 | HF4: 196217 | HG4: 144412 | HH4: 91131 | HI4: 67.76 | HJ4: 540894 | HK4: 3352 | HL4: 4942 | HM4: 8615 | HN4: 11887 | HO4: 15769 | HP4: 20645 | HQ4: 34230 | HR4: 62823 | HS4: 103564 | HT4: 101544 | HU4: 81131 | HV4: 57208 | HW4: 35184 | HX4: 68.41 | HY4: 1037342 | HZ4: 976059 | IA4: 73721 | IB4: 237185 | IC4: 61283 | ID4: 3305 | IE4: 2218 | IF4: 372189 | IG4: 138243 | IH4: 94519 | II4: 43724 | IJ4: 129340 | IK4: 19683 | IL4: 32668 | IM4: 35089 | IN4: 34001 | IO4: 7899 | IP4: 8903 | IQ4: 77811 | IR4: 98276 | IS4: 87105 | IT4: 114843 | IU4: 112704 | IV4: 74774 | IW4: 3932 | IX4: 2865 | IY4: 1608 | IZ4: 4639 | JA4: 110391 | JB4: 107256 | JC4: 68369 | JD4: 3200 | JE4: 2513 | JF4: 1394 | JG4: 3081 | JH4: 135999 | JI4: 71472 | JJ4: 125891 | JK4: 102188 | JL4: 123666 | JM4: 74694 | JN4: 104372 | JO4: 28564 | JP4: 46927 | JQ4: 30459
A5: 2 | H5: 都府県 | Z5: 1040792 | AA5: 244299 | AB5: 318067 | AC5: 335111 | AD5: 66479 | AE5: 44374 | AF5: 32462 | AG5: 19497 | AH5: 12965 | AI5: 220446063 | AJ5: 8035807 | AK5: 22141934 | AL5: 55053162 | AM5: 24864624 | AN5: 29971249 | AO5: 80379287 | AP5: 26271052 | AQ5: 54108235 | AR5: 825854 | AS5: 160428380 | AT5: 531270 | AU5: 44340683 | AV5: 199120 | AW5: 15677000 | AX5: 363058 | AY5: 99997130 | EL5: 944669 | EM5: 534372 | EN5: 157991 | EO5: 128021 | EP5: 83598 | EQ5: 40687 | ER5: 1330649 | ES5: 675359 | ET5: 108733 | EU5: 92855 | EV5: 203053 | EW5: 250649 | EX5: 1040792 | EY5: 556752 | EZ5: 210528 | FA5: 168886 | FB5: 75369 | FC5: 23270 | FD5: 5987 | FE5: 643520225 | FF5: 20254725 | FG5: 42105600 | FH5: 98175900 | FI5: 150738000 | FJ5: 124146000 | FK5: 208100000 | FL5: 1040792 | FM5: 87105 | FN5: 79767 | FO5: 2342 | FP5: 2762 | FQ5: 1772 | FR5: 1967 | FS5: 19679 | FT5: 1040792 | FU5: 85960 | FV5: 54874 | FW5: 28785 | FX5: 5068 | FY5: 1430 | FZ5: 1434 | GA5: 85960 | GB5: 38142 | GC5: 940075 | GD5: 66578 | GE5: 202990231 | GF5: 9710712 | GG5: 1040792 | GH5: 45583 | GI5: 254921 | GJ5: 740288 | GK5: 220446063 | GL5: 14322034 | GM5: 76906247 | GN5: 129217782 | GO5: 1006776 | GP5: 208945 | GQ5: 180172 | GR5: 141690 | GS5: 55467 | GT5: 656141 | GU5: 1292395 | GV5: 13470 | GW5: 17093 | GX5: 25875 | GY5: 32663 | GZ5: 38028 | HA5: 44710 | HB5: 69303 | HC5: 131262 | HD5: 242325 | HE5: 256146 | HF5: 191107 | HG5: 141146 | HH5: 89267 | HI5: 68.26 | HJ5: 510674 | HK5: 2822 | HL5: 4023 | HM5: 7142 | HN5: 9916 | HO5: 13440 | HP5: 18092 | HQ5: 30770 | HR5: 58641 | HS5: 98759 | HT5: 97940 | HU5: 78780 | HV5: 55859 | HW5: 34490 | HX5: 68.91 | HY5: 1006776 | HZ5: 946845 | IA5: 68472 | IB5: 228469 | IC5: 59931 | ID5: 3194 | IE5: 2172 | IF5: 356872 | IG5: 131177 | IH5: 89507 | II5: 41670 | IJ5: 123187 | IK5: 18792 | IL5: 30622 | IM5: 33139 | IN5: 32899 | IO5: 7735 | IP5: 7990 | IQ5: 73251 | IR5: 94411 | IS5: 83386 | IT5: 109582 | IU5: 107323 | IV5: 71225 | IW5: 3778 | IX5: 2747 | IY5: 1547 | IZ5: 4358 | JA5: 105404 | JB5: 102221 | JC5: 65189 | JD5: 3078 | JE5: 2412 | JF5: 1338 | JG5: 2847 | JH5: 129240 | JI5: 67702 | JJ5: 120551 | JK5: 98461 | JL5: 116990 | JM5: 72030 | JN5: 98795 | JO5: 27643 | JP5: 45203 | JQ5: 29860
A6: 3000000000 | B6: 30 | D6: 000 | E6: 00 | F6: 000 | H6: 和歌山県 | M6: 18141 | N6: 20 | O6: 101 | P6: 23 | Q6: 10 | R6: - | S6: 11 | T6: 17976 | U6: 2027 | V6: 450 | W6: 1247 | X6: 4584 | Y6: 21370 | Z6: 18141 | AA6: 5078 | AB6: 6053 | AC6: 6164 | AD6: 711 | AE6: 119 | AF6: 16 | AG6: 14 | AH6: 2 | AI6: 1908945 | AJ6: 158859 | AK6: 412407 | AL6: 993776 | AM6: 250832 | AN6: 71730 | AO6: 21341 | AP6: 15340 | AQ6: 6001 | AR6: 8062 | AS6: 443931 | AT6: 4811 | AU6: 154062 | AV6: 13001 | AW6: 1310952 | AX6: 5116 | AY6: 283056 | AZ6: 6076 | BA6: 13 | BB6: 320 | BC6: 484 | BD6: 2944 | BE6: 1298 | BF6: 636 | BG6: 542 | BH6: 12447 | BI6: 270 | BJ6: 339709 | BK6: 192 | BL6: 3188 | BM6: 12147 | BN6: 92896 | BO6: 26931.92 | BP6: 29320 | BQ6: 15744.56 | BR6: 1268759 | BS6: 5555.61 | BT6: 11 | BU6: 601 | BV6: 41 | BW6: 1598 | BX6: 7 | BY6: 1413 | BZ6: 31 | CA6: 359886 | CB6: 11 | CC6: 592480 | CD6: 488 | CE6: 7336.55 | CF6: 182 | CG6: 3715.45 | CH6: 624 | CI6: 8772 | CJ6: 680 | CK6: 11545 | CL6: 434 | CM6: 5400.77 | CN6: 196 | CO6: 3219.85 | CP6: 271 | CQ6: 3499.33 | CR6: 465 | CS6: 7476 | CT6: 707 | CU6: 9413.95 | CV6: 400 | CW6: 3348.9 | CX6: 374 | CY6: 2243.15 | CZ6: 537 | DA6: 6163 | DB6: 381 | DC6: 5200 | DD6: 196 | DE6: 3120.77 | DF6: 253 | DG6: 5445.68 | DH6: 6348 | DI6: 510659.33 | DJ6: 81 | DK6: 1392.33 | DL6: 3810 | DM6: 125858.33 | DN6: 89 | DO6: 1300.33 | DP6: 10 | DQ6: 68 | DR6: 246 | DS6: 8496.56 | DT6: 66 | DU6: 2059.56 | DV6: 90 | DW6: 1678 | DX6: 1095 | DY6: 45996.7 | DZ6: 100 | EA6: 1723.05 | EB6: 2898 | EC6: 157173.09 | ED6: 77 | EE6: 1904 | EF6: 4188 | EG6: 386989 | EH6: 476 | EI6: 8306.13 | EJ6: 524 | EK6: 12136 | EL6: 17183 | EM6: 3253 | EN6: 1754 | EO6: 11244 | EP6: 852 | EQ6: 80 | ER6: 26160 | ES6: 11601 | ET6: 3289 | EU6: 2205 | EV6: 3787 | EW6: 5278 | EX6: 18141 | EY6: 7437 | EZ6: 4136 | FA6: 4637 | FB6: 1737 | FC6: 171 | FD6: 23 | FE6: 8935225 | FF6: 293525 | FG6: 827200 | FH6: 2720000 | FI6: 3474000 | FJ6: 820500 | FK6: 800000 | FL6: 18141 | FM6: 468 | FN6: 295 | FO6: - | FP6: 2 | FQ6: 26 | FR6: 162 | FS6: 77 | FT6: 18141 | FU6: 2043 | FV6: 705 | FW6: 1371 | FX6: 63 | FY6: 16 | FZ6: 39 | GA6: 2043 | GB6: 1452 | GC6: 17352 | GD6: 950 | GE6: 1802907 | GF6: 79952 | GG6: 18141 | GH6: 836 | GI6: 4026 | GJ6: 13279 | GK6: 1908945 | GL6: 112058 | GM6: 497411 | GN6: 1299476 | GO6: 17976 | GP6: 5732 | GQ6: 5176 | GR6: 2104 | GS6: 898 | GT6: 10140 | GU6: 27202 | GV6: 274 | GW6: 405 | GX6: 628 | GY6: 875 | GZ6: 1099 | HA6: 1308 | HB6: 2040 | HC6: 3179 | HD6: 4703 | HE6: 5044 | HF6: 3596 | HG6: 2429 | HH6: 1622 | HI6: 66.51 | HJ6: 12052 | HK6: 39 | HL6: 84 | HM6: 168 | HN6: 297 | HO6: 436 | HP6: 621 | HQ6: 1064 | HR6: 1615 | HS6: 2212 | HT6: 2187 | HU6: 1663 | HV6: 1063 | HW6: 603 | HX6: 67.16 | HY6: 17976 | HZ6: 16339 | IA6: 1201 | IB6: 4923 | IC6: 1637 | ID6: 75 | IE6: 68 | IF6: 7761 | IG6: 1599 | IH6: 544 | II6: 1055 | IJ6: 1482 | IK6: 301 | IL6: 475 | IM6: 370 | IN6: 296 | IO6: 40 | IP6: 117 | IQ6: 556 | IR6: 1104 | IS6: 893 | IT6: 1301 | IU6: 1296 | IV6: 830 | IW6: 54 | IX6: 35 | IY6: 13 | IZ6: 58 | JA6: 1222 | JB6: 1207 | JC6: 732 | JD6: 40 | JE6: 28 | JF6: 13 | JG6: 42 | JH6: 1554 | JI6: 831 | JJ6: 1500 | JK6: 1113 | JL6: 1527 | JM6: 812 | JN6: 1373 | JO6: 316 | JP6: 753 | JQ6: 515 | JR6: 393489 | JS6: 46480 | JT6: 922584 | JU6: 631619 | JV6: -31.53804965 | JW6: 33.11351595 | JX6: 472421.6 | JY6: 361642.13 | JZ6: … | KA6: 587 | KB6: 10130.51 | KC6: 396.8 | KD6: 8
A7: 3020100000 | B7: 30 | D7: 201 | E7: 00 | F7: 000 | H7: 和歌山県 | I7: 和歌山市 | M7: 1836 | N7: 2 | O7: 6 | P7: - | Q7: 2 | R7: - | S7: 1 | T7: 1825 | U7: 156 | V7: 35 | W7: 85 | X7: 184 | Y7: 678 | Z7: 1836 | AA7: 590 | AB7: 834 | AC7: 379 | AD7: 25 | AE7: 7 | AF7: 1 | AG7: 1 | AH7: - | AI7: 145168 | AJ7: 21002 | AK7: 55712 | AL7: 53967 | AM7: 9286 | AN7: 4123 | AO7: 1078 | AP7: 1078 | AQ7: - | AR7: 1545 | AS7: 106852 | AT7: 631 | AU7: 21889 | AV7: 370 | AW7: 16427 | AX7: 462 | AY7: 24841 | AZ7: 1424 | BA7: x | BB7: 22 | BC7: x | BD7: 544 | BE7: x | BF7: 13 | BG7: 10 | BH7: 297 | BI7: 15 | BJ7: 92261 | BK7: x | BL7: 144 | BM7: x | BN7: 29621 | BO7: x | BP7: 111 | BQ7: 126.68 | BR7: 14072 | BS7: 141.7 | BT7: - | BU7: - | BV7: 4 | BW7: x | BX7: - | BY7: - | BZ7: 3 | CA7: 47052 | CB7: - | CC7: - | CD7: 122 | CE7: 4802.95 | CF7: 71 | CG7: x | CH7: 182 | CI7: 4970 | CJ7: 273 | CK7: 6462 | CL7: 129 | CM7: 3501.7 | CN7: 44 | CO7: x | CP7: 32 | CQ7: x | CR7: 45 | CS7: 254 | CT7: 136 | CU7: x | CV7: 42 | CW7: 150.47 | CX7: 40 | CY7: 168.04 | CZ7: 27 | DA7: 262.43 | DB7: 19 | DC7: 182.43 | DD7: 3 | DE7: x | DF7: 5 | DG7: 15 | DH7: 220 | DI7: x | DJ7: 2 | DK7: x | DL7: 70 | DM7: 1120.05 | DN7: 3 | DO7: 9.05 | DP7: 1 | DQ7: x | DR7: 22 | DS7: 430 | DT7: 4 | DU7: 48 | DV7: 2 | DW7: x | DX7: 18 | DY7: 379 | DZ7: x | EA7: x | EB7: 32 | EC7: x | ED7: 1 | EE7: x | EF7: 43 | EG7: 1067 | EH7: 3 | EI7: 32 | EJ7: x | EK7: x | EL7: 1665 | EM7: 1097 | EN7: 367 | EO7: 172 | EP7: 23 | EQ7: 6 | ER7: 2408 | ES7: 821 | ET7: 227 | EU7: 429 | EV7: 510 | EW7: 421 | EX7: 1836 | EY7: 1261 | EZ7: 294 | FA7: 186 | FB7: 71 | FC7: 21 | FD7: 3 | FE7: 521400 | FF7: 45600 | FG7: 58800 | FH7: 104500 | FI7: 142000 | FJ7: 115500 | FK7: 55000 | FL7: 1836 | FM7: 52 | FN7: 46 | FO7: - | FP7: - | FQ7: 3 | FR7: 2 | FS7: 4 | FT7: 1836 | FU7: 153 | FV7: 123 | FW7: 22 | FX7: - | FY7: 3 | FZ7: 2 | GA7: 153 | GB7: 41 | GC7: 1726 | GD7: 88 | GE7: 143521 | GF7: 5245 | GG7: 1836 | GH7: 82 | GI7: 563 | GJ7: 1191 | GK7: 145168 | GL7: 8091 | GM7: 46877 | GN7: 90200 | GO7: 1825 | GP7: 310 | GQ7: 262 | GR7: 252 | GS7: 101 | GT7: 1263 | GU7: 2135 | GV7: 14 | GW7: 28 | GX7: 40 | GY7: 42 | GZ7: 55 | HA7: 61 | HB7: 115 | HC7: 258 | HD7: 412 | HE7: 498 | HF7: 304 | HG7: 192 | HH7: 116 | HI7: 68.14 | HJ7: 882 | HK7: 3 | HL7: 7 | HM7: 10 | HN7: 13 | HO7: 19 | HP7: 35 | HQ7: 59 | HR7: 130 | HS7: 180 | HT7: 184 | HU7: 114 | HV7: 92 | HW7: 36 | HX7: 68.15 | HY7: 1825 | HZ7: 1653 | IA7: 104 | IB7: 475 | IC7: 172 | ID7: 14 | IE7: 7 | IF7: 751 | IG7: 165 | IH7: 87 | II7: 78 | IJ7: 144 | IK7: 33 | IL7: 59 | IM7: 32 | IN7: 20 | IO7: - | IP7: 21 | IQ7: 65 | IR7: 133 | IS7: 60 | IT7: 108 | IU7: 99 | IV7: 53 | IW7: - | IX7: - | IY7: - | IZ7: 1 | JA7: 103 | JB7: 97 | JC7: 49 | JD7: - | JE7: - | JF7: - | JG7: - | JH7: 165 | JI7: 61 | JJ7: 164 | JK7: 138 | JL7: 165 | JM7: 102 | JN7: 106 | JO7: 6 | JP7: 85 | JQ7: 55 | JR7: 157310 | JS7: 16355 | JT7: 356729 | JU7: 280227 | JV7: -21.44541094 | JW7: 30.8217162 | JX7: 20905.99 | JY7: 6419.71 | JZ7: 1 | KA7: 7 | KB7: 36.17 | KC7: 0 | KD7: 0
A8: 3020101000 | B8: 30 | D8: 201 | E8: 01 | F8: 000 | H8: 和歌山県 | I8: 和歌山市 | J8: 和歌山市 | M8: 397 | N8: 1 | O8: 4 | P8: - | Q8: - | R8: - | S8: - | T8: 392 | U8: 68 | V8: 16 | W8: 54 | X8: 74 | Y8: 344 | Z8: 397 | AA8: 152 | AB8: 177 | AC8: 65 | AD8: 3 | AE8: - | AF8: - | AG8: - | AH8: - | AI8: 27354 | AJ8: 5130 | AK8: 11964 | AL8: 9187 | AM8: 1073 | AN8: - | AO8: - | AP8: - | AQ8: - | AR8: 256 | AS8: 14611 | AT8: 229 | AU8: 12172 | AV8: 19 | AW8: 571 | AX8: 67 | AY8: 2767 | AZ8: 243 | BA8: x | BB8: 12 | BC8: x | BD8: 190 | BE8: x | BF8: 5 | BG8: 4 | BH8: 9 | BI8: 1 | BJ8: 12943 | BK8: x | BL8: 93 | BM8: x | BN8: 14184 | BO8: x | BP8: x | BQ8: 81 | BR8: 384 | BS8: x | BT8: - | BU8: - | BV8: 1 | BW8: x | BX8: - | BY8: - | BZ8: 1 | CA8: x | CB8: - | CC8: - | CD8: 85 | CE8: x | CF8: 55 | CG8: x | CH8: 26 | CI8: 490 | CJ8: 42 | CK8: 716 | CL8: 75 | CM8: 3100.2 | CN8: 8 | CO8: 255 | CP8: 17 | CQ8: 281 | CR8: 11 | CS8: 46 | CT8: 29 | CU8: 327 | CV8: 9 | CW8: 34.44 | CX8: 10 | CY8: x | CZ8: 8 | DA8: x | DB8: 6 | DC8: 51.12 | DD8: - | DE8: - | DF8: - | DG8: - | DH8: 2 | DI8: x | DJ8: - | DK8: - | DL8: 3 | DM8: 27 | DN8: - | DO8: - | DP8: - | DQ8: - | DR8: - | DS8: - | DT8: - | DU8: - | DV8: - | DW8: - | DX8: - | DY8: - | DZ8: x | EA8: x | EB8: 1 | EC8: x | ED8: - | EE8: - | EF8: 2 | EG8: x | EH8: - | EI8: - | EJ8: x | EK8: x | EL8: 373 | EM8: 171 | EN8: 183 | EO8: 4 | EP8: 13 | EQ8: 2 | ER8: 536 | ES8: 217 | ET8: 88 | EU8: 61 | EV8: 96 | EW8: 74 | EX8: 397 | EY8: 214 | EZ8: 62 | FA8: 48 | FB8: 51 | FC8: 19 | FD8: 3 | FE8: 309650 | FF8: 7950 | FG8: 12400 | FH8: 28300 | FI8: 102000 | FJ8: 104000 | FK8: 55000 | FL8: 397 | FM8: 9 | FN8: 7 | FO8: - | FP8: - | FQ8: 2 | FR8: - | FS8: 1 | FT8: 397 | FU8: 41 | FV8: 27 | FW8: 12 | FX8: - | FY8: 3 | FZ8: - | GA8: 41 | GB8: 17 | GC8: 379 | GD8: 32 | GE8: 33648 | GF8: 1772 | GG8: 397 | GH8: 18 | GI8: 147 | GJ8: 232 | GK8: 27354 | GL8: 1150 | GM8: 11525 | GN8: 14679 | GO8: 392 | GP8: 108 | GQ8: 103 | GR8: 58 | GS8: 27 | GT8: 226 | GU8: 611 | GV8: 10 | GW8: 19 | GX8: 24 | GY8: 21 | GZ8: 20 | HA8: 28 | HB8: 45 | HC8: 73 | HD8: 114 | HE8: 102 | HF8: 72 | HG8: 41 | HH8: 42 | HI8: 64.99 | HJ8: 261 | HK8: 2 | HL8: 6 | HM8: 5 | HN8: 7 | HO8: 8 | HP8: 15 | HQ8: 21 | HR8: 43 | HS8: 51 | HT8: 34 | HU8: 32 | HV8: 22 | HW8: 15 | HX8: 65.94 | HY8: 392 | HZ8: 363 | IA8: 43 | IB8: 106 | IC8: 29 | ID8: 2 | IE8: 1 | IF8: 178 | IG8: 27 | IH8: 13 | II8: 14 | IJ8: 17 | IK8: 3 | IL8: 13 | IM8: 1 | IN8: - | IO8: - | IP8: 10 | IQ8: 9 | IR8: 15 | IS8: 4 | IT8: 10 | IU8: 5 | IV8: 2 | IW8: - | IX8: - | IY8: - | IZ8: - | JA8: 7 | JB8: 5 | JC8: 2 | JD8: - | JE8: - | JF8: - | JG8: - | JH8: 27 | JI8: 12 | JJ8: 26 | JK8: 16 | JL8: 27 | JM8: 16 | JN8: 22 | JO8: 1 | JP8: 14 | JQ8: 3 | JR8: 116360 | JS8: 12747 | JT8: 256336 | JU8: 201832 | JV8: -21.26271768 | JW8: 30.33362462 | JX8: 7865.1 | JY8: 898.12 | JZ8: 1 | KA8: 0 | KB8: 0 | KC8: 0 | KD8: 0
A9: 3020101001 | B9: 30 | D9: 201 | E9: 01 | F9: 001 | H9: 和歌山県 | I9: 和歌山市 | J9: 和歌山市 | K9: 新南 | M9: 1 | N9: x | O9: x | P9: x | Q9: x | R9: x | S9: x | T9: x | U9: x | V9: x | W9: x | X9: x | Y9: x | Z9: 1 | AA9: x | AB9: x | AC9: x | AD9: x | AE9: x | AF9: x | AG9: x | AH9: x | AI9: x | AJ9: x | AK9: x | AL9: x | AM9: x | AN9: x | AO9: x | AP9: x | AQ9: x | AR9: x | AS9: x | AT9: x | AU9: x | AV9: x | AW9: x | AX9: x | AY9: x | AZ9: x | BA9: x | BB9: x | BC9: x | BD9: x | BE9: x | BF9: x | BG9: x | BH9: x | BI9: x | BJ9: x | BK9: x | BL9: x | BM9: x | BN9: x | BO9: x | BP9: x | BQ9: x | BR9: x | BS9: x | BT9: x | BU9: x | BV9: x | BW9: x | BX9: x | BY9: x | BZ9: x | CA9: x | CB9: x | CC9: x | CD9: x | CE9: x | CF9: x | CG9: x | CH9: x | CI9: x | CJ9: x | CK9: x | CL9: x | CM9: x | CN9: x | CO9: x | CP9: x | CQ9: x | CR9: x | CS9: x | CT9: x | CU9: x | CV9: x | CW9: x | CX9: x | CY9: x | CZ9: x | DA9: x | DB9: x | DC9: x | DD9: x | DE9: x | DF9: x | DG9: x | DH9: x | DI9: x | DJ9: x | DK9: x | DL9: x | DM9: x | DN9: x | DO9: x | DP9: x | DQ9: x | DR9: x | DS9: x | DT9: x | DU9: x | DV9: x | DW9: x | DX9: x | DY9: x | DZ9: x | EA9: x | EB9: x | EC9: x | ED9: x | EE9: x | EF9: x | EG9: x | EH9: x | EI9: x | EJ9: x | EK9: x | EL9: x | EM9: x | EN9: x | EO9: x | EP9: x | EQ9: x | ER9: x | ES9: x | ET9: x | EU9: x | EV9: x | EW9: x | EX9: 1 | EY9: x | EZ9: x | FA9: x | FB9: x | FC9: x | FD9: x | FE9: x | FF9: x | FG9: x | FH9: x | FI9: x | FJ9: x | FK9: x | FL9: 1 | FM9: x | FN9: x | FO9: x | FP9: x | FQ9: x | FR9: x | FS9: x | FT9: 1 | FU9: x | FV9: x | FW9: x | FX9: x | FY9: x | FZ9: x | GA9: x | GB9: x | GC9: x | GD9: x | GE9: x | GF9: x | GG9: 1 | GH9: x | GI9: x | GJ9: x | GK9: x | GL9: x | GM9: x | GN9: x | GO9: - | GP9: x | GQ9: x | GR9: x | GS9: x | GT9: x | GU9: x | GV9: x | GW9: x | GX9: x | GY9: x | GZ9: x | HA9: x | HB9: x | HC9: x | HD9: x | HE9: x | HF9: x | HG9: x | HH9: x | HI9: x | HJ9: x | HK9: x | HL9: x | HM9: x | HN9: x | HO9: x | HP9: x | HQ9: x | HR9: x | HS9: x | HT9: x | HU9: x | HV9: x | HW9: x | HX9: x | HY9: - | HZ9: x | IA9: x | IB9: x | IC9: x | ID9: x | IE9: x | IF9: x | IG9: … | IH9: … | II9: … | IJ9: … | IK9: … | IL9: … | IM9: … | IN9: … | IO9: … | IP9: … | IQ9: … | IR9: … | IS9: … | IT9: … | IU9: … | IV9: … | IW9: … | IX9: … | IY9: … | IZ9: … | JA9: … | JB9: … | JC9: … | JD9: … | JE9: … | JF9: … | JG9: … | JH9: … | JI9: … | JJ9: … | JK9: … | JL9: … | JM9: … | JN9: … | JO9: … | JP9: … | JQ9: … | JR9: 2008 | JS9: 422 | JT9: 3738 | JU9: 2374 | JV9: -36.49010166 | JW9: 29.7752809 | JX9: 61.29 | JY9: 0 | JZ9: 1 | KA9: 0 | KB9: 0 | KC9: 0 | KD9: 0
A10: 3020101002 | B10: 30 | D10: 201 | E10: 01 | F10: 002 | H10: 和歌山県 | I10: 和歌山市 | J10: 和歌山市 | K10: 大新 | M10: - | N10: - | O10: - | P10: - | Q10: - | R10: - | S10: - | T10: - | U10: - | V10: - | W10: - | X10: - | Y10: - | Z10: - | AA10: - | AB10: - | AC10: - | AD10: - | AE10: - | AF10: - | AG10: - | AH10: - | AI10: - | AJ10: - | AK10: - | AL10: - | AM10: - | AN10: - | AO10: - | AP10: - | AQ10: - | AR10: - | AS10: - | AT10: - | AU10: - | AV10: - | AW10: - | AX10: - | AY10: - | AZ10: - | BA10: x | BB10: - | BC10: x | BD10: - | BE10: x | BF10: - | BG10: - | BH10: - | BI10: - | BJ10: - | BK10: x | BL10: - | BM10: x | BN10: - | BO10: x | BP10: - | BQ10: - | BR10: - | BS10: - | BT10: - | BU10: - | BV10: - | BW10: - | BX10: - | BY10: - | BZ10: - | CA10: - | CB10: - | CC10: - | CD10: - | CE10: - | CF10: - | CG10: - | CH10: - | CI10: - | CJ10: - | CK10: - | CL10: - | CM10: - | CN10: - | CO10: - | CP10: - | CQ10: - | CR10: - | CS10: - | CT10: - | CU10: - | CV10: - | CW10: - | CX10: - | CY10: - | CZ10: - | DA10: - | DB10: - | DC10: - | DD10: - | DE10: - | DF10: - | DG10: - | DH10: - | DI10: - | DJ10: - | DK10: - | DL10: - | DM10: - | DN10: - | DO10: - | DP10: - | DQ10: - | DR10: - | DS10: - | DT10: - | DU10: - | DV10: - | DW10: - | DX10: - | DY10: - | DZ10: x | EA10: x | EB10: - | EC10: - | ED10: - | EE10: - | EF10: - | EG10: - | EH10: - | EI10: - | EJ10: x | EK10: x | EL10: - | EM10: - | EN10: - | EO10: - | EP10: - | EQ10: - | ER10: - | ES10: - | ET10: - | EU10: - | EV10: - | EW10: - | EX10: - | EY10: - | EZ10: - | FA10: - | FB10: - | FC10: - | FD10: - | FE10: - | FF10: - | FG10: - | FH10: - | FI10: - | FJ10: - | FK10: - | FL10: - | FM10: - | FN10: - | FO10: - | FP10: - | FQ10: - | FR10: - | FS10: - | FT10: - | FU10: - | FV10: - | FW10: - | FX10: - | FY10: - | FZ10: - | GA10: - | GB10: - | GC10: - | GD10: - | GE10: - | GF10: - | GG10: - | GH10: - | GI10: - | GJ10: - | GK10: - | GL10: - | GM10: - | GN10: - | GO10: - | GP10: - | GQ10: - | GR10: - | GS10: - | GT10: - | GU10: - | GV10: - | GW10: - | GX10: - | GY10: - | GZ10: - | HA10: - | HB10: - | HC10: - | HD10: - | HE10: - | HF10: - | HG10: - | HH10: - | HI10: - | HJ10: - | HK10: - | HL10: - | HM10: - | HN10: - | HO10: - | HP10: - | HQ10: - | HR10: - | HS10: - | HT10: - | HU10: - | HV10: - | HW10: - | HX10: - | HY10: - | HZ10: - | IA10: - | IB10: - | IC10: - | ID10: - | IE10: - | IF10: - | IG10: … | IH10: … | II10: … | IJ10: … | IK10: … | IL10: … | IM10: … | IN10: … | IO10: … | IP10: … | IQ10: … | IR10: … | IS10: … | IT10: … | IU10: … | IV10: … | IW10: … | IX10: … | IY10: … | IZ10: … | JA10: … | JB10: … | JC10: … | JD10: … | JE10: … | JF10: … | JG10: … | JH10: … | JI10: … | JJ10: … | JK10: … | JL10: … | JM10: … | JN10: … | JO10: … | JP10: … | JQ10: … | JR10: 1559 | JS10: 447 | JT10: 2816 | JU10: 2674 | JV10: -5.042613636 | JW10: 36.82528409 | JX10: 53.03 | JY10: 0 | JZ10: 1 | KA10: 0 | KB10: 0 | KC10: 0 | KD10: 0
A11: 3020101003 | B11: 30 | D11: 201 | E11: 01 | F11: 003 | H11: 和歌山県 | I11: 和歌山市 | J11: 和歌山市 | K11: 本町 | M11: - | N11: - | O11: - | P11: - | Q11: - | R11: - | S11: - | T11: - | U11: - | V11: - | W11: - | X11: - | Y11: - | Z11: - | AA11: - | AB11: - | AC11: - | AD11: - | AE11: - | AF11: - | AG11: - | AH11: - | AI11: - | AJ11: - | AK11: - | AL11: - | AM11: - | AN11: - | AO11: - | AP11: - | AQ11: - | AR11: - | AS11: - | AT11: - | AU11: - | AV11: - | AW11: - | AX11: - | AY11: - | AZ11: - | BA11: x | BB11: - | BC11: x | BD11: - | BE11: x | BF11: - | BG11: - | BH11: - | BI11: - | BJ11: - | BK11: x | BL11: - | BM11: x | BN11: - | BO11: x | BP11: - | BQ11: - | BR11: - | BS11: - | BT11: - | BU11: - | BV11: - | BW11: - | BX11: - | BY11: - | BZ11: - | CA11: - | CB11: - | CC11: - | CD11: - | CE11: - | CF11: - | CG11: - | CH11: - | CI11: - | CJ11: - | CK11: - | CL11: - | CM11: - | CN11: - | CO11: - | CP11: - | CQ11: - | CR11: - | CS11: - | CT11: - | CU11: - | CV11: - | CW11: - | CX11: - | CY11: - | CZ11: - | DA11: - | DB11: - | DC11: - | DD11: - | DE11: - | DF11: - | DG11: - | DH11: - | DI11: - | DJ11: - | DK11: - | DL11: - | DM11: - | DN11: - | DO11: - | DP11: - | DQ11: - | DR11: - | DS11: - | DT11: - | DU11: - | DV11: - | DW11: - | DX11: - | DY11: - | DZ11: x | EA11: x | EB11: - | EC11: - | ED11: - | EE11: - | EF11: - | EG11: - | EH11: - | EI11: - | EJ11: x | EK11: x | EL11: - | EM11: - | EN11: - | EO11: - | EP11: - | EQ11: - | ER11: - | ES11: - | ET11: - | EU11: - | EV11: - | EW11: - | EX11: - | EY11: - | EZ11: - | FA11: - | FB11: - | FC11: - | FD11: - | FE11: - | FF11: - | FG11: - | FH11: - | FI11: - | FJ11: - | FK11: - | FL11: - | FM11: - | FN11: - | FO11: - | FP11: - | FQ11: - | FR11: - | FS11: - | FT11: - | FU11: - | FV11: - | FW11: - | FX11: - | FY11: - | FZ11: - | GA11: - | GB11: - | GC11: - | GD11: - | GE11: - | GF11: - | GG11: - | GH11: - | GI11: - | GJ11: - | GK11: - | GL11: - | GM11: - | GN11: - | GO11: - | GP11: - | GQ11: - | GR11: - | GS11: - | GT11: - | GU11: - | GV11: - | GW11: - | GX11: - | GY11: - | GZ11: - | HA11: - | HB11: - | HC11: - | HD11: - | HE11: - | HF11: - | HG11: - | HH11: - | HI11: - | HJ11: - | HK11: - | HL11: - | HM11: - | HN11: - | HO11: - | HP11: - | HQ11: - | HR11: - | HS11: - | HT11: - | HU11: - | HV11: - | HW11: - | HX11: - | HY11: - | HZ11: - | IA11: - | IB11: - | IC11: - | ID11: - | IE11: - | IF11: - | IG11: … | IH11: … | II11: … | IJ11: … | IK11: … | IL11: … | IM11: … | IN11: … | IO11: … | IP11: … | IQ11: … | IR11: … | IS11: … | IT11: … | IU11: … | IV11: … | IW11: … | IX11: … | IY11: … | IZ11: … | JA11: … | JB11: … | JC11: … | JD11: … | JE11: … | JF11: … | JG11: … | JH11: … | JI11: … | JJ11: … | JK11: … | JL11: … | JM11: … | JN11: … | JO11: … | JP11: … | JQ11: … | JR11: 1837 | JS11: 510 | JT11: 3717 | JU11: 2320 | JV11: -37.58407318 | JW11: 37.42265268 | JX11: 103.06 | JY11: 0 | JZ11: 1 | KA11: 0 | KB11: 0 | KC11: 0 | KD11: 0
A12: 3020101004 | B12: 30 | D12: 201 | E12: 01 | F12: 004 | H12: 和歌山県 | I12: 和歌山市 | J12: 和歌山市 | K12: 広瀬 | M12: - | N12: - | O12: - | P12: - | Q12: - | R12: - | S12: - | T12: - | U12: - | V12: - | W12: - | X12: - | Y12: - | Z12: - | AA12: - | AB12: - | AC12: - | AD12: - | AE12: - | AF12: - | AG12: - | AH12: - | AI12: - | AJ12: - | AK12: - | AL12: - | AM12: - | AN12: - | AO12: - | AP12: - | AQ12: - | AR12: - | AS12: - | AT12: - | AU12: - | AV12: - | AW12: - | AX12: - | AY12: - | AZ12: - | BA12: x | BB12: - | BC12: x | BD12: - | BE12: x | BF12: - | BG12: - | BH12: - | BI12: - | BJ12: - | BK12: x | BL12: - | BM12: x | BN12: - | BO12: x | BP12: - | BQ12: - | BR12: - | BS12: - | BT12: - | BU12: - | BV12: - | BW12: - | BX12: - | BY12: - | BZ12: - | CA12: - | CB12: - | CC12: - | CD12: - | CE12: - | CF12: - | CG12: - | CH12: - | CI12: - | CJ12: - | CK12: - | CL12: - | CM12: - | CN12: - | CO12: - | CP12: - | CQ12: - | CR12: - | CS12: - | CT12: - | CU12: - | CV12: - | CW12: - | CX12: - | CY12: - | CZ12: - | DA12: - | DB12: - | DC12: - | DD12: - | DE12: - | DF12: - | DG12: - | DH12: - | DI12: - | DJ12: - | DK12: - | DL12: - | DM12: - | DN12: - | DO12: - | DP12: - | DQ12: - | DR12: - | DS12: - | DT12: - | DU12: - | DV12: - | DW12: - | DX12: - | DY12: - | DZ12: x | EA12: x | EB12: - | EC12: - | ED12: - | EE12: - | EF12: - | EG12: - | EH12: - | EI12: - | EJ12: x | EK12: x | EL12: - | EM12: - | EN12: - | EO12: - | EP12: - | EQ12: - | ER12: - | ES12: - | ET12: - | EU12: - | EV12: - | EW12: - | EX12: - | EY12: - | EZ12: - | FA12: - | FB12: - | FC12: - | FD12: - | FE12: - | FF12: - | FG12: - | FH12: - | FI12: - | FJ12: - | FK12: - | FL12: - | FM12: - | FN12: - | FO12: - | FP12: - | FQ12: - | FR12: - | FS12: - | FT12: - | FU12: - | FV12: - | FW12: - | FX12: - | FY12: - | FZ12: - | GA12: - | GB12: - | GC12: - | GD12: - | GE12: - | GF12: - | GG12: - | GH12: - | GI12: - | GJ12: - | GK12: - | GL12: - | GM12: - | GN12: - | GO12: - | GP12: - | GQ12: - | GR12: - | GS12: - | GT12: - | GU12: - | GV12: - | GW12: - | GX12: - | GY12: - | GZ12: - | HA12: - | HB12: - | HC12: - | HD12: - | HE12: - | HF12: - | HG12: - | HH12: - | HI12: - | HJ12: - | HK12: - | HL12: - | HM12: - | HN12: - | HO12: - | HP12: - | HQ12: - | HR12: - | HS12: - | HT12: - | HU12: - | HV12: - | HW12: - | HX12: - | HY12: - | HZ12: - | IA12: - | IB12: - | IC12: - | ID12: - | IE12: - | IF12: - | IG12: … | IH12: … | II12: … | IJ12: … | IK12: … | IL12: … | IM12: … | IN12: … | IO12: … | IP12: … | IQ12: … | IR12: … | IS12: … | IT12: … | IU12: … | IV12: … | IW12: … | IX12: … | IY12: … | IZ12: … | JA12: … | JB12: … | JC12: … | JD12: … | JE12: … | JF12: … | JG12: … | JH12: … | JI12: … | JJ12: … | JK12: … | JL12: … | JM12: … | JN12: … | JO12: … | JP12: … | JQ12: … | JR12: 3681 | JS12: 431 | JT12: 7015 | JU12: 3139 | JV12: -55.25302922 | JW12: 35.80898076 | JX12: 119.54 | JY12: 0 | JZ12: 1 | KA12: 0 | KB12: 0 | KC12: 0 | KD12: 0
A13: 3020101005 | B13: 30 | D13: 201 | E13: 01 | F13: 005 | H13: 和歌山県 | I13: 和歌山市 | J13: 和歌山市 | K13: 城北 | M13: - | N13: - | O13: - | P13: - | Q13: - | R13: - | S13: - | T13: - | U13: - | V13: - | W13: - | X13: - | Y13: - | Z13: - | AA13: - | AB13: - | AC13: - | AD13: - | AE13: - | AF13: - | AG13: - | AH13: - | AI13: - | AJ13: - | AK13: - | AL13: - | AM13: - | AN13: - | AO13: - | AP13: - | AQ13: - | AR13: - | AS13: - | AT13: - | AU13: - | AV13: - | AW13: - | AX13: - | AY13: - | AZ13: - | BA13: x | BB13: - | BC13: x | BD13: - | BE13: x | BF13: - | BG13: - | BH13: - | BI13: - | BJ13: - | BK13: x | BL13: - | BM13: x | BN13: - | BO13: x | BP13: - | BQ13: - | BR13: - | BS13: - | BT13: - | BU13: - | BV13: - | BW13: - | BX13: - | BY13: - | BZ13: - | CA13: - | CB13: - | CC13: - | CD13: - | CE13: - | CF13: - | CG13: - | CH13: - | CI13: - | CJ13: - | CK13: - | CL13: - | CM13: - | CN13: - | CO13: - | CP13: - | CQ13: - | CR13: - | CS13: - | CT13: - | CU13: - | CV13: - | CW13: - | CX13: - | CY13: - | CZ13: - | DA13: - | DB13: - | DC13: - | DD13: - | DE13: - | DF13: - | DG13: - | DH13: - | DI13: - | DJ13: - | DK13: - | DL13: - | DM13: - | DN13: - | DO13: - | DP13: - | DQ13: - | DR13: - | DS13: - | DT13: - | DU13: - | DV13: - | DW13: - | DX13: - | DY13: - | DZ13: x | EA13: x | EB13: - | EC13: - | ED13: - | EE13: - | EF13: - | EG13: - | EH13: - | EI13: - | EJ13: x | EK13: x | EL13: - | EM13: - | EN13: - | EO13: - | EP13: - | EQ13: - | ER13: - | ES13: - | ET13: - | EU13: - | EV13: - | EW13: - | EX13: - | EY13: - | EZ13: - | FA13: - | FB13: - | FC13: - | FD13: - | FE13: - | FF13: - | FG13: - | FH13: - | FI13: - | FJ13: - | FK13: - | FL13: - | FM13: - | FN13: - | FO13: - | FP13: - | FQ13: - | FR13: - | FS13: - | FT13: - | FU13: - | FV13: - | FW13: - | FX13: - | FY13: - | FZ13: - | GA13: - | GB13: - | GC13: - | GD13: - | GE13: - | GF13: - | GG13: - | GH13: - | GI13: - | GJ13: - | GK13: - | GL13: - | GM13: - | GN13: - | GO13: - | GP13: - | GQ13: - | GR13: - | GS13: - | GT13: - | GU13: - | GV13: - | GW13: - | GX13: - | GY13: - | GZ13: - | HA13: - | HB13: - | HC13: - | HD13: - | HE13: - | HF13: - | HG13: - | HH13: - | HI13: - | HJ13: - | HK13: - | HL13: - | HM13: - | HN13: - | HO13: - | HP13: - | HQ13: - | HR13: - | HS13: - | HT13: - | HU13: - | HV13: - | HW13: - | HX13: - | HY13: - | HZ13: - | IA13: - | IB13: - | IC13: - | ID13: - | IE13: - | IF13: - | IG13: … | IH13: … | II13: … | IJ13: … | IK13: … | IL13: … | IM13: … | IN13: … | IO13: … | IP13: … | IQ13: … | IR13: … | IS13: … | IT13: … | IU13: … | IV13: … | IW13: … | IX13: … | IY13: … | IZ13: … | JA13: … | JB13: … | JC13: … | JD13: … | JE13: … | JF13: … | JG13: … | JH13: … | JI13: … | JJ13: … | JK13: … | JL13: … | JM13: … | JN13: … | JO13: … | JP13: … | JQ13: … | JR13: 2091 | JS13: 986 | JT13: 3797 | JU13: 2690 | JV13: -29.15459573 | JW13: 34.4745852 | JX13: 148.69 | JY13: 0 | JZ13: 1 | KA13: 0 | KB13: 0 | KC13: 0 | KD13: 0
A14: 3020101006 | B14: 30 | D14: 201 | E14: 01 | F14: 006 | H14: 和歌山県 | I14: 和歌山市 | J14: 和歌山市 | K14: 吹上 | M14: - | N14: - | O14: - | P14: - | Q14: - | R14: - | S14: - | T14: - | U14: - | V14: - | W14: - | X14: - | Y14: - | Z14: - | AA14: - | AB14: - | AC14: - | AD14: - | AE14: - | AF14: - | AG14: - | AH14: - | AI14: - | AJ14: - | AK14: - | AL14: - | AM14: - | AN14: - | AO14: - | AP14: - | AQ14: - | AR14: - | AS14: - | AT14: - | AU14: - | AV14: - | AW14: - | AX14: - | AY14: - | AZ14: - | BA14: x | BB14: - | BC14: x | BD14: - | BE14: x | BF14: - | BG14: - | BH14: - | BI14: - | BJ14: - | BK14: x | BL14: - | BM14: x | BN14: - | BO14: x | BP14: - | BQ14: - | BR14: - | BS14: - | BT14: - | BU14: - | BV14: - | BW14: - | BX14: - | BY14: - | BZ14: - | CA14: - | CB14: - | CC14: - | CD14: - | CE14: - | CF14: - | CG14: - | CH14: - | CI14: - | CJ14: - | CK14: - | CL14: - | CM14: - | CN14: - | CO14: - | CP14: - | CQ14: - | CR14: - | CS14: - | CT14: - | CU14: - | CV14: - | CW14: - | CX14: - | CY14: - | CZ14: - | DA14: - | DB14: - | DC14: - | DD14: - | DE14: - | DF14: - | DG14: - | DH14: - | DI14: - | DJ14: - | DK14: - | DL14: - | DM14: - | DN14: - | DO14: - | DP14: - | DQ14: - | DR14: - | DS14: - | DT14: - | DU14: - | DV14: - | DW14: - | DX14: - | DY14: - | DZ14: x | EA14: x | EB14: - | EC14: - | ED14: - | EE14: - | EF14: - | EG14: - | EH14: - | EI14: - | EJ14: x | EK14: x | EL14: - | EM14: - | EN14: - | EO14: - | EP14: - | EQ14: - | ER14: - | ES14: - | ET14: - | EU14: - | EV14: - | EW14: - | EX14: - | EY14: - | EZ14: - | FA14: - | FB14: - | FC14: - | FD14: - | FE14: - | FF14: - | FG14: - | FH14: - | FI14: - | FJ14: - | FK14: - | FL14: - | FM14: - | FN14: - | FO14: - | FP14: - | FQ14: - | FR14: - | FS14: - | FT14: - | FU14: - | FV14: - | FW14: - | FX14: - | FY14: - | FZ14: - | GA14: - | GB14: - | GC14: - | GD14: - | GE14: - | GF14: - | GG14: - | GH14: - | GI14: - | GJ14: - | GK14: - | GL14: - | GM14: - | GN14: - | GO14: - | GP14: - | GQ14: - | GR14: - | GS14: - | GT14: - | GU14: - | GV14: - | GW14: - | GX14: - | GY14: - | GZ14: - | HA14: - | HB14: - | HC14: - | HD14: - | HE14: - | HF14: - | HG14: - | HH14: - | HI14: - | HJ14: - | HK14: - | HL14: - | HM14: - | HN14: - | HO14: - | HP14: - | HQ14: - | HR14: - | HS14: - | HT14: - | HU14: - | HV14: - | HW14: - | HX14: - | HY14: - | HZ14: - | IA14: - | IB14: - | IC14: - | ID14: - | IE14: - | IF14: - | IG14: … | IH14: … | II14: … | IJ14: … | IK14: … | IL14: … | IM14: … | IN14: … | IO14: … | IP14: … | IQ14: … | IR14: … | IS14: … | IT14: … | IU14: … | IV14: … | IW14: … | IX14: … | IY14: … | IZ14: … | JA14: … | JB14: … | JC14: … | JD14: … | JE14: … | JF14: … | JG14: … | JH14: … | JI14: … | JJ14: … | JK14: … | JL14: … | JM14: … | JN14: … | JO14: … | JP14: … | JQ14: … | JR14: 3151 | JS14: 465 | JT14: 6751 | JU14: 5449 | JV14: -19.2860317 | JW14: 31.93600948 | JX14: 140.65 | JY14: 0 | JZ14: 1 | KA14: 0 | KB14: 0 | KC14: 0 | KD14: 0
A15: 3020101007 | B15: 30 | D15: 201 | E15: 01 | F15: 007 | H15: 和歌山県 | I15: 和歌山市 | J15: 和歌山市 | K15: 雄湊 | M15: - | N15: - | O15: - | P15: - | Q15: - | R15: - | S15: - | T15: - | U15: - | V15: - | W15: - | X15: - | Y15: - | Z15: - | AA15: - | AB15: - | AC15: - | AD15: - | AE15: - | AF15: - | AG15: - | AH15: - | AI15: - | AJ15: - | AK15: - | AL15: - | AM15: - | AN15: - | AO15: - | AP15: - | AQ15: - | AR15: - | AS15: - | AT15: - | AU15: - | AV15: - | AW15: - | AX15: - | AY15: - | AZ15: - | BA15: x | BB15: - | BC15: x | BD15: - | BE15: x | BF15: - | BG15: - | BH15: - | BI15: - | BJ15: - | BK15: x | BL15: - | BM15: x | BN15: - | BO15: x | BP15: - | BQ15: - | BR15: - | BS15: - | BT15: - | BU15: - | BV15: - | BW15: - | BX15: - | BY15: - | BZ15: - | CA15: - | CB15: - | CC15: - | CD15: - | CE15: - | CF15: - | CG15: - | CH15: - | CI15: - | CJ15: - | CK15: - | CL15: - | CM15: - | CN15: - | CO15: - | CP15: - | CQ15: - | CR15: - | CS15: - | CT15: - | CU15: - | CV15: - | CW15: - | CX15: - | CY15: - | CZ15: - | DA15: - | DB15: - | DC15: - | DD15: - | DE15: - | DF15: - | DG15: - | DH15: - | DI15: - | DJ15: - | DK15: - | DL15: - | DM15: - | DN15: - | DO15: - | DP15: - | DQ15: - | DR15: - | DS15: - | DT15: - | DU15: - | DV15: - | DW15: - | DX15: - | DY15: - | DZ15: x | EA15: x | EB15: - | EC15: - | ED15: - | EE15: - | EF15: - | EG15: - | EH15: - | EI15: - | EJ15: x | EK15: x | EL15: - | EM15: - | EN15: - | EO15: - | EP15: - | EQ15: - | ER15: - | ES15: - | ET15: - | EU15: - | EV15: - | EW15: - | EX15: - | EY15: - | EZ15: - | FA15: - | FB15: - | FC15: - | FD15: - | FE15: - | FF15: - | FG15: - | FH15: - | FI15: - | FJ15: - | FK15: - | FL15: - | FM15: - | FN15: - | FO15: - | FP15: - | FQ15: - | FR15: - | FS15: - | FT15: - | FU15: - | FV15: - | FW15: - | FX15: - | FY15: - | FZ15: - | GA15: - | GB15: - | GC15: - | GD15: - | GE15: - | GF15: - | GG15: - | GH15: - | GI15: - | GJ15: - | GK15: - | GL15: - | GM15: - | GN15: - | GO15: - | GP15: - | GQ15: - | GR15: - | GS15: - | GT15: - | GU15: - | GV15: - | GW15: - | GX15: - | GY15: - | GZ15: - | HA15: - | HB15: - | HC15: - | HD15: - | HE15: - | HF15: - | HG15: - | HH15: - | HI15: - | HJ15: - | HK15: - | HL15: - | HM15: - | HN15: - | HO15: - | HP15: - | HQ15: - | HR15: - | HS15: - | HT15: - | HU15: - | HV15: - | HW15: - | HX15: - | HY15: - | HZ15: - | IA15: - | IB15: - | IC15: - | ID15: - | IE15: - | IF15: - | IG15: … | IH15: … | II15: … | IJ15: … | IK15: … | IL15: … | IM15: … | IN15: … | IO15: … | IP15: … | IQ15: … | IR15: … | IS15: … | IT15: … | IU15: … | IV15: … | IW15: … | IX15: … | IY15: … | IZ15: … | JA15: … | JB15: … | JC15: … | JD15: … | JE15: … | JF15: … | JG15: … | JH15: … | JI15: … | JJ15: … | JK15: … | JL15: … | JM15: … | JN15: … | JO15: … | JP15: … | JQ15: … | JR15: 2523 | JS15: 528 | JT15: 5312 | JU15: 4039 | JV15: -23.96460843 | JW15: 34.2996988 | JX15: 120.05 | JY15: 0 | JZ15: 1 | KA15: 0 | KB15: 0 | KC15: 0 | KD15: 0
A16: 3020101008 | B16: 30 | D16: 201 | E16: 01 | F16: 008 | H16: 和歌山県 | I16: 和歌山市 | J16: 和歌山市 | K16: 砂山 | M16: - | N16: - | O16: - | P16: - | Q16: - | R16: - | S16: - | T16: - | U16: - | V16: - | W16: - | X16: - | Y16: - | Z16: - | AA16: - | AB16: - | AC16: - | AD16: - | AE16: - | AF16: - | AG16: - | AH16: - | AI16: - | AJ16: - | AK16: - | AL16: - | AM16: - | AN16: - | AO16: - | AP16: - | AQ16: - | AR16: - | AS16: - | AT16: - | AU16: - | AV16: - | AW16: - | AX16: - | AY16: - | AZ16: - | BA16: x | BB16: - | BC16: x | BD16: - | BE16: x | BF16: - | BG16: - | BH16: - | BI16: - | BJ16: - | BK16: x | BL16: - | BM16: x | BN16: - | BO16: x | BP16: - | BQ16: - | BR16: - | BS16: - | BT16: - | BU16: - | BV16: - | BW16: - | BX16: - | BY16: - | BZ16: - | CA16: - | CB16: - | CC16: - | CD16: - | CE16: - | CF16: - | CG16: - | CH16: - | CI16: - | CJ16: - | CK16: - | CL16: - | CM16: - | CN16: - | CO16: - | CP16: - | CQ16: - | CR16: - | CS16: - | CT16: - | CU16: - | CV16: - | CW16: - | CX16: - | CY16: - | CZ16: - | DA16: - | DB16: - | DC16: - | DD16: - | DE16: - | DF16: - | DG16: - | DH16: - | DI16: - | DJ16: - | DK16: - | DL16: - | DM16: - | DN16: - | DO16: - | DP16: - | DQ16: - | DR16: - | DS16: - | DT16: - | DU16: - | DV16: - | DW16: - | DX16: - | DY16: - | DZ16: x | EA16: x | EB16: - | EC16: - | ED16: - | EE16: - | EF16: - | EG16: - | EH16: - | EI16: - | EJ16: x | EK16: x | EL16: - | EM16: - | EN16: - | EO16: - | EP16: - | EQ16: - | ER16: - | ES16: - | ET16: - | EU16: - | EV16: - | EW16: - | EX16: - | EY16: - | EZ16: - | FA16: - | FB16: - | FC16: - | FD16: - | FE16: - | FF16: - | FG16: - | FH16: - | FI16: - | FJ16: - | FK16: - | FL16: - | FM16: - | FN16: - | FO16: - | FP16: - | FQ16: - | FR16: - | FS16: - | FT16: - | FU16: - | FV16: - | FW16: - | FX16: - | FY16: - | FZ16: - | GA16: - | GB16: - | GC16: - | GD16: - | GE16: - | GF16: - | GG16: - | GH16: - | GI16: - | GJ16: - | GK16: - | GL16: - | GM16: - | GN16: - | GO16: - | GP16: - | GQ16: - | GR16: - | GS16: - | GT16: - | GU16: - | GV16: - | GW16: - | GX16: - | GY16: - | GZ16: - | HA16: - | HB16: - | HC16: - | HD16: - | HE16: - | HF16: - | HG16: - | HH16: - | HI16: - | HJ16: - | HK16: - | HL16: - | HM16: - | HN16: - | HO16: - | HP16: - | HQ16: - | HR16: - | HS16: - | HT16: - | HU16: - | HV16: - | HW16: - | HX16: - | HY16: - | HZ16: - | IA16: - | IB16: - | IC16: - | ID16: - | IE16: - | IF16: - | IG16: … | IH16: … | II16: … | IJ16: … | IK16: … | IL16: … | IM16: … | IN16: … | IO16: … | IP16: … | IQ16: … | IR16: … | IS16: … | IT16: … | IU16: … | IV16: … | IW16: … | IX16: … | IY16: … | IZ16: … | JA16: … | JB16: … | JC16: … | JD16: … | JE16: … | JF16: … | JG16: … | JH16: … | JI16: … | JJ16: … | JK16: … | JL16: … | JM16: … | JN16: … | JO16: … | JP16: … | JQ16: … | JR16: 2841 | JS16: 350 | JT16: 5908 | JU16: 3487 | JV16: -40.97833446 | JW16: 30.07786053 | JX16: 249.02 | JY16: 0 | JZ16: 1 | KA16: 0 | KB16: 0 | KC16: 0 | KD16: 0
A17: 3020101009 | B17: 30 | D17: 201 | E17: 01 | F17: 009 | H17: 和歌山県 | I17: 和歌山市 | J17: 和歌山市 | K17: 津秦 | M17: 11 | N17: - | O17: - | P17: - | Q17: - | R17: - | S17: - | T17: 11 | U17: - | V17: 1 | W17: 3 | X17: - | Y17: - | Z17: 11 | AA17: 2 | AB17: 8 | AC17: 1 | AD17: - | AE17: - | AF17: - | AG17: - | AH17: - | AI17: 750 | AJ17: 70 | AK17: 530 | AL17: 150 | AM17: - | AN17: - | AO17: - | AP17: - | AQ17: - | AR17: 10 | AS17: 640 | AT17: 2 | AU17: 80 | AV17: 1 | AW17: 30 | AX17: 1 | AY17: 63 | AZ17: 9 | BA17: x | BB17: 1 | BC17: x | BD17: 2 | BE17: x | BF17: - | BG17: - | BH17: 1 | BI17: - | BJ17: 512 | BK17: x | BL17: x | BM17: x | BN17: x | BO17: x | BP17: - | BQ17: - | BR17: x | BS17: - | BT17: - | BU17: - | BV17: - | BW17: - | BX17: - | BY17: - | BZ17: - | CA17: - | CB17: - | CC17: - | CD17: - | CE17: - | CF17: - | CG17: - | CH17: 1 | CI17: x | CJ17: 1 | CK17: x | CL17: - | CM17: - | CN17: - | CO17: - | CP17: - | CQ17: - | CR17: - | CS17: - | CT17: 1 | CU17: x | CV17: - | CW17: - | CX17: - | CY17: - | CZ17: 1 | DA17: x | DB17: 1 | DC17: x | DD17: - | DE17: - | DF17: - | DG17: - | DH17: - | DI17: - | DJ17: - | DK17: - | DL17: - | DM17: - | DN17: - | DO17: - | DP17: - | DQ17: - | DR17: - | DS17: - | DT17: - | DU17: - | DV17: - | DW17: - | DX17: - | DY17: - | DZ17: x | EA17: x | EB17: - | EC17: - | ED17: - | EE17: - | EF17: - | EG17: - | EH17: - | EI17: - | EJ17: x | EK17: x | EL17: 10 | EM17: 8 | EN17: 2 | EO17: - | EP17: - | EQ17: - | ER17: 14 | ES17: 4 | ET17: 1 | EU17: 5 | EV17: 2 | EW17: 2 | EX17: 11 | EY17: 9 | EZ17: 1 | FA17: 1 | FB17: - | FC17: - | FD17: - | FE17: 1250 | FF17: 300 | FG17: 200 | FH17: 750 | FI17: - | FJ17: - | FK17: - | FL17: 11 | FM17: - | FN17: - | FO17: - | FP17: - | FQ17: - | FR17: - | FS17: - | FT17: 11 | FU17: - | FV17: - | FW17: - | FX17: - | FY17: - | FZ17: - | GA17: - | GB17: - | GC17: 10 | GD17: 1 | GE17: 700 | GF17: 60 | GG17: 11 | GH17: 1 | GI17: 8 | GJ17: 2 | GK17: 750 | GL17: 50 | GM17: 510 | GN17: 190 | GO17: 11 | GP17: 1 | GQ17: 1 | GR17: 2 | GS17: - | GT17: 8 | GU17: 8 | GV17: - | GW17: - | GX17: 1 | GY17: - | GZ17: - | HA17: - | HB17: - | HC17: - | HD17: 2 | HE17: 2 | HF17: 1 | HG17: 2 | HH17: - | HI17: 69.5 | HJ17: 3 | HK17: - | HL17: - | HM17: - | HN17: - | HO17: - | HP17: - | HQ17: - | HR17: - | HS17: 2 | HT17: - | HU17: - | HV17: 1 | HW17: - | HX17: 71.67 | HY17: 11 | HZ17: 10 | IA17: 2 | IB17: 1 | IC17: 1 | ID17: - | IE17: - | IF17: 4 | IG17: … | IH17: … | II17: … | IJ17: … | IK17: … | IL17: … | IM17: … | IN17: … | IO17: … | IP17: … | IQ17: … | IR17: … | IS17: … | IT17: … | IU17: … | IV17: … | IW17: … | IX17: … | IY17: … | IZ17: … | JA17: … | JB17: … | JC17: … | JD17: … | JE17: … | JF17: … | JG17: … | JH17: … | JI17: … | JJ17: … | JK17: … | JL17: … | JM17: … | JN17: … | JO17: … | JP17: … | JQ17: … | JR17: 1129 | JS17: 69 | JT17: 2484 | JU17: 2217 | JV17: -10.74879227 | JW17: 27.33494364 | JX17: 39.87 | JY17: 0 | JZ17: 1 | KA17: 0 | KB17: 0 | KC17: 0 | KD17: 0
A18: 3020101010 | B18: 30 | D18: 201 | E18: 01 | F18: 010 | H18: 和歌山県 | I18: 和歌山市 | J18: 和歌山市 | K18: 秋月 | M18: 8 | N18: - | O18: - | P18: - | Q18: - | R18: - | S18: - | T18: 8 | U18: 2 | V18: - | W18: - | X18: 1 | Y18: 3 | Z18: 8 | AA18: 3 | AB18: 4 | AC18: 1 | AD18: - | AE18: - | AF18: - | AG18: - | AH18: - | AI18: 500 | AJ18: 108 | AK18: 272 | AL18: 120 | AM18: - | AN18: - | AO18: - | AP18: - | AQ18: - | AR18: 8 | AS18: 453 | AT18: 3 | AU18: 47 | AV18: - | AW18: - | AX18: 2 | AY18: 12 | AZ18: 8 | BA18: x | BB18: - | BC18: x | BD18: 4 | BE18: x | BF18: - | BG18: - | BH18: - | BI18: - | BJ18: 447 | BK18: x | BL18: - | BM18: x | BN18: 398 | BO18: x | BP18: - | BQ18: - | BR18: - | BS18: - | BT18: - | BU18: - | BV18: - | BW18: - | BX18: - | BY18: - | BZ18: - | CA18: - | CB18: - | CC18: - | CD18: - | CE18: - | CF18: - | CG18: - | CH18: 2 | CI18: x | CJ18: 4 | CK18: 150 | CL18: - | CM18: - | CN18: - | CO18: - | CP18: - | CQ18: - | CR18: - | CS18: - | CT18: 3 | CU18: 105 | CV18: - | CW18: - | CX18: 1 | CY18: x | CZ18: 1 | DA18: x | DB18: 1 | DC18: x | DD18: - | DE18: - | DF18: - | DG18: - | DH18: - | DI18: - | DJ18: - | DK18: - | DL18: - | DM18: - | DN18: - | DO18: - | DP18: - | DQ18: - | DR18: - | DS18: - | DT18: - | DU18: - | DV18: - | DW18: - | DX18: - | DY18: - | DZ18: x | EA18: x | EB18: - | EC18: - | ED18: - | EE18: - | EF18: - | EG18: - | EH18: - | EI18: - | EJ18: x | EK18: x | EL18: 8 | EM18: 5 | EN18: 3 | EO18: - | EP18: - | EQ18: - | ER18: 11 | ES18: 8 | ET18: - | EU18: - | EV18: 3 | EW18: - | EX18: 8 | EY18: 4 | EZ18: 2 | FA18: 2 | FB18: - | FC18: - | FD18: - | FE18: 1650 | FF18: 100 | FG18: 400 | FH18: 1150 | FI18: - | FJ18: - | FK18: - | FL18: 8 | FM18: - | FN18: - | FO18: - | FP18: - | FQ18: - | FR18: - | FS18: - | FT18: 8 | FU18: 2 | FV18: 2 | FW18: - | FX18: - | FY18: - | FZ18: - | GA18: 2 | GB18: 1 | GC18: 8 | GD18: 1 | GE18: x | GF18: 200 | GG18: 8 | GH18: 1 | GI18: 1 | GJ18: 6 | GK18: 500 | GL18: 55 | GM18: 70 | GN18: 375 | GO18: 8 | GP18: - | GQ18: - | GR18: 3 | GS18: 2 | GT18: 5 | GU18: 11 | GV18: - | GW18: - | GX18: - | GY18: - | GZ18: 1 | HA18: - | HB18: 2 | HC18: - | HD18: 2 | HE18: 3 | HF18: 2 | HG18: 1 | HH18: - | HI18: 68.09 | HJ18: 5 | HK18: - | HL18: - | HM18: - | HN18: - | HO18: 1 | HP18: - | HQ18: - | HR18: - | HS18: 1 | HT18: 1 | HU18: 1 | HV18: 1 | HW18: - | HX18: 69.2 | HY18: 8 | HZ18: 6 | IA18: - | IB18: 2 | IC18: 2 | ID18: - | IE18: - | IF18: 4 | IG18: … | IH18: … | II18: … | IJ18: … | IK18: … | IL18: … | IM18: … | IN18: … | IO18: … | IP18: … | IQ18: … | IR18: … | IS18: … | IT18: … | IU18: … | IV18: … | IW18: … | IX18: … | IY18: … | IZ18: … | JA18: … | JB18: … | JC18: … | JD18: … | JE18: … | JF18: … | JG18: … | JH18: … | JI18: … | JJ18: … | JK18: … | JL18: … | JM18: … | JN18: … | JO18: … | JP18: … | JQ18: … | JR18: 998 | JS18: 100 | JT18: 2235 | JU18: 1565 | JV18: -29.97762864 | JW18: 30.60402685 | JX18: 48.56 | JY18: 0 | JZ18: 1 | KA18: 0 | KB18: 0 | KC18: 0 | KD18: 0
A19: 3020101011 | B19: 30 | D19: 201 | E19: 01 | F19: 011 | H19: 和歌山県 | I19: 和歌山市 | J19: 和歌山市 | K19: 出水 | M19: 7 | N19: - | O19: - | P19: - | Q19: - | R19: - | S19: - | T19: 7 | U19: 2 | V19: - | W19: - | X19: - | Y19: - | Z19: 7 | AA19: 1 | AB19: 3 | AC19: 3 | AD19: - | AE19: - | AF19: - | AG19: - | AH19: - | AI19: 627 | AJ19: 42 | AK19: 203 | AL19: 382 | AM19: - | AN19: - | AO19: - | AP19: - | AQ19: - | AR19: 7 | AS19: 615 | AT19: 1 | AU19: 12 | AV19: - | AW19: - | AX19: - | AY19: - | AZ19: 7 | BA19: x | BB19: - | BC19: x | BD19: 3 | BE19: x | BF19: - | BG19: - | BH19: - | BI19: - | BJ19: 580 | BK19: x | BL19: - | BM19: x | BN19: 202 | BO19: x | BP19: - | BQ19: - | BR19: - | BS19: - | BT19: - | BU19: - | BV19: - | BW19: - | BX19: - | BY19: - | BZ19: - | CA19: - | CB19: - | CC19: - | CD19: - | CE19: - | CF19: - | CG19: - | CH19: 3 | CI19: 125 | CJ19: 2 | CK19: x | CL19: 1 | CM19: x | CN19: 1 | CO19: x | CP19: - | CQ19: - | CR19: - | CS19: - | CT19: 1 | CU19: x | CV19: - | CW19: - | CX19: 1 | CY19: x | CZ19: 1 | DA19: x | DB19: - | DC19: - | DD19: - | DE19: - | DF19: - | DG19: - | DH19: - | DI19: - | DJ19: - | DK19: - | DL19: - | DM19: - | DN19: - | DO19: - | DP19: - | DQ19: - | DR19: - | DS19: - | DT19: - | DU19: - | DV19: - | DW19: - | DX19: - | DY19: - | DZ19: x | EA19: x | EB19: - | EC19: - | ED19: - | EE19: - | EF19: - | EG19: - | EH19: - | EI19: - | EJ19: x | EK19: x | EL19: 7 | EM19: 4 | EN19: 3 | EO19: - | EP19: - | EQ19: - | ER19: 10 | ES19: 6 | ET19: 1 | EU19: 2 | EV19: - | EW19: 1 | EX19: 7 | EY19: 4 | EZ19: 2 | FA19: - | FB19: 1 | FC19: - | FD19: - | FE19: 2600 | FF19: 200 | FG19: 400 | FH19: - | FI19: 2000 | FJ19: - | FK19: - | FL19: 7 | FM19: - | FN19: - | FO19: - | FP19: - | FQ19: - | FR19: - | FS19: - | FT19: 7 | FU19: 1 | FV19: 1 | FW19: - | FX19: - | FY19: - | FZ19: - | GA19: 1 | GB19: - | GC19: 7 | GD19: 1 | GE19: 782 | GF19: 20 | GG19: 7 | GH19: - | GI19: 6 | GJ19: 1 | GK19: 627 | GL19: - | GM19: 527 | GN19: 100 | GO19: 7 | GP19: 1 | GQ19: 1 | GR19: - | GS19: - | GT19: 6 | GU19: 14 | GV19: - | GW19: - | GX19: - | GY19: 1 | GZ19: 1 | HA19: - | HB19: - | HC19: - | HD19: 6 | HE19: 5 | HF19: - | HG19: 1 | HH19: - | HI19: 67 | HJ19: 6 | HK19: - | HL19: - | HM19: - | HN19: - | HO19: - | HP19: - | HQ19: - | HR19: - | HS19: 4 | HT19: 2 | HU19: - | HV19: - | HW19: - | HX19: 69 | HY19: 7 | HZ19: 7 | IA19: - | IB19: 3 | IC19: - | ID19: - | IE19: - | IF19: 3 | IG19: … | IH19: … | II19: … | IJ19: … | IK19: … | IL19: … | IM19: … | IN19: … | IO19: … | IP19: … | IQ19: … | IR19: … | IS19: … | IT19: … | IU19: … | IV19: … | IW19: … | IX19: … | IY19: … | IZ19: … | JA19: … | JB19: … | JC19: … | JD19: … | JE19: … | JF19: … | JG19: … | JH19: … | JI19: … | JJ19: … | JK19: … | JL19: … | JM19: … | JN19: … | JO19: … | JP19: … | JQ19: … | JR19: 519 | JS19: 36 | JT19: 1248 | JU19: 993 | JV19: -20.43269231 | JW19: 26.04166667 | JX19: 35.11 | JY19: 0 | JZ19: 1 | KA19: 0 | KB19: 0 | KC19: 0 | KD19: 0
A20: 3020101012 | B20: 30 | D20: 201 | E20: 01 | F20: 012 | H20: 和歌山県 | I20: 和歌山市 | J20: 和歌山市 | K20: 鳴神一 | M20: - | N20: - | O20: - | P20: - | Q20: - | R20: - | S20: - | T20: - | U20: - | V20: - | W20: - | X20: - | Y20: - | Z20: - | AA20: - | AB20: - | AC20: - | AD20: - | AE20: - | AF20: - | AG20: - | AH20: - | AI20: - | AJ20: - | AK20: - | AL20: - | AM20: - | AN20: - | AO20: - | AP20: - | AQ20: - | AR20: - | AS20: - | AT20: - | AU20: - | AV20: - | AW20: - | AX20: - | AY20: - | AZ20: - | BA20: x | BB20: - | BC20: x | BD20: - | BE20: x | BF20: - | BG20: - | BH20: - | BI20: - | BJ20: - | BK20: x | BL20: - | BM20: x | BN20: - | BO20: x | BP20: - | BQ20: - | BR20: - | BS20: - | BT20: - | BU20: - | BV20: - | BW20: - | BX20: - | BY20: - | BZ20: - | CA20: - | CB20: - | CC20: - | CD20: - | CE20: - | CF20: - | CG20: - | CH20: - | CI20: - | CJ20: - | CK20: - | CL20: - | CM20: - | CN20: - | CO20: - | CP20: - | CQ20: - | CR20: - | CS20: - | CT20: - | CU20: - | CV20: - | CW20: - | CX20: - | CY20: - | CZ20: - | DA20: - | DB20: - | DC20: - | DD20: - | DE20: - | DF20: - | DG20: - | DH20: - | DI20: - | DJ20: - | DK20: - | DL20: - | DM20: - | DN20: - | DO20: - | DP20: - | DQ20: - | DR20: - | DS20: - | DT20: - | DU20: - | DV20: - | DW20: - | DX20: - | DY20: - | DZ20: x | EA20: x | EB20: - | EC20: - | ED20: - | EE20: - | EF20: - | EG20: - | EH20: - | EI20: - | EJ20: x | EK20: x | EL20: - | EM20: - | EN20: - | EO20: - | EP20: - | EQ20: - | ER20: - | ES20: - | ET20: - | EU20: - | EV20: - | EW20: - | EX20: - | EY20: - | EZ20: - | FA20: - | FB20: - | FC20: - | FD20: - | FE20: - | FF20: - | FG20: - | FH20: - | FI20: - | FJ20: - | FK20: - | FL20: - | FM20: - | FN20: - | FO20: - | FP20: - | FQ20: - | FR20: - | FS20: - | FT20: - | FU20: - | FV20: - | FW20: - | FX20: - | FY20: - | FZ20: - | GA20: - | GB20: - | GC20: - | GD20: - | GE20: - | GF20: - | GG20: - | GH20: - | GI20: - | GJ20: - | GK20: - | GL20: - | GM20: - | GN20: - | GO20: - | GP20: - | GQ20: - | GR20: - | GS20: - | GT20: - | GU20: - | GV20: - | GW20: - | GX20: - | GY20: - | GZ20: - | HA20: - | HB20: - | HC20: - | HD20: - | HE20: - | HF20: - | HG20: - | HH20: - | HI20: - | HJ20: - | HK20: - | HL20: - | HM20: - | HN20: - | HO20: - | HP20: - | HQ20: - | HR20: - | HS20: - | HT20: - | HU20: - | HV20: - | HW20: - | HX20: - | HY20: - | HZ20: - | IA20: - | IB20: - | IC20: - | ID20: - | IE20: - | IF20: - | IG20: … | IH20: … | II20: … | IJ20: … | IK20: … | IL20: … | IM20: … | IN20: … | IO20: … | IP20: … | IQ20: … | IR20: … | IS20: … | IT20: … | IU20: … | IV20: … | IW20: … | IX20: … | IY20: … | IZ20: … | JA20: … | JB20: … | JC20: … | JD20: … | JE20: … | JF20: … | JG20: … | JH20: … | JI20: … | JJ20: … | JK20: … | JL20: … | JM20: … | JN20: … | JO20: … | JP20: … | JQ20: … | JR20: 530 | JS20: 40 | JT20: 1122 | JU20: 790 | JV20: -29.59001783 | JW20: 29.23351159 | JX20: 16.74 | JY20: 0 | JZ20: 1 | KA20: 0 | KB20: 0 | KC20: 0 | KD20: 0
A21: 3020101013 | B21: 30 | D21: 201 | E21: 01 | F21: 013 | H21: 和歌山県 | I21: 和歌山市 | J21: 和歌山市 | K21: 鳴神二 | M21: 14 | N21: - | O21: - | P21: - | Q21: - | R21: - | S21: - | T21: 14 | U21: 1 | V21: 1 | W21: 3 | X21: 3 | Y21: 9 | Z21: 14 | AA21: 10 | AB21: 2 | AC21: 2 | AD21: - | AE21: - | AF21: - | AG21: - | AH21: - | AI21: 721 | AJ21: 348 | AK21: 130 | AL21: 243 | AM21: - | AN21: - | AO21: - | AP21: - | AQ21: - | AR21: 14 | AS21: 686 | AT21: 3 | AU21: 35 | AV21: - | AW21: - | AX21: 3 | AY21: 90 | AZ21: 14 | BA21: x | BB21: 1 | BC21: x | BD21: 2 | BE21: x | BF21: - | BG21: - | BH21: - | BI21: - | BJ21: 627 | BK21: x | BL21: x | BM21: x | BN21: x | BO21: x | BP21: - | BQ21: - | BR21: - | BS21: - | BT21: - | BU21: - | BV21: - | BW21: - | BX21: - | BY21: - | BZ21: - | CA21: - | CB21: - | CC21: - | CD21: - | CE21: - | CF21: - | CG21: - | CH21: 1 | CI21: x | CJ21: 2 | CK21: x | CL21: - | CM21: - | CN21: - | CO21: - | CP21: - | CQ21: - | CR21: - | CS21: - | CT21: - | CU21: - | CV21: 1 | CW21: x | CX21: - | CY21: - | CZ21: 1 | DA21: x | DB21: 1 | DC21: x | DD21: - | DE21: - | DF21: - | DG21: - | DH21: - | DI21: - | DJ21: - | DK21: - | DL21: - | DM21: - | DN21: - | DO21: - | DP21: - | DQ21: - | DR21: - | DS21: - | DT21: - | DU21: - | DV21: - | DW21: - | DX21: - | DY21: - | DZ21: x | EA21: x | EB21: - | EC21: - | ED21: - | EE21: - | EF21: - | EG21: - | EH21: - | EI21: - | EJ21: x | EK21: x | EL21: 13 | EM21: 10 | EN21: 3 | EO21: - | EP21: - | EQ21: - | ER21: 19 | ES21: 10 | ET21: - | EU21: 2 | EV21: 1 | EW21: 6 | EX21: 14 | EY21: 12 | EZ21: - | FA21: 2 | FB21: - | FC21: - | FD21: - | FE21: 1575 | FF21: 425 | FG21: - | FH21: 1150 | FI21: - | FJ21: - | FK21: - | FL21: 14 | FM21: 1 | FN21: 1 | FO21: - | FP21: - | FQ21: - | FR21: - | FS21: - | FT21: 14 | FU21: 1 | FV21: - | FW21: 1 | FX21: - | FY21: - | FZ21: - | GA21: 1 | GB21: 1 | GC21: 14 | GD21: 2 | GE21: x | GF21: 32 | GG21: 14 | GH21: - | GI21: 3 | GJ21: 11 | GK21: 721 | GL21: - | GM21: 226 | GN21: 495 | GO21: 14 | GP21: - | GQ21: - | GR21: 3 | GS21: 2 | GT21: 11 | GU21: 12 | GV21: - | GW21: - | GX21: 1 | GY21: - | GZ21: - | HA21: - | HB21: - | HC21: 4 | HD21: 3 | HE21: 1 | HF21: 3 | HG21: - | HH21: - | HI21: 65.75 | HJ21: 6 | HK21: - | HL21: - | HM21: 1 | HN21: - | HO21: - | HP21: - | HQ21: - | HR21: 2 | HS21: 1 | HT21: - | HU21: 2 | HV21: - | HW21: - | HX21: 63 | HY21: 14 | HZ21: 11 | IA21: - | IB21: 6 | IC21: 3 | ID21: - | IE21: 1 | IF21: 9 | IG21: … | IH21: … | II21: … | IJ21: … | IK21: … | IL21: … | IM21: … | IN21: … | IO21: … | IP21: … | IQ21: … | IR21: … | IS21: … | IT21: … | IU21: … | IV21: … | IW21: … | IX21: … | IY21: … | IZ21: … | JA21: … | JB21: … | JC21: … | JD21: … | JE21: … | JF21: … | JG21: … | JH21: … | JI21: … | JJ21: … | JK21: … | JL21: … | JM21: … | JN21: … | JO21: … | JP21: … | JQ21: … | JR21: 1202 | JS21: 99 | JT21: 2832 | JU21: 1996 | JV21: -29.51977401 | JW21: 28.49576271 | JX21: 56.64 | JY21: 0 | JZ21: 1 | KA21: 0 | KB21: 0 | KC21: 0 | KD21: 0
A22: 3020101014 | B22: 30 | D22: 201 | E22: 01 | F22: 014 | H22: 和歌山県 | I22: 和歌山市 | J22: 和歌山市 | K22: 鳴神三 | M22: 8 | N22: - | O22: - | P22: - | Q22: - | R22: - | S22: - | T22: 8 | U22: - | V22: - | W22: - | X22: - | Y22: - | Z22: 8 | AA22: 3 | AB22: 5 | AC22: - | AD22: - | AE22: - | AF22: - | AG22: - | AH22: - | AI22: 415 | AJ22: 123 | AK22: 292 | AL22: - | AM22: - | AN22: - | AO22: - | AP22: - | AQ22: - | AR22: 8 | AS22: 387 | AT22: 4 | AU22: 28 | AV22: - | AW22: - | AX22: 1 | AY22: 32 | AZ22: 8 | BA22: x | BB22: - | BC22: x | BD22: 4 | BE22: x | BF22: - | BG22: - | BH22: - | BI22: - | BJ22: 363 | BK22: x | BL22: - | BM22: x | BN22: 58 | BO22: x | BP22: - | BQ22: - | BR22: - | BS22: - | BT22: - | BU22: - | BV22: - | BW22: - | BX22: - | BY22: - | BZ22: - | CA22: - | CB22: - | CC22: - | CD22: - | CE22: - | CF22: - | CG22: - | CH22: 1 | CI22: x | CJ22: 4 | CK22: 33 | CL22: - | CM22: - | CN22: - | CO22: - | CP22: - | CQ22: - | CR22: 1 | CS22: x | CT22: 2 | CU22: x | CV22: - | CW22: - | CX22: 1 | CY22: x | CZ22: - | DA22: - | DB22: - | DC22: - | DD22: - | DE22: - | DF22: - | DG22: - | DH22: - | DI22: - | DJ22: - | DK22: - | DL22: - | DM22: - | DN22: - | DO22: - | DP22: - | DQ22: - | DR22: - | DS22: - | DT22: - | DU22: - | DV22: - | DW22: - | DX22: - | DY22: - | DZ22: x | EA22: x | EB22: - | EC22: - | ED22: - | EE22: - | EF22: - | EG22: - | EH22: - | EI22: - | EJ22: x | EK22: x | EL22: 8 | EM22: 7 | EN22: 1 | EO22: - | EP22: - | EQ22: - | ER22: 11 | ES22: 6 | ET22: - | EU22: 1 | EV22: 2 | EW22: 2 | EX22: 8 | EY22: 7 | EZ22: 1 | FA22: - | FB22: - | FC22: - | FD22: - | FE22: 375 | FF22: 175 | FG22: 200 | FH22: - | FI22: - | FJ22: - | FK22: - | FL22: 8 | FM22: 1 | FN22: 1 | FO22: - | FP22: - | FQ22: - | FR22: - | FS22: - | FT22: 8 | FU22: - | FV22: - | FW22: - | FX22: - | FY22: - | FZ22: - | GA22: - | GB22: - | GC22: 8 | GD22: - | GE22: 421 | GF22: - | GG22: 8 | GH22: 1 | GI22: 2 | GJ22: 5 | GK22: 415 | GL22: 65 | GM22: 107 | GN22: 243 | GO22: 8 | GP22: 1 | GQ22: 1 | GR22: - | GS22: - | GT22: 7 | GU22: 9 | GV22: - | GW22: - | GX22: - | GY22: 1 | GZ22: - | HA22: - | HB22: - | HC22: 1 | HD22: 1 | HE22: 3 | HF22: - | HG22: 1 | HH22: 2 | HI22: 70.67 | HJ22: 2 | HK22: - | HL22: - | HM22: - | HN22: - | HO22: - | HP22: - | HQ22: - | HR22: 1 | HS22: - | HT22: 1 | HU22: - | HV22: - | HW22: - | HX22: 66 | HY22: 8 | HZ22: 8 | IA22: - | IB22: 1 | IC22: - | ID22: - | IE22: - | IF22: 1 | IG22: 1 | IH22: 1 | II22: 0 | IJ22: - | IK22: - | IL22: - | IM22: - | IN22: - | IO22: - | IP22: 1 | IQ22: 0 | IR22: 0 | IS22: 0 | IT22: 0 | IU22: 0 | IV22: 0 | IW22: - | IX22: - | IY22: - | IZ22: - | JA22: - | JB22: - | JC22: - | JD22: - | JE22: - | JF22: - | JG22: - | JH22: 1 | JI22: 0 | JJ22: 1 | JK22: 0 | JL22: 1 | JM22: 0 | JN22: 1 | JO22: 0 | JP22: 1 | JQ22: 0 | JR22: 1691 | JS22: 125 | JT22: 3939 | JU22: 2345 | JV22: -40.46712364 | JW22: 33.48565626 | JX22: 95.13 | JY22: 19.02 | JZ22: 1 | KA22: 0 | KB22: 0 | KC22: 0 | KD22: 0
A23: 3020101015 | B23: 30 | D23: 201 | E23: 01 | F23: 015 | H23: 和歌山県 | I23: 和歌山市 | J23: 和歌山市 | K23: 北出島 | M23: 3 | N23: - | O23: - | P23: - | Q23: - | R23: - | S23: - | T23: 3 | U23: - | V23: - | W23: - | X23: - | Y23: - | Z23: 3 | AA23: 1 | AB23: 2 | AC23: - | AD23: - | AE23: - | AF23: - | AG23: - | AH23: - | AI23: 170 | AJ23: 40 | AK23: 130 | AL23: - | AM23: - | AN23: - | AO23: - | AP23: - | AQ23: - | AR23: 3 | AS23: 170 | AT23: - | AU23: - | AV23: - | AW23: - | AX23: - | AY23: - | AZ23: 3 | BA23: x | BB23: - | BC23: x | BD23: - | BE23: x | BF23: - | BG23: - | BH23: - | BI23: - | BJ23: 170 | BK23: x | BL23: - | BM23: x | BN23: - | BO23: x | BP23: - | BQ23: - | BR23: - | BS23: - | BT23: - | BU23: - | BV23: - | BW23: - | BX23: - | BY23: - | BZ23: - | CA23: - | CB23: - | CC23: - | CD23: - | CE23: - | CF23: - | CG23: - | CH23: - | CI23: - | CJ23: - | CK23: - | CL23: - | CM23: - | CN23: - | CO23: - | CP23: - | CQ23: - | CR23: - | CS23: - | CT23: - | CU23: - | CV23: - | CW23: - | CX23: - | CY23: - | CZ23: - | DA23: - | DB23: - | DC23: - | DD23: - | DE23: - | DF23: - | DG23: - | DH23: - | DI23: - | DJ23: - | DK23: - | DL23: - | DM23: - | DN23: - | DO23: - | DP23: - | DQ23: - | DR23: - | DS23: - | DT23: - | DU23: - | DV23: - | DW23: - | DX23: - | DY23: - | DZ23: x | EA23: x | EB23: - | EC23: - | ED23: - | EE23: - | EF23: - | EG23: - | EH23: - | EI23: - | EJ23: x | EK23: x | EL23: 3 | EM23: 3 | EN23: - | EO23: - | EP23: - | EQ23: - | ER23: 4 | ES23: 1 | ET23: - | EU23: 1 | EV23: 1 | EW23: 1 | EX23: 3 | EY23: 3 | EZ23: - | FA23: - | FB23: - | FC23: - | FD23: - | FE23: 75 | FF23: 75 | FG23: - | FH23: - | FI23: - | FJ23: - | FK23: - | FL23: 3 | FM23: - | FN23: - | FO23: - | FP23: - | FQ23: - | FR23: - | FS23: - | FT23: 3 | FU23: 2 | FV23: 2 | FW23: - | FX23: - | FY23: - | FZ23: - | GA23: 2 | GB23: - | GC23: 3 | GD23: 1 | GE23: 170 | GF23: 40 | GG23: 3 | GH23: - | GI23: - | GJ23: 3 | GK23: 170 | GL23: - | GM23: - | GN23: 170 | GO23: 3 | GP23: - | GQ23: - | GR23: 1 | GS23: - | GT23: 2 | GU23: 3 | GV23: - | GW23: - | GX23: - | GY23: - | GZ23: - | HA23: - | HB23: - | HC23: 1 | HD23: - | HE23: 2 | HF23: - | HG23: - | HH23: - | HI23: 67.67 | HJ23: 2 | HK23: - | HL23: - | HM23: - | HN23: - | HO23: - | HP23: - | HQ23: - | HR23: 1 | HS23: - | HT23: 1 | HU23: - | HV23: - | HW23: - | HX23: 65.5 | HY23: 3 | HZ23: 3 | IA23: - | IB23: - | IC23: - | ID23: - | IE23: - | IF23: - | IG23: … | IH23: … | II23: … | IJ23: … | IK23: … | IL23: … | IM23: … | IN23: … | IO23: … | IP23: … | IQ23: … | IR23: … | IS23: … | IT23: … | IU23: … | IV23: … | IW23: … | IX23: … | IY23: … | IZ23: … | JA23: … | JB23: … | JC23: … | JD23: … | JE23: … | JF23: … | JG23: … | JH23: … | JI23: … | JJ23: … | JK23: … | JL23: … | JM23: … | JN23: … | JO23: … | JP23: … | JQ23: … | JR23: 913 | JS23: 52 | JT23: 2033 | JU23: 1078 | JV23: -46.97491392 | JW23: 28.18494835 | JX23: 31.11 | JY23: 0 | JZ23: 1 | KA23: 0 | KB23: 0 | KC23: 0 | KD23: 0
A24: 3020101016 | B24: 30 | D24: 201 | E24: 01 | F24: 016 | H24: 和歌山県 | I24: 和歌山市 | J24: 和歌山市 | K24: 太田 | M24: 1 | N24: x | O24: x | P24: x | Q24: x | R24: x | S24: x | T24: x | U24: x | V24: x | W24: x | X24: x | Y24: x | Z24: 1 | AA24: x | AB24: x | AC24: x | AD24: x | AE24: x | AF24: x | AG24: x | AH24: x | AI24: x | AJ24: x | AK24: x | AL24: x | AM24: x | AN24: x | AO24: x | AP24: x | AQ24: x | AR24: x | AS24: x | AT24: x | AU24: x | AV24: x | AW24: x | AX24: x | AY24: x | AZ24: x | BA24: x | BB24: x | BC24: x | BD24: x | BE24: x | BF24: x | BG24: x | BH24: x | BI24: x | BJ24: x | BK24: x | BL24: x | BM24: x | BN24: x | BO24: x | BP24: x | BQ24: x | BR24: x | BS24: x | BT24: x | BU24: x | BV24: x | BW24: x | BX24: x | BY24: x | BZ24: x | CA24: x | CB24: x | CC24: x | CD24: x | CE24: x | CF24: x | CG24: x | CH24: x | CI24: x | CJ24: x | CK24: x | CL24: x | CM24: x | CN24: x | CO24: x | CP24: x | CQ24: x | CR24: x | CS24: x | CT24: x | CU24: x | CV24: x | CW24: x | CX24: x | CY24: x | CZ24: x | DA24: x | DB24: x | DC24: x | DD24: x | DE24: x | DF24: x | DG24: x | DH24: x | DI24: x | DJ24: x | DK24: x | DL24: x | DM24: x | DN24: x | DO24: x | DP24: x | DQ24: x | DR24: x | DS24: x | DT24: x | DU24: x | DV24: x | DW24: x | DX24: x | DY24: x | DZ24: x | EA24: x | EB24: x | EC24: x | ED24: x | EE24: x | EF24: x | EG24: x | EH24: x | EI24: x | EJ24: x | EK24: x | EL24: x | EM24: x | EN24: x | EO24: x | EP24: x | EQ24: x | ER24: x | ES24: x | ET24: x | EU24: x | EV24: x | EW24: x | EX24: 1 | EY24: x | EZ24: x | FA24: x | FB24: x | FC24: x | FD24: x | FE24: x | FF24: x | FG24: x | FH24: x | FI24: x | FJ24: x | FK24: x | FL24: 1 | FM24: x | FN24: x | FO24: x | FP24: x | FQ24: x | FR24: x | FS24: x | FT24: 1 | FU24: x | FV24: x | FW24: x | FX24: x | FY24: x | FZ24: x | GA24: x | GB24: x | GC24: x | GD24: x | GE24: x | GF24: x | GG24: 1 | GH24: x | GI24: x | GJ24: x | GK24: x | GL24: x | GM24: x | GN24: x | GO24: 1 | GP24: x | GQ24: x | GR24: x | GS24: x | GT24: x | GU24: x | GV24: x | GW24: x | GX24: x | GY24: x | GZ24: x | HA24: x | HB24: x | HC24: x | HD24: x | HE24: x | HF24: x | HG24: x | HH24: x | HI24: x | HJ24: x | HK24: x | HL24: x | HM24: x | HN24: x | HO24: x | HP24: x | HQ24: x | HR24: x | HS24: x | HT24: x | HU24: x | HV24: x | HW24: x | HX24: x | HY24: 1 | HZ24: x | IA24: x | IB24: x | IC24: x | ID24: x | IE24: x | IF24: x | IG24: … | IH24: … | II24: … | IJ24: … | IK24: … | IL24: … | IM24: … | IN24: … | IO24: … | IP24: … | IQ24: … | IR24: … | IS24: … | IT24: … | IU24: … | IV24: … | IW24: … | IX24: … | IY24: … | IZ24: … | JA24: … | JB24: … | JC24: … | JD24: … | JE24: … | JF24: … | JG24: … | JH24: … | JI24: … | JJ24: … | JK24: … | JL24: … | JM24: … | JN24: … | JO24: … | JP24: … | JQ24: … | JR24: 2149 | JS24: 360 | JT24: 4279 | JU24: 4801 | JV24: 12.19911194 | JW24: 25.5667212 | JX24: 60.28 | JY24: 0 | JZ24: 1 | KA24: 0 | KB24: 0 | KC24: 0 | KD24: 0
A25: 3020101017 | B25: 30 | D25: 201 | E25: 01 | F25: 017 | H25: 和歌山県 | I25: 和歌山市 | J25: 和歌山市 | K25: 納定 | M25: 5 | N25: - | O25: - | P25: - | Q25: - | R25: - | S25: - | T25: 5 | U25: - | V25: - | W25: - | X25: - | Y25: - | Z25: 5 | AA25: 3 | AB25: 2 | AC25: - | AD25: - | AE25: - | AF25: - | AG25: - | AH25: - | AI25: 245 | AJ25: 100 | AK25: 145 | AL25: - | AM25: - | AN25: - | AO25: - | AP25: - | AQ25: - | AR25: 3 | AS25: 175 | AT25: 2 | AU25: 70 | AV25: - | AW25: - | AX25: - | AY25: - | AZ25: 3 | BA25: x | BB25: - | BC25: x | BD25: 1 | BE25: x | BF25: - | BG25: - | BH25: - | BI25: - | BJ25: 175 | BK25: x | BL25: - | BM25: x | BN25: x | BO25: x | BP25: - | BQ25: - | BR25: - | BS25: - | BT25: - | BU25: - | BV25: - | BW25: - | BX25: - | BY25: - | BZ25: - | CA25: - | CB25: - | CC25: - | CD25: 1 | CE25: x | CF25: - | CG25: - | CH25: 1 | CI25: x | CJ25: 1 | CK25: x | CL25: 1 | CM25: x | CN25: - | CO25: - | CP25: - | CQ25: - | CR25: - | CS25: - | CT25: 1 | CU25: x | CV25: 1 | CW25: x | CX25: 1 | CY25: x | CZ25: - | DA25: - | DB25: - | DC25: - | DD25: - | DE25: - | DF25: - | DG25: - | DH25: - | DI25: - | DJ25: - | DK25: - | DL25: - | DM25: - | DN25: - | DO25: - | DP25: - | DQ25: - | DR25: - | DS25: - | DT25: - | DU25: - | DV25: - | DW25: - | DX25: - | DY25: - | DZ25: x | EA25: x | EB25: - | EC25: - | ED25: - | EE25: - | EF25: - | EG25: - | EH25: - | EI25: - | EJ25: x | EK25: x | EL25: 4 | EM25: 3 | EN25: 1 | EO25: - | EP25: - | EQ25: - | ER25: 5 | ES25: 1 | ET25: - | EU25: - | EV25: 3 | EW25: 1 | EX25: 5 | EY25: 4 | EZ25: 1 | FA25: - | FB25: - | FC25: - | FD25: - | FE25: 375 | FF25: 175 | FG25: 200 | FH25: - | FI25: - | FJ25: - | FK25: - | FL25: 5 | FM25: - | FN25: - | FO25: - | FP25: - | FQ25: - | FR25: - | FS25: - | FT25: 5 | FU25: 1 | FV25: 1 | FW25: - | FX25: - | FY25: - | FZ25: - | GA25: 1 | GB25: 1 | GC25: 4 | GD25: - | GE25: 204 | GF25: - | GG25: 5 | GH25: 1 | GI25: 3 | GJ25: 1 | GK25: 245 | GL25: 80 | GM25: 135 | GN25: 30 | GO25: 5 | GP25: - | GQ25: - | GR25: - | GS25: - | GT25: 5 | GU25: 5 | GV25: - | GW25: - | GX25: - | GY25: - | GZ25: - | HA25: - | HB25: - | HC25: - | HD25: 2 | HE25: - | HF25: 2 | HG25: 1 | HH25: - | HI25: 74.8 | HJ25: 3 | HK25: - | HL25: - | HM25: - | HN25: - | HO25: - | HP25: - | HQ25: - | HR25: - | HS25: 1 | HT25: - | HU25: 2 | HV25: - | HW25: - | HX25: 74.67 | HY25: 5 | HZ25: 5 | IA25: 1 | IB25: 2 | IC25: - | ID25: - | IE25: - | IF25: 3 | IG25: … | IH25: … | II25: … | IJ25: … | IK25: … | IL25: … | IM25: … | IN25: … | IO25: … | IP25: … | IQ25: … | IR25: … | IS25: … | IT25: … | IU25: … | IV25: … | IW25: … | IX25: … | IY25: … | IZ25: … | JA25: … | JB25: … | JC25: … | JD25: … | JE25: … | JF25: … | JG25: … | JH25: … | JI25: … | JJ25: … | JK25: … | JL25: … | JM25: … | JN25: … | JO25: … | JP25: … | JQ25: … | JR25: 3709 | JS25: 631 | JT25: 6912 | JU25: 7003 | JV25: 1.316550926 | JW25: 27.25694444 | JX25: 100.47 | JY25: 0 | JZ25: 1 | KA25: 0 | KB25: 0 | KC25: 0 | KD25: 0
A26: 3020101018 | B26: 30 | D26: 201 | E26: 01 | F26: 018 | H26: 和歌山県 | I26: 和歌山市 | J26: 和歌山市 | K26: 有家 | M26: 11 | N26: - | O26: - | P26: - | Q26: - | R26: - | S26: - | T26: 11 | U26: - | V26: - | W26: - | X26: - | Y26: - | Z26: 11 | AA26: 2 | AB26: 8 | AC26: 1 | AD26: - | AE26: - | AF26: - | AG26: - | AH26: - | AI26: 818 | AJ26: 80 | AK26: 556 | AL26: 182 | AM26: - | AN26: - | AO26: - | AP26: - | AQ26: - | AR26: 11 | AS26: 778 | AT26: 5 | AU26: 40 | AV26: - | AW26: - | AX26: 4 | AY26: 154 | AZ26: 11 | BA26: x | BB26: - | BC26: x | BD26: 2 | BE26: x | BF26: - | BG26: - | BH26: - | BI26: - | BJ26: 763 | BK26: x | BL26: - | BM26: x | BN26: x | BO26: x | BP26: - | BQ26: - | BR26: - | BS26: - | BT26: - | BU26: - | BV26: - | BW26: - | BX26: - | BY26: - | BZ26: - | CA26: - | CB26: - | CC26: - | CD26: - | CE26: - | CF26: - | CG26: - | CH26: 1 | CI26: x | CJ26: 1 | CK26: x | CL26: - | CM26: - | CN26: - | CO26: - | CP26: - | CQ26: - | CR26: - | CS26: - | CT26: 1 | CU26: x | CV26: - | CW26: - | CX26: - | CY26: - | CZ26: - | DA26: - | DB26: - | DC26: - | DD26: - | DE26: - | DF26: - | DG26: - | DH26: - | DI26: - | DJ26: - | DK26: - | DL26: - | DM26: - | DN26: - | DO26: - | DP26: - | DQ26: - | DR26: - | DS26: - | DT26: - | DU26: - | DV26: - | DW26: - | DX26: - | DY26: - | DZ26: x | EA26: x | EB26: - | EC26: - | ED26: - | EE26: - | EF26: - | EG26: - | EH26: - | EI26: - | EJ26: x | EK26: x | EL26: 11 | EM26: 11 | EN26: - | EO26: - | EP26: - | EQ26: - | ER26: 15 | ES26: 9 | ET26: - | EU26: - | EV26: 3 | EW26: 3 | EX26: 11 | EY26: 10 | EZ26: 1 | FA26: - | FB26: - | FC26: - | FD26: - | FE26: 750 | FF26: 550 | FG26: 200 | FH26: - | FI26: - | FJ26: - | FK26: - | FL26: 11 | FM26: 1 | FN26: 1 | FO26: - | FP26: - | FQ26: - | FR26: - | FS26: - | FT26: 11 | FU26: - | FV26: - | FW26: - | FX26: - | FY26: - | FZ26: - | GA26: - | GB26: - | GC26: 11 | GD26: - | GE26: x | GF26: - | GG26: 11 | GH26: - | GI26: 5 | GJ26: 6 | GK26: 818 | GL26: - | GM26: 275 | GN26: 543 | GO26: 11 | GP26: 1 | GQ26: - | GR26: - | GS26: - | GT26: 10 | GU26: 9 | GV26: - | GW26: - | GX26: - | GY26: 1 | GZ26: - | HA26: - | HB26: - | HC26: - | HD26: 4 | HE26: 2 | HF26: 1 | HG26: - | HH26: 1 | HI26: 68.22 | HJ26: 4 | HK26: - | HL26: - | HM26: - | HN26: - | HO26: - | HP26: - | HQ26: - | HR26: - | HS26: 2 | HT26: 1 | HU26: - | HV26: - | HW26: 1 | HX26: 73 | HY26: 11 | HZ26: 10 | IA26: 1 | IB26: 1 | IC26: 1 | ID26: - | IE26: - | IF26: 3 | IG26: … | IH26: … | II26: … | IJ26: … | IK26: … | IL26: … | IM26: … | IN26: … | IO26: … | IP26: … | IQ26: … | IR26: … | IS26: … | IT26: … | IU26: … | IV26: … | IW26: … | IX26: … | IY26: … | IZ26: … | JA26: … | JB26: … | JC26: … | JD26: … | JE26: … | JF26: … | JG26: … | JH26: … | JI26: … | JJ26: … | JK26: … | JL26: … | JM26: … | JN26: … | JO26: … | JP26: … | JQ26: … | JR26: 1306 | JS26: 49 | JT26: 2900 | JU26: 2260 | JV26: -22.06896552 | JW26: 27.37931034 | JX26: 49.15 | JY26: 0 | JZ26: 1 | KA26: 0 | KB26: 0 | KC26: 0 | KD26: 0
A27: 3020101019 | B27: 30 | D27: 201 | E27: 01 | F27: 019 | H27: 和歌山県 | I27: 和歌山市 | J27: 和歌山市 | K27: 新内 | M27: - | N27: - | O27: - | P27: - | Q27: - | R27: - | S27: - | T27: - | U27: - | V27: - | W27: - | X27: - | Y27: - | Z27: - | AA27: - | AB27: - | AC27: - | AD27: - | AE27: - | AF27: - | AG27: - | AH27: - | AI27: - | AJ27: - | AK27: - | AL27: - | AM27: - | AN27: - | AO27: - | AP27: - | AQ27: - | AR27: - | AS27: - | AT27: - | AU27: - | AV27: - | AW27: - | AX27: - | AY27: - | AZ27: - | BA27: x | BB27: - | BC27: x | BD27: - | BE27: x | BF27: - | BG27: - | BH27: - | BI27: - | BJ27: - | BK27: x | BL27: - | BM27: x | BN27: - | BO27: x | BP27: - | BQ27: - | BR27: - | BS27: - | BT27: - | BU27: - | BV27: - | BW27: - | BX27: - | BY27: - | BZ27: - | CA27: - | CB27: - | CC27: - | CD27: - | CE27: - | CF27: - | CG27: - | CH27: - | CI27: - | CJ27: - | CK27: - | CL27: - | CM27: - | CN27: - | CO27: - | CP27: - | CQ27: - | CR27: - | CS27: - | CT27: - | CU27: - | CV27: - | CW27: - | CX27: - | CY27: - | CZ27: - | DA27: - | DB27: - | DC27: - | DD27: - | DE27: - | DF27: - | DG27: - | DH27: - | DI27: - | DJ27: - | DK27: - | DL27: - | DM27: - | DN27: - | DO27: - | DP27: - | DQ27: - | DR27: - | DS27: - | DT27: - | DU27: - | DV27: - | DW27: - | DX27: - | DY27: - | DZ27: x | EA27: x | EB27: - | EC27: - | ED27: - | EE27: - | EF27: - | EG27: - | EH27: - | EI27: - | EJ27: x | EK27: x | EL27: - | EM27: - | EN27: - | EO27: - | EP27: - | EQ27: - | ER27: - | ES27: - | ET27: - | EU27: - | EV27: - | EW27: - | EX27: - | EY27: - | EZ27: - | FA27: - | FB27: - | FC27: - | FD27: - | FE27: - | FF27: - | FG27: - | FH27: - | FI27: - | FJ27: - | FK27: - | FL27: - | FM27: - | FN27: - | FO27: - | FP27: - | FQ27: - | FR27: - | FS27: - | FT27: - | FU27: - | FV27: - | FW27: - | FX27: - | FY27: - | FZ27: - | GA27: - | GB27: - | GC27: - | GD27: - | GE27: - | GF27: - | GG27: - | GH27: - | GI27: - | GJ27: - | GK27: - | GL27: - | GM27: - | GN27: - | GO27: - | GP27: - | GQ27: - | GR27: - | GS27: - | GT27: - | GU27: - | GV27: - | GW27: - | GX27: - | GY27: - | GZ27: - | HA27: - | HB27: - | HC27: - | HD27: - | HE27: - | HF27: - | HG27: - | HH27: - | HI27: - | HJ27: - | HK27: - | HL27: - | HM27: - | HN27: - | HO27: - | HP27: - | HQ27: - | HR27: - | HS27: - | HT27: - | HU27: - | HV27: - | HW27: - | HX27: - | HY27: - | HZ27: - | IA27: - | IB27: - | IC27: - | ID27: - | IE27: - | IF27: - | IG27: … | IH27: … | II27: … | IJ27: … | IK27: … | IL27: … | IM27: … | IN27: … | IO27: … | IP27: … | IQ27: … | IR27: … | IS27: … | IT27: … | IU27: … | IV27: … | IW27: … | IX27: … | IY27: … | IZ27: … | JA27: … | JB27: … | JC27: … | JD27: … | JE27: … | JF27: … | JG27: … | JH27: … | JI27: … | JJ27: … | JK27: … | JL27: … | JM27: … | JN27: … | JO27: … | JP27: … | JQ27: … | JR27: 96 | JS27: 195 | JT27: 155 | JU27: 71 | JV27: -54.19354839 | JW27: 45.80645161 | JX27: 8.33 | JY27: 0 | JZ27: 1 | KA27: 0 | KB27: 0 | KC27: 0 | KD27: 0
A28: 3020101020 | B28: 30 | D28: 201 | E28: 01 | F28: 020 | H28: 和歌山県 | I28: 和歌山市 | J28: 和歌山市 | K28: 松島 | M28: 19 | N28: - | O28: - | P28: - | Q28: - | R28: - | S28: - | T28: 19 | U28: - | V28: - | W28: - | X28: 4 | Y28: 8 | Z28: 19 | AA28: 11 | AB28: 5 | AC28: 3 | AD28: - | AE28: - | AF28: - | AG28: - | AH28: - | AI28: 1038 | AJ28: 382 | AK28: 288 | AL28: 368 | AM28: - | AN28: - | AO28: - | AP28: - | AQ28: - | AR28: 18 | AS28: 788 | AT28: 4 | AU28: 250 | AV28: - | AW28: - | AX28: 4 | AY28: 142 | AZ28: 18 | BA28: x | BB28: - | BC28: x | BD28: 9 | BE28: x | BF28: - | BG28: - | BH28: - | BI28: - | BJ28: 736 | BK28: x | BL28: - | BM28: x | BN28: 284 | BO28: x | BP28: - | BQ28: - | BR28: - | BS28: - | BT28: - | BU28: - | BV28: - | BW28: - | BX28: - | BY28: - | BZ28: - | CA28: - | CB28: - | CC28: - | CD28: - | CE28: - | CF28: - | CG28: - | CH28: 6 | CI28: 87 | CJ28: 8 | CK28: 138 | CL28: 1 | CM28: x | CN28: - | CO28: - | CP28: - | CQ28: - | CR28: - | CS28: - | CT28: 2 | CU28: x | CV28: 1 | CW28: x | CX28: 1 | CY28: x | CZ28: 1 | DA28: x | DB28: 1 | DC28: x | DD28: - | DE28: - | DF28: - | DG28: - | DH28: - | DI28: - | DJ28: - | DK28: - | DL28: - | DM28: - | DN28: - | DO28: - | DP28: - | DQ28: - | DR28: - | DS28: - | DT28: - | DU28: - | DV28: - | DW28: - | DX28: - | DY28: - | DZ28: x | EA28: x | EB28: - | EC28: - | ED28: - | EE28: - | EF28: - | EG28: - | EH28: - | EI28: - | EJ28: x | EK28: x | EL28: 16 | EM28: 9 | EN28: 7 | EO28: - | EP28: - | EQ28: - | ER28: 22 | ES28: 12 | ET28: - | EU28: 3 | EV28: 4 | EW28: 3 | EX28: 19 | EY28: 15 | EZ28: 3 | FA28: 1 | FB28: - | FC28: - | FD28: - | FE28: 1850 | FF28: 500 | FG28: 600 | FH28: 750 | FI28: - | FJ28: - | FK28: - | FL28: 19 | FM28: - | FN28: - | FO28: - | FP28: - | FQ28: - | FR28: - | FS28: - | FT28: 19 | FU28: - | FV28: - | FW28: - | FX28: - | FY28: - | FZ28: - | GA28: - | GB28: - | GC28: 19 | GD28: - | GE28: x | GF28: - | GG28: 19 | GH28: 1 | GI28: 10 | GJ28: 8 | GK28: 1038 | GL28: 110 | GM28: 646 | GN28: 282 | GO28: 19 | GP28: 1 | GQ28: 1 | GR28: 3 | GS28: 2 | GT28: 15 | GU28: 25 | GV28: - | GW28: 1 | GX28: - | GY28: - | GZ28: - | HA28: - | HB28: 2 | HC28: 3 | HD28: 7 | HE28: 9 | HF28: - | HG28: 1 | HH28: 2 | HI28: 67.96 | HJ28: 11 | HK28: - | HL28: - | HM28: - | HN28: - | HO28: - | HP28: - | HQ28: 2 | HR28: - | HS28: 6 | HT28: 2 | HU28: - | HV28: 1 | HW28: - | HX28: 67.64 | HY28: 19 | HZ28: 17 | IA28: 3 | IB28: 5 | IC28: 2 | ID28: - | IE28: - | IF28: 10 | IG28: … | IH28: … | II28: … | IJ28: … | IK28: … | IL28: … | IM28: … | IN28: … | IO28: … | IP28: … | IQ28: … | IR28: … | IS28: … | IT28: … | IU28: … | IV28: … | IW28: … | IX28: … | IY28: … | IZ28: … | JA28: … | JB28: … | JC28: … | JD28: … | JE28: … | JF28: … | JG28: … | JH28: … | JI28: … | JJ28: … | JK28: … | JL28: … | JM28: … | JN28: … | JO28: … | JP28: … | JQ28: … | JR28: 1728 | JS28: 100 | JT28: 4027 | JU28: 5125 | JV28: 27.26595481 | JW28: 27.24112242 | JX28: 118.68 | JY28: 0 | JZ28: 1 | KA28: 0 | KB28: 0 | KC28: 0 | KD28: 0
A29: 3020101021 | B29: 30 | D29: 201 | E29: 01 | F29: 021 | H29: 和歌山県 | I29: 和歌山市 | J29: 和歌山市 | K29: 新在家 | M29: 4 | N29: - | O29: - | P29: - | Q29: - | R29: - | S29: - | T29: 4 | U29: - | V29: - | W29: - | X29: - | Y29: - | Z29: 4 | AA29: 2 | AB29: 2 | AC29: - | AD29: - | AE29: - | AF29: - | AG29: - | AH29: - | AI29: 208 | AJ29: 63 | AK29: 145 | AL29: - | AM29: - | AN29: - | AO29: - | AP29: - | AQ29: - | AR29: 4 | AS29: 183 | AT29: 2 | AU29: 25 | AV29: - | AW29: - | AX29: - | AY29: - | AZ29: 4 | BA29: x | BB29: - | BC29: x | BD29: 2 | BE29: x | BF29: - | BG29: - | BH29: - | BI29: - | BJ29: 163 | BK29: x | BL29: - | BM29: x | BN29: x | BO29: x | BP29: - | BQ29: - | BR29: - | BS29: - | BT29: - | BU29: - | BV29: - | BW29: - | BX29: - | BY29: - | BZ29: - | CA29: - | CB29: - | CC29: - | CD29: - | CE29: - | CF29: - | CG29: - | CH29: 2 | CI29: x | CJ29: 2 | CK29: x | CL29: - | CM29: - | CN29: - | CO29: - | CP29: - | CQ29: - | CR29: - | CS29: - | CT29: 1 | CU29: x | CV29: - | CW29: - | CX29: - | CY29: - | CZ29: - | DA29: - | DB29: - | DC29: - | DD29: - | DE29: - | DF29: - | DG29: - | DH29: - | DI29: - | DJ29: - | DK29: - | DL29: - | DM29: - | DN29: - | DO29: - | DP29: - | DQ29: - | DR29: - | DS29: - | DT29: - | DU29: - | DV29: - | DW29: - | DX29: - | DY29: - | DZ29: x | EA29: x | EB29: - | EC29: - | ED29: - | EE29: - | EF29: - | EG29: - | EH29: - | EI29: - | EJ29: x | EK29: x | EL29: 4 | EM29: 2 | EN29: 2 | EO29: - | EP29: - | EQ29: - | ER29: 4 | ES29: 3 | ET29: - | EU29: - | EV29: 1 | EW29: - | EX29: 4 | EY29: 3 | EZ29: - | FA29: 1 | FB29: - | FC29: - | FD29: - | FE29: 575 | FF29: 175 | FG29: - | FH29: 400 | FI29: - | FJ29: - | FK29: - | FL29: 4 | FM29: - | FN29: - | FO29: - | FP29: - | FQ29: - | FR29: - | FS29: - | FT29: 4 | FU29: - | FV29: - | FW29: - | FX29: - | FY29: - | FZ29: - | GA29: - | GB29: - | GC29: 4 | GD29: - | GE29: x | GF29: - | GG29: 4 | GH29: - | GI29: 1 | GJ29: 3 | GK29: 208 | GL29: - | GM29: 30 | GN29: 178 | GO29: 4 | GP29: 2 | GQ29: 1 | GR29: - | GS29: - | GT29: 2 | GU29: 8 | GV29: 1 | GW29: - | GX29: - | GY29: - | GZ29: - | HA29: - | HB29: - | HC29: 2 | HD29: 1 | HE29: 1 | HF29: 1 | HG29: 1 | HH29: 1 | HI29: 67.38 | HJ29: 4 | HK29: 1 | HL29: - | HM29: - | HN29: - | HO29: - | HP29: - | HQ29: - | HR29: 2 | HS29: - | HT29: - | HU29: - | HV29: 1 | HW29: - | HX29: 59.5 | HY29: 4 | HZ29: 4 | IA29: - | IB29: 2 | IC29: - | ID29: - | IE29: - | IF29: 2 | IG29: … | IH29: … | II29: … | IJ29: … | IK29: … | IL29: … | IM29: … | IN29: … | IO29: … | IP29: … | IQ29: … | IR29: … | IS29: … | IT29: … | IU29: … | IV29: … | IW29: … | IX29: … | IY29: … | IZ29: … | JA29: … | JB29: … | JC29: … | JD29: … | JE29: … | JF29: … | JG29: … | JH29: … | JI29: … | JJ29: … | JK29: … | JL29: … | JM29: … | JN29: … | JO29: … | JP29: … | JQ29: … | JR29: 964 | JS29: 54 | JT29: 2581 | JU29: 3031 | JV29: 17.43510267 | JW29: 23.59550562 | JX29: 33.71 | JY29: 0 | JZ29: 1 | KA29: 0 | KB29: 0 | KC29: 0 | KD29: 0
A30: 3020101022 | B30: 30 | D30: 201 | E30: 01 | F30: 022 | H30: 和歌山県 | I30: 和歌山市 | J30: 和歌山市 | K30: 有本一 | M30: 6 | N30: - | O30: - | P30: - | Q30: - | R30: - | S30: - | T30: 6 | U30: - | V30: - | W30: - | X30: 1 | Y30: 3 | Z30: 6 | AA30: 4 | AB30: 2 | AC30: - | AD30: - | AE30: - | AF30: - | AG30: - | AH30: - | AI30: 275 | AJ30: 105 | AK30: 170 | AL30: - | AM30: - | AN30: - | AO30: - | AP30: - | AQ30: - | AR30: 6 | AS30: 265 | AT30: 1 | AU30: 10 | AV30: - | AW30: - | AX30: 1 | AY30: 30 | AZ30: 6 | BA30: x | BB30: - | BC30: x | BD30: 2 | BE30: x | BF30: - | BG30: - | BH30: - | BI30: - | BJ30: 255 | BK30: x | BL30: - | BM30: x | BN30: x | BO30: x | BP30: - | BQ30: - | BR30: - | BS30: - | BT30: - | BU30: - | BV30: - | BW30: - | BX30: - | BY30: - | BZ30: - | CA30: - | CB30: - | CC30: - | CD30: - | CE30: - | CF30: - | CG30: - | CH30: 2 | CI30: x | CJ30: 2 | CK30: x | CL30: - | CM30: - | CN30: - | CO30: - | CP30: - | CQ30: - | CR30: - | CS30: - | CT30: 1 | CU30: x | CV30: - | CW30: - | CX30: 1 | CY30: x | CZ30: - | DA30: - | DB30: - | DC30: - | DD30: - | DE30: - | DF30: - | DG30: - | DH30: - | DI30: - | DJ30: - | DK30: - | DL30: - | DM30: - | DN30: - | DO30: - | DP30: - | DQ30: - | DR30: - | DS30: - | DT30: - | DU30: - | DV30: - | DW30: - | DX30: - | DY30: - | DZ30: x | EA30: x | EB30: - | EC30: - | ED30: - | EE30: - | EF30: - | EG30: - | EH30: - | EI30: - | EJ30: x | EK30: x | EL30: 6 | EM30: 3 | EN30: 3 | EO30: - | EP30: - | EQ30: - | ER30: 7 | ES30: 3 | ET30: - | EU30: 1 | EV30: 2 | EW30: 1 | EX30: 6 | EY30: 5 | EZ30: 1 | FA30: - | FB30: - | FC30: - | FD30: - | FE30: 425 | FF30: 225 | FG30: 200 | FH30: - | FI30: - | FJ30: - | FK30: - | FL30: 6 | FM30: - | FN30: - | FO30: - | FP30: - | FQ30: - | FR30: - | FS30: - | FT30: 6 | FU30: - | FV30: - | FW30: - | FX30: - | FY30: - | FZ30: - | GA30: - | GB30: - | GC30: 6 | GD30: - | GE30: x | GF30: - | GG30: 6 | GH30: - | GI30: 2 | GJ30: 4 | GK30: 275 | GL30: - | GM30: 120 | GN30: 155 | GO30: 6 | GP30: 1 | GQ30: 1 | GR30: - | GS30: - | GT30: 5 | GU30: 7 | GV30: - | GW30: - | GX30: - | GY30: - | GZ30: - | HA30: - | HB30: - | HC30: 1 | HD30: 2 | HE30: - | HF30: - | HG30: - | HH30: 4 | HI30: 78.14 | HJ30: 3 | HK30: - | HL30: - | HM30: - | HN30: - | HO30: - | HP30: - | HQ30: - | HR30: 1 | HS30: - | HT30: - | HU30: - | HV30: - | HW30: 2 | HX30: 77.67 | HY30: 6 | HZ30: 6 | IA30: - | IB30: 1 | IC30: - | ID30: - | IE30: - | IF30: 1 | IG30: … | IH30: … | II30: … | IJ30: … | IK30: … | IL30: … | IM30: … | IN30: … | IO30: … | IP30: … | IQ30: … | IR30: … | IS30: … | IT30: … | IU30: … | IV30: … | IW30: … | IX30: … | IY30: … | IZ30: … | JA30: … | JB30: … | JC30: … | JD30: … | JE30: … | JF30: … | JG30: … | JH30: … | JI30: … | JJ30: … | JK30: … | JL30: … | JM30: … | JN30: … | JO30: … | JP30: … | JQ30: … | JR30: 376 | JS30: 25 | JT30: 864 | JU30: 1655 | JV30: 91.55092593 | JW30: 28.47222222 | JX30: 18.8 | JY30: 0 | JZ30: 1 | KA30: 0 | KB30: 0 | KC30: 0 | KD30: 0
A31: 3020101023 | B31: 30 | D31: 201 | E31: 01 | F31: 023 | H31: 和歌山県 | I31: 和歌山市 | J31: 和歌山市 | K31: 有本二 | M31: 7 | N31: - | O31: - | P31: - | Q31: - | R31: - | S31: - | T31: 7 | U31: - | V31: - | W31: - | X31: - | Y31: - | Z31: 7 | AA31: 4 | AB31: 2 | AC31: 1 | AD31: - | AE31: - | AF31: - | AG31: - | AH31: - | AI31: 387 | AJ31: 142 | AK31: 145 | AL31: 100 | AM31: - | AN31: - | AO31: - | AP31: - | AQ31: - | AR31: 7 | AS31: 257 | AT31: 5 | AU31: 130 | AV31: - | AW31: - | AX31: - | AY31: - | AZ31: 7 | BA31: x | BB31: 1 | BC31: x | BD31: 4 | BE31: x | BF31: - | BG31: - | BH31: - | BI31: - | BJ31: 242 | BK31: x | BL31: x | BM31: x | BN31: x | BO31: x | BP31: - | BQ31: - | BR31: - | BS31: - | BT31: - | BU31: - | BV31: - | BW31: - | BX31: - | BY31: - | BZ31: - | CA31: - | CB31: - | CC31: - | CD31: - | CE31: - | CF31: - | CG31: - | CH31: - | CI31: - | CJ31: - | CK31: - | CL31: 4 | CM31: x | CN31: - | CO31: - | CP31: - | CQ31: - | CR31: - | CS31: - | CT31: - | CU31: - | CV31: - | CW31: - | CX31: - | CY31: - | CZ31: - | DA31: - | DB31: - | DC31: - | DD31: - | DE31: - | DF31: - | DG31: - | DH31: - | DI31: - | DJ31: - | DK31: - | DL31: - | DM31: - | DN31: - | DO31: - | DP31: - | DQ31: - | DR31: - | DS31: - | DT31: - | DU31: - | DV31: - | DW31: - | DX31: - | DY31: - | DZ31: x | EA31: x | EB31: - | EC31: - | ED31: - | EE31: - | EF31: - | EG31: - | EH31: - | EI31: - | EJ31: x | EK31: x | EL31: 7 | EM31: 3 | EN31: 4 | EO31: - | EP31: - | EQ31: - | ER31: 9 | ES31: 1 | ET31: 4 | EU31: 1 | EV31: 2 | EW31: 1 | EX31: 7 | EY31: 4 | EZ31: 1 | FA31: 2 | FB31: - | FC31: - | FD31: - | FE31: 1500 | FF31: 150 | FG31: 200 | FH31: 1150 | FI31: - | FJ31: - | FK31: - | FL31: 7 | FM31: - | FN31: - | FO31: - | FP31: - | FQ31: - | FR31: - | FS31: - | FT31: 7 | FU31: 1 | FV31: 1 | FW31: - | FX31: - | FY31: - | FZ31: - | GA31: 1 | GB31: 1 | GC31: 7 | GD31: - | GE31: x | GF31: - | GG31: 7 | GH31: - | GI31: 4 | GJ31: 3 | GK31: 387 | GL31: - | GM31: 285 | GN31: 102 | GO31: 7 | GP31: 2 | GQ31: 2 | GR31: 2 | GS31: 2 | GT31: 3 | GU31: 15 | GV31: - | GW31: - | GX31: 1 | GY31: 2 | GZ31: - | HA31: - | HB31: 1 | HC31: 2 | HD31: - | HE31: 2 | HF31: 3 | HG31: 2 | HH31: 2 | HI31: 67.53 | HJ31: 6 | HK31: - | HL31: - | HM31: - | HN31: 1 | HO31: - | HP31: - | HQ31: 1 | HR31: - | HS31: - | HT31: 2 | HU31: 1 | HV31: 1 | HW31: - | HX31: 67.17 | HY31: 7 | HZ31: 7 | IA31: 1 | IB31: 2 | IC31: - | ID31: - | IE31: - | IF31: 3 | IG31: … | IH31: … | II31: … | IJ31: … | IK31: … | IL31: … | IM31: … | IN31: … | IO31: … | IP31: … | IQ31: … | IR31: … | IS31: … | IT31: … | IU31: … | IV31: … | IW31: … | IX31: … | IY31: … | IZ31: … | JA31: … | JB31: … | JC31: … | JD31: … | JE31: … | JF31: … | JG31: … | JH31: … | JI31: … | JJ31: … | JK31: … | JL31: … | JM31: … | JN31: … | JO31: … | JP31: … | JQ31: … | JR31: 795 | JS31: 54 | JT31: 1805 | JU31: 1811 | JV31: 0.3324099723 | JW31: 30.02770083 | JX31: 54.58 | JY31: 0 | JZ31: 1 | KA31: 0 | KB31: 0 | KC31: 0 | KD31: 0
A32: 3020101024 | B32: 30 | D32: 201 | E32: 01 | F32: 024 | H32: 和歌山県 | I32: 和歌山市 | J32: 和歌山市 | K32: 有本三 | M32: 2 | N32: x | O32: x | P32: x | Q32: x | R32: x | S32: x | T32: x | U32: x | V32: x | W32: x | X32: x | Y32: x | Z32: 2 | AA32: x | AB32: x | AC32: x | AD32: x | AE32: x | AF32: x | AG32: x | AH32: x | AI32: x | AJ32: x | AK32: x | AL32: x | AM32: x | AN32: x | AO32: x | AP32: x | AQ32: x | AR32: x | AS32: x | AT32: x | AU32: x | AV32: x | AW32: x | AX32: x | AY32: x | AZ32: x | BA32: x | BB32: x | BC32: x | BD32: x | BE32: x | BF32: x | BG32: x | BH32: x | BI32: x | BJ32: x | BK32: x | BL32: x | BM32: x | BN32: x | BO32: x | BP32: x | BQ32: x | BR32: x | BS32: x | BT32: x | BU32: x | BV32: x | BW32: x | BX32: x | BY32: x | BZ32: x | CA32: x | CB32: x | CC32: x | CD32: x | CE32: x | CF32: x | CG32: x | CH32: x | CI32: x | CJ32: x | CK32: x | CL32: x | CM32: x | CN32: x | CO32: x | CP32: x | CQ32: x | CR32: x | CS32: x | CT32: x | CU32: x | CV32: x | CW32: x | CX32: x | CY32: x | CZ32: x | DA32: x | DB32: x | DC32: x | DD32: x | DE32: x | DF32: x | DG32: x | DH32: x | DI32: x | DJ32: x | DK32: x | DL32: x | DM32: x | DN32: x | DO32: x | DP32: x | DQ32: x | DR32: x | DS32: x | DT32: x | DU32: x | DV32: x | DW32: x | DX32: x | DY32: x | DZ32: x | EA32: x | EB32: x | EC32: x | ED32: x | EE32: x | EF32: x | EG32: x | EH32: x | EI32: x | EJ32: x | EK32: x | EL32: x | EM32: x | EN32: x | EO32: x | EP32: x | EQ32: x | ER32: x | ES32: x | ET32: x | EU32: x | EV32: x | EW32: x | EX32: 2 | EY32: x | EZ32: x | FA32: x | FB32: x | FC32: x | FD32: x | FE32: x | FF32: x | FG32: x | FH32: x | FI32: x | FJ32: x | FK32: x | FL32: 2 | FM32: x | FN32: x | FO32: x | FP32: x | FQ32: x | FR32: x | FS32: x | FT32: 2 | FU32: x | FV32: x | FW32: x | FX32: x | FY32: x | FZ32: x | GA32: x | GB32: x | GC32: x | GD32: x | GE32: x | GF32: x | GG32: 2 | GH32: x | GI32: x | GJ32: x | GK32: x | GL32: x | GM32: x | GN32: x | GO32: 2 | GP32: x | GQ32: x | GR32: x | GS32: x | GT32: x | GU32: x | GV32: x | GW32: x | GX32: x | GY32: x | GZ32: x | HA32: x | HB32: x | HC32: x | HD32: x | HE32: x | HF32: x | HG32: x | HH32: x | HI32: x | HJ32: x | HK32: x | HL32: x | HM32: x | HN32: x | HO32: x | HP32: x | HQ32: x | HR32: x | HS32: x | HT32: x | HU32: x | HV32: x | HW32: x | HX32: x | HY32: 2 | HZ32: x | IA32: x | IB32: x | IC32: x | ID32: x | IE32: x | IF32: x | IG32: … | IH32: … | II32: … | IJ32: … | IK32: … | IL32: … | IM32: … | IN32: … | IO32: … | IP32: … | IQ32: … | IR32: … | IS32: … | IT32: … | IU32: … | IV32: … | IW32: … | IX32: … | IY32: … | IZ32: … | JA32: … | JB32: … | JC32: … | JD32: … | JE32: … | JF32: … | JG32: … | JH32: … | JI32: … | JJ32: … | JK32: … | JL32: … | JM32: … | JN32: … | JO32: … | JP32: … | JQ32: … | JR32: 1738 | JS32: 111 | JT32: 3978 | JU32: 3309 | JV32: -16.81749623 | JW32: 28.43137255 | JX32: 94.75 | JY32: 0 | JZ32: 1 | KA32: 0 | KB32: 0 | KC32: 0 | KD32: 0
A33: 3020101025 | B33: 30 | D33: 201 | E33: 01 | F33: 025 | H33: 和歌山県 | I33: 和歌山市 | J33: 和歌山市 | K33: 加納 | M33: 6 | N33: - | O33: - | P33: - | Q33: - | R33: - | S33: - | T33: 6 | U33: - | V33: - | W33: - | X33: - | Y33: - | Z33: 6 | AA33: 5 | AB33: 1 | AC33: - | AD33: - | AE33: - | AF33: - | AG33: - | AH33: - | AI33: 240 | AJ33: 173 | AK33: 67 | AL33: - | AM33: - | AN33: - | AO33: - | AP33: - | AQ33: - | AR33: 6 | AS33: 233 | AT33: 1 | AU33: 7 | AV33: - | AW33: - | AX33: - | AY33: - | AZ33: 6 | BA33: x | BB33: - | BC33: x | BD33: 1 | BE33: x | BF33: - | BG33: - | BH33: - | BI33: - | BJ33: 223 | BK33: x | BL33: - | BM33: x | BN33: x | BO33: x | BP33: - | BQ33: - | BR33: - | BS33: - | BT33: - | BU33: - | BV33: - | BW33: - | BX33: - | BY33: - | BZ33: - | CA33: - | CB33: - | CC33: - | CD33: - | CE33: - | CF33: - | CG33: - | CH33: 1 | CI33: x | CJ33: 1 | CK33: x | CL33: - | CM33: - | CN33: - | CO33: - | CP33: - | CQ33: - | CR33: - | CS33: - | CT33: 1 | CU33: x | CV33: - | CW33: - | CX33: - | CY33: - | CZ33: - | DA33: - | DB33: - | DC33: - | DD33: - | DE33: - | DF33: - | DG33: - | DH33: - | DI33: - | DJ33: - | DK33: - | DL33: - | DM33: - | DN33: - | DO33: - | DP33: - | DQ33: - | DR33: - | DS33: - | DT33: - | DU33: - | DV33: - | DW33: - | DX33: - | DY33: - | DZ33: x | EA33: x | EB33: - | EC33: - | ED33: - | EE33: - | EF33: - | EG33: - | EH33: - | EI33: - | EJ33: x | EK33: x | EL33: 6 | EM33: 6 | EN33: - | EO33: - | EP33: - | EQ33: - | ER33: 10 | ES33: 5 | ET33: - | EU33: - | EV33: 3 | EW33: 2 | EX33: 6 | EY33: 6 | EZ33: - | FA33: - | FB33: - | FC33: - | FD33: - | FE33: 150 | FF33: 150 | FG33: - | FH33: - | FI33: - | FJ33: - | FK33: - | FL33: 6 | FM33: - | FN33: - | FO33: - | FP33: - | FQ33: - | FR33: - | FS33: - | FT33: 6 | FU33: 2 | FV33: - | FW33: 2 | FX33: - | FY33: - | FZ33: - | GA33: 2 | GB33: - | GC33: 6 | GD33: - | GE33: x | GF33: - | GG33: 6 | GH33: - | GI33: 1 | GJ33: 5 | GK33: 240 | GL33: - | GM33: 67 | GN33: 173 | GO33: 6 | GP33: - | GQ33: - | GR33: 2 | GS33: - | GT33: 4 | GU33: 6 | GV33: - | GW33: - | GX33: - | GY33: - | GZ33: - | HA33: - | HB33: - | HC33: 1 | HD33: 2 | HE33: - | HF33: 1 | HG33: 1 | HH33: 1 | HI33: 72.67 | HJ33: 3 | HK33: - | HL33: - | HM33: - | HN33: - | HO33: - | HP33: - | HQ33: - | HR33: - | HS33: 2 | HT33: - | HU33: 1 | HV33: - | HW33: - | HX33: 69.33 | HY33: 6 | HZ33: 5 | IA33: - | IB33: 1 | IC33: 1 | ID33: 1 | IE33: - | IF33: 2 | IG33: … | IH33: … | II33: … | IJ33: … | IK33: … | IL33: … | IM33: … | IN33: … | IO33: … | IP33: … | IQ33: … | IR33: … | IS33: … | IT33: … | IU33: … | IV33: … | IW33: … | IX33: … | IY33: … | IZ33: … | JA33: … | JB33: … | JC33: … | JD33: … | JE33: … | JF33: … | JG33: … | JH33: … | JI33: … | JJ33: … | JK33: … | JL33: … | JM33: … | JN33: … | JO33: … | JP33: … | JQ33: … | JR33: 1805 | JS33: 75 | JT33: 4119 | JU33: 3663 | JV33: -11.07064822 | JW33: 29.69167274 | JX33: 67.21 | JY33: 0 | JZ33: 1 | KA33: 0 | KB33: 0 | KC33: 0 | KD33: 0
A34: 3020101026 | B34: 30 | D34: 201 | E34: 01 | F34: 026 | H34: 和歌山県 | I34: 和歌山市 | J34: 和歌山市 | K34: 中之島 | M34: 2 | N34: x | O34: x | P34: x | Q34: x | R34: x | S34: x | T34: x | U34: x | V34: x | W34: x | X34: x | Y34: x | Z34: 2 | AA34: x | AB34: x | AC34: x | AD34: x | AE34: x | AF34: x | AG34: x | AH34: x | AI34: x | AJ34: x | AK34: x | AL34: x | AM34: x | AN34: x | AO34: x | AP34: x | AQ34: x | AR34: x | AS34: x | AT34: x | AU34: x | AV34: x | AW34: x | AX34: x | AY34: x | AZ34: x | BA34: x | BB34: x | BC34: x | BD34: x | BE34: x | BF34: x | BG34: x | BH34: x | BI34: x | BJ34: x | BK34: x | BL34: x | BM34: x | BN34: x | BO34: x | BP34: x | BQ34: x | BR34: x | BS34: x | BT34: x | BU34: x | BV34: x | BW34: x | BX34: x | BY34: x | BZ34: x | CA34: x | CB34: x | CC34: x | CD34: x | CE34: x | CF34: x | CG34: x | CH34: x | CI34: x | CJ34: x | CK34: x | CL34: x | CM34: x | CN34: x | CO34: x | CP34: x | CQ34: x | CR34: x | CS34: x | CT34: x | CU34: x | CV34: x | CW34: x | CX34: x | CY34: x | CZ34: x | DA34: x | DB34: x | DC34: x | DD34: x | DE34: x | DF34: x | DG34: x | DH34: x | DI34: x | DJ34: x | DK34: x | DL34: x | DM34: x | DN34: x | DO34: x | DP34: x | DQ34: x | DR34: x | DS34: x | DT34: x | DU34: x | DV34: x | DW34: x | DX34: x | DY34: x | DZ34: x | EA34: x | EB34: x | EC34: x | ED34: x | EE34: x | EF34: x | EG34: x | EH34: x | EI34: x | EJ34: x | EK34: x | EL34: x | EM34: x | EN34: x | EO34: x | EP34: x | EQ34: x | ER34: x | ES34: x | ET34: x | EU34: x | EV34: x | EW34: x | EX34: 2 | EY34: x | EZ34: x | FA34: x | FB34: x | FC34: x | FD34: x | FE34: x | FF34: x | FG34: x | FH34: x | FI34: x | FJ34: x | FK34: x | FL34: 2 | FM34: x | FN34: x | FO34: x | FP34: x | FQ34: x | FR34: x | FS34: x | FT34: 2 | FU34: x | FV34: x | FW34: x | FX34: x | FY34: x | FZ34: x | GA34: x | GB34: x | GC34: x | GD34: x | GE34: x | GF34: x | GG34: 2 | GH34: x | GI34: x | GJ34: x | GK34: x | GL34: x | GM34: x | GN34: x | GO34: 2 | GP34: x | GQ34: x | GR34: x | GS34: x | GT34: x | GU34: x | GV34: x | GW34: x | GX34: x | GY34: x | GZ34: x | HA34: x | HB34: x | HC34: x | HD34: x | HE34: x | HF34: x | HG34: x | HH34: x | HI34: x | HJ34: x | HK34: x | HL34: x | HM34: x | HN34: x | HO34: x | HP34: x | HQ34: x | HR34: x | HS34: x | HT34: x | HU34: x | HV34: x | HW34: x | HX34: x | HY34: 2 | HZ34: x | IA34: x | IB34: x | IC34: x | ID34: x | IE34: x | IF34: x | IG34: … | IH34: … | II34: … | IJ34: … | IK34: … | IL34: … | IM34: … | IN34: … | IO34: … | IP34: … | IQ34: … | IR34: … | IS34: … | IT34: … | IU34: … | IV34: … | IW34: … | IX34: … | IY34: … | IZ34: … | JA34: … | JB34: … | JC34: … | JD34: … | JE34: … | JF34: … | JG34: … | JH34: … | JI34: … | JJ34: … | JK34: … | JL34: … | JM34: … | JN34: … | JO34: … | JP34: … | JQ34: … | JR34: 3207 | JS34: 391 | JT34: 6449 | JU34: 4669 | JV34: -27.60117848 | JW34: 28.68661808 | JX34: 128.39 | JY34: 0 | JZ34: 1 | KA34: 0 | KB34: 0 | KC34: 0 | KD34: 0
A35: 3020101027 | B35: 30 | D35: 201 | E35: 01 | F35: 027 | H35: 和歌山県 | I35: 和歌山市 | J35: 和歌山市 | K35: 杭ノ瀬一 | M35: 6 | N35: - | O35: - | P35: - | Q35: - | R35: - | S35: - | T35: 6 | U35: - | V35: - | W35: - | X35: - | Y35: - | Z35: 6 | AA35: - | AB35: 5 | AC35: 1 | AD35: - | AE35: - | AF35: - | AG35: - | AH35: - | AI35: 410 | AJ35: - | AK35: 300 | AL35: 110 | AM35: - | AN35: - | AO35: - | AP35: - | AQ35: - | AR35: 6 | AS35: 390 | AT35: 2 | AU35: 20 | AV35: - | AW35: - | AX35: 1 | AY35: 20 | AZ35: 6 | BA35: x | BB35: - | BC35: x | BD35: 2 | BE35: x | BF35: - | BG35: - | BH35: - | BI35: - | BJ35: 390 | BK35: x | BL35: - | BM35: x | BN35: x | BO35: x | BP35: - | BQ35: - | BR35: - | BS35: - | BT35: - | BU35: - | BV35: - | BW35: - | BX35: - | BY35: - | BZ35: - | CA35: - | CB35: - | CC35: - | CD35: - | CE35: - | CF35: - | CG35: - | CH35: - | CI35: - | CJ35: 1 | CK35: x | CL35: 1 | CM35: x | CN35: - | CO35: - | CP35: - | CQ35: - | CR35: - | CS35: - | CT35: - | CU35: - | CV35: - | CW35: - | CX35: - | CY35: - | CZ35: - | DA35: - | DB35: - | DC35: - | DD35: - | DE35: - | DF35: - | DG35: - | DH35: - | DI35: - | DJ35: - | DK35: - | DL35: - | DM35: - | DN35: - | DO35: - | DP35: - | DQ35: - | DR35: - | DS35: - | DT35: - | DU35: - | DV35: - | DW35: - | DX35: - | DY35: - | DZ35: x | EA35: x | EB35: - | EC35: - | ED35: - | EE35: - | EF35: - | EG35: - | EH35: - | EI35: - | EJ35: x | EK35: x | EL35: 6 | EM35: 5 | EN35: 1 | EO35: - | EP35: - | EQ35: - | ER35: 12 | ES35: 2 | ET35: 2 | EU35: 4 | EV35: 2 | EW35: 2 | EX35: 6 | EY35: 5 | EZ35: 1 | FA35: - | FB35: - | FC35: - | FD35: - | FE35: 425 | FF35: 225 | FG35: 200 | FH35: - | FI35: - | FJ35: - | FK35: - | FL35: 6 | FM35: - | FN35: - | FO35: - | FP35: - | FQ35: - | FR35: - | FS35: - | FT35: 6 | FU35: 2 | FV35: 1 | FW35: 1 | FX35: - | FY35: - | FZ35: - | GA35: 2 | GB35: 1 | GC35: 6 | GD35: - | GE35: x | GF35: - | GG35: 6 | GH35: 1 | GI35: 3 | GJ35: 2 | GK35: 410 | GL35: 50 | GM35: 225 | GN35: 135 | GO35: 6 | GP35: 1 | GQ35: - | GR35: 1 | GS35: - | GT35: 4 | GU35: 5 | GV35: - | GW35: - | GX35: - | GY35: - | GZ35: - | HA35: - | HB35: - | HC35: 1 | HD35: 1 | HE35: 1 | HF35: 1 | HG35: - | HH35: 1 | HI35: 73 | HJ35: 2 | HK35: - | HL35: - | HM35: - | HN35: - | HO35: - | HP35: - | HQ35: - | HR35: 1 | HS35: - | HT35: - | HU35: - | HV35: - | HW35: 1 | HX35: 75.5 | HY35: 6 | HZ35: 6 | IA35: - | IB35: 3 | IC35: - | ID35: - | IE35: - | IF35: 3 | IG35: … | IH35: … | II35: … | IJ35: … | IK35: … | IL35: … | IM35: … | IN35: … | IO35: … | IP35: … | IQ35: … | IR35: … | IS35: … | IT35: … | IU35: … | IV35: … | IW35: … | IX35: … | IY35: … | IZ35: … | JA35: … | JB35: … | JC35: … | JD35: … | JE35: … | JF35: … | JG35: … | JH35: … | JI35: … | JJ35: … | JK35: … | JL35: … | JM35: … | JN35: … | JO35: … | JP35: … | JQ35: … | JR35: 586 | JS35: 41 | JT35: 1373 | JU35: 1078 | JV35: -21.48579752 | JW35: 31.60961398 | JX35: 27.17 | JY35: 0 | JZ35: 1 | KA35: 0 | KB35: 0 | KC35: 0 | KD35: 0
A36: 3020101028 | B36: 30 | D36: 201 | E36: 01 | F36: 028 | H36: 和歌山県 | I36: 和歌山市 | J36: 和歌山市 | K36: 杭ノ瀬二 | M36: - | N36: - | O36: - | P36: - | Q36: - | R36: - | S36: - | T36: - | U36: - | V36: - | W36: - | X36: - | Y36: - | Z36: - | AA36: - | AB36: - | AC36: - | AD36: - | AE36: - | AF36: - | AG36: - | AH36: - | AI36: - | AJ36: - | AK36: - | AL36: - | AM36: - | AN36: - | AO36: - | AP36: - | AQ36: - | AR36: - | AS36: - | AT36: - | AU36: - | AV36: - | AW36: - | AX36: - | AY36: - | AZ36: - | BA36: x | BB36: - | BC36: x | BD36: - | BE36: x | BF36: - | BG36: - | BH36: - | BI36: - | BJ36: - | BK36: x | BL36: - | BM36: x | BN36: - | BO36: x | BP36: - | BQ36: - | BR36: - | BS36: - | BT36: - | BU36: - | BV36: - | BW36: - | BX36: - | BY36: - | BZ36: - | CA36: - | CB36: - | CC36: - | CD36: - | CE36: - | CF36: - | CG36: - | CH36: - | CI36: - | CJ36: - | CK36: - | CL36: - | CM36: - | CN36: - | CO36: - | CP36: - | CQ36: - | CR36: - | CS36: - | CT36: - | CU36: - | CV36: - | CW36: - | CX36: - | CY36: - | CZ36: - | DA36: - | DB36: - | DC36: - | DD36: - | DE36: - | DF36: - | DG36: - | DH36: - | DI36: - | DJ36: - | DK36: - | DL36: - | DM36: - | DN36: - | DO36: - | DP36: - | DQ36: - | DR36: - | DS36: - | DT36: - | DU36: - | DV36: - | DW36: - | DX36: - | DY36: - | DZ36: x | EA36: x | EB36: - | EC36: - | ED36: - | EE36: - | EF36: - | EG36: - | EH36: - | EI36: - | EJ36: x | EK36: x | EL36: - | EM36: - | EN36: - | EO36: - | EP36: - | EQ36: - | ER36: - | ES36: - | ET36: - | EU36: - | EV36: - | EW36: - | EX36: - | EY36: - | EZ36: - | FA36: - | FB36: - | FC36: - | FD36: - | FE36: - | FF36: - | FG36: - | FH36: - | FI36: - | FJ36: - | FK36: - | FL36: - | FM36: - | FN36: - | FO36: - | FP36: - | FQ36: - | FR36: - | FS36: - | FT36: - | FU36: - | FV36: - | FW36: - | FX36: - | FY36: - | FZ36: - | GA36: - | GB36: - | GC36: - | GD36: - | GE36: - | GF36: - | GG36: - | GH36: - | GI36: - | GJ36: - | GK36: - | GL36: - | GM36: - | GN36: - | GO36: - | GP36: - | GQ36: - | GR36: - | GS36: - | GT36: - | GU36: - | GV36: - | GW36: - | GX36: - | GY36: - | GZ36: - | HA36: - | HB36: - | HC36: - | HD36: - | HE36: - | HF36: - | HG36: - | HH36: - | HI36: - | HJ36: - | HK36: - | HL36: - | HM36: - | HN36: - | HO36: - | HP36: - | HQ36: - | HR36: - | HS36: - | HT36: - | HU36: - | HV36: - | HW36: - | HX36: - | HY36: - | HZ36: - | IA36: - | IB36: - | IC36: - | ID36: - | IE36: - | IF36: - | IG36: … | IH36: … | II36: … | IJ36: … | IK36: … | IL36: … | IM36: … | IN36: … | IO36: … | IP36: … | IQ36: … | IR36: … | IS36: … | IT36: … | IU36: … | IV36: … | IW36: … | IX36: … | IY36: … | IZ36: … | JA36: … | JB36: … | JC36: … | JD36: … | JE36: … | JF36: … | JG36: … | JH36: … | JI36: … | JJ36: … | JK36: … | JL36: … | JM36: … | JN36: … | JO36: … | JP36: … | JQ36: … | JR36: 763 | JS36: 51 | JT36: 1750 | JU36: 1127 | JV36: -35.6 | JW36: 31.14285714 | JX36: 21.58 | JY36: 0 | JZ36: 1 | KA36: 0 | KB36: 0 | KC36: 0 | KD36: 0
A37: 3020101029 | B37: 30 | D37: 201 | E37: 01 | F37: 029 | H37: 和歌山県 | I37: 和歌山市 | J37: 和歌山市 | K37: 杭ノ瀬三 | M37: - | N37: - | O37: - | P37: - | Q37: - | R37: - | S37: - | T37: - | U37: - | V37: - | W37: - | X37: - | Y37: - | Z37: - | AA37: - | AB37: - | AC37: - | AD37: - | AE37: - | AF37: - | AG37: - | AH37: - | AI37: - | AJ37: - | AK37: - | AL37: - | AM37: - | AN37: - | AO37: - | AP37: - | AQ37: - | AR37: - | AS37: - | AT37: - | AU37: - | AV37: - | AW37: - | AX37: - | AY37: - | AZ37: - | BA37: x | BB37: - | BC37: x | BD37: - | BE37: x | BF37: - | BG37: - | BH37: - | BI37: - | BJ37: - | BK37: x | BL37: - | BM37: x | BN37: - | BO37: x | BP37: - | BQ37: - | BR37: - | BS37: - | BT37: - | BU37: - | BV37: - | BW37: - | BX37: - | BY37: - | BZ37: - | CA37: - | CB37: - | CC37: - | CD37: - | CE37: - | CF37: - | CG37: - | CH37: - | CI37: - | CJ37: - | CK37: - | CL37: - | CM37: - | CN37: - | CO37: - | CP37: - | CQ37: - | CR37: - | CS37: - | CT37: - | CU37: - | CV37: - | CW37: - | CX37: - | CY37: - | CZ37: - | DA37: - | DB37: - | DC37: - | DD37: - | DE37: - | DF37: - | DG37: - | DH37: - | DI37: - | DJ37: - | DK37: - | DL37: - | DM37: - | DN37: - | DO37: - | DP37: - | DQ37: - | DR37: - | DS37: - | DT37: - | DU37: - | DV37: - | DW37: - | DX37: - | DY37: - | DZ37: x | EA37: x | EB37: - | EC37: - | ED37: - | EE37: - | EF37: - | EG37: - | EH37: - | EI37: - | EJ37: x | EK37: x | EL37: - | EM37: - | EN37: - | EO37: - | EP37: - | EQ37: - | ER37: - | ES37: - | ET37: - | EU37: - | EV37: - | EW37: - | EX37: - | EY37: - | EZ37: - | FA37: - | FB37: - | FC37: - | FD37: - | FE37: - | FF37: - | FG37: - | FH37: - | FI37: - | FJ37: - | FK37: - | FL37: - | FM37: - | FN37: - | FO37: - | FP37: - | FQ37: - | FR37: - | FS37: - | FT37: - | FU37: - | FV37: - | FW37: - | FX37: - | FY37: - | FZ37: - | GA37: - | GB37: - | GC37: - | GD37: - | GE37: - | GF37: - | GG37: - | GH37: - | GI37: - | GJ37: - | GK37: - | GL37: - | GM37: - | GN37: - | GO37: - | GP37: - | GQ37: - | GR37: - | GS37: - | GT37: - | GU37: - | GV37: - | GW37: - | GX37: - | GY37: - | GZ37: - | HA37: - | HB37: - | HC37: - | HD37: - | HE37: - | HF37: - | HG37: - | HH37: - | HI37: - | HJ37: - | HK37: - | HL37: - | HM37: - | HN37: - | HO37: - | HP37: - | HQ37: - | HR37: - | HS37: - | HT37: - | HU37: - | HV37: - | HW37: - | HX37: - | HY37: - | HZ37: - | IA37: - | IB37: - | IC37: - | ID37: - | IE37: - | IF37: - | IG37: … | IH37: … | II37: … | IJ37: … | IK37: … | IL37: … | IM37: … | IN37: … | IO37: … | IP37: … | IQ37: … | IR37: … | IS37: … | IT37: … | IU37: … | IV37: … | IW37: … | IX37: … | IY37: … | IZ37: … | JA37: … | JB37: … | JC37: … | JD37: … | JE37: … | JF37: … | JG37: … | JH37: … | JI37: … | JJ37: … | JK37: … | JL37: … | JM37: … | JN37: … | JO37: … | JP37: … | JQ37: … | JR37: 189 | JS37: 12 | JT37: 435 | JU37: 402 | JV37: -7.586206897 | JW37: 31.03448276 | JX37: 4.5 | JY37: 0 | JZ37: 1 | KA37: 0 | KB37: 0 | KC37: 0 | KD37: 0
A38: 3020101030 | B38: 30 | D38: 201 | E38: 01 | F38: 030 | H38: 和歌山県 | I38: 和歌山市 | J38: 和歌山市 | K38: 杭ノ瀬四 | M38: - | N38: - | O38: - | P38: - | Q38: - | R38: - | S38: - | T38: - | U38: - | V38: - | W38: - | X38: - | Y38: - | Z38: - | AA38: - | AB38: - | AC38: - | AD38: - | AE38: - | AF38: - | AG38: - | AH38: - | AI38: - | AJ38: - | AK38: - | AL38: - | AM38: - | AN38: - | AO38: - | AP38: - | AQ38: - | AR38: - | AS38: - | AT38: - | AU38: - | AV38: - | AW38: - | AX38: - | AY38: - | AZ38: - | BA38: x | BB38: - | BC38: x | BD38: - | BE38: x | BF38: - | BG38: - | BH38: - | BI38: - | BJ38: - | BK38: x | BL38: - | BM38: x | BN38: - | BO38: x | BP38: - | BQ38: - | BR38: - | BS38: - | BT38: - | BU38: - | BV38: - | BW38: - | BX38: - | BY38: - | BZ38: - | CA38: - | CB38: - | CC38: - | CD38: - | CE38: - | CF38: - | CG38: - | CH38: - | CI38: - | CJ38: - | CK38: - | CL38: - | CM38: - | CN38: - | CO38: - | CP38: - | CQ38: - | CR38: - | CS38: - | CT38: - | CU38: - | CV38: - | CW38: - | CX38: - | CY38: - | CZ38: - | DA38: - | DB38: - | DC38: - | DD38: - | DE38: - | DF38: - | DG38: - | DH38: - | DI38: - | DJ38: - | DK38: - | DL38: - | DM38: - | DN38: - | DO38: - | DP38: - | DQ38: - | DR38: - | DS38: - | DT38: - | DU38: - | DV38: - | DW38: - | DX38: - | DY38: - | DZ38: x | EA38: x | EB38: - | EC38: - | ED38: - | EE38: - | EF38: - | EG38: - | EH38: - | EI38: - | EJ38: x | EK38: x | EL38: - | EM38: - | EN38: - | EO38: - | EP38: - | EQ38: - | ER38: - | ES38: - | ET38: - | EU38: - | EV38: - | EW38: - | EX38: - | EY38: - | EZ38: - | FA38: - | FB38: - | FC38: - | FD38: - | FE38: - | FF38: - | FG38: - | FH38: - | FI38: - | FJ38: - | FK38: - | FL38: - | FM38: - | FN38: - | FO38: - | FP38: - | FQ38: - | FR38: - | FS38: - | FT38: - | FU38: - | FV38: - | FW38: - | FX38: - | FY38: - | FZ38: - | GA38: - | GB38: - | GC38: - | GD38: - | GE38: - | GF38: - | GG38: - | GH38: - | GI38: - | GJ38: - | GK38: - | GL38: - | GM38: - | GN38: - | GO38: - | GP38: - | GQ38: - | GR38: - | GS38: - | GT38: - | GU38: - | GV38: - | GW38: - | GX38: - | GY38: - | GZ38: - | HA38: - | HB38: - | HC38: - | HD38: - | HE38: - | HF38: - | HG38: - | HH38: - | HI38: - | HJ38: - | HK38: - | HL38: - | HM38: - | HN38: - | HO38: - | HP38: - | HQ38: - | HR38: - | HS38: - | HT38: - | HU38: - | HV38: - | HW38: - | HX38: - | HY38: - | HZ38: - | IA38: - | IB38: - | IC38: - | ID38: - | IE38: - | IF38: - | IG38: … | IH38: … | II38: … | IJ38: … | IK38: … | IL38: … | IM38: … | IN38: … | IO38: … | IP38: … | IQ38: … | IR38: … | IS38: … | IT38: … | IU38: … | IV38: … | IW38: … | IX38: … | IY38: … | IZ38: … | JA38: … | JB38: … | JC38: … | JD38: … | JE38: … | JF38: … | JG38: … | JH38: … | JI38: … | JJ38: … | JK38: … | JL38: … | JM38: … | JN38: … | JO38: … | JP38: … | JQ38: … | JR38: 323 | JS38: 47 | JT38: 692 | JU38: 631 | JV38: -8.815028902 | JW38: 27.74566474 | JX38: 15.66 | JY38: 0 | JZ38: 1 | KA38: 0 | KB38: 0 | KC38: 0 | KD38: 0
A39: 3020101031 | B39: 30 | D39: 201 | E39: 01 | F39: 031 | H39: 和歌山県 | I39: 和歌山市 | J39: 和歌山市 | K39: 杭ノ瀬五 | M39: 2 | N39: x | O39: x | P39: x | Q39: x | R39: x | S39: x | T39: x | U39: x | V39: x | W39: x | X39: x | Y39: x | Z39: 2 | AA39: x | AB39: x | AC39: x | AD39: x | AE39: x | AF39: x | AG39: x | AH39: x | AI39: x | AJ39: x | AK39: x | AL39: x | AM39: x | AN39: x | AO39: x | AP39: x | AQ39: x | AR39: x | AS39: x | AT39: x | AU39: x | AV39: x | AW39: x | AX39: x | AY39: x | AZ39: x | BA39: x | BB39: x | BC39: x | BD39: x | BE39: x | BF39: x | BG39: x | BH39: x | BI39: x | BJ39: x | BK39: x | BL39: x | BM39: x | BN39: x | BO39: x | BP39: x | BQ39: x | BR39: x | BS39: x | BT39: x | BU39: x | BV39: x | BW39: x | BX39: x | BY39: x | BZ39: x | CA39: x | CB39: x | CC39: x | CD39: x | CE39: x | CF39: x | CG39: x | CH39: x | CI39: x | CJ39: x | CK39: x | CL39: x | CM39: x | CN39: x | CO39: x | CP39: x | CQ39: x | CR39: x | CS39: x | CT39: x | CU39: x | CV39: x | CW39: x | CX39: x | CY39: x | CZ39: x | DA39: x | DB39: x | DC39: x | DD39: x | DE39: x | DF39: x | DG39: x | DH39: x | DI39: x | DJ39: x | DK39: x | DL39: x | DM39: x | DN39: x | DO39: x | DP39: x | DQ39: x | DR39: x | DS39: x | DT39: x | DU39: x | DV39: x | DW39: x | DX39: x | DY39: x | DZ39: x | EA39: x | EB39: x | EC39: x | ED39: x | EE39: x | EF39: x | EG39: x | EH39: x | EI39: x | EJ39: x | EK39: x | EL39: x | EM39: x | EN39: x | EO39: x | EP39: x | EQ39: x | ER39: x | ES39: x | ET39: x | EU39: x | EV39: x | EW39: x | EX39: 2 | EY39: x | EZ39: x | FA39: x | FB39: x | FC39: x | FD39: x | FE39: x | FF39: x | FG39: x | FH39: x | FI39: x | FJ39: x | FK39: x | FL39: 2 | FM39: x | FN39: x | FO39: x | FP39: x | FQ39: x | FR39: x | FS39: x | FT39: 2 | FU39: x | FV39: x | FW39: x | FX39: x | FY39: x | FZ39: x | GA39: x | GB39: x | GC39: x | GD39: x | GE39: x | GF39: x | GG39: 2 | GH39: x | GI39: x | GJ39: x | GK39: x | GL39: x | GM39: x | GN39: x | GO39: 2 | GP39: x | GQ39: x | GR39: x | GS39: x | GT39: x | GU39: x | GV39: x | GW39: x | GX39: x | GY39: x | GZ39: x | HA39: x | HB39: x | HC39: x | HD39: x | HE39: x | HF39: x | HG39: x | HH39: x | HI39: x | HJ39: x | HK39: x | HL39: x | HM39: x | HN39: x | HO39: x | HP39: x | HQ39: x | HR39: x | HS39: x | HT39: x | HU39: x | HV39: x | HW39: x | HX39: x | HY39: 2 | HZ39: x | IA39: x | IB39: x | IC39: x | ID39: x | IE39: x | IF39: x | IG39: … | IH39: … | II39: … | IJ39: … | IK39: … | IL39: … | IM39: … | IN39: … | IO39: … | IP39: … | IQ39: … | IR39: … | IS39: … | IT39: … | IU39: … | IV39: … | IW39: … | IX39: … | IY39: … | IZ39: … | JA39: … | JB39: … | JC39: … | JD39: … | JE39: … | JF39: … | JG39: … | JH39: … | JI39: … | JJ39: … | JK39: … | JL39: … | JM39: … | JN39: … | JO39: … | JP39: … | JQ39: … | JR39: 799 | JS39: 53 | JT39: 1727 | JU39: 936 | JV39: -45.80196873 | JW39: 28.02547771 | JX39: 22.62 | JY39: 0 | JZ39: 1 | KA39: 0 | KB39: 0 | KC39: 0 | KD39: 0
A40: 3020101032 | B40: 30 | D40: 201 | E40: 01 | F40: 032 | H40: 和歌山県 | I40: 和歌山市 | J40: 和歌山市 | K40: 杭ノ瀬六 | M40: - | N40: - | O40: - | P40: - | Q40: - | R40: - | S40: - | T40: - | U40: - | V40: - | W40: - | X40: - | Y40: - | Z40: - | AA40: - | AB40: - | AC40: - | AD40: - | AE40: - | AF40: - | AG40: - | AH40: - | AI40: - | AJ40: - | AK40: - | AL40: - | AM40: - | AN40: - | AO40: - | AP40: - | AQ40: - | AR40: - | AS40: - | AT40: - | AU40: - | AV40: - | AW40: - | AX40: - | AY40: - | AZ40: - | BA40: x | BB40: - | BC40: x | BD40: - | BE40: x | BF40: - | BG40: - | BH40: - | BI40: - | BJ40: - | BK40: x | BL40: - | BM40: x | BN40: - | BO40: x | BP40: - | BQ40: - | BR40: - | BS40: - | BT40: - | BU40: - | BV40: - | BW40: - | BX40: - | BY40: - | BZ40: - | CA40: - | CB40: - | CC40: - | CD40: - | CE40: - | CF40: - | CG40: - | CH40: - | CI40: - | CJ40: - | CK40: - | CL40: - | CM40: - | CN40: - | CO40: - | CP40: - | CQ40: - | CR40: - | CS40: - | CT40: - | CU40: - | CV40: - | CW40: - | CX40: - | CY40: - | CZ40: - | DA40: - | DB40: - | DC40: - | DD40: - | DE40: - | DF40: - | DG40: - | DH40: - | DI40: - | DJ40: - | DK40: - | DL40: - | DM40: - | DN40: - | DO40: - | DP40: - | DQ40: - | DR40: - | DS40: - | DT40: - | DU40: - | DV40: - | DW40: - | DX40: - | DY40: - | DZ40: x | EA40: x | EB40: - | EC40: - | ED40: - | EE40: - | EF40: - | EG40: - | EH40: - | EI40: - | EJ40: x | EK40: x | EL40: - | EM40: - | EN40: - | EO40: - | EP40: - | EQ40: - | ER40: - | ES40: - | ET40: - | EU40: - | EV40: - | EW40: - | EX40: - | EY40: - | EZ40: - | FA40: - | FB40: - | FC40: - | FD40: - | FE40: - | FF40: - | FG40: - | FH40: - | FI40: - | FJ40: - | FK40: - | FL40: - | FM40: - | FN40: - | FO40: - | FP40: - | FQ40: - | FR40: - | FS40: - | FT40: - | FU40: - | FV40: - | FW40: - | FX40: - | FY40: - | FZ40: - | GA40: - | GB40: - | GC40: - | GD40: - | GE40: - | GF40: - | GG40: - | GH40: - | GI40: - | GJ40: - | GK40: - | GL40: - | GM40: - | GN40: - | GO40: - | GP40: - | GQ40: - | GR40: - | GS40: - | GT40: - | GU40: - | GV40: - | GW40: - | GX40: - | GY40: - | GZ40: - | HA40: - | HB40: - | HC40: - | HD40: - | HE40: - | HF40: - | HG40: - | HH40: - | HI40: - | HJ40: - | HK40: - | HL40: - | HM40: - | HN40: - | HO40: - | HP40: - | HQ40: - | HR40: - | HS40: - | HT40: - | HU40: - | HV40: - | HW40: - | HX40: - | HY40: - | HZ40: - | IA40: - | IB40: - | IC40: - | ID40: - | IE40: - | IF40: - | IG40: … | IH40: … | II40: … | IJ40: … | IK40: … | IL40: … | IM40: … | IN40: … | IO40: … | IP40: … | IQ40: … | IR40: … | IS40: … | IT40: … | IU40: … | IV40: … | IW40: … | IX40: … | IY40: … | IZ40: … | JA40: … | JB40: … | JC40: … | JD40: … | JE40: … | JF40: … | JG40: … | JH40: … | JI40: … | JJ40: … | JK40: … | JL40: … | JM40: … | JN40: … | JO40: … | JP40: … | JQ40: … | JR40: 109 | JS40: 9 | JT40: 230 | JU40: 143 | JV40: -37.82608696 | JW40: 27.39130435 | JX40: 2.25 | JY40: 0 | JZ40: 1 | KA40: 0 | KB40: 0 | KC40: 0 | KD40: 0
A41: 3020101033 | B41: 30 | D41: 201 | E41: 01 | F41: 033 | H41: 和歌山県 | I41: 和歌山市 | J41: 和歌山市 | K41: 新中島 | M41: 2 | N41: x | O41: x | P41: x | Q41: x | R41: x | S41: x | T41: x | U41: x | V41: x | W41: x | X41: x | Y41: x | Z41: 2 | AA41: x | AB41: x | AC41: x | AD41: x | AE41: x | AF41: x | AG41: x | AH41: x | AI41: x | AJ41: x | AK41: x | AL41: x | AM41: x | AN41: x | AO41: x | AP41: x | AQ41: x | AR41: x | AS41: x | AT41: x | AU41: x | AV41: x | AW41: x | AX41: x | AY41: x | AZ41: x | BA41: x | BB41: x | BC41: x | BD41: x | BE41: x | BF41: x | BG41: x | BH41: x | BI41: x | BJ41: x | BK41: x | BL41: x | BM41: x | BN41: x | BO41: x | BP41: x | BQ41: x | BR41: x | BS41: x | BT41: x | BU41: x | BV41: x | BW41: x | BX41: x | BY41: x | BZ41: x | CA41: x | CB41: x | CC41: x | CD41: x | CE41: x | CF41: x | CG41: x | CH41: x | CI41: x | CJ41: x | CK41: x | CL41: x | CM41: x | CN41: x | CO41: x | CP41: x | CQ41: x | CR41: x | CS41: x | CT41: x | CU41: x | CV41: x | CW41: x | CX41: x | CY41: x | CZ41: x | DA41: x | DB41: x | DC41: x | DD41: x | DE41: x | DF41: x | DG41: x | DH41: x | DI41: x | DJ41: x | DK41: x | DL41: x | DM41: x | DN41: x | DO41: x | DP41: x | DQ41: x | DR41: x | DS41: x | DT41: x | DU41: x | DV41: x | DW41: x | DX41: x | DY41: x | DZ41: x | EA41: x | EB41: x | EC41: x | ED41: x | EE41: x | EF41: x | EG41: x | EH41: x | EI41: x | EJ41: x | EK41: x | EL41: x | EM41: x | EN41: x | EO41: x | EP41: x | EQ41: x | ER41: x | ES41: x | ET41: x | EU41: x | EV41: x | EW41: x | EX41: 2 | EY41: x | EZ41: x | FA41: x | FB41: x | FC41: x | FD41: x | FE41: x | FF41: x | FG41: x | FH41: x | FI41: x | FJ41: x | FK41: x | FL41: 2 | FM41: x | FN41: x | FO41: x | FP41: x | FQ41: x | FR41: x | FS41: x | FT41: 2 | FU41: x | FV41: x | FW41: x | FX41: x | FY41: x | FZ41: x | GA41: x | GB41: x | GC41: x | GD41: x | GE41: x | GF41: x | GG41: 2 | GH41: x | GI41: x | GJ41: x | GK41: x | GL41: x | GM41: x | GN41: x | GO41: 2 | GP41: x | GQ41: x | GR41: x | GS41: x | GT41: x | GU41: x | GV41: x | GW41: x | GX41: x | GY41: x | GZ41: x | HA41: x | HB41: x | HC41: x | HD41: x | HE41: x | HF41: x | HG41: x | HH41: x | HI41: x | HJ41: x | HK41: x | HL41: x | HM41: x | HN41: x | HO41: x | HP41: x | HQ41: x | HR41: x | HS41: x | HT41: x | HU41: x | HV41: x | HW41: x | HX41: x | HY41: 2 | HZ41: x | IA41: x | IB41: x | IC41: x | ID41: x | IE41: x | IF41: x | IG41: … | IH41: … | II41: … | IJ41: … | IK41: … | IL41: … | IM41: … | IN41: … | IO41: … | IP41: … | IQ41: … | IR41: … | IS41: … | IT41: … | IU41: … | IV41: … | IW41: … | IX41: … | IY41: … | IZ41: … | JA41: … | JB41: … | JC41: … | JD41: … | JE41: … | JF41: … | JG41: … | JH41: … | JI41: … | JJ41: … | JK41: … | JL41: … | JM41: … | JN41: … | JO41: … | JP41: … | JQ41: … | JR41: 369 | JS41: 41 | JT41: 759 | JU41: 2531 | JV41: 233.4650856 | JW41: 21.47562582 | JX41: 11.32 | JY41: 0 | JZ41: 1 | KA41: 0 | KB41: 0 | KC41: 0 | KD41: 0
A42: 3020101034 | B42: 30 | D42: 201 | E42: 01 | F42: 034 | H42: 和歌山県 | I42: 和歌山市 | J42: 和歌山市 | K42: 南出島 | M42: 6 | N42: - | O42: - | P42: - | Q42: - | R42: - | S42: - | T42: 6 | U42: - | V42: - | W42: - | X42: - | Y42: - | Z42: 6 | AA42: 4 | AB42: 2 | AC42: - | AD42: - | AE42: - | AF42: - | AG42: - | AH42: - | AI42: 252 | AJ42: 133 | AK42: 119 | AL42: - | AM42: - | AN42: - | AO42: - | AP42: - | AQ42: - | AR42: 6 | AS42: 237 | AT42: 2 | AU42: 12 | AV42: 1 | AW42: 3 | AX42: - | AY42: - | AZ42: 5 | BA42: x | BB42: - | BC42: x | BD42: 2 | BE42: x | BF42: - | BG42: - | BH42: - | BI42: - | BJ42: 190 | BK42: x | BL42: - | BM42: x | BN42: x | BO42: x | BP42: - | BQ42: - | BR42: - | BS42: - | BT42: - | BU42: - | BV42: - | BW42: - | BX42: - | BY42: - | BZ42: - | CA42: - | CB42: - | CC42: - | CD42: - | CE42: - | CF42: - | CG42: - | CH42: - | CI42: - | CJ42: 2 | CK42: x | CL42: - | CM42: - | CN42: - | CO42: - | CP42: - | CQ42: - | CR42: - | CS42: - | CT42: 1 | CU42: x | CV42: - | CW42: - | CX42: - | CY42: - | CZ42: - | DA42: - | DB42: - | DC42: - | DD42: - | DE42: - | DF42: - | DG42: - | DH42: - | DI42: - | DJ42: - | DK42: - | DL42: - | DM42: - | DN42: - | DO42: - | DP42: - | DQ42: - | DR42: - | DS42: - | DT42: - | DU42: - | DV42: - | DW42: - | DX42: - | DY42: - | DZ42: x | EA42: x | EB42: - | EC42: - | ED42: - | EE42: - | EF42: - | EG42: - | EH42: - | EI42: - | EJ42: x | EK42: x | EL42: 5 | EM42: 4 | EN42: 1 | EO42: - | EP42: - | EQ42: - | ER42: 7 | ES42: 2 | ET42: - | EU42: 1 | EV42: 1 | EW42: 3 | EX42: 6 | EY42: 6 | EZ42: - | FA42: - | FB42: - | FC42: - | FD42: - | FE42: 175 | FF42: 175 | FG42: - | FH42: - | FI42: - | FJ42: - | FK42: - | FL42: 6 | FM42: - | FN42: - | FO42: - | FP42: - | FQ42: - | FR42: - | FS42: - | FT42: 6 | FU42: - | FV42: - | FW42: - | FX42: - | FY42: - | FZ42: - | GA42: - | GB42: - | GC42: 5 | GD42: - | GE42: x | GF42: - | GG42: 6 | GH42: - | GI42: 1 | GJ42: 5 | GK42: 252 | GL42: - | GM42: 38 | GN42: 214 | GO42: 6 | GP42: - | GQ42: - | GR42: 2 | GS42: - | GT42: 4 | GU42: 6 | GV42: - | GW42: - | GX42: - | GY42: - | GZ42: - | HA42: - | HB42: - | HC42: 1 | HD42: 1 | HE42: 1 | HF42: 2 | HG42: 1 | HH42: - | HI42: 71.5 | HJ42: 3 | HK42: - | HL42: - | HM42: - | HN42: - | HO42: - | HP42: - | HQ42: - | HR42: - | HS42: 1 | HT42: 1 | HU42: 1 | HV42: - | HW42: - | HX42: 70.67 | HY42: 6 | HZ42: 5 | IA42: 1 | IB42: 1 | IC42: 1 | ID42: - | IE42: - | IF42: 3 | IG42: … | IH42: … | II42: … | IJ42: … | IK42: … | IL42: … | IM42: … | IN42: … | IO42: … | IP42: … | IQ42: … | IR42: … | IS42: … | IT42: … | IU42: … | IV42: … | IW42: … | IX42: … | IY42: … | IZ42: … | JA42: … | JB42: … | JC42: … | JD42: … | JE42: … | JF42: … | JG42: … | JH42: … | JI42: … | JJ42: … | JK42: … | JL42: … | JM42: … | JN42: … | JO42: … | JP42: … | JQ42: … | JR42: 398 | JS42: 30 | JT42: 823 | JU42: 2889 | JV42: 251.0328068 | JW42: 21.74969623 | JX42: 15.88 | JY42: 0 | JZ42: 1 | KA42: 0 | KB42: 0 | KC42: 0 | KD42: 0
A43: 3020101035 | B43: 30 | D43: 201 | E43: 01 | F43: 035 | H43: 和歌山県 | I43: 和歌山市 | J43: 和歌山市 | K43: 手平出島 | M43: - | N43: - | O43: - | P43: - | Q43: - | R43: - | S43: - | T43: - | U43: - | V43: - | W43: - | X43: - | Y43: - | Z43: - | AA43: - | AB43: - | AC43: - | AD43: - | AE43: - | AF43: - | AG43: - | AH43: - | AI43: - | AJ43: - | AK43: - | AL43: - | AM43: - | AN43: - | AO43: - | AP43: - | AQ43: - | AR43: - | AS43: - | AT43: - | AU43: - | AV43: - | AW43: - | AX43: - | AY43: - | AZ43: - | BA43: x | BB43: - | BC43: x | BD43: - | BE43: x | BF43: - | BG43: - | BH43: - | BI43: - | BJ43: - | BK43: x | BL43: - | BM43: x | BN43: - | BO43: x | BP43: - | BQ43: - | BR43: - | BS43: - | BT43: - | BU43: - | BV43: - | BW43: - | BX43: - | BY43: - | BZ43: - | CA43: - | CB43: - | CC43: - | CD43: - | CE43: - | CF43: - | CG43: - | CH43: - | CI43: - | CJ43: - | CK43: - | CL43: - | CM43: - | CN43: - | CO43: - | CP43: - | CQ43: - | CR43: - | CS43: - | CT43: - | CU43: - | CV43: - | CW43: - | CX43: - | CY43: - | CZ43: - | DA43: - | DB43: - | DC43: - | DD43: - | DE43: - | DF43: - | DG43: - | DH43: - | DI43: - | DJ43: - | DK43: - | DL43: - | DM43: - | DN43: - | DO43: - | DP43: - | DQ43: - | DR43: - | DS43: - | DT43: - | DU43: - | DV43: - | DW43: - | DX43: - | DY43: - | DZ43: x | EA43: x | EB43: - | EC43: - | ED43: - | EE43: - | EF43: - | EG43: - | EH43: - | EI43: - | EJ43: x | EK43: x | EL43: - | EM43: - | EN43: - | EO43: - | EP43: - | EQ43: - | ER43: - | ES43: - | ET43: - | EU43: - | EV43: - | EW43: - | EX43: - | EY43: - | EZ43: - | FA43: - | FB43: - | FC43: - | FD43: - | FE43: - | FF43: - | FG43: - | FH43: - | FI43: - | FJ43: - | FK43: - | FL43: - | FM43: - | FN43: - | FO43: - | FP43: - | FQ43: - | FR43: - | FS43: - | FT43: - | FU43: - | FV43: - | FW43: - | FX43: - | FY43: - | FZ43: - | GA43: - | GB43: - | GC43: - | GD43: - | GE43: - | GF43: - | GG43: - | GH43: - | GI43: - | GJ43: - | GK43: - | GL43: - | GM43: - | GN43: - | GO43: - | GP43: - | GQ43: - | GR43: - | GS43: - | GT43: - | GU43: - | GV43: - | GW43: - | GX43: - | GY43: - | GZ43: - | HA43: - | HB43: - | HC43: - | HD43: - | HE43: - | HF43: - | HG43: - | HH43: - | HI43: - | HJ43: - | HK43: - | HL43: - | HM43: - | HN43: - | HO43: - | HP43: - | HQ43: - | HR43: - | HS43: - | HT43: - | HU43: - | HV43: - | HW43: - | HX43: - | HY43: - | HZ43: - | IA43: - | IB43: - | IC43: - | ID43: - | IE43: - | IF43: - | IG43: … | IH43: … | II43: … | IJ43: … | IK43: … | IL43: … | IM43: … | IN43: … | IO43: … | IP43: … | IQ43: … | IR43: … | IS43: … | IT43: … | IU43: … | IV43: … | IW43: … | IX43: … | IY43: … | IZ43: … | JA43: … | JB43: … | JC43: … | JD43: … | JE43: … | JF43: … | JG43: … | JH43: … | JI43: … | JJ43: … | JK43: … | JL43: … | JM43: … | JN43: … | JO43: … | JP43: … | JQ43: … | JR43: 105 | JS43: 37 | JT43: 238 | JU43: 245 | JV43: 2.941176471 | JW43: 32.77310924 | JX43: 14.55 | JY43: 0 | JZ43: 1 | KA43: 0 | KB43: 0 | KC43: 0 | KD43: 0
A44: 3020101036 | B44: 30 | D44: 201 | E44: 01 | F44: 036 | H44: 和歌山県 | I44: 和歌山市 | J44: 和歌山市 | K44: 中島一 | M44: - | N44: - | O44: - | P44: - | Q44: - | R44: - | S44: - | T44: - | U44: - | V44: - | W44: - | X44: - | Y44: - | Z44: - | AA44: - | AB44: - | AC44: - | AD44: - | AE44: - | AF44: - | AG44: - | AH44: - | AI44: - | AJ44: - | AK44: - | AL44: - | AM44: - | AN44: - | AO44: - | AP44: - | AQ44: - | AR44: - | AS44: - | AT44: - | AU44: - | AV44: - | AW44: - | AX44: - | AY44: - | AZ44: - | BA44: x | BB44: - | BC44: x | BD44: - | BE44: x | BF44: - | BG44: - | BH44: - | BI44: - | BJ44: - | BK44: x | BL44: - | BM44: x | BN44: - | BO44: x | BP44: - | BQ44: - | BR44: - | BS44: - | BT44: - | BU44: - | BV44: - | BW44: - | BX44: - | BY44: - | BZ44: - | CA44: - | CB44: - | CC44: - | CD44: - | CE44: - | CF44: - | CG44: - | CH44: - | CI44: - | CJ44: - | CK44: - | CL44: - | CM44: - | CN44: - | CO44: - | CP44: - | CQ44: - | CR44: - | CS44: - | CT44: - | CU44: - | CV44: - | CW44: - | CX44: - | CY44: - | CZ44: - | DA44: - | DB44: - | DC44: - | DD44: - | DE44: - | DF44: - | DG44: - | DH44: - | DI44: - | DJ44: - | DK44: - | DL44: - | DM44: - | DN44: - | DO44: - | DP44: - | DQ44: - | DR44: - | DS44: - | DT44: - | DU44: - | DV44: - | DW44: - | DX44: - | DY44: - | DZ44: x | EA44: x | EB44: - | EC44: - | ED44: - | EE44: - | EF44: - | EG44: - | EH44: - | EI44: - | EJ44: x | EK44: x | EL44: - | EM44: - | EN44: - | EO44: - | EP44: - | EQ44: - | ER44: - | ES44: - | ET44: - | EU44: - | EV44: - | EW44: - | EX44: - | EY44: - | EZ44: - | FA44: - | FB44: - | FC44: - | FD44: - | FE44: - | FF44: - | FG44: - | FH44: - | FI44: - | FJ44: - | FK44: - | FL44: - | FM44: - | FN44: - | FO44: - | FP44: - | FQ44: - | FR44: - | FS44: - | FT44: - | FU44: - | FV44: - | FW44: - | FX44: - | FY44: - | FZ44: - | GA44: - | GB44: - | GC44: - | GD44: - | GE44: - | GF44: - | GG44: - | GH44: - | GI44: - | GJ44: - | GK44: - | GL44: - | GM44: - | GN44: - | GO44: - | GP44: - | GQ44: - | GR44: - | GS44: - | GT44: - | GU44: - | GV44: - | GW44: - | GX44: - | GY44: - | GZ44: - | HA44: - | HB44: - | HC44: - | HD44: - | HE44: - | HF44: - | HG44: - | HH44: - | HI44: - | HJ44: - | HK44: - | HL44: - | HM44: - | HN44: - | HO44: - | HP44: - | HQ44: - | HR44: - | HS44: - | HT44: - | HU44: - | HV44: - | HW44: - | HX44: - | HY44: - | HZ44: - | IA44: - | IB44: - | IC44: - | ID44: - | IE44: - | IF44: - | IG44: … | IH44: … | II44: … | IJ44: … | IK44: … | IL44: … | IM44: … | IN44: … | IO44: … | IP44: … | IQ44: … | IR44: … | IS44: … | IT44: … | IU44: … | IV44: … | IW44: … | IX44: … | IY44: … | IZ44: … | JA44: … | JB44: … | JC44: … | JD44: … | JE44: … | JF44: … | JG44: … | JH44: … | JI44: … | JJ44: … | JK44: … | JL44: … | JM44: … | JN44: … | JO44: … | JP44: … | JQ44: … | JR44: 474 | JS44: 50 | JT44: 854 | JU44: 554 | JV44: -35.12880562 | JW44: 38.64168618 | JX44: 15.15 | JY44: 0 | JZ44: 1 | KA44: 0 | KB44: 0 | KC44: 0 | KD44: 0
A45: 3020101037 | B45: 30 | D45: 201 | E45: 01 | F45: 037 | H45: 和歌山県 | I45: 和歌山市 | J45: 和歌山市 | K45: 中島二 | M45: 8 | N45: - | O45: - | P45: - | Q45: - | R45: - | S45: - | T45: 8 | U45: 2 | V45: - | W45: - | X45: 1 | Y45: 1 | Z45: 8 | AA45: 3 | AB45: 5 | AC45: - | AD45: - | AE45: - | AF45: - | AG45: - | AH45: - | AI45: 440 | AJ45: 118 | AK45: 322 | AL45: - | AM45: - | AN45: - | AO45: - | AP45: - | AQ45: - | AR45: 8 | AS45: 432 | AT45: 1 | AU45: 8 | AV45: - | AW45: - | AX45: - | AY45: - | AZ45: 8 | BA45: x | BB45: - | BC45: x | BD45: 2 | BE45: x | BF45: - | BG45: - | BH45: - | BI45: - | BJ45: 416 | BK45: x | BL45: - | BM45: x | BN45: x | BO45: x | BP45: - | BQ45: - | BR45: - | BS45: - | BT45: - | BU45: - | BV45: - | BW45: - | BX45: - | BY45: - | BZ45: - | CA45: - | CB45: - | CC45: - | CD45: - | CE45: - | CF45: - | CG45: - | CH45: - | CI45: - | CJ45: 1 | CK45: x | CL45: 1 | CM45: x | CN45: - | CO45: - | CP45: - | CQ45: - | CR45: - | CS45: - | CT45: 2 | CU45: x | CV45: - | CW45: - | CX45: - | CY45: - | CZ45: - | DA45: - | DB45: - | DC45: - | DD45: - | DE45: - | DF45: - | DG45: - | DH45: - | DI45: - | DJ45: - | DK45: - | DL45: - | DM45: - | DN45: - | DO45: - | DP45: - | DQ45: - | DR45: - | DS45: - | DT45: - | DU45: - | DV45: - | DW45: - | DX45: - | DY45: - | DZ45: x | EA45: x | EB45: - | EC45: - | ED45: - | EE45: - | EF45: - | EG45: - | EH45: - | EI45: - | EJ45: x | EK45: x | EL45: 8 | EM45: 8 | EN45: - | EO45: - | EP45: - | EQ45: - | ER45: 9 | ES45: 4 | ET45: - | EU45: 1 | EV45: 2 | EW45: 2 | EX45: 8 | EY45: 7 | EZ45: 1 | FA45: - | FB45: - | FC45: - | FD45: - | FE45: 525 | FF45: 325 | FG45: 200 | FH45: - | FI45: - | FJ45: - | FK45: - | FL45: 8 | FM45: - | FN45: - | FO45: - | FP45: - | FQ45: - | FR45: - | FS45: - | FT45: 8 | FU45: - | FV45: - | FW45: - | FX45: - | FY45: - | FZ45: - | GA45: - | GB45: - | GC45: 8 | GD45: 2 | GE45: x | GF45: 60 | GG45: 8 | GH45: - | GI45: 2 | GJ45: 6 | GK45: 440 | GL45: - | GM45: 101 | GN45: 339 | GO45: 8 | GP45: 1 | GQ45: 1 | GR45: 2 | GS45: - | GT45: 5 | GU45: 9 | GV45: - | GW45: - | GX45: 1 | GY45: 1 | GZ45: 1 | HA45: - | HB45: - | HC45: 1 | HD45: 2 | HE45: 2 | HF45: - | HG45: - | HH45: 1 | HI45: 62 | HJ45: 3 | HK45: - | HL45: - | HM45: - | HN45: - | HO45: - | HP45: - | HQ45: - | HR45: 1 | HS45: - | HT45: 1 | HU45: - | HV45: - | HW45: 1 | HX45: 73.67 | HY45: 8 | HZ45: 7 | IA45: - | IB45: 1 | IC45: 1 | ID45: - | IE45: - | IF45: 2 | IG45: … | IH45: … | II45: … | IJ45: … | IK45: … | IL45: … | IM45: … | IN45: … | IO45: … | IP45: … | IQ45: … | IR45: … | IS45: … | IT45: … | IU45: … | IV45: … | IW45: … | IX45: … | IY45: … | IZ45: … | JA45: … | JB45: … | JC45: … | JD45: … | JE45: … | JF45: … | JG45: … | JH45: … | JI45: … | JJ45: … | JK45: … | JL45: … | JM45: … | JN45: … | JO45: … | JP45: … | JQ45: … | JR45: 983 | JS45: 125 | JT45: 2488 | JU45: 1528 | JV45: -38.585209 | JW45: 32.31511254 | JX45: 48.84 | JY45: 0 | JZ45: 1 | KA45: 0 | KB45: 0 | KC45: 0 | KD45: 0
A46: 3020101038 | B46: 30 | D46: 201 | E46: 01 | F46: 038 | H46: 和歌山県 | I46: 和歌山市 | J46: 和歌山市 | K46: 手平 | M46: 1 | N46: x | O46: x | P46: x | Q46: x | R46: x | S46: x | T46: x | U46: x | V46: x | W46: x | X46: x | Y46: x | Z46: 1 | AA46: x | AB46: x | AC46: x | AD46: x | AE46: x | AF46: x | AG46: x | AH46: x | AI46: x | AJ46: x | AK46: x | AL46: x | AM46: x | AN46: x | AO46: x | AP46: x | AQ46: x | AR46: x | AS46: x | AT46: x | AU46: x | AV46: x | AW46: x | AX46: x | AY46: x | AZ46: x | BA46: x | BB46: x | BC46: x | BD46: x | BE46: x | BF46: x | BG46: x | BH46: x | BI46: x | BJ46: x | BK46: x | BL46: x | BM46: x | BN46: x | BO46: x | BP46: x | BQ46: x | BR46: x | BS46: x | BT46: x | BU46: x | BV46: x | BW46: x | BX46: x | BY46: x | BZ46: x | CA46: x | CB46: x | CC46: x | CD46: x | CE46: x | CF46: x | CG46: x | CH46: x | CI46: x | CJ46: x | CK46: x | CL46: x | CM46: x | CN46: x | CO46: x | CP46: x | CQ46: x | CR46: x | CS46: x | CT46: x | CU46: x | CV46: x | CW46: x | CX46: x | CY46: x | CZ46: x | DA46: x | DB46: x | DC46: x | DD46: x | DE46: x | DF46: x | DG46: x | DH46: x | DI46: x | DJ46: x | DK46: x | DL46: x | DM46: x | DN46: x | DO46: x | DP46: x | DQ46: x | DR46: x | DS46: x | DT46: x | DU46: x | DV46: x | DW46: x | DX46: x | DY46: x | DZ46: x | EA46: x | EB46: x | EC46: x | ED46: x | EE46: x | EF46: x | EG46: x | EH46: x | EI46: x | EJ46: x | EK46: x | EL46: x | EM46: x | EN46: x | EO46: x | EP46: x | EQ46: x | ER46: x | ES46: x | ET46: x | EU46: x | EV46: x | EW46: x | EX46: 1 | EY46: x | EZ46: x | FA46: x | FB46: x | FC46: x | FD46: x | FE46: x | FF46: x | FG46: x | FH46: x | FI46: x | FJ46: x | FK46: x | FL46: 1 | FM46: x | FN46: x | FO46: x | FP46: x | FQ46: x | FR46: x | FS46: x | FT46: 1 | FU46: x | FV46: x | FW46: x | FX46: x | FY46: x | FZ46: x | GA46: x | GB46: x | GC46: x | GD46: x | GE46: x | GF46: x | GG46: 1 | GH46: x | GI46: x | GJ46: x | GK46: x | GL46: x | GM46: x | GN46: x | GO46: 1 | GP46: x | GQ46: x | GR46: x | GS46: x | GT46: x | GU46: x | GV46: x | GW46: x | GX46: x | GY46: x | GZ46: x | HA46: x | HB46: x | HC46: x | HD46: x | HE46: x | HF46: x | HG46: x | HH46: x | HI46: x | HJ46: x | HK46: x | HL46: x | HM46: x | HN46: x | HO46: x | HP46: x | HQ46: x | HR46: x | HS46: x | HT46: x | HU46: x | HV46: x | HW46: x | HX46: x | HY46: 1 | HZ46: x | IA46: x | IB46: x | IC46: x | ID46: x | IE46: x | IF46: x | IG46: … | IH46: … | II46: … | IJ46: … | IK46: … | IL46: … | IM46: … | IN46: … | IO46: … | IP46: … | IQ46: … | IR46: … | IS46: … | IT46: … | IU46: … | IV46: … | IW46: … | IX46: … | IY46: … | IZ46: … | JA46: … | JB46: … | JC46: … | JD46: … | JE46: … | JF46: … | JG46: … | JH46: … | JI46: … | JJ46: … | JK46: … | JL46: … | JM46: … | JN46: … | JO46: … | JP46: … | JQ46: … | JR46: 891 | JS46: 139 | JT46: 1830 | JU46: 1079 | JV46: -41.03825137 | JW46: 35.13661202 | JX46: 48.07 | JY46: 0 | JZ46: 1 | KA46: 0 | KB46: 0 | KC46: 0 | KD46: 0
A47: 3020101039 | B47: 30 | D47: 201 | E47: 01 | F47: 039 | H47: 和歌山県 | I47: 和歌山市 | J47: 和歌山市 | K47: 小雑賀 | M47: 1 | N47: x | O47: x | P47: x | Q47: x | R47: x | S47: x | T47: x | U47: x | V47: x | W47: x | X47: x | Y47: x | Z47: 1 | AA47: x | AB47: x | AC47: x | AD47: x | AE47: x | AF47: x | AG47: x | AH47: x | AI47: x | AJ47: x | AK47: x | AL47: x | AM47: x | AN47: x | AO47: x | AP47: x | AQ47: x | AR47: x | AS47: x | AT47: x | AU47: x | AV47: x | AW47: x | AX47: x | AY47: x | AZ47: x | BA47: x | BB47: x | BC47: x | BD47: x | BE47: x | BF47: x | BG47: x | BH47: x | BI47: x | BJ47: x | BK47: x | BL47: x | BM47: x | BN47: x | BO47: x | BP47: x | BQ47: x | BR47: x | BS47: x | BT47: x | BU47: x | BV47: x | BW47: x | BX47: x | BY47: x | BZ47: x | CA47: x | CB47: x | CC47: x | CD47: x | CE47: x | CF47: x | CG47: x | CH47: x | CI47: x | CJ47: x | CK47: x | CL47: x | CM47: x | CN47: x | CO47: x | CP47: x | CQ47: x | CR47: x | CS47: x | CT47: x | CU47: x | CV47: x | CW47: x | CX47: x | CY47: x | CZ47: x | DA47: x | DB47: x | DC47: x | DD47: x | DE47: x | DF47: x | DG47: x | DH47: x | DI47: x | DJ47: x | DK47: x | DL47: x | DM47: x | DN47: x | DO47: x | DP47: x | DQ47: x | DR47: x | DS47: x | DT47: x | DU47: x | DV47: x | DW47: x | DX47: x | DY47: x | DZ47: x | EA47: x | EB47: x | EC47: x | ED47: x | EE47: x | EF47: x | EG47: x | EH47: x | EI47: x | EJ47: x | EK47: x | EL47: x | EM47: x | EN47: x | EO47: x | EP47: x | EQ47: x | ER47: x | ES47: x | ET47: x | EU47: x | EV47: x | EW47: x | EX47: 1 | EY47: x | EZ47: x | FA47: x | FB47: x | FC47: x | FD47: x | FE47: x | FF47: x | FG47: x | FH47: x | FI47: x | FJ47: x | FK47: x | FL47: 1 | FM47: x | FN47: x | FO47: x | FP47: x | FQ47: x | FR47: x | FS47: x | FT47: 1 | FU47: x | FV47: x | FW47: x | FX47: x | FY47: x | FZ47: x | GA47: x | GB47: x | GC47: x | GD47: x | GE47: x | GF47: x | GG47: 1 | GH47: x | GI47: x | GJ47: x | GK47: x | GL47: x | GM47: x | GN47: x | GO47: 1 | GP47: x | GQ47: x | GR47: x | GS47: x | GT47: x | GU47: x | GV47: x | GW47: x | GX47: x | GY47: x | GZ47: x | HA47: x | HB47: x | HC47: x | HD47: x | HE47: x | HF47: x | HG47: x | HH47: x | HI47: x | HJ47: x | HK47: x | HL47: x | HM47: x | HN47: x | HO47: x | HP47: x | HQ47: x | HR47: x | HS47: x | HT47: x | HU47: x | HV47: x | HW47: x | HX47: x | HY47: 1 | HZ47: x | IA47: x | IB47: x | IC47: x | ID47: x | IE47: x | IF47: x | IG47: … | IH47: … | II47: … | IJ47: … | IK47: … | IL47: … | IM47: … | IN47: … | IO47: … | IP47: … | IQ47: … | IR47: … | IS47: … | IT47: … | IU47: … | IV47: … | IW47: … | IX47: … | IY47: … | IZ47: … | JA47: … | JB47: … | JC47: … | JD47: … | JE47: … | JF47: … | JG47: … | JH47: … | JI47: … | JJ47: … | JK47: … | JL47: … | JM47: … | JN47: … | JO47: … | JP47: … | JQ47: … | JR47: 986 | JS47: 241 | JT47: 2054 | JU47: 1123 | JV47: -45.32619279 | JW47: 31.84031159 | JX47: 100.43 | JY47: 0 | JZ47: 1 | KA47: 0 | KB47: 0 | KC47: 0 | KD47: 0
A48: 3020101040 | B48: 30 | D48: 201 | E48: 01 | F48: 040 | H48: 和歌山県 | I48: 和歌山市 | J48: 和歌山市 | K48: 梶取 | M48: 2 | N48: x | O48: x | P48: x | Q48: x | R48: x | S48: x | T48: x | U48: x | V48: x | W48: x | X48: x | Y48: x | Z48: 2 | AA48: x | AB48: x | AC48: x | AD48: x | AE48: x | AF48: x | AG48: x | AH48: x | AI48: x | AJ48: x | AK48: x | AL48: x | AM48: x | AN48: x | AO48: x | AP48: x | AQ48: x | AR48: x | AS48: x | AT48: x | AU48: x | AV48: x | AW48: x | AX48: x | AY48: x | AZ48: x | BA48: x | BB48: x | BC48: x | BD48: x | BE48: x | BF48: x | BG48: x | BH48: x | BI48: x | BJ48: x | BK48: x | BL48: x | BM48: x | BN48: x | BO48: x | BP48: x | BQ48: x | BR48: x | BS48: x | BT48: x | BU48: x | BV48: x | BW48: x | BX48: x | BY48: x | BZ48: x | CA48: x | CB48: x | CC48: x | CD48: x | CE48: x | CF48: x | CG48: x | CH48: x | CI48: x | CJ48: x | CK48: x | CL48: x | CM48: x | CN48: x | CO48: x | CP48: x | CQ48: x | CR48: x | CS48: x | CT48: x | CU48: x | CV48: x | CW48: x | CX48: x | CY48: x | CZ48: x | DA48: x | DB48: x | DC48: x | DD48: x | DE48: x | DF48: x | DG48: x | DH48: x | DI48: x | DJ48: x | DK48: x | DL48: x | DM48: x | DN48: x | DO48: x | DP48: x | DQ48: x | DR48: x | DS48: x | DT48: x | DU48: x | DV48: x | DW48: x | DX48: x | DY48: x | DZ48: x | EA48: x | EB48: x | EC48: x | ED48: x | EE48: x | EF48: x | EG48: x | EH48: x | EI48: x | EJ48: x | EK48: x | EL48: x | EM48: x | EN48: x | EO48: x | EP48: x | EQ48: x | ER48: x | ES48: x | ET48: x | EU48: x | EV48: x | EW48: x | EX48: 2 | EY48: x | EZ48: x | FA48: x | FB48: x | FC48: x | FD48: x | FE48: x | FF48: x | FG48: x | FH48: x | FI48: x | FJ48: x | FK48: x | FL48: 2 | FM48: x | FN48: x | FO48: x | FP48: x | FQ48: x | FR48: x | FS48: x | FT48: 2 | FU48: x | FV48: x | FW48: x | FX48: x | FY48: x | FZ48: x | GA48: x | GB48: x | GC48: x | GD48: x | GE48: x | GF48: x | GG48: 2 | GH48: x | GI48: x | GJ48: x | GK48: x | GL48: x | GM48: x | GN48: x | GO48: 2 | GP48: x | GQ48: x | GR48: x | GS48: x | GT48: x | GU48: x | GV48: x | GW48: x | GX48: x | GY48: x | GZ48: x | HA48: x | HB48: x | HC48: x | HD48: x | HE48: x | HF48: x | HG48: x | HH48: x | HI48: x | HJ48: x | HK48: x | HL48: x | HM48: x | HN48: x | HO48: x | HP48: x | HQ48: x | HR48: x | HS48: x | HT48: x | HU48: x | HV48: x | HW48: x | HX48: x | HY48: 2 | HZ48: x | IA48: x | IB48: x | IC48: x | ID48: x | IE48: x | IF48: x | IG48: … | IH48: … | II48: … | IJ48: … | IK48: … | IL48: … | IM48: … | IN48: … | IO48: … | IP48: … | IQ48: … | IR48: … | IS48: … | IT48: … | IU48: … | IV48: … | IW48: … | IX48: … | IY48: … | IZ48: … | JA48: … | JB48: … | JC48: … | JD48: … | JE48: … | JF48: … | JG48: … | JH48: … | JI48: … | JJ48: … | JK48: … | JL48: … | JM48: … | JN48: … | JO48: … | JP48: … | JQ48: … | JR48: 792 | JS48: 66 | JT48: 1916 | JU48: 1544 | JV48: -19.41544885 | JW48: 25.6263048 | JX48: 36.3 | JY48: 0 | JZ48: 1 | KA48: 0 | KB48: 0 | KC48: 0 | KD48: 0
A49: 3020101041 | B49: 30 | D49: 201 | E49: 01 | F49: 041 | H49: 和歌山県 | I49: 和歌山市 | J49: 和歌山市 | K49: 野崎 | M49: 2 | N49: x | O49: x | P49: x | Q49: x | R49: x | S49: x | T49: x | U49: x | V49: x | W49: x | X49: x | Y49: x | Z49: 2 | AA49: x | AB49: x | AC49: x | AD49: x | AE49: x | AF49: x | AG49: x | AH49: x | AI49: x | AJ49: x | AK49: x | AL49: x | AM49: x | AN49: x | AO49: x | AP49: x | AQ49: x | AR49: x | AS49: x | AT49: x | AU49: x | AV49: x | AW49: x | AX49: x | AY49: x | AZ49: x | BA49: x | BB49: x | BC49: x | BD49: x | BE49: x | BF49: x | BG49: x | BH49: x | BI49: x | BJ49: x | BK49: x | BL49: x | BM49: x | BN49: x | BO49: x | BP49: x | BQ49: x | BR49: x | BS49: x | BT49: x | BU49: x | BV49: x | BW49: x | BX49: x | BY49: x | BZ49: x | CA49: x | CB49: x | CC49: x | CD49: x | CE49: x | CF49: x | CG49: x | CH49: x | CI49: x | CJ49: x | CK49: x | CL49: x | CM49: x | CN49: x | CO49: x | CP49: x | CQ49: x | CR49: x | CS49: x | CT49: x | CU49: x | CV49: x | CW49: x | CX49: x | CY49: x | CZ49: x | DA49: x | DB49: x | DC49: x | DD49: x | DE49: x | DF49: x | DG49: x | DH49: x | DI49: x | DJ49: x | DK49: x | DL49: x | DM49: x | DN49: x | DO49: x | DP49: x | DQ49: x | DR49: x | DS49: x | DT49: x | DU49: x | DV49: x | DW49: x | DX49: x | DY49: x | DZ49: x | EA49: x | EB49: x | EC49: x | ED49: x | EE49: x | EF49: x | EG49: x | EH49: x | EI49: x | EJ49: x | EK49: x | EL49: x | EM49: x | EN49: x | EO49: x | EP49: x | EQ49: x | ER49: x | ES49: x | ET49: x | EU49: x | EV49: x | EW49: x | EX49: 2 | EY49: x | EZ49: x | FA49: x | FB49: x | FC49: x | FD49: x | FE49: x | FF49: x | FG49: x | FH49: x | FI49: x | FJ49: x | FK49: x | FL49: 2 | FM49: x | FN49: x | FO49: x | FP49: x | FQ49: x | FR49: x | FS49: x | FT49: 2 | FU49: x | FV49: x | FW49: x | FX49: x | FY49: x | FZ49: x | GA49: x | GB49: x | GC49: x | GD49: x | GE49: x | GF49: x | GG49: 2 | GH49: x | GI49: x | GJ49: x | GK49: x | GL49: x | GM49: x | GN49: x | GO49: 2 | GP49: x | GQ49: x | GR49: x | GS49: x | GT49: x | GU49: x | GV49: x | GW49: x | GX49: x | GY49: x | GZ49: x | HA49: x | HB49: x | HC49: x | HD49: x | HE49: x | HF49: x | HG49: x | HH49: x | HI49: x | HJ49: x | HK49: x | HL49: x | HM49: x | HN49: x | HO49: x | HP49: x | HQ49: x | HR49: x | HS49: x | HT49: x | HU49: x | HV49: x | HW49: x | HX49: x | HY49: 2 | HZ49: x | IA49: x | IB49: x | IC49: x | ID49: x | IE49: x | IF49: x | IG49: … | IH49: … | II49: … | IJ49: … | IK49: … | IL49: … | IM49: … | IN49: … | IO49: … | IP49: … | IQ49: … | IR49: … | IS49: … | IT49: … | IU49: … | IV49: … | IW49: … | IX49: … | IY49: … | IZ49: … | JA49: … | JB49: … | JC49: … | JD49: … | JE49: … | JF49: … | JG49: … | JH49: … | JI49: … | JJ49: … | JK49: … | JL49: … | JM49: … | JN49: … | JO49: … | JP49: … | JQ49: … | JR49: 840 | JS49: 50 | JT49: 1675 | JU49: 898 | JV49: -46.3880597 | JW49: 30.98507463 | JX49: 23.94 | JY49: 0 | JZ49: 1 | KA49: 0 | KB49: 0 | KC49: 0 | KD49: 0
